Workbook

Sheet Discussion
B3: This file has examples of: | AA3: FALSE
B5: Commitment Fee
B6: Maintenance Reserves
B7: Taxes and Depreciation
B10: Maintenance Reserve Steps:
B12: Step 1: Determine whether the period is a maintenance period (Could be input or alternatively could use the MOD function)
C13: If use the MOD function, make a switch variable where the MOD = 0
B15: Step 2: Compute the Real Level of the expense using the switch variable
B17: Step 3: Periods until next period -- this must be mutliplied by the converse of the switch
B19: Step 4: Use the offset command to find the year in which the expense occurs
B21: Step 5: Divide the base by the number of periods
B23: Step 6: Compute the operating reserve
B25: Step 7: The Expenditure is reported on the P&L

Sheet Varying Time Periods Complete
B2: General
C3: Commercial Operation | E3: Date | F3: 2015-01-01 | H3: IRR - No MRA | K3: =E76 -> 0.08197963536
C4: Concession Period | E4: Years | F4: 40 | H4: IRR - Level Payment contract | K4: =E70 -> 0.08183154762
C5: Periods per Year | E5: Periods | F5: 2 | H5: IRR - Maintenance Reserve | K5: =E63 -> 0.07761794031
C6: Months per Period | E6: Months | F6: =12/F5 -> 6
C7: Days per Period | E7: Days | F7: =360/F5 -> 180
C8: Retirement | E8: Date | F8: =EDATE(F3,F4*12)-1 -> 2054-12-31
C9: Debt Tenor | E9: Years | F9: =F4 -> 40
C10: Ending Debt Period | E10: Date | F10: =EDATE(F3,F9*12)-1 -> 2054-12-31
C11: Maintenance Discount Rate | E11: % | F11: 0.08 | G11: =(1+F11)^(1/2)-1 -> 0.03923048454
C12: Interest Income Rate | E12: % | F12: 0
C13: EBITDA | E13: Euro | F13: 2400
I14: Total | J14: =XNPV(F11,F43:SG43,F32:SG32) -> 7658.397339
B15: Extraordinary Maintenenace | I15: Level Factor | J15: =XNPV(F11,F34:SG34,F32:SG32) -> 25.25104707
G16: Periods | I16: Level Amt | J16: =J14/J15 -> 303.2902881
G17: Since Prior | H17: Debt Repay
E18: Date | F18: Expenditure | G18: Exp | H18: Spend
E19: =F3 -> 2015-01-01 | F19: 0
E20: =EDATE(E19,G20*$F$6) -> 2020-01-01 | F20: 0 | G20: 10 | H20: =F20*(E20<=$F$10) -> 0
E21: 2026-01-01 | F21: 10000 | G21: 12 | H21: =F21*(E21<=$F$10) -> 10000
E22: 2030-01-01 | F22: 3300 | G22: 8 | H22: 3300
E23: 2037-07-01 | F23: 5000 | G23: 15 | H23: 5000
E24: 2042-07-01 | F24: 7000 | G24: 10 | H24: 7000
E25: 2050-01-01 | F25: 9000 | G25: 15 | H25: 9000
B28: Period | E28: 0 | F28: =E28+1 -> 1 | G28: =F28+1 -> 2 | H28: 3 | I28: 4 | J28: 5 | K28: 6 | L28: 7 | M28: 8 | N28: 9 | O28: 10 | P28: 11 | Q28: 12 | R28: 13 | S28: 14 | T28: 15 | U28: 16 | V28: 17 | W28: 18 | X28: 19 | Y28: 20 | Z28: 21 | AA28: 22 | AB28: 23 | AC28: 24 | AD28: 25 | AE28: 26 | AF28: 27 | AG28: 28 | AH28: 29 | AI28: 30 | AJ28: 31 | AK28: 32 | AL28: 33 | AM28: 34 | AN28: 35 | AO28: 36 | AP28: 37 | AQ28: 38 | AR28: 39 | AS28: 40 | AT28: 41 | AU28: 42 | AV28: 43 | AW28: 44 | AX28: 45 | AY28: 46 | AZ28: 47 | BA28: 48 | BB28: 49 | BC28: 50 | BD28: 51 | BE28: 52 | BF28: 53 | BG28: 54 | BH28: 55 | BI28: 56 | BJ28: 57 | BK28: 58 | BL28: 59 | BM28: 60 | BN28: 61 | BO28: 62 | BP28: 63 | BQ28: 64 | BR28: 65 | BS28: =BR28+1 -> 66 | BT28: 67 | BU28: 68 | BV28: 69 | BW28: 70 | BX28: 71 | BY28: 72 | BZ28: 73 | CA28: 74 | CB28: 75 | CC28: 76 | CD28: 77 | CE28: 78 | CF28: 79 | CG28: 80 | CH28: 81 | CI28: 82 | CJ28: 83 | CK28: 84 | CL28: 85 | CM28: 86 | CN28: 87 | CO28: 88 | CP28: 89 | CQ28: 90 | CR28: 91 | CS28: 92 | CT28: 93 | CU28: 94 | CV28: 95 | CW28: 96 | CX28: 97 | CY28: 98 | CZ28: 99 | DA28: 100 | DB28: 101 | DC28: 102 | DD28: 103 | DE28: 104 | DF28: 105 | DG28: 106 | DH28: 107 | DI28: 108 | DJ28: 109 | DK28: 110 | DL28: 111 | DM28: 112 | DN28: 113 | DO28: 114 | DP28: 115 | DQ28: 116 | DR28: 117 | DS28: 118 | DT28: 119 | DU28: 120 | DV28: 121 | DW28: 122 | DX28: 123 | DY28: 124 | DZ28: 125 | EA28: 126 | EB28: 127 | EC28: 128 | ED28: 129 | EE28: =ED28+1 -> 130 | EF28: 131 | EG28: 132 | EH28: 133 | EI28: 134 | EJ28: 135 | EK28: 136 | EL28: 137 | EM28: 138 | EN28: 139 | EO28: 140 | EP28: 141 | EQ28: 142 | ER28: 143 | ES28: 144 | ET28: 145 | EU28: 146 | EV28: 147 | EW28: 148 | EX28: 149 | EY28: 150 | EZ28: 151 | FA28: 152 | FB28: 153 | FC28: 154 | FD28: 155 | FE28: 156 | FF28: 157 | FG28: 158 | FH28: 159 | FI28: 160 | FJ28: 161 | FK28: 162 | FL28: 163 | FM28: 164 | FN28: 165 | FO28: 166 | FP28: 167 | FQ28: 168 | FR28: 169 | FS28: 170 | FT28: 171 | FU28: 172 | FV28: 173 | FW28: 174 | FX28: 175 | FY28: 176 | FZ28: 177 | GA28: 178 | GB28: 179 | GC28: 180 | GD28: 181 | GE28: 182 | GF28: 183 | GG28: 184 | GH28: 185 | GI28: 186 | GJ28: 187 | GK28: 188 | GL28: 189 | GM28: 190 | GN28: 191 | GO28: 192 | GP28: 193 | GQ28: =GP28+1 -> 194 | GR28: 195 | GS28: 196 | GT28: 197 | GU28: 198 | GV28: 199 | GW28: 200 | GX28: 201 | GY28: 202 | GZ28: 203 | HA28: 204 | HB28: 205 | HC28: 206 | HD28: 207 | HE28: 208 | HF28: 209 | HG28: 210 | HH28: 211 | HI28: 212 | HJ28: 213 | HK28: 214 | HL28: 215 | HM28: 216 | HN28: 217 | HO28: 218 | HP28: 219 | HQ28: 220 | HR28: 221 | HS28: 222 | HT28: 223 | HU28: 224 | HV28: 225 | HW28: 226 | HX28: 227 | HY28: 228 | HZ28: 229 | IA28: 230 | IB28: 231 | IC28: 232 | ID28: 233 | IE28: 234 | IF28: 235 | IG28: 236 | IH28: 237 | II28: 238 | IJ28: 239 | IK28: 240 | IL28: 241 | IM28: 242 | IN28: 243 | IO28: 244 | IP28: 245 | IQ28: 246 | IR28: 247 | IS28: 248 | IT28: 249 | IU28: 250 | IV28: 251 | IW28: =IV28+1 -> 252 | IX28: =IW28+1 -> 253 | IY28: =IX28+1 -> 254 | IZ28: =IY28+1 -> 255 | JA28: =IZ28+1 -> 256 | JB28: =JA28+1 -> 257 | JC28: =JB28+1 -> 258 | JD28: =JC28+1 -> 259 | JE28: =JD28+1 -> 260 | JF28: =JE28+1 -> 261 | JG28: =JF28+1 -> 262 | JH28: =JG28+1 -> 263 | JI28: =JH28+1 -> 264 | JJ28: =JI28+1 -> 265 | JK28: =JJ28+1 -> 266 | JL28: =JK28+1 -> 267 | JM28: =JL28+1 -> 268 | JN28: =JM28+1 -> 269 | JO28: =JN28+1 -> 270 | JP28: =JO28+1 -> 271 | JQ28: =JP28+1 -> 272 | JR28: =JQ28+1 -> 273 | JS28: =JR28+1 -> 274 | JT28: =JS28+1 -> 275 | JU28: =JT28+1 -> 276 | JV28: =JU28+1 -> 277 | JW28: =JV28+1 -> 278 | JX28: =JW28+1 -> 279 | JY28: =JX28+1 -> 280 | JZ28: =JY28+1 -> 281 | KA28: =JZ28+1 -> 282 | KB28: =KA28+1 -> 283 | KC28: =KB28+1 -> 284 | KD28: =KC28+1 -> 285 | KE28: =KD28+1 -> 286 | KF28: =KE28+1 -> 287 | KG28: =KF28+1 -> 288 | KH28: =KG28+1 -> 289 | KI28: =KH28+1 -> 290 | KJ28: =KI28+1 -> 291 | KK28: =KJ28+1 -> 292 | KL28: =KK28+1 -> 293 | KM28: =KL28+1 -> 294 | KN28: =KM28+1 -> 295 | KO28: =KN28+1 -> 296 | KP28: =KO28+1 -> 297 | KQ28: =KP28+1 -> 298 | KR28: =KQ28+1 -> 299 | KS28: =KR28+1 -> 300 | KT28: =KS28+1 -> 301 | KU28: =KT28+1 -> 302 | KV28: =KU28+1 -> 303 | KW28: =KV28+1 -> 304 | KX28: =KW28+1 -> 305 | KY28: =KX28+1 -> 306 | KZ28: =KY28+1 -> 307 | LA28: =KZ28+1 -> 308 | LB28: =LA28+1 -> 309 | LC28: =LB28+1 -> 310 | LD28: =LC28+1 -> 311 | LE28: =LD28+1 -> 312 | LF28: =LE28+1 -> 313 | LG28: =LF28+1 -> 314 | LH28: =LG28+1 -> 315 | LI28: =LH28+1 -> 316 | LJ28: =LI28+1 -> 317 | LK28: =LJ28+1 -> 318 | LL28: =LK28+1 -> 319 | LM28: =LL28+1 -> 320 | LN28: =LM28+1 -> 321 | LO28: =LN28+1 -> 322 | LP28: =LO28+1 -> 323 | LQ28: =LP28+1 -> 324 | LR28: =LQ28+1 -> 325 | LS28: =LR28+1 -> 326 | LT28: =LS28+1 -> 327 | LU28: =LT28+1 -> 328 | LV28: =LU28+1 -> 329 | LW28: =LV28+1 -> 330 | LX28: =LW28+1 -> 331 | LY28: =LX28+1 -> 332 | LZ28: =LY28+1 -> 333 | MA28: =LZ28+1 -> 334 | MB28: =MA28+1 -> 335 | MC28: =MB28+1 -> 336 | MD28: =MC28+1 -> 337 | ME28: =MD28+1 -> 338 | MF28: =ME28+1 -> 339 | MG28: =MF28+1 -> 340 | MH28: =MG28+1 -> 341 | MI28: =MH28+1 -> 342 | MJ28: =MI28+1 -> 343 | MK28: =MJ28+1 -> 344 | ML28: =MK28+1 -> 345 | MM28: =ML28+1 -> 346 | MN28: =MM28+1 -> 347 | MO28: =MN28+1 -> 348 | MP28: =MO28+1 -> 349 | MQ28: =MP28+1 -> 350 | MR28: =MQ28+1 -> 351 | MS28: =MR28+1 -> 352 | MT28: =MS28+1 -> 353 | MU28: =MT28+1 -> 354 | MV28: =MU28+1 -> 355 | MW28: =MV28+1 -> 356 | MX28: =MW28+1 -> 357 | MY28: =MX28+1 -> 358 | MZ28: =MY28+1 -> 359 | NA28: =MZ28+1 -> 360 | NB28: =NA28+1 -> 361 | NC28: =NB28+1 -> 362 | ND28: =NC28+1 -> 363 | NE28: =ND28+1 -> 364 | NF28: =NE28+1 -> 365 | NG28: =NF28+1 -> 366 | NH28: =NG28+1 -> 367 | NI28: =NH28+1 -> 368 | NJ28: =NI28+1 -> 369 | NK28: =NJ28+1 -> 370 | NL28: =NK28+1 -> 371 | NM28: =NL28+1 -> 372 | NN28: =NM28+1 -> 373 | NO28: =NN28+1 -> 374 | NP28: =NO28+1 -> 375 | NQ28: =NP28+1 -> 376 | NR28: =NQ28+1 -> 377 | NS28: =NR28+1 -> 378 | NT28: =NS28+1 -> 379 | NU28: =NT28+1 -> 380 | NV28: =NU28+1 -> 381 | NW28: =NV28+1 -> 382 | NX28: =NW28+1 -> 383 | NY28: =NX28+1 -> 384 | NZ28: =NY28+1 -> 385 | OA28: =NZ28+1 -> 386 | OB28: =OA28+1 -> 387 | OC28: =OB28+1 -> 388 | OD28: =OC28+1 -> 389 | OE28: =OD28+1 -> 390 | OF28: =OE28+1 -> 391 | OG28: =OF28+1 -> 392 | OH28: =OG28+1 -> 393 | OI28: =OH28+1 -> 394 | OJ28: =OI28+1 -> 395 | OK28: =OJ28+1 -> 396 | OL28: =OK28+1 -> 397 | OM28: =OL28+1 -> 398 | ON28: =OM28+1 -> 399 | OO28: =ON28+1 -> 400 | OP28: =OO28+1 -> 401 | OQ28: =OP28+1 -> 402 | OR28: =OQ28+1 -> 403 | OS28: =OR28+1 -> 404 | OT28: =OS28+1 -> 405 | OU28: =OT28+1 -> 406 | OV28: =OU28+1 -> 407 | OW28: =OV28+1 -> 408 | OX28: =OW28+1 -> 409 | OY28: =OX28+1 -> 410 | OZ28: =OY28+1 -> 411 | PA28: =OZ28+1 -> 412 | PB28: =PA28+1 -> 413 | PC28: =PB28+1 -> 414 | PD28: =PC28+1 -> 415 | PE28: =PD28+1 -> 416 | PF28: =PE28+1 -> 417 | PG28: =PF28+1 -> 418 | PH28: =PG28+1 -> 419 | PI28: =PH28+1 -> 420 | PJ28: =PI28+1 -> 421 | PK28: =PJ28+1 -> 422 | PL28: =PK28+1 -> 423 | PM28: =PL28+1 -> 424 | PN28: =PM28+1 -> 425 | PO28: =PN28+1 -> 426 | PP28: =PO28+1 -> 427 | PQ28: =PP28+1 -> 428 | PR28: =PQ28+1 -> 429 | PS28: =PR28+1 -> 430 | PT28: =PS28+1 -> 431 | PU28: =PT28+1 -> 432 | PV28: =PU28+1 -> 433 | PW28: =PV28+1 -> 434 | PX28: =PW28+1 -> 435 | PY28: =PX28+1 -> 436 | PZ28: =PY28+1 -> 437 | QA28: =PZ28+1 -> 438 | QB28: =QA28+1 -> 439 | QC28: =QB28+1 -> 440 | QD28: =QC28+1 -> 441 | QE28: =QD28+1 -> 442 | QF28: =QE28+1 -> 443 | QG28: =QF28+1 -> 444 | QH28: =QG28+1 -> 445 | QI28: =QH28+1 -> 446 | QJ28: =QI28+1 -> 447 | QK28: =QJ28+1 -> 448 | QL28: =QK28+1 -> 449 | QM28: =QL28+1 -> 450 | QN28: =QM28+1 -> 451 | QO28: =QN28+1 -> 452 | QP28: =QO28+1 -> 453 | QQ28: =QP28+1 -> 454 | QR28: =QQ28+1 -> 455 | QS28: =QR28+1 -> 456 | QT28: =QS28+1 -> 457 | QU28: =QT28+1 -> 458 | QV28: =QU28+1 -> 459 | QW28: =QV28+1 -> 460 | QX28: =QW28+1 -> 461 | QY28: =QX28+1 -> 462 | QZ28: =QY28+1 -> 463 | RA28: =QZ28+1 -> 464 | RB28: =RA28+1 -> 465 | RC28: =RB28+1 -> 466 | RD28: =RC28+1 -> 467 | RE28: =RD28+1 -> 468 | RF28: =RE28+1 -> 469 | RG28: =RF28+1 -> 470 | RH28: =RG28+1 -> 471 | RI28: =RH28+1 -> 472 | RJ28: =RI28+1 -> 473 | RK28: =RJ28+1 -> 474 | RL28: =RK28+1 -> 475 | RM28: =RL28+1 -> 476 | RN28: =RM28+1 -> 477 | RO28: =RN28+1 -> 478 | RP28: =RO28+1 -> 479 | RQ28: =RP28+1 -> 480 | RR28: =RQ28+1 -> 481 | RS28: =RR28+1 -> 482 | RT28: =RS28+1 -> 483 | RU28: =RT28+1 -> 484 | RV28: =RU28+1 -> 485 | RW28: =RV28+1 -> 486 | RX28: =RW28+1 -> 487 | RY28: =RX28+1 -> 488 | RZ28: =RY28+1 -> 489 | SA28: =RZ28+1 -> 490 | SB28: =SA28+1 -> 491 | SC28: =SB28+1 -> 492 | SD28: =SC28+1 -> 493 | SE28: =SD28+1 -> 494 | SF28: =SE28+1 -> 495 | SG28: =SF28+1 -> 496
B29: Months in Period | E29: =$F$6 -> 6 | F29: =$F$6 -> 6 | G29: 6 | H29: 6 | I29: 6 | J29: 6 | K29: 6 | L29: 6 | M29: 6 | N29: 6 | O29: 6 | P29: 6 | Q29: 6 | R29: 6 | S29: 6 | T29: 6 | U29: 6 | V29: 6 | W29: 6 | X29: 6 | Y29: 6 | Z29: 6 | AA29: 6 | AB29: 6 | AC29: 6 | AD29: 6 | AE29: 6 | AF29: 6 | AG29: 6 | AH29: 6 | AI29: 6 | AJ29: 6 | AK29: 6 | AL29: 6 | AM29: 6 | AN29: 6 | AO29: 6 | AP29: 6 | AQ29: 6 | AR29: 6 | AS29: 6 | AT29: 6 | AU29: 6 | AV29: 6 | AW29: 6 | AX29: 6 | AY29: 6 | AZ29: 6 | BA29: 6 | BB29: 6 | BC29: 6 | BD29: 6 | BE29: 6 | BF29: 6 | BG29: 6 | BH29: 6 | BI29: 6 | BJ29: 6 | BK29: 6 | BL29: 6 | BM29: 6 | BN29: 6 | BO29: 6 | BP29: 6 | BQ29: 6 | BR29: =$F$6 -> 6 | BS29: 6 | BT29: 6 | BU29: 6 | BV29: 6 | BW29: 6 | BX29: 6 | BY29: 6 | BZ29: 6 | CA29: 6 | CB29: 6 | CC29: 6 | CD29: 6 | CE29: 6 | CF29: 6 | CG29: 6 | CH29: 6 | CI29: 6 | CJ29: 6 | CK29: 6 | CL29: 6 | CM29: 6 | CN29: 6 | CO29: 6 | CP29: 6 | CQ29: 6 | CR29: 6 | CS29: 6 | CT29: 6 | CU29: 6 | CV29: 6 | CW29: 6 | CX29: 6 | CY29: 6 | CZ29: 6 | DA29: 6 | DB29: 6 | DC29: 6 | DD29: 6 | DE29: 6 | DF29: 6 | DG29: 6 | DH29: 6 | DI29: 6 | DJ29: 6 | DK29: 6 | DL29: 6 | DM29: 6 | DN29: 6 | DO29: 6 | DP29: 6 | DQ29: 6 | DR29: 6 | DS29: 6 | DT29: 6 | DU29: 6 | DV29: 6 | DW29: 6 | DX29: 6 | DY29: 6 | DZ29: 6 | EA29: 6 | EB29: 6 | EC29: 6 | ED29: =$F$6 -> 6 | EE29: 6 | EF29: 6 | EG29: 6 | EH29: 6 | EI29: 6 | EJ29: 6 | EK29: 6 | EL29: 6 | EM29: 6 | EN29: 6 | EO29: 6 | EP29: 6 | EQ29: 6 | ER29: 6 | ES29: 6 | ET29: 6 | EU29: 6 | EV29: 6 | EW29: 6 | EX29: 6 | EY29: 6 | EZ29: 6 | FA29: 6 | FB29: 6 | FC29: 6 | FD29: 6 | FE29: 6 | FF29: 6 | FG29: 6 | FH29: 6 | FI29: 6 | FJ29: 6 | FK29: 6 | FL29: 6 | FM29: 6 | FN29: 6 | FO29: 6 | FP29: 6 | FQ29: 6 | FR29: 6 | FS29: 6 | FT29: 6 | FU29: 6 | FV29: 6 | FW29: 6 | FX29: 6 | FY29: 6 | FZ29: 6 | GA29: 6 | GB29: 6 | GC29: 6 | GD29: 6 | GE29: 6 | GF29: 6 | GG29: 6 | GH29: 6 | GI29: 6 | GJ29: 6 | GK29: 6 | GL29: 6 | GM29: 6 | GN29: 6 | GO29: 6 | GP29: =$F$6 -> 6 | GQ29: 6 | GR29: 6 | GS29: 6 | GT29: 6 | GU29: 6 | GV29: 6 | GW29: 6 | GX29: 6 | GY29: 6 | GZ29: 6 | HA29: 6 | HB29: 6 | HC29: 6 | HD29: 6 | HE29: 6 | HF29: 6 | HG29: 6 | HH29: 6 | HI29: 6 | HJ29: 6 | HK29: 6 | HL29: 6 | HM29: 6 | HN29: 6 | HO29: 6 | HP29: 6 | HQ29: 6 | HR29: 6 | HS29: 6 | HT29: 6 | HU29: 6 | HV29: 6 | HW29: 6 | HX29: 6 | HY29: 6 | HZ29: 6 | IA29: 6 | IB29: 6 | IC29: 6 | ID29: 6 | IE29: 6 | IF29: 6 | IG29: 6 | IH29: 6 | II29: 6 | IJ29: 6 | IK29: 6 | IL29: 6 | IM29: 6 | IN29: 6 | IO29: 6 | IP29: 6 | IQ29: 6 | IR29: 6 | IS29: 6 | IT29: 6 | IU29: 6 | IV29: 6 | IW29: 6 | IX29: 6 | IY29: 6 | IZ29: 6 | JA29: 6 | JB29: =$F$6 -> 6 | JC29: 6 | JD29: 6 | JE29: 6 | JF29: 6 | JG29: 6 | JH29: 6 | JI29: 6 | JJ29: 6 | JK29: 6 | JL29: 6 | JM29: 6 | JN29: 6 | JO29: 6 | JP29: 6 | JQ29: 6 | JR29: 6 | JS29: 6 | JT29: 6 | JU29: 6 | JV29: 6 | JW29: 6 | JX29: 6 | JY29: 6 | JZ29: 6 | KA29: 6 | KB29: 6 | KC29: 6 | KD29: 6 | KE29: 6 | KF29: 6 | KG29: 6 | KH29: 6 | KI29: 6 | KJ29: 6 | KK29: 6 | KL29: 6 | KM29: 6 | KN29: 6 | KO29: 6 | KP29: 6 | KQ29: 6 | KR29: 6 | KS29: 6 | KT29: 6 | KU29: 6 | KV29: 6 | KW29: 6 | KX29: 6 | KY29: 6 | KZ29: 6 | LA29: 6 | LB29: 6 | LC29: 6 | LD29: 6 | LE29: 6 | LF29: 6 | LG29: 6 | LH29: 6 | LI29: 6 | LJ29: 6 | LK29: 6 | LL29: 6 | LM29: 6 | LN29: =$F$6 -> 6 | LO29: 6 | LP29: 6 | LQ29: 6 | LR29: 6 | LS29: 6 | LT29: 6 | LU29: 6 | LV29: 6 | LW29: 6 | LX29: 6 | LY29: 6 | LZ29: 6 | MA29: 6 | MB29: 6 | MC29: 6 | MD29: 6 | ME29: 6 | MF29: 6 | MG29: 6 | MH29: 6 | MI29: 6 | MJ29: 6 | MK29: 6 | ML29: 6 | MM29: 6 | MN29: 6 | MO29: 6 | MP29: 6 | MQ29: 6 | MR29: 6 | MS29: 6 | MT29: 6 | MU29: 6 | MV29: 6 | MW29: 6 | MX29: 6 | MY29: 6 | MZ29: 6 | NA29: 6 | NB29: 6 | NC29: 6 | ND29: 6 | NE29: 6 | NF29: 6 | NG29: 6 | NH29: 6 | NI29: 6 | NJ29: 6 | NK29: 6 | NL29: 6 | NM29: 6 | NN29: 6 | NO29: 6 | NP29: 6 | NQ29: 6 | NR29: 6 | NS29: 6 | NT29: 6 | NU29: 6 | NV29: 6 | NW29: 6 | NX29: 6 | NY29: 6 | NZ29: =$F$6 -> 6 | OA29: 6 | OB29: 6 | OC29: 6 | OD29: 6 | OE29: 6 | OF29: 6 | OG29: 6 | OH29: 6 | OI29: 6 | OJ29: 6 | OK29: 6 | OL29: 6 | OM29: 6 | ON29: 6 | OO29: 6 | OP29: 6 | OQ29: 6 | OR29: 6 | OS29: 6 | OT29: 6 | OU29: 6 | OV29: 6 | OW29: 6 | OX29: 6 | OY29: 6 | OZ29: 6 | PA29: 6 | PB29: 6 | PC29: 6 | PD29: 6 | PE29: 6 | PF29: 6 | PG29: 6 | PH29: 6 | PI29: 6 | PJ29: 6 | PK29: 6 | PL29: 6 | PM29: 6 | PN29: 6 | PO29: 6 | PP29: 6 | PQ29: 6 | PR29: 6 | PS29: 6 | PT29: 6 | PU29: 6 | PV29: 6 | PW29: 6 | PX29: 6 | PY29: 6 | PZ29: 6 | QA29: 6 | QB29: 6 | QC29: 6 | QD29: 6 | QE29: 6 | QF29: 6 | QG29: 6 | QH29: 6 | QI29: 6 | QJ29: 6 | QK29: 6 | QL29: =$F$6 -> 6 | QM29: 6 | QN29: 6 | QO29: 6 | QP29: 6 | QQ29: 6 | QR29: 6 | QS29: 6 | QT29: 6 | QU29: 6 | QV29: 6 | QW29: 6 | QX29: 6 | QY29: 6 | QZ29: 6 | RA29: 6 | RB29: 6 | RC29: 6 | RD29: 6 | RE29: 6 | RF29: 6 | RG29: 6 | RH29: 6 | RI29: 6 | RJ29: 6 | RK29: 6 | RL29: 6 | RM29: 6 | RN29: 6 | RO29: 6 | RP29: 6 | RQ29: 6 | RR29: 6 | RS29: 6 | RT29: 6 | RU29: 6 | RV29: 6 | RW29: 6 | RX29: 6 | RY29: 6 | RZ29: 6 | SA29: 6 | SB29: 6 | SC29: 6 | SD29: 6 | SE29: 6 | SF29: 6 | SG29: 6
B30: Year | E30: =ROUNDUP(E28/12,0) -> 0 | F30: =ROUNDUP(F28/12,0) -> 1 | G30: 1 | H30: 1 | I30: 1 | J30: 1 | K30: 1 | L30: 1 | M30: 1 | N30: 1 | O30: 1 | P30: 1 | Q30: 1 | R30: 2 | S30: 2 | T30: 2 | U30: 2 | V30: 2 | W30: 2 | X30: 2 | Y30: 2 | Z30: 2 | AA30: 2 | AB30: 2 | AC30: 2 | AD30: 3 | AE30: 3 | AF30: 3 | AG30: 3 | AH30: 3 | AI30: 3 | AJ30: 3 | AK30: 3 | AL30: 3 | AM30: 3 | AN30: 3 | AO30: 3 | AP30: 4 | AQ30: 4 | AR30: 4 | AS30: 4 | AT30: 4 | AU30: 4 | AV30: 4 | AW30: 4 | AX30: 4 | AY30: 4 | AZ30: 4 | BA30: 4 | BB30: 5 | BC30: 5 | BD30: 5 | BE30: 5 | BF30: 5 | BG30: 5 | BH30: 5 | BI30: 5 | BJ30: 5 | BK30: 5 | BL30: 5 | BM30: 5 | BN30: 6 | BO30: 6 | BP30: 6 | BQ30: 6 | BR30: =ROUNDUP(BR28/12,0) -> 6 | BS30: 6 | BT30: 6 | BU30: 6 | BV30: 6 | BW30: 6 | BX30: 6 | BY30: 6 | BZ30: 7 | CA30: 7 | CB30: 7 | CC30: 7 | CD30: 7 | CE30: 7 | CF30: 7 | CG30: 7 | CH30: 7 | CI30: 7 | CJ30: 7 | CK30: 7 | CL30: 8 | CM30: 8 | CN30: 8 | CO30: 8 | CP30: 8 | CQ30: 8 | CR30: 8 | CS30: 8 | CT30: 8 | CU30: 8 | CV30: 8 | CW30: 8 | CX30: 9 | CY30: 9 | CZ30: 9 | DA30: 9 | DB30: 9 | DC30: 9 | DD30: 9 | DE30: 9 | DF30: 9 | DG30: 9 | DH30: 9 | DI30: 9 | DJ30: 10 | DK30: 10 | DL30: 10 | DM30: 10 | DN30: 10 | DO30: 10 | DP30: 10 | DQ30: 10 | DR30: 10 | DS30: 10 | DT30: 10 | DU30: 10 | DV30: 11 | DW30: 11 | DX30: 11 | DY30: 11 | DZ30: 11 | EA30: 11 | EB30: 11 | EC30: 11 | ED30: =ROUNDUP(ED28/12,0) -> 11 | EE30: 11 | EF30: 11 | EG30: 11 | EH30: 12 | EI30: 12 | EJ30: 12 | EK30: 12 | EL30: 12 | EM30: 12 | EN30: 12 | EO30: 12 | EP30: 12 | EQ30: 12 | ER30: 12 | ES30: 12 | ET30: 13 | EU30: 13 | EV30: 13 | EW30: 13 | EX30: 13 | EY30: 13 | EZ30: 13 | FA30: 13 | FB30: 13 | FC30: 13 | FD30: 13 | FE30: 13 | FF30: 14 | FG30: 14 | FH30: 14 | FI30: 14 | FJ30: 14 | FK30: 14 | FL30: 14 | FM30: 14 | FN30: 14 | FO30: 14 | FP30: 14 | FQ30: 14 | FR30: 15 | FS30: 15 | FT30: 15 | FU30: 15 | FV30: 15 | FW30: 15 | FX30: 15 | FY30: 15 | FZ30: 15 | GA30: 15 | GB30: 15 | GC30: 15 | GD30: 16 | GE30: 16 | GF30: 16 | GG30: 16 | GH30: 16 | GI30: 16 | GJ30: 16 | GK30: 16 | GL30: 16 | GM30: 16 | GN30: 16 | GO30: 16 | GP30: =ROUNDUP(GP28/12,0) -> 17 | GQ30: 17 | GR30: 17 | GS30: 17 | GT30: 17 | GU30: 17 | GV30: 17 | GW30: 17 | GX30: 17 | GY30: 17 | GZ30: 17 | HA30: 17 | HB30: 18 | HC30: 18 | HD30: 18 | HE30: 18 | HF30: 18 | HG30: 18 | HH30: 18 | HI30: 18 | HJ30: 18 | HK30: 18 | HL30: 18 | HM30: 18 | HN30: 19 | HO30: 19 | HP30: 19 | HQ30: 19 | HR30: 19 | HS30: 19 | HT30: 19 | HU30: 19 | HV30: 19 | HW30: 19 | HX30: 19 | HY30: 19 | HZ30: 20 | IA30: 20 | IB30: 20 | IC30: 20 | ID30: 20 | IE30: 20 | IF30: 20 | IG30: 20 | IH30: 20 | II30: 20 | IJ30: 20 | IK30: 20 | IL30: 21 | IM30: 21 | IN30: 21 | IO30: 21 | IP30: 21 | IQ30: 21 | IR30: 21 | IS30: 21 | IT30: 21 | IU30: 21 | IV30: 21 | IW30: 21 | IX30: 22 | IY30: 22 | IZ30: 22 | JA30: 22 | JB30: =ROUNDUP(JB28/12,0) -> 22 | JC30: 22 | JD30: 22 | JE30: 22 | JF30: 22 | JG30: 22 | JH30: 22 | JI30: 22 | JJ30: 23 | JK30: 23 | JL30: 23 | JM30: 23 | JN30: 23 | JO30: 23 | JP30: 23 | JQ30: 23 | JR30: 23 | JS30: 23 | JT30: 23 | JU30: 23 | JV30: 24 | JW30: 24 | JX30: 24 | JY30: 24 | JZ30: 24 | KA30: 24 | KB30: 24 | KC30: 24 | KD30: 24 | KE30: 24 | KF30: 24 | KG30: 24 | KH30: 25 | KI30: 25 | KJ30: 25 | KK30: 25 | KL30: 25 | KM30: 25 | KN30: 25 | KO30: 25 | KP30: 25 | KQ30: 25 | KR30: 25 | KS30: 25 | KT30: 26 | KU30: 26 | KV30: 26 | KW30: 26 | KX30: 26 | KY30: 26 | KZ30: 26 | LA30: 26 | LB30: 26 | LC30: 26 | LD30: 26 | LE30: 26 | LF30: 27 | LG30: 27 | LH30: 27 | LI30: 27 | LJ30: 27 | LK30: 27 | LL30: 27 | LM30: 27 | LN30: =ROUNDUP(LN28/12,0) -> 27 | LO30: 27 | LP30: 27 | LQ30: 27 | LR30: 28 | LS30: 28 | LT30: 28 | LU30: 28 | LV30: 28 | LW30: 28 | LX30: 28 | LY30: 28 | LZ30: 28 | MA30: 28 | MB30: 28 | MC30: 28 | MD30: 29 | ME30: 29 | MF30: 29 | MG30: 29 | MH30: 29 | MI30: 29 | MJ30: 29 | MK30: 29 | ML30: 29 | MM30: 29 | MN30: 29 | MO30: 29 | MP30: 30 | MQ30: 30 | MR30: 30 | MS30: 30 | MT30: 30 | MU30: 30 | MV30: 30 | MW30: 30 | MX30: 30 | MY30: 30 | MZ30: 30 | NA30: 30 | NB30: 31 | NC30: 31 | ND30: 31 | NE30: 31 | NF30: 31 | NG30: 31 | NH30: 31 | NI30: 31 | NJ30: 31 | NK30: 31 | NL30: 31 | NM30: 31 | NN30: 32 | NO30: 32 | NP30: 32 | NQ30: 32 | NR30: 32 | NS30: 32 | NT30: 32 | NU30: 32 | NV30: 32 | NW30: 32 | NX30: 32 | NY30: 32 | NZ30: =ROUNDUP(NZ28/12,0) -> 33 | OA30: 33 | OB30: 33 | OC30: 33 | OD30: 33 | OE30: 33 | OF30: 33 | OG30: 33 | OH30: 33 | OI30: 33 | OJ30: =ROUNDUP(OJ28/12,0) -> 33 | OK30: 33 | OL30: 34 | OM30: 34 | ON30: 34 | OO30: 34 | OP30: 34 | OQ30: 34 | OR30: 34 | OS30: 34 | OT30: 34 | OU30: 34 | OV30: 34 | OW30: 34 | OX30: 35 | OY30: 35 | OZ30: 35 | PA30: 35 | PB30: 35 | PC30: 35 | PD30: 35 | PE30: 35 | PF30: 35 | PG30: 35 | PH30: 35 | PI30: 35 | PJ30: 36 | PK30: 36 | PL30: 36 | PM30: 36 | PN30: 36 | PO30: 36 | PP30: 36 | PQ30: 36 | PR30: 36 | PS30: 36 | PT30: 36 | PU30: 36 | PV30: 37 | PW30: 37 | PX30: 37 | PY30: 37 | PZ30: 37 | QA30: 37 | QB30: 37 | QC30: 37 | QD30: 37 | QE30: 37 | QF30: 37 | QG30: 37 | QH30: 38 | QI30: 38 | QJ30: 38 | QK30: 38 | QL30: 38 | QM30: 38 | QN30: 38 | QO30: 38 | QP30: 38 | QQ30: 38 | QR30: 38 | QS30: 38 | QT30: 39 | QU30: 39 | QV30: =ROUNDUP(QV28/12,0) -> 39 | QW30: 39 | QX30: 39 | QY30: 39 | QZ30: 39 | RA30: 39 | RB30: 39 | RC30: 39 | RD30: 39 | RE30: 39 | RF30: 40 | RG30: 40 | RH30: 40 | RI30: 40 | RJ30: 40 | RK30: 40 | RL30: 40 | RM30: 40 | RN30: 40 | RO30: 40 | RP30: 40 | RQ30: 40 | RR30: 41 | RS30: 41 | RT30: 41 | RU30: 41 | RV30: 41 | RW30: 41 | RX30: 41 | RY30: 41 | RZ30: 41 | SA30: 41 | SB30: 41 | SC30: 41 | SD30: 42 | SE30: 42 | SF30: 42 | SG30: 42
B31: Start Date | F31: =E32+1 -> 2015-01-01 | G31: =F32+1 -> 2015-07-01 | H31: 2016-01-01 | I31: 2016-07-01 | J31: 2017-01-01 | K31: 2017-07-01 | L31: 2018-01-01 | M31: 2018-07-01 | N31: 2019-01-01 | O31: 2019-07-01 | P31: 2020-01-01 | Q31: 2020-07-01 | R31: 2021-01-01 | S31: 2021-07-01 | T31: 2022-01-01 | U31: 2022-07-01 | V31: 2023-01-01 | W31: 2023-07-01 | X31: 2024-01-01 | Y31: 2024-07-01 | Z31: 2025-01-01 | AA31: 2025-07-01 | AB31: 2026-01-01 | AC31: 2026-07-01 | AD31: 2027-01-01 | AE31: 2027-07-01 | AF31: 2028-01-01 | AG31: 2028-07-01 | AH31: 2029-01-01 | AI31: 2029-07-01 | AJ31: 2030-01-01 | AK31: 2030-07-01 | AL31: 2031-01-01 | AM31: 2031-07-01 | AN31: 2032-01-01 | AO31: 2032-07-01 | AP31: 2033-01-01 | AQ31: 2033-07-01 | AR31: 2034-01-01 | AS31: 2034-07-01 | AT31: 2035-01-01 | AU31: 2035-07-01 | AV31: 2036-01-01 | AW31: 2036-07-01 | AX31: 2037-01-01 | AY31: 2037-07-01 | AZ31: 2038-01-01 | BA31: 2038-07-01 | BB31: 2039-01-01 | BC31: 2039-07-01 | BD31: 2040-01-01 | BE31: 2040-07-01 | BF31: 2041-01-01 | BG31: 2041-07-01 | BH31: 2042-01-01 | BI31: 2042-07-01 | BJ31: 2043-01-01 | BK31: 2043-07-01 | BL31: 2044-01-01 | BM31: 2044-07-01 | BN31: 2045-01-01 | BO31: 2045-07-01 | BP31: 2046-01-01 | BQ31: 2046-07-01 | BR31: 2047-01-01 | BS31: =BR32+1 -> 2047-07-01 | BT31: 2048-01-01 | BU31: 2048-07-01 | BV31: 2049-01-01 | BW31: 2049-07-01 | BX31: 2050-01-01 | BY31: 2050-07-01 | BZ31: 2051-01-01 | CA31: 2051-07-01 | CB31: 2052-01-01 | CC31: 2052-07-01 | CD31: 2053-01-01 | CE31: 2053-07-01 | CF31: 2054-01-01 | CG31: 2054-07-01 | CH31: 2055-01-01 | CI31: 2055-07-01 | CJ31: 2056-01-01 | CK31: 2056-07-01 | CL31: 2057-01-01 | CM31: 2057-07-01 | CN31: 2058-01-01 | CO31: 2058-07-01 | CP31: 2059-01-01 | CQ31: 2059-07-01 | CR31: 2060-01-01 | CS31: 2060-07-01 | CT31: 2061-01-01 | CU31: 2061-07-01 | CV31: 2062-01-01 | CW31: 2062-07-01 | CX31: 2063-01-01 | CY31: 2063-07-01 | CZ31: 2064-01-01 | DA31: 2064-07-01 | DB31: 2065-01-01 | DC31: 2065-07-01 | DD31: 2066-01-01 | DE31: 2066-07-01 | DF31: 2067-01-01 | DG31: 2067-07-01 | DH31: 2068-01-01 | DI31: 2068-07-01 | DJ31: 2069-01-01 | DK31: 2069-07-01 | DL31: 2070-01-01 | DM31: 2070-07-01 | DN31: 2071-01-01 | DO31: 2071-07-01 | DP31: 2072-01-01 | DQ31: 2072-07-01 | DR31: 2073-01-01 | DS31: 2073-07-01 | DT31: 2074-01-01 | DU31: 2074-07-01 | DV31: 2075-01-01 | DW31: 2075-07-01 | DX31: 2076-01-01 | DY31: 2076-07-01 | DZ31: 2077-01-01 | EA31: 2077-07-01 | EB31: 2078-01-01 | EC31: 2078-07-01 | ED31: 2079-01-01 | EE31: =ED32+1 -> 2079-07-01 | EF31: 2080-01-01 | EG31: 2080-07-01 | EH31: 2081-01-01 | EI31: 2081-07-01 | EJ31: 2082-01-01 | EK31: 2082-07-01 | EL31: 2083-01-01 | EM31: 2083-07-01 | EN31: 2084-01-01 | EO31: 2084-07-01 | EP31: 2085-01-01 | EQ31: 2085-07-01 | ER31: 2086-01-01 | ES31: 2086-07-01 | ET31: 2087-01-01 | EU31: 2087-07-01 | EV31: 2088-01-01 | EW31: 2088-07-01 | EX31: 2089-01-01 | EY31: 2089-07-01 | EZ31: 2090-01-01 | FA31: 2090-07-01 | FB31: 2091-01-01 | FC31: 2091-07-01 | FD31: 2092-01-01 | FE31: 2092-07-01 | FF31: 2093-01-01 | FG31: 2093-07-01 | FH31: 2094-01-01 | FI31: 2094-07-01 | FJ31: 2095-01-01 | FK31: 2095-07-01 | FL31: 2096-01-01 | FM31: 2096-07-01 | FN31: 2097-01-01 | FO31: 2097-07-01 | FP31: 2098-01-01 | FQ31: 2098-07-01 | FR31: 2099-01-01 | FS31: 2099-07-01 | FT31: 2100-01-01 | FU31: 2100-07-01 | FV31: 2101-01-01 | FW31: 2101-07-01 | FX31: 2102-01-01 | FY31: 2102-07-01 | FZ31: 2103-01-01 | GA31: 2103-07-01 | GB31: 2104-01-01 | GC31: 2104-07-01 | GD31: 2105-01-01 | GE31: 2105-07-01 | GF31: 2106-01-01 | GG31: 2106-07-01 | GH31: 2107-01-01 | GI31: 2107-07-01 | GJ31: 2108-01-01 | GK31: 2108-07-01 | GL31: 2109-01-01 | GM31: 2109-07-01 | GN31: 2110-01-01 | GO31: 2110-07-01 | GP31: 2111-01-01 | GQ31: =GP32+1 -> 2111-07-01 | GR31: 2112-01-01 | GS31: 2112-07-01 | GT31: 2113-01-01 | GU31: 2113-07-01 | GV31: 2114-01-01 | GW31: 2114-07-01 | GX31: 2115-01-01 | GY31: 2115-07-01 | GZ31: 2116-01-01 | HA31: 2116-07-01 | HB31: 2117-01-01 | HC31: 2117-07-01 | HD31: 2118-01-01 | HE31: 2118-07-01 | HF31: 2119-01-01 | HG31: 2119-07-01 | HH31: 2120-01-01 | HI31: 2120-07-01 | HJ31: 2121-01-01 | HK31: 2121-07-01 | HL31: 2122-01-01 | HM31: 2122-07-01 | HN31: 2123-01-01 | HO31: 2123-07-01 | HP31: 2124-01-01 | HQ31: 2124-07-01 | HR31: 2125-01-01 | HS31: 2125-07-01 | HT31: 2126-01-01 | HU31: 2126-07-01 | HV31: 2127-01-01 | HW31: 2127-07-01 | HX31: 2128-01-01 | HY31: 2128-07-01 | HZ31: 2129-01-01 | IA31: 2129-07-01 | IB31: 2130-01-01 | IC31: 2130-07-01 | ID31: 2131-01-01 | IE31: 2131-07-01 | IF31: 2132-01-01 | IG31: 2132-07-01 | IH31: 2133-01-01 | II31: 2133-07-01 | IJ31: 2134-01-01 | IK31: 2134-07-01 | IL31: 2135-01-01 | IM31: 2135-07-01 | IN31: 2136-01-01 | IO31: 2136-07-01 | IP31: 2137-01-01 | IQ31: 2137-07-01 | IR31: 2138-01-01 | IS31: 2138-07-01 | IT31: 2139-01-01 | IU31: 2139-07-01 | IV31: 2140-01-01 | IW31: 2140-07-01 | IX31: 2141-01-01 | IY31: 2141-07-01 | IZ31: 2142-01-01 | JA31: 2142-07-01 | JB31: 2143-01-01 | JC31: =JB32+1 -> 2143-07-01 | JD31: 2144-01-01 | JE31: 2144-07-01 | JF31: 2145-01-01 | JG31: 2145-07-01 | JH31: 2146-01-01 | JI31: 2146-07-01 | JJ31: 2147-01-01 | JK31: 2147-07-01 | JL31: 2148-01-01 | JM31: 2148-07-01 | JN31: 2149-01-01 | JO31: 2149-07-01 | JP31: 2150-01-01 | JQ31: 2150-07-01 | JR31: 2151-01-01 | JS31: 2151-07-01 | JT31: 2152-01-01 | JU31: 2152-07-01 | JV31: 2153-01-01 | JW31: 2153-07-01 | JX31: 2154-01-01 | JY31: 2154-07-01 | JZ31: 2155-01-01 | KA31: 2155-07-01 | KB31: 2156-01-01 | KC31: 2156-07-01 | KD31: 2157-01-01 | KE31: 2157-07-01 | KF31: 2158-01-01 | KG31: 2158-07-01 | KH31: 2159-01-01 | KI31: 2159-07-01 | KJ31: 2160-01-01 | KK31: 2160-07-01 | KL31: 2161-01-01 | KM31: 2161-07-01 | KN31: 2162-01-01 | KO31: 2162-07-01 | KP31: 2163-01-01 | KQ31: 2163-07-01 | KR31: 2164-01-01 | KS31: 2164-07-01 | KT31: 2165-01-01 | KU31: 2165-07-01 | KV31: 2166-01-01 | KW31: 2166-07-01 | KX31: 2167-01-01 | KY31: 2167-07-01 | KZ31: 2168-01-01 | LA31: 2168-07-01 | LB31: 2169-01-01 | LC31: 2169-07-01 | LD31: 2170-01-01 | LE31: 2170-07-01 | LF31: 2171-01-01 | LG31: 2171-07-01 | LH31: 2172-01-01 | LI31: 2172-07-01 | LJ31: 2173-01-01 | LK31: 2173-07-01 | LL31: 2174-01-01 | LM31: 2174-07-01 | LN31: 2175-01-01 | LO31: =LN32+1 -> 2175-07-01 | LP31: 2176-01-01 | LQ31: 2176-07-01 | LR31: 2177-01-01 | LS31: 2177-07-01 | LT31: 2178-01-01 | LU31: 2178-07-01 | LV31: 2179-01-01 | LW31: 2179-07-01 | LX31: 2180-01-01 | LY31: 2180-07-01 | LZ31: 2181-01-01 | MA31: 2181-07-01 | MB31: 2182-01-01 | MC31: 2182-07-01 | MD31: 2183-01-01 | ME31: 2183-07-01 | MF31: 2184-01-01 | MG31: 2184-07-01 | MH31: 2185-01-01 | MI31: 2185-07-01 | MJ31: 2186-01-01 | MK31: 2186-07-01 | ML31: 2187-01-01 | MM31: 2187-07-01 | MN31: 2188-01-01 | MO31: 2188-07-01 | MP31: 2189-01-01 | MQ31: 2189-07-01 | MR31: 2190-01-01 | MS31: 2190-07-01 | MT31: 2191-01-01 | MU31: 2191-07-01 | MV31: 2192-01-01 | MW31: 2192-07-01 | MX31: 2193-01-01 | MY31: 2193-07-01 | MZ31: 2194-01-01 | NA31: 2194-07-01 | NB31: 2195-01-01 | NC31: 2195-07-01 | ND31: 2196-01-01 | NE31: 2196-07-01 | NF31: 2197-01-01 | NG31: 2197-07-01 | NH31: 2198-01-01 | NI31: 2198-07-01 | NJ31: 2199-01-01 | NK31: 2199-07-01 | NL31: 2200-01-01 | NM31: 2200-07-01 | NN31: 2201-01-01 | NO31: 2201-07-01 | NP31: 2202-01-01 | NQ31: 2202-07-01 | NR31: 2203-01-01 | NS31: 2203-07-01 | NT31: 2204-01-01 | NU31: 2204-07-01 | NV31: 2205-01-01 | NW31: 2205-07-01 | NX31: 2206-01-01 | NY31: 2206-07-01 | NZ31: 2207-01-01 | OA31: =NZ32+1 -> 2207-07-01 | OB31: 2208-01-01 | OC31: 2208-07-01 | OD31: 2209-01-01 | OE31: 2209-07-01 | OF31: 2210-01-01 | OG31: 2210-07-01 | OH31: 2211-01-01 | OI31: 2211-07-01 | OJ31: =OI32+1 -> 2212-01-01 | OK31: =OJ32+1 -> 2212-07-01 | OL31: =OK32+1 -> 2213-01-01 | OM31: =OL32+1 -> 2213-07-01 | ON31: =OM32+1 -> 2214-01-01 | OO31: =ON32+1 -> 2214-07-01 | OP31: =OO32+1 -> 2215-01-01 | OQ31: =OP32+1 -> 2215-07-01 | OR31: =OQ32+1 -> 2216-01-01 | OS31: =OR32+1 -> 2216-07-01 | OT31: =OS32+1 -> 2217-01-01 | OU31: =OT32+1 -> 2217-07-01 | OV31: =OU32+1 -> 2218-01-01 | OW31: =OV32+1 -> 2218-07-01 | OX31: =OW32+1 -> 2219-01-01 | OY31: =OX32+1 -> 2219-07-01 | OZ31: =OY32+1 -> 2220-01-01 | PA31: =OZ32+1 -> 2220-07-01 | PB31: =PA32+1 -> 2221-01-01 | PC31: =PB32+1 -> 2221-07-01 | PD31: =PC32+1 -> 2222-01-01 | PE31: =PD32+1 -> 2222-07-01 | PF31: =PE32+1 -> 2223-01-01 | PG31: =PF32+1 -> 2223-07-01 | PH31: =PG32+1 -> 2224-01-01 | PI31: =PH32+1 -> 2224-07-01 | PJ31: =PI32+1 -> 2225-01-01 | PK31: =PJ32+1 -> 2225-07-01 | PL31: =PK32+1 -> 2226-01-01 | PM31: =PL32+1 -> 2226-07-01 | PN31: =PM32+1 -> 2227-01-01 | PO31: =PN32+1 -> 2227-07-01 | PP31: =PO32+1 -> 2228-01-01 | PQ31: =PP32+1 -> 2228-07-01 | PR31: =PQ32+1 -> 2229-01-01 | PS31: =PR32+1 -> 2229-07-01 | PT31: =PS32+1 -> 2230-01-01 | PU31: =PT32+1 -> 2230-07-01 | PV31: =PU32+1 -> 2231-01-01 | PW31: =PV32+1 -> 2231-07-01 | PX31: =PW32+1 -> 2232-01-01 | PY31: =PX32+1 -> 2232-07-01 | PZ31: =PY32+1 -> 2233-01-01 | QA31: =PZ32+1 -> 2233-07-01 | QB31: =QA32+1 -> 2234-01-01 | QC31: =QB32+1 -> 2234-07-01 | QD31: =QC32+1 -> 2235-01-01 | QE31: =QD32+1 -> 2235-07-01 | QF31: =QE32+1 -> 2236-01-01 | QG31: =QF32+1 -> 2236-07-01 | QH31: =QG32+1 -> 2237-01-01 | QI31: =QH32+1 -> 2237-07-01 | QJ31: =QI32+1 -> 2238-01-01 | QK31: =QJ32+1 -> 2238-07-01 | QL31: =QK32+1 -> 2239-01-01 | QM31: =QL32+1 -> 2239-07-01 | QN31: =QM32+1 -> 2240-01-01 | QO31: =QN32+1 -> 2240-07-01 | QP31: =QO32+1 -> 2241-01-01 | QQ31: =QP32+1 -> 2241-07-01 | QR31: =QQ32+1 -> 2242-01-01 | QS31: =QR32+1 -> 2242-07-01 | QT31: =QS32+1 -> 2243-01-01 | QU31: =QT32+1 -> 2243-07-01 | QV31: =QU32+1 -> 2244-01-01 | QW31: =QV32+1 -> 2244-07-01 | QX31: =QW32+1 -> 2245-01-01 | QY31: =QX32+1 -> 2245-07-01 | QZ31: =QY32+1 -> 2246-01-01 | RA31: =QZ32+1 -> 2246-07-01 | RB31: =RA32+1 -> 2247-01-01 | RC31: =RB32+1 -> 2247-07-01 | RD31: =RC32+1 -> 2248-01-01 | RE31: =RD32+1 -> 2248-07-01 | RF31: =RE32+1 -> 2249-01-01 | RG31: =RF32+1 -> 2249-07-01 | RH31: =RG32+1 -> 2250-01-01 | RI31: =RH32+1 -> 2250-07-01 | RJ31: =RI32+1 -> 2251-01-01 | RK31: =RJ32+1 -> 2251-07-01 | RL31: =RK32+1 -> 2252-01-01 | RM31: =RL32+1 -> 2252-07-01 | RN31: =RM32+1 -> 2253-01-01 | RO31: =RN32+1 -> 2253-07-01 | RP31: =RO32+1 -> 2254-01-01 | RQ31: =RP32+1 -> 2254-07-01 | RR31: =RQ32+1 -> 2255-01-01 | RS31: =RR32+1 -> 2255-07-01 | RT31: =RS32+1 -> 2256-01-01 | RU31: =RT32+1 -> 2256-07-01 | RV31: =RU32+1 -> 2257-01-01 | RW31: =RV32+1 -> 2257-07-01 | RX31: =RW32+1 -> 2258-01-01 | RY31: =RX32+1 -> 2258-07-01 | RZ31: =RY32+1 -> 2259-01-01 | SA31: =RZ32+1 -> 2259-07-01 | SB31: =SA32+1 -> 2260-01-01 | SC31: =SB32+1 -> 2260-07-01 | SD31: =SC32+1 -> 2261-01-01 | SE31: =SD32+1 -> 2261-07-01 | SF31: =SE32+1 -> 2262-01-01 | SG31: =SF32+1 -> 2262-07-01
B32: End Date | E32: =F3-1 -> 2014-12-31 | F32: =EOMONTH(F31,$F$6-1) -> 2015-06-30 | G32: =EOMONTH(G31,$F$6-1) -> 2015-12-31 | H32: 2016-06-30 | I32: 2016-12-31 | J32: 2017-06-30 | K32: 2017-12-31 | L32: 2018-06-30 | M32: 2018-12-31 | N32: 2019-06-30 | O32: 2019-12-31 | P32: 2020-06-30 | Q32: 2020-12-31 | R32: 2021-06-30 | S32: 2021-12-31 | T32: 2022-06-30 | U32: 2022-12-31 | V32: 2023-06-30 | W32: 2023-12-31 | X32: 2024-06-30 | Y32: 2024-12-31 | Z32: 2025-06-30 | AA32: 2025-12-31 | AB32: 2026-06-30 | AC32: 2026-12-31 | AD32: 2027-06-30 | AE32: 2027-12-31 | AF32: 2028-06-30 | AG32: 2028-12-31 | AH32: 2029-06-30 | AI32: 2029-12-31 | AJ32: 2030-06-30 | AK32: 2030-12-31 | AL32: 2031-06-30 | AM32: 2031-12-31 | AN32: 2032-06-30 | AO32: 2032-12-31 | AP32: 2033-06-30 | AQ32: 2033-12-31 | AR32: 2034-06-30 | AS32: 2034-12-31 | AT32: 2035-06-30 | AU32: 2035-12-31 | AV32: 2036-06-30 | AW32: 2036-12-31 | AX32: 2037-06-30 | AY32: 2037-12-31 | AZ32: 2038-06-30 | BA32: 2038-12-31 | BB32: 2039-06-30 | BC32: 2039-12-31 | BD32: 2040-06-30 | BE32: 2040-12-31 | BF32: 2041-06-30 | BG32: 2041-12-31 | BH32: 2042-06-30 | BI32: 2042-12-31 | BJ32: 2043-06-30 | BK32: 2043-12-31 | BL32: 2044-06-30 | BM32: 2044-12-31 | BN32: 2045-06-30 | BO32: 2045-12-31 | BP32: 2046-06-30 | BQ32: 2046-12-31 | BR32: 2047-06-30 | BS32: =EOMONTH(BS31,$F$6-1) -> 2047-12-31 | BT32: 2048-06-30 | BU32: 2048-12-31 | BV32: 2049-06-30 | BW32: 2049-12-31 | BX32: 2050-06-30 | BY32: 2050-12-31 | BZ32: 2051-06-30 | CA32: 2051-12-31 | CB32: 2052-06-30 | CC32: 2052-12-31 | CD32: 2053-06-30 | CE32: 2053-12-31 | CF32: 2054-06-30 | CG32: 2054-12-31 | CH32: 2055-06-30 | CI32: 2055-12-31 | CJ32: 2056-06-30 | CK32: 2056-12-31 | CL32: 2057-06-30 | CM32: 2057-12-31 | CN32: 2058-06-30 | CO32: 2058-12-31 | CP32: 2059-06-30 | CQ32: 2059-12-31 | CR32: 2060-06-30 | CS32: 2060-12-31 | CT32: 2061-06-30 | CU32: 2061-12-31 | CV32: 2062-06-30 | CW32: 2062-12-31 | CX32: 2063-06-30 | CY32: 2063-12-31 | CZ32: 2064-06-30 | DA32: 2064-12-31 | DB32: 2065-06-30 | DC32: 2065-12-31 | DD32: 2066-06-30 | DE32: 2066-12-31 | DF32: 2067-06-30 | DG32: 2067-12-31 | DH32: 2068-06-30 | DI32: 2068-12-31 | DJ32: 2069-06-30 | DK32: 2069-12-31 | DL32: 2070-06-30 | DM32: 2070-12-31 | DN32: 2071-06-30 | DO32: 2071-12-31 | DP32: 2072-06-30 | DQ32: 2072-12-31 | DR32: 2073-06-30 | DS32: 2073-12-31 | DT32: 2074-06-30 | DU32: 2074-12-31 | DV32: 2075-06-30 | DW32: 2075-12-31 | DX32: 2076-06-30 | DY32: 2076-12-31 | DZ32: 2077-06-30 | EA32: 2077-12-31 | EB32: 2078-06-30 | EC32: 2078-12-31 | ED32: 2079-06-30 | EE32: =EOMONTH(EE31,$F$6-1) -> 2079-12-31 | EF32: 2080-06-30 | EG32: 2080-12-31 | EH32: 2081-06-30 | EI32: 2081-12-31 | EJ32: 2082-06-30 | EK32: 2082-12-31 | EL32: 2083-06-30 | EM32: 2083-12-31 | EN32: 2084-06-30 | EO32: 2084-12-31 | EP32: 2085-06-30 | EQ32: 2085-12-31 | ER32: 2086-06-30 | ES32: 2086-12-31 | ET32: 2087-06-30 | EU32: 2087-12-31 | EV32: 2088-06-30 | EW32: 2088-12-31 | EX32: 2089-06-30 | EY32: 2089-12-31 | EZ32: 2090-06-30 | FA32: 2090-12-31 | FB32: 2091-06-30 | FC32: 2091-12-31 | FD32: 2092-06-30 | FE32: 2092-12-31 | FF32: 2093-06-30 | FG32: 2093-12-31 | FH32: 2094-06-30 | FI32: 2094-12-31 | FJ32: 2095-06-30 | FK32: 2095-12-31 | FL32: 2096-06-30 | FM32: 2096-12-31 | FN32: 2097-06-30 | FO32: 2097-12-31 | FP32: 2098-06-30 | FQ32: 2098-12-31 | FR32: 2099-06-30 | FS32: 2099-12-31 | FT32: 2100-06-30 | FU32: 2100-12-31 | FV32: 2101-06-30 | FW32: 2101-12-31 | FX32: 2102-06-30 | FY32: 2102-12-31 | FZ32: 2103-06-30 | GA32: 2103-12-31 | GB32: 2104-06-30 | GC32: 2104-12-31 | GD32: 2105-06-30 | GE32: 2105-12-31 | GF32: 2106-06-30 | GG32: 2106-12-31 | GH32: 2107-06-30 | GI32: 2107-12-31 | GJ32: 2108-06-30 | GK32: 2108-12-31 | GL32: 2109-06-30 | GM32: 2109-12-31 | GN32: 2110-06-30 | GO32: 2110-12-31 | GP32: 2111-06-30 | GQ32: =EOMONTH(GQ31,$F$6-1) -> 2111-12-31 | GR32: 2112-06-30 | GS32: 2112-12-31 | GT32: 2113-06-30 | GU32: 2113-12-31 | GV32: 2114-06-30 | GW32: 2114-12-31 | GX32: 2115-06-30 | GY32: 2115-12-31 | GZ32: 2116-06-30 | HA32: 2116-12-31 | HB32: 2117-06-30 | HC32: 2117-12-31 | HD32: 2118-06-30 | HE32: 2118-12-31 | HF32: 2119-06-30 | HG32: 2119-12-31 | HH32: 2120-06-30 | HI32: 2120-12-31 | HJ32: 2121-06-30 | HK32: 2121-12-31 | HL32: 2122-06-30 | HM32: 2122-12-31 | HN32: 2123-06-30 | HO32: 2123-12-31 | HP32: 2124-06-30 | HQ32: 2124-12-31 | HR32: 2125-06-30 | HS32: 2125-12-31 | HT32: 2126-06-30 | HU32: 2126-12-31 | HV32: 2127-06-30 | HW32: 2127-12-31 | HX32: 2128-06-30 | HY32: 2128-12-31 | HZ32: 2129-06-30 | IA32: 2129-12-31 | IB32: 2130-06-30 | IC32: 2130-12-31 | ID32: 2131-06-30 | IE32: 2131-12-31 | IF32: 2132-06-30 | IG32: 2132-12-31 | IH32: 2133-06-30 | II32: 2133-12-31 | IJ32: 2134-06-30 | IK32: 2134-12-31 | IL32: 2135-06-30 | IM32: 2135-12-31 | IN32: 2136-06-30 | IO32: 2136-12-31 | IP32: 2137-06-30 | IQ32: 2137-12-31 | IR32: 2138-06-30 | IS32: 2138-12-31 | IT32: 2139-06-30 | IU32: 2139-12-31 | IV32: 2140-06-30 | IW32: 2140-12-31 | IX32: 2141-06-30 | IY32: 2141-12-31 | IZ32: 2142-06-30 | JA32: 2142-12-31 | JB32: 2143-06-30 | JC32: =EOMONTH(JC31,$F$6-1) -> 2143-12-31 | JD32: 2144-06-30 | JE32: 2144-12-31 | JF32: 2145-06-30 | JG32: 2145-12-31 | JH32: 2146-06-30 | JI32: 2146-12-31 | JJ32: 2147-06-30 | JK32: 2147-12-31 | JL32: 2148-06-30 | JM32: 2148-12-31 | JN32: 2149-06-30 | JO32: 2149-12-31 | JP32: 2150-06-30 | JQ32: 2150-12-31 | JR32: 2151-06-30 | JS32: 2151-12-31 | JT32: 2152-06-30 | JU32: 2152-12-31 | JV32: 2153-06-30 | JW32: 2153-12-31 | JX32: 2154-06-30 | JY32: 2154-12-31 | JZ32: 2155-06-30 | KA32: 2155-12-31 | KB32: 2156-06-30 | KC32: 2156-12-31 | KD32: 2157-06-30 | KE32: 2157-12-31 | KF32: 2158-06-30 | KG32: 2158-12-31 | KH32: 2159-06-30 | KI32: 2159-12-31 | KJ32: 2160-06-30 | KK32: 2160-12-31 | KL32: 2161-06-30 | KM32: 2161-12-31 | KN32: 2162-06-30 | KO32: 2162-12-31 | KP32: 2163-06-30 | KQ32: 2163-12-31 | KR32: 2164-06-30 | KS32: 2164-12-31 | KT32: 2165-06-30 | KU32: 2165-12-31 | KV32: 2166-06-30 | KW32: 2166-12-31 | KX32: 2167-06-30 | KY32: 2167-12-31 | KZ32: 2168-06-30 | LA32: 2168-12-31 | LB32: 2169-06-30 | LC32: 2169-12-31 | LD32: 2170-06-30 | LE32: 2170-12-31 | LF32: 2171-06-30 | LG32: 2171-12-31 | LH32: 2172-06-30 | LI32: 2172-12-31 | LJ32: 2173-06-30 | LK32: 2173-12-31 | LL32: 2174-06-30 | LM32: 2174-12-31 | LN32: 2175-06-30 | LO32: =EOMONTH(LO31,$F$6-1) -> 2175-12-31 | LP32: 2176-06-30 | LQ32: 2176-12-31 | LR32: 2177-06-30 | LS32: 2177-12-31 | LT32: 2178-06-30 | LU32: 2178-12-31 | LV32: 2179-06-30 | LW32: 2179-12-31 | LX32: 2180-06-30 | LY32: 2180-12-31 | LZ32: 2181-06-30 | MA32: 2181-12-31 | MB32: 2182-06-30 | MC32: 2182-12-31 | MD32: 2183-06-30 | ME32: 2183-12-31 | MF32: 2184-06-30 | MG32: 2184-12-31 | MH32: 2185-06-30 | MI32: 2185-12-31 | MJ32: 2186-06-30 | MK32: 2186-12-31 | ML32: 2187-06-30 | MM32: 2187-12-31 | MN32: 2188-06-30 | MO32: 2188-12-31 | MP32: 2189-06-30 | MQ32: 2189-12-31 | MR32: 2190-06-30 | MS32: 2190-12-31 | MT32: 2191-06-30 | MU32: 2191-12-31 | MV32: 2192-06-30 | MW32: 2192-12-31 | MX32: 2193-06-30 | MY32: 2193-12-31 | MZ32: 2194-06-30 | NA32: 2194-12-31 | NB32: 2195-06-30 | NC32: 2195-12-31 | ND32: 2196-06-30 | NE32: 2196-12-31 | NF32: 2197-06-30 | NG32: 2197-12-31 | NH32: 2198-06-30 | NI32: 2198-12-31 | NJ32: 2199-06-30 | NK32: 2199-12-31 | NL32: 2200-06-30 | NM32: 2200-12-31 | NN32: 2201-06-30 | NO32: 2201-12-31 | NP32: 2202-06-30 | NQ32: 2202-12-31 | NR32: 2203-06-30 | NS32: 2203-12-31 | NT32: 2204-06-30 | NU32: 2204-12-31 | NV32: 2205-06-30 | NW32: 2205-12-31 | NX32: 2206-06-30 | NY32: 2206-12-31 | NZ32: 2207-06-30 | OA32: =EOMONTH(OA31,$F$6-1) -> 2207-12-31 | OB32: 2208-06-30 | OC32: 2208-12-31 | OD32: 2209-06-30 | OE32: 2209-12-31 | OF32: 2210-06-30 | OG32: 2210-12-31 | OH32: 2211-06-30 | OI32: 2211-12-31 | OJ32: =EOMONTH(OJ31,$F$6-1) -> 2212-06-30 | OK32: 2212-12-31 | OL32: 2213-06-30 | OM32: 2213-12-31 | ON32: 2214-06-30 | OO32: 2214-12-31 | OP32: 2215-06-30 | OQ32: 2215-12-31 | OR32: 2216-06-30 | OS32: 2216-12-31 | OT32: 2217-06-30 | OU32: 2217-12-31 | OV32: 2218-06-30 | OW32: 2218-12-31 | OX32: 2219-06-30 | OY32: 2219-12-31 | OZ32: 2220-06-30 | PA32: 2220-12-31 | PB32: 2221-06-30 | PC32: 2221-12-31 | PD32: 2222-06-30 | PE32: 2222-12-31 | PF32: 2223-06-30 | PG32: 2223-12-31 | PH32: 2224-06-30 | PI32: 2224-12-31 | PJ32: 2225-06-30 | PK32: 2225-12-31 | PL32: 2226-06-30 | PM32: 2226-12-31 | PN32: 2227-06-30 | PO32: 2227-12-31 | PP32: 2228-06-30 | PQ32: 2228-12-31 | PR32: 2229-06-30 | PS32: 2229-12-31 | PT32: 2230-06-30 | PU32: 2230-12-31 | PV32: 2231-06-30 | PW32: 2231-12-31 | PX32: 2232-06-30 | PY32: 2232-12-31 | PZ32: 2233-06-30 | QA32: 2233-12-31 | QB32: 2234-06-30 | QC32: 2234-12-31 | QD32: 2235-06-30 | QE32: 2235-12-31 | QF32: 2236-06-30 | QG32: 2236-12-31 | QH32: 2237-06-30 | QI32: 2237-12-31 | QJ32: 2238-06-30 | QK32: 2238-12-31 | QL32: 2239-06-30 | QM32: 2239-12-31 | QN32: 2240-06-30 | QO32: 2240-12-31 | QP32: 2241-06-30 | QQ32: 2241-12-31 | QR32: 2242-06-30 | QS32: 2242-12-31 | QT32: 2243-06-30 | QU32: 2243-12-31 | QV32: =EOMONTH(QV31,$F$6-1) -> 2244-06-30 | QW32: 2244-12-31 | QX32: 2245-06-30 | QY32: 2245-12-31 | QZ32: 2246-06-30 | RA32: 2246-12-31 | RB32: 2247-06-30 | RC32: 2247-12-31 | RD32: 2248-06-30 | RE32: 2248-12-31 | RF32: 2249-06-30 | RG32: 2249-12-31 | RH32: 2250-06-30 | RI32: 2250-12-31 | RJ32: 2251-06-30 | RK32: 2251-12-31 | RL32: 2252-06-30 | RM32: 2252-12-31 | RN32: 2253-06-30 | RO32: 2253-12-31 | RP32: 2254-06-30 | RQ32: 2254-12-31 | RR32: 2255-06-30 | RS32: 2255-12-31 | RT32: 2256-06-30 | RU32: 2256-12-31 | RV32: 2257-06-30 | RW32: 2257-12-31 | RX32: 2258-06-30 | RY32: 2258-12-31 | RZ32: 2259-06-30 | SA32: 2259-12-31 | SB32: 2260-06-30 | SC32: 2260-12-31 | SD32: 2261-06-30 | SE32: 2261-12-31 | SF32: 2262-06-30 | SG32: 2262-12-31
B33: Operating Period | F33: =F31<$F$8 -> TRUE | G33: =G31<$F$8 -> TRUE | H33: TRUE | I33: TRUE | J33: TRUE | K33: TRUE | L33: TRUE | M33: TRUE | N33: TRUE | O33: TRUE | P33: TRUE | Q33: TRUE | R33: TRUE | S33: TRUE | T33: TRUE | U33: TRUE | V33: TRUE | W33: TRUE | X33: TRUE | Y33: TRUE | Z33: TRUE | AA33: TRUE | AB33: TRUE | AC33: TRUE | AD33: TRUE | AE33: TRUE | AF33: TRUE | AG33: TRUE | AH33: TRUE | AI33: TRUE | AJ33: TRUE | AK33: TRUE | AL33: TRUE | AM33: TRUE | AN33: TRUE | AO33: TRUE | AP33: TRUE | AQ33: TRUE | AR33: TRUE | AS33: TRUE | AT33: TRUE | AU33: TRUE | AV33: TRUE | AW33: TRUE | AX33: TRUE | AY33: TRUE | AZ33: TRUE | BA33: TRUE | BB33: TRUE | BC33: TRUE | BD33: TRUE | BE33: TRUE | BF33: TRUE | BG33: TRUE | BH33: TRUE | BI33: TRUE | BJ33: TRUE | BK33: TRUE | BL33: TRUE | BM33: TRUE | BN33: TRUE | BO33: TRUE | BP33: TRUE | BQ33: TRUE | BR33: TRUE | BS33: =BS31<$F$8 -> TRUE | BT33: TRUE | BU33: TRUE | BV33: TRUE | BW33: TRUE | BX33: TRUE | BY33: TRUE | BZ33: TRUE | CA33: TRUE | CB33: TRUE | CC33: TRUE | CD33: TRUE | CE33: TRUE | CF33: TRUE | CG33: TRUE | CH33: FALSE | CI33: FALSE | CJ33: FALSE | CK33: FALSE | CL33: FALSE | CM33: FALSE | CN33: FALSE | CO33: FALSE | CP33: FALSE | CQ33: FALSE | CR33: FALSE | CS33: FALSE | CT33: FALSE | CU33: FALSE | CV33: FALSE | CW33: FALSE | CX33: FALSE | CY33: FALSE | CZ33: FALSE | DA33: FALSE | DB33: FALSE | DC33: FALSE | DD33: FALSE | DE33: FALSE | DF33: FALSE | DG33: FALSE | DH33: FALSE | DI33: FALSE | DJ33: FALSE | DK33: FALSE | DL33: FALSE | DM33: FALSE | DN33: FALSE | DO33: FALSE | DP33: FALSE | DQ33: FALSE | DR33: FALSE | DS33: FALSE | DT33: FALSE | DU33: FALSE | DV33: FALSE | DW33: FALSE | DX33: FALSE | DY33: FALSE | DZ33: FALSE | EA33: FALSE | EB33: FALSE | EC33: FALSE | ED33: FALSE | EE33: =EE31<$F$8 -> FALSE | EF33: FALSE | EG33: FALSE | EH33: FALSE | EI33: FALSE | EJ33: FALSE | EK33: FALSE | EL33: FALSE | EM33: FALSE | EN33: FALSE | EO33: FALSE | EP33: FALSE | EQ33: FALSE | ER33: FALSE | ES33: FALSE | ET33: FALSE | EU33: FALSE | EV33: FALSE | EW33: FALSE | EX33: FALSE | EY33: FALSE | EZ33: FALSE | FA33: FALSE | FB33: FALSE | FC33: FALSE | FD33: FALSE | FE33: FALSE | FF33: FALSE | FG33: FALSE | FH33: FALSE | FI33: FALSE | FJ33: FALSE | FK33: FALSE | FL33: FALSE | FM33: FALSE | FN33: FALSE | FO33: FALSE | FP33: FALSE | FQ33: FALSE | FR33: FALSE | FS33: FALSE | FT33: FALSE | FU33: FALSE | FV33: FALSE | FW33: FALSE | FX33: FALSE | FY33: FALSE | FZ33: FALSE | GA33: FALSE | GB33: FALSE | GC33: FALSE | GD33: FALSE | GE33: FALSE | GF33: FALSE | GG33: FALSE | GH33: FALSE | GI33: FALSE | GJ33: FALSE | GK33: FALSE | GL33: FALSE | GM33: FALSE | GN33: FALSE | GO33: FALSE | GP33: FALSE | GQ33: =GQ31<$F$8 -> FALSE | GR33: FALSE | GS33: FALSE | GT33: FALSE | GU33: FALSE | GV33: FALSE | GW33: FALSE | GX33: FALSE | GY33: FALSE | GZ33: FALSE | HA33: FALSE | HB33: FALSE | HC33: FALSE | HD33: FALSE | HE33: FALSE | HF33: FALSE | HG33: FALSE | HH33: FALSE | HI33: FALSE | HJ33: FALSE | HK33: FALSE | HL33: FALSE | HM33: FALSE | HN33: FALSE | HO33: FALSE | HP33: FALSE | HQ33: FALSE | HR33: FALSE | HS33: FALSE | HT33: FALSE | HU33: FALSE | HV33: FALSE | HW33: FALSE | HX33: FALSE | HY33: FALSE | HZ33: FALSE | IA33: FALSE | IB33: FALSE | IC33: FALSE | ID33: FALSE | IE33: FALSE | IF33: FALSE | IG33: FALSE | IH33: FALSE | II33: FALSE | IJ33: FALSE | IK33: FALSE | IL33: FALSE | IM33: FALSE | IN33: FALSE | IO33: FALSE | IP33: FALSE | IQ33: FALSE | IR33: FALSE | IS33: FALSE | IT33: FALSE | IU33: FALSE | IV33: FALSE | IW33: FALSE | IX33: FALSE | IY33: FALSE | IZ33: FALSE | JA33: FALSE | JB33: FALSE | JC33: =JC31<$F$8 -> FALSE | JD33: FALSE | JE33: FALSE | JF33: FALSE | JG33: FALSE | JH33: FALSE | JI33: FALSE | JJ33: FALSE | JK33: FALSE | JL33: FALSE | JM33: FALSE | JN33: FALSE | JO33: FALSE | JP33: FALSE | JQ33: FALSE | JR33: FALSE | JS33: FALSE | JT33: FALSE | JU33: FALSE | JV33: FALSE | JW33: FALSE | JX33: FALSE | JY33: FALSE | JZ33: FALSE | KA33: FALSE | KB33: FALSE | KC33: FALSE | KD33: FALSE | KE33: FALSE | KF33: FALSE | KG33: FALSE | KH33: FALSE | KI33: FALSE | KJ33: FALSE | KK33: FALSE | KL33: FALSE | KM33: FALSE | KN33: FALSE | KO33: FALSE | KP33: FALSE | KQ33: FALSE | KR33: FALSE | KS33: FALSE | KT33: FALSE | KU33: FALSE | KV33: FALSE | KW33: FALSE | KX33: FALSE | KY33: FALSE | KZ33: FALSE | LA33: FALSE | LB33: FALSE | LC33: FALSE | LD33: FALSE | LE33: FALSE | LF33: FALSE | LG33: FALSE | LH33: FALSE | LI33: FALSE | LJ33: FALSE | LK33: FALSE | LL33: FALSE | LM33: FALSE | LN33: FALSE | LO33: =LO31<$F$8 -> FALSE | LP33: FALSE | LQ33: FALSE | LR33: FALSE | LS33: FALSE | LT33: FALSE | LU33: FALSE | LV33: FALSE | LW33: FALSE | LX33: FALSE | LY33: FALSE | LZ33: FALSE | MA33: FALSE | MB33: FALSE | MC33: FALSE | MD33: FALSE | ME33: FALSE | MF33: FALSE | MG33: FALSE | MH33: FALSE | MI33: FALSE | MJ33: FALSE | MK33: FALSE | ML33: FALSE | MM33: FALSE | MN33: FALSE | MO33: FALSE | MP33: FALSE | MQ33: FALSE | MR33: FALSE | MS33: FALSE | MT33: FALSE | MU33: FALSE | MV33: FALSE | MW33: FALSE | MX33: FALSE | MY33: FALSE | MZ33: FALSE | NA33: FALSE | NB33: FALSE | NC33: FALSE | ND33: FALSE | NE33: FALSE | NF33: FALSE | NG33: FALSE | NH33: FALSE | NI33: FALSE | NJ33: FALSE | NK33: FALSE | NL33: FALSE | NM33: FALSE | NN33: FALSE | NO33: FALSE | NP33: FALSE | NQ33: FALSE | NR33: FALSE | NS33: FALSE | NT33: FALSE | NU33: FALSE | NV33: FALSE | NW33: FALSE | NX33: FALSE | NY33: FALSE | NZ33: FALSE | OA33: =OA31<$F$8 -> FALSE | OB33: FALSE | OC33: FALSE | OD33: FALSE | OE33: FALSE | OF33: FALSE | OG33: FALSE | OH33: FALSE | OI33: FALSE | OJ33: =OJ31<$F$8 -> FALSE | OK33: FALSE | OL33: FALSE | OM33: FALSE | ON33: FALSE | OO33: FALSE | OP33: FALSE | OQ33: FALSE | OR33: FALSE | OS33: FALSE | OT33: FALSE | OU33: FALSE | OV33: FALSE | OW33: FALSE | OX33: FALSE | OY33: FALSE | OZ33: FALSE | PA33: FALSE | PB33: FALSE | PC33: FALSE | PD33: FALSE | PE33: FALSE | PF33: FALSE | PG33: FALSE | PH33: FALSE | PI33: FALSE | PJ33: FALSE | PK33: FALSE | PL33: FALSE | PM33: FALSE | PN33: FALSE | PO33: FALSE | PP33: FALSE | PQ33: FALSE | PR33: FALSE | PS33: FALSE | PT33: FALSE | PU33: FALSE | PV33: FALSE | PW33: FALSE | PX33: FALSE | PY33: FALSE | PZ33: FALSE | QA33: FALSE | QB33: FALSE | QC33: FALSE | QD33: FALSE | QE33: FALSE | QF33: FALSE | QG33: FALSE | QH33: FALSE | QI33: FALSE | QJ33: FALSE | QK33: FALSE | QL33: FALSE | QM33: FALSE | QN33: FALSE | QO33: FALSE | QP33: FALSE | QQ33: FALSE | QR33: FALSE | QS33: FALSE | QT33: FALSE | QU33: FALSE | QV33: =QV31<$F$8 -> FALSE | QW33: FALSE | QX33: FALSE | QY33: FALSE | QZ33: FALSE | RA33: FALSE | RB33: FALSE | RC33: FALSE | RD33: FALSE | RE33: FALSE | RF33: FALSE | RG33: FALSE | RH33: FALSE | RI33: FALSE | RJ33: FALSE | RK33: FALSE | RL33: FALSE | RM33: FALSE | RN33: FALSE | RO33: FALSE | RP33: FALSE | RQ33: FALSE | RR33: FALSE | RS33: FALSE | RT33: FALSE | RU33: FALSE | RV33: FALSE | RW33: FALSE | RX33: FALSE | RY33: FALSE | RZ33: FALSE | SA33: FALSE | SB33: FALSE | SC33: FALSE | SD33: FALSE | SE33: FALSE | SF33: FALSE | SG33: FALSE
B34: Level factor | F34: =F33*1 -> 1 | G34: =G33*1 -> 1 | H34: 1 | I34: 1 | J34: 1 | K34: 1 | L34: 1 | M34: 1 | N34: 1 | O34: 1 | P34: 1 | Q34: 1 | R34: 1 | S34: 1 | T34: 1 | U34: 1 | V34: 1 | W34: 1 | X34: 1 | Y34: 1 | Z34: 1 | AA34: 1 | AB34: 1 | AC34: 1 | AD34: 1 | AE34: 1 | AF34: 1 | AG34: 1 | AH34: 1 | AI34: 1 | AJ34: 1 | AK34: 1 | AL34: 1 | AM34: 1 | AN34: 1 | AO34: 1 | AP34: 1 | AQ34: 1 | AR34: 1 | AS34: 1 | AT34: 1 | AU34: 1 | AV34: 1 | AW34: 1 | AX34: 1 | AY34: 1 | AZ34: 1 | BA34: 1 | BB34: 1 | BC34: 1 | BD34: 1 | BE34: 1 | BF34: 1 | BG34: 1 | BH34: 1 | BI34: 1 | BJ34: 1 | BK34: 1 | BL34: 1 | BM34: 1 | BN34: 1 | BO34: 1 | BP34: 1 | BQ34: 1 | BR34: 1 | BS34: =BS33*1 -> 1 | BT34: 1 | BU34: 1 | BV34: 1 | BW34: 1 | BX34: 1 | BY34: 1 | BZ34: 1 | CA34: 1 | CB34: 1 | CC34: 1 | CD34: 1 | CE34: 1 | CF34: 1 | CG34: 1 | CH34: 0 | CI34: 0 | CJ34: 0 | CK34: 0 | CL34: 0 | CM34: 0 | CN34: 0 | CO34: 0 | CP34: 0 | CQ34: 0 | CR34: 0 | CS34: 0 | CT34: 0 | CU34: 0 | CV34: 0 | CW34: 0 | CX34: 0 | CY34: 0 | CZ34: 0 | DA34: 0 | DB34: 0 | DC34: 0 | DD34: 0 | DE34: 0 | DF34: 0 | DG34: 0 | DH34: 0 | DI34: 0 | DJ34: 0 | DK34: 0 | DL34: 0 | DM34: 0 | DN34: 0 | DO34: 0 | DP34: 0 | DQ34: 0 | DR34: 0 | DS34: 0 | DT34: 0 | DU34: 0 | DV34: 0 | DW34: 0 | DX34: 0 | DY34: 0 | DZ34: 0 | EA34: 0 | EB34: 0 | EC34: 0 | ED34: 0 | EE34: =EE33*1 -> 0 | EF34: 0 | EG34: 0 | EH34: 0 | EI34: 0 | EJ34: 0 | EK34: 0 | EL34: 0 | EM34: 0 | EN34: 0 | EO34: 0 | EP34: 0 | EQ34: 0 | ER34: 0 | ES34: 0 | ET34: 0 | EU34: 0 | EV34: 0 | EW34: 0 | EX34: 0 | EY34: 0 | EZ34: 0 | FA34: 0 | FB34: 0 | FC34: 0 | FD34: 0 | FE34: 0 | FF34: 0 | FG34: 0 | FH34: 0 | FI34: 0 | FJ34: 0 | FK34: 0 | FL34: 0 | FM34: 0 | FN34: 0 | FO34: 0 | FP34: 0 | FQ34: 0 | FR34: 0 | FS34: 0 | FT34: 0 | FU34: 0 | FV34: 0 | FW34: 0 | FX34: 0 | FY34: 0 | FZ34: 0 | GA34: 0 | GB34: 0 | GC34: 0 | GD34: 0 | GE34: 0 | GF34: 0 | GG34: 0 | GH34: 0 | GI34: 0 | GJ34: 0 | GK34: 0 | GL34: 0 | GM34: 0 | GN34: 0 | GO34: 0 | GP34: 0 | GQ34: =GQ33*1 -> 0 | GR34: 0 | GS34: 0 | GT34: 0 | GU34: 0 | GV34: 0 | GW34: 0 | GX34: 0 | GY34: 0 | GZ34: 0 | HA34: 0 | HB34: 0 | HC34: 0 | HD34: 0 | HE34: 0 | HF34: 0 | HG34: 0 | HH34: 0 | HI34: 0 | HJ34: 0 | HK34: 0 | HL34: 0 | HM34: 0 | HN34: 0 | HO34: 0 | HP34: 0 | HQ34: 0 | HR34: 0 | HS34: 0 | HT34: 0 | HU34: 0 | HV34: 0 | HW34: 0 | HX34: 0 | HY34: 0 | HZ34: 0 | IA34: 0 | IB34: 0 | IC34: 0 | ID34: 0 | IE34: 0 | IF34: 0 | IG34: 0 | IH34: 0 | II34: 0 | IJ34: 0 | IK34: 0 | IL34: 0 | IM34: 0 | IN34: 0 | IO34: 0 | IP34: 0 | IQ34: 0 | IR34: 0 | IS34: 0 | IT34: 0 | IU34: 0 | IV34: 0 | IW34: 0 | IX34: 0 | IY34: 0 | IZ34: 0 | JA34: 0 | JB34: 0 | JC34: =JC33*1 -> 0 | JD34: 0 | JE34: 0 | JF34: 0 | JG34: 0 | JH34: 0 | JI34: 0 | JJ34: 0 | JK34: 0 | JL34: 0 | JM34: 0 | JN34: 0 | JO34: 0 | JP34: 0 | JQ34: 0 | JR34: 0 | JS34: 0 | JT34: 0 | JU34: 0 | JV34: 0 | JW34: 0 | JX34: 0 | JY34: 0 | JZ34: 0 | KA34: 0 | KB34: 0 | KC34: 0 | KD34: 0 | KE34: 0 | KF34: 0 | KG34: 0 | KH34: 0 | KI34: 0 | KJ34: 0 | KK34: 0 | KL34: 0 | KM34: 0 | KN34: 0 | KO34: 0 | KP34: 0 | KQ34: 0 | KR34: 0 | KS34: 0 | KT34: 0 | KU34: 0 | KV34: 0 | KW34: 0 | KX34: 0 | KY34: 0 | KZ34: 0 | LA34: 0 | LB34: 0 | LC34: 0 | LD34: 0 | LE34: 0 | LF34: 0 | LG34: 0 | LH34: 0 | LI34: 0 | LJ34: 0 | LK34: 0 | LL34: 0 | LM34: 0 | LN34: 0 | LO34: =LO33*1 -> 0 | LP34: 0 | LQ34: 0 | LR34: 0 | LS34: 0 | LT34: 0 | LU34: 0 | LV34: 0 | LW34: 0 | LX34: 0 | LY34: 0 | LZ34: 0 | MA34: 0 | MB34: 0 | MC34: 0 | MD34: 0 | ME34: 0 | MF34: 0 | MG34: 0 | MH34: 0 | MI34: 0 | MJ34: 0 | MK34: 0 | ML34: 0 | MM34: 0 | MN34: 0 | MO34: 0 | MP34: 0 | MQ34: 0 | MR34: 0 | MS34: 0 | MT34: 0 | MU34: 0 | MV34: 0 | MW34: 0 | MX34: 0 | MY34: 0 | MZ34: 0 | NA34: 0 | NB34: 0 | NC34: 0 | ND34: 0 | NE34: 0 | NF34: 0 | NG34: 0 | NH34: 0 | NI34: 0 | NJ34: 0 | NK34: 0 | NL34: 0 | NM34: 0 | NN34: 0 | NO34: 0 | NP34: 0 | NQ34: 0 | NR34: 0 | NS34: 0 | NT34: 0 | NU34: 0 | NV34: 0 | NW34: 0 | NX34: 0 | NY34: 0 | NZ34: 0 | OA34: =OA33*1 -> 0 | OB34: 0 | OC34: 0 | OD34: 0 | OE34: 0 | OF34: 0 | OG34: 0 | OH34: 0 | OI34: 0 | OJ34: 0 | OK34: 0 | OL34: 0 | OM34: 0 | ON34: 0 | OO34: 0 | OP34: 0 | OQ34: 0 | OR34: 0 | OS34: 0 | OT34: 0 | OU34: 0 | OV34: 0 | OW34: 0 | OX34: 0 | OY34: 0 | OZ34: 0 | PA34: 0 | PB34: 0 | PC34: 0 | PD34: 0 | PE34: 0 | PF34: 0 | PG34: 0 | PH34: 0 | PI34: 0 | PJ34: 0 | PK34: 0 | PL34: 0 | PM34: 0 | PN34: 0 | PO34: 0 | PP34: 0 | PQ34: 0 | PR34: 0 | PS34: 0 | PT34: 0 | PU34: 0 | PV34: 0 | PW34: 0 | PX34: 0 | PY34: 0 | PZ34: 0 | QA34: 0 | QB34: 0 | QC34: 0 | QD34: 0 | QE34: 0 | QF34: 0 | QG34: 0 | QH34: 0 | QI34: 0 | QJ34: 0 | QK34: 0 | QL34: 0 | QM34: =QM33*1 -> 0 | QN34: 0 | QO34: 0 | QP34: 0 | QQ34: 0 | QR34: 0 | QS34: 0 | QT34: 0 | QU34: 0 | QV34: 0 | QW34: 0 | QX34: 0 | QY34: 0 | QZ34: 0 | RA34: 0 | RB34: 0 | RC34: 0 | RD34: 0 | RE34: 0 | RF34: 0 | RG34: 0 | RH34: 0 | RI34: 0 | RJ34: 0 | RK34: 0 | RL34: 0 | RM34: 0 | RN34: 0 | RO34: 0 | RP34: 0 | RQ34: 0 | RR34: 0 | RS34: 0 | RT34: 0 | RU34: 0 | RV34: 0 | RW34: 0 | RX34: 0 | RY34: 0 | RZ34: 0 | SA34: 0 | SB34: 0 | SC34: 0 | SD34: 0 | SE34: 0 | SF34: 0 | SG34: 0
B36: EBITDA | F36: =F13 -> 2400 | G36: =F36*G33 -> 2400 | H36: =G36*H33 -> 2400 | I36: 2400 | J36: 2400 | K36: 2400 | L36: 2400 | M36: 2400 | N36: 2400 | O36: 2400 | P36: 2400 | Q36: 2400 | R36: 2400 | S36: 2400 | T36: 2400 | U36: 2400 | V36: 2400 | W36: 2400 | X36: 2400 | Y36: 2400 | Z36: 2400 | AA36: 2400 | AB36: 2400 | AC36: 2400 | AD36: 2400 | AE36: 2400 | AF36: 2400 | AG36: 2400 | AH36: 2400 | AI36: 2400 | AJ36: 2400 | AK36: 2400 | AL36: 2400 | AM36: 2400 | AN36: 2400 | AO36: 2400 | AP36: 2400 | AQ36: 2400 | AR36: 2400 | AS36: 2400 | AT36: 2400 | AU36: 2400 | AV36: 2400 | AW36: 2400 | AX36: 2400 | AY36: 2400 | AZ36: 2400 | BA36: 2400 | BB36: 2400 | BC36: 2400 | BD36: 2400 | BE36: 2400 | BF36: 2400 | BG36: 2400 | BH36: 2400 | BI36: 2400 | BJ36: 2400 | BK36: 2400 | BL36: 2400 | BM36: 2400 | BN36: 2400 | BO36: 2400 | BP36: 2400 | BQ36: 2400 | BR36: 2400 | BS36: 2400 | BT36: =BS36*BT33 -> 2400 | BU36: 2400 | BV36: 2400 | BW36: 2400 | BX36: 2400 | BY36: 2400 | BZ36: 2400 | CA36: 2400 | CB36: 2400 | CC36: 2400 | CD36: 2400 | CE36: 2400 | CF36: 2400 | CG36: 2400 | CH36: 0 | CI36: 0 | CJ36: 0 | CK36: 0 | CL36: 0 | CM36: 0 | CN36: 0 | CO36: 0 | CP36: 0 | CQ36: 0 | CR36: 0 | CS36: 0 | CT36: 0 | CU36: 0 | CV36: 0 | CW36: 0 | CX36: 0 | CY36: 0 | CZ36: 0 | DA36: 0 | DB36: 0 | DC36: 0 | DD36: 0 | DE36: 0 | DF36: 0 | DG36: 0 | DH36: 0 | DI36: 0 | DJ36: 0 | DK36: 0 | DL36: 0 | DM36: 0 | DN36: 0 | DO36: 0 | DP36: 0 | DQ36: 0 | DR36: 0 | DS36: 0 | DT36: 0 | DU36: 0 | DV36: 0 | DW36: 0 | DX36: 0 | DY36: 0 | DZ36: 0 | EA36: 0 | EB36: 0 | EC36: 0 | ED36: 0 | EE36: 0 | EF36: =EE36*EF33 -> 0 | EG36: 0 | EH36: 0 | EI36: 0 | EJ36: 0 | EK36: 0 | EL36: 0 | EM36: 0 | EN36: 0 | EO36: 0 | EP36: 0 | EQ36: 0 | ER36: 0 | ES36: 0 | ET36: 0 | EU36: 0 | EV36: 0 | EW36: 0 | EX36: 0 | EY36: 0 | EZ36: 0 | FA36: 0 | FB36: 0 | FC36: 0 | FD36: 0 | FE36: 0 | FF36: 0 | FG36: 0 | FH36: 0 | FI36: 0 | FJ36: 0 | FK36: 0 | FL36: 0 | FM36: 0 | FN36: 0 | FO36: 0 | FP36: 0 | FQ36: 0 | FR36: 0 | FS36: 0 | FT36: 0 | FU36: 0 | FV36: 0 | FW36: 0 | FX36: 0 | FY36: 0 | FZ36: 0 | GA36: 0 | GB36: 0 | GC36: 0 | GD36: 0 | GE36: 0 | GF36: 0 | GG36: 0 | GH36: 0 | GI36: 0 | GJ36: 0 | GK36: 0 | GL36: 0 | GM36: 0 | GN36: 0 | GO36: 0 | GP36: 0 | GQ36: 0 | GR36: =GQ36*GR33 -> 0 | GS36: 0 | GT36: 0 | GU36: 0 | GV36: 0 | GW36: 0 | GX36: 0 | GY36: 0 | GZ36: 0 | HA36: 0 | HB36: 0 | HC36: 0 | HD36: 0 | HE36: 0 | HF36: 0 | HG36: 0 | HH36: 0 | HI36: 0 | HJ36: 0 | HK36: 0 | HL36: 0 | HM36: 0 | HN36: 0 | HO36: 0 | HP36: 0 | HQ36: 0 | HR36: 0 | HS36: 0 | HT36: 0 | HU36: 0 | HV36: 0 | HW36: 0 | HX36: 0 | HY36: 0 | HZ36: 0 | IA36: 0 | IB36: 0 | IC36: 0 | ID36: 0 | IE36: 0 | IF36: 0 | IG36: 0 | IH36: 0 | II36: 0 | IJ36: 0 | IK36: 0 | IL36: 0 | IM36: 0 | IN36: 0 | IO36: 0 | IP36: 0 | IQ36: 0 | IR36: 0 | IS36: 0 | IT36: 0 | IU36: 0 | IV36: 0 | IW36: 0 | IX36: 0 | IY36: 0 | IZ36: 0 | JA36: 0 | JB36: 0 | JC36: 0 | JD36: =JC36*JD33 -> 0 | JE36: 0 | JF36: 0 | JG36: 0 | JH36: 0 | JI36: 0 | JJ36: 0 | JK36: 0 | JL36: 0 | JM36: 0 | JN36: 0 | JO36: 0 | JP36: 0 | JQ36: 0 | JR36: 0 | JS36: 0 | JT36: 0 | JU36: 0 | JV36: 0 | JW36: 0 | JX36: 0 | JY36: 0 | JZ36: 0 | KA36: 0 | KB36: 0 | KC36: 0 | KD36: 0 | KE36: 0 | KF36: 0 | KG36: 0 | KH36: 0 | KI36: 0 | KJ36: 0 | KK36: 0 | KL36: 0 | KM36: 0 | KN36: 0 | KO36: 0 | KP36: 0 | KQ36: 0 | KR36: 0 | KS36: 0 | KT36: 0 | KU36: 0 | KV36: 0 | KW36: 0 | KX36: 0 | KY36: 0 | KZ36: 0 | LA36: 0 | LB36: 0 | LC36: 0 | LD36: 0 | LE36: 0 | LF36: 0 | LG36: 0 | LH36: 0 | LI36: 0 | LJ36: 0 | LK36: 0 | LL36: 0 | LM36: 0 | LN36: 0 | LO36: 0 | LP36: =LO36*LP33 -> 0 | LQ36: 0 | LR36: 0 | LS36: 0 | LT36: 0 | LU36: 0 | LV36: 0 | LW36: 0 | LX36: 0 | LY36: 0 | LZ36: 0 | MA36: 0 | MB36: 0 | MC36: 0 | MD36: 0 | ME36: 0 | MF36: 0 | MG36: 0 | MH36: 0 | MI36: 0 | MJ36: 0 | MK36: 0 | ML36: 0 | MM36: 0 | MN36: 0 | MO36: 0 | MP36: 0 | MQ36: 0 | MR36: 0 | MS36: 0 | MT36: 0 | MU36: 0 | MV36: 0 | MW36: 0 | MX36: 0 | MY36: 0 | MZ36: 0 | NA36: 0 | NB36: 0 | NC36: 0 | ND36: 0 | NE36: 0 | NF36: 0 | NG36: 0 | NH36: 0 | NI36: 0 | NJ36: 0 | NK36: 0 | NL36: 0 | NM36: 0 | NN36: 0 | NO36: 0 | NP36: 0 | NQ36: 0 | NR36: 0 | NS36: 0 | NT36: 0 | NU36: 0 | NV36: 0 | NW36: 0 | NX36: 0 | NY36: 0 | NZ36: 0 | OA36: 0 | OB36: =OA36*OB33 -> 0 | OC36: 0 | OD36: 0 | OE36: 0 | OF36: 0 | OG36: 0 | OH36: 0 | OI36: 0 | OJ36: 0 | OK36: 0 | OL36: 0 | OM36: 0 | ON36: 0 | OO36: 0 | OP36: 0 | OQ36: 0 | OR36: 0 | OS36: 0 | OT36: 0 | OU36: 0 | OV36: 0 | OW36: 0 | OX36: 0 | OY36: 0 | OZ36: 0 | PA36: 0 | PB36: 0 | PC36: 0 | PD36: 0 | PE36: 0 | PF36: 0 | PG36: 0 | PH36: 0 | PI36: 0 | PJ36: 0 | PK36: 0 | PL36: 0 | PM36: 0 | PN36: 0 | PO36: 0 | PP36: 0 | PQ36: 0 | PR36: 0 | PS36: 0 | PT36: 0 | PU36: 0 | PV36: 0 | PW36: 0 | PX36: 0 | PY36: 0 | PZ36: 0 | QA36: 0 | QB36: 0 | QC36: 0 | QD36: 0 | QE36: 0 | QF36: 0 | QG36: 0 | QH36: 0 | QI36: 0 | QJ36: 0 | QK36: 0 | QL36: 0 | QM36: 0 | QN36: =QM36*QN33 -> 0 | QO36: 0 | QP36: 0 | QQ36: 0 | QR36: 0 | QS36: 0 | QT36: 0 | QU36: 0 | QV36: 0 | QW36: 0 | QX36: 0 | QY36: 0 | QZ36: 0 | RA36: 0 | RB36: 0 | RC36: 0 | RD36: 0 | RE36: 0 | RF36: 0 | RG36: 0 | RH36: 0 | RI36: 0 | RJ36: 0 | RK36: 0 | RL36: 0 | RM36: 0 | RN36: 0 | RO36: 0 | RP36: 0 | RQ36: 0 | RR36: 0 | RS36: 0 | RT36: 0 | RU36: 0 | RV36: 0 | RW36: 0 | RX36: 0 | RY36: 0 | RZ36: 0 | SA36: 0 | SB36: 0 | SC36: 0 | SD36: 0 | SE36: 0 | SF36: 0 | SG36: 0
B38: Operating Period | E38: =F8 -> 2054-12-31 | F38: =F32<$E$38 -> TRUE | G38: =G32<$E$38 -> TRUE | H38: TRUE | I38: TRUE | J38: TRUE | K38: TRUE | L38: TRUE | M38: TRUE | N38: TRUE | O38: TRUE | P38: TRUE | Q38: TRUE | R38: TRUE | S38: TRUE | T38: TRUE | U38: TRUE | V38: TRUE | W38: TRUE | X38: TRUE | Y38: TRUE | Z38: TRUE | AA38: TRUE | AB38: TRUE | AC38: TRUE | AD38: TRUE | AE38: TRUE | AF38: TRUE | AG38: TRUE | AH38: TRUE | AI38: TRUE | AJ38: TRUE | AK38: TRUE | AL38: TRUE | AM38: TRUE | AN38: TRUE | AO38: TRUE | AP38: TRUE | AQ38: TRUE | AR38: TRUE | AS38: TRUE | AT38: TRUE | AU38: TRUE | AV38: TRUE | AW38: TRUE | AX38: TRUE | AY38: TRUE | AZ38: TRUE | BA38: TRUE | BB38: TRUE | BC38: TRUE | BD38: TRUE | BE38: TRUE | BF38: TRUE | BG38: TRUE | BH38: TRUE | BI38: TRUE | BJ38: TRUE | BK38: TRUE | BL38: TRUE | BM38: TRUE | BN38: TRUE | BO38: TRUE | BP38: TRUE | BQ38: TRUE | BR38: TRUE | BS38: =BS32<$E$38 -> TRUE | BT38: TRUE | BU38: TRUE | BV38: TRUE | BW38: TRUE | BX38: TRUE | BY38: TRUE | BZ38: TRUE | CA38: TRUE | CB38: TRUE | CC38: TRUE | CD38: TRUE | CE38: TRUE | CF38: TRUE | CG38: FALSE | CH38: FALSE | CI38: FALSE | CJ38: FALSE | CK38: FALSE | CL38: FALSE | CM38: FALSE | CN38: FALSE | CO38: FALSE | CP38: FALSE | CQ38: FALSE | CR38: FALSE | CS38: FALSE | CT38: FALSE | CU38: FALSE | CV38: FALSE | CW38: FALSE | CX38: FALSE | CY38: FALSE | CZ38: FALSE | DA38: FALSE | DB38: FALSE | DC38: FALSE | DD38: FALSE | DE38: FALSE | DF38: FALSE | DG38: FALSE | DH38: FALSE | DI38: FALSE | DJ38: FALSE | DK38: FALSE | DL38: FALSE | DM38: FALSE | DN38: FALSE | DO38: FALSE | DP38: FALSE | DQ38: FALSE | DR38: FALSE | DS38: FALSE | DT38: FALSE | DU38: FALSE | DV38: FALSE | DW38: FALSE | DX38: FALSE | DY38: FALSE | DZ38: FALSE | EA38: FALSE | EB38: FALSE | EC38: FALSE | ED38: FALSE | EE38: =EE32<$E$38 -> FALSE | EF38: FALSE | EG38: FALSE | EH38: FALSE | EI38: FALSE | EJ38: FALSE | EK38: FALSE | EL38: FALSE | EM38: FALSE | EN38: FALSE | EO38: FALSE | EP38: FALSE | EQ38: FALSE | ER38: FALSE | ES38: FALSE | ET38: FALSE | EU38: FALSE | EV38: FALSE | EW38: FALSE | EX38: FALSE | EY38: FALSE | EZ38: FALSE | FA38: FALSE | FB38: FALSE | FC38: FALSE | FD38: FALSE | FE38: FALSE | FF38: FALSE | FG38: FALSE | FH38: FALSE | FI38: FALSE | FJ38: FALSE | FK38: FALSE | FL38: FALSE | FM38: FALSE | FN38: FALSE | FO38: FALSE | FP38: FALSE | FQ38: FALSE | FR38: FALSE | FS38: FALSE | FT38: FALSE | FU38: FALSE | FV38: FALSE | FW38: FALSE | FX38: FALSE | FY38: FALSE | FZ38: FALSE | GA38: FALSE | GB38: FALSE | GC38: FALSE | GD38: FALSE | GE38: FALSE | GF38: FALSE | GG38: FALSE | GH38: FALSE | GI38: FALSE | GJ38: FALSE | GK38: FALSE | GL38: FALSE | GM38: FALSE | GN38: FALSE | GO38: FALSE | GP38: FALSE | GQ38: =GQ32<$E$38 -> FALSE | GR38: FALSE | GS38: FALSE | GT38: FALSE | GU38: FALSE | GV38: FALSE | GW38: FALSE | GX38: FALSE | GY38: FALSE | GZ38: FALSE | HA38: FALSE | HB38: FALSE | HC38: FALSE | HD38: FALSE | HE38: FALSE | HF38: FALSE | HG38: FALSE | HH38: FALSE | HI38: FALSE | HJ38: FALSE | HK38: FALSE | HL38: FALSE | HM38: FALSE | HN38: FALSE | HO38: FALSE | HP38: FALSE | HQ38: FALSE | HR38: FALSE | HS38: FALSE | HT38: FALSE | HU38: FALSE | HV38: FALSE | HW38: FALSE | HX38: FALSE | HY38: FALSE | HZ38: FALSE | IA38: FALSE | IB38: FALSE | IC38: FALSE | ID38: FALSE | IE38: FALSE | IF38: FALSE | IG38: FALSE | IH38: FALSE | II38: FALSE | IJ38: FALSE | IK38: FALSE | IL38: FALSE | IM38: FALSE | IN38: FALSE | IO38: FALSE | IP38: FALSE | IQ38: FALSE | IR38: FALSE | IS38: FALSE | IT38: FALSE | IU38: FALSE | IV38: FALSE | IW38: =IW32<$E$38 -> FALSE | IX38: FALSE | IY38: FALSE | IZ38: FALSE | JA38: FALSE | JB38: FALSE | JC38: FALSE | JD38: FALSE | JE38: FALSE | JF38: FALSE | JG38: FALSE | JH38: FALSE | JI38: FALSE | JJ38: FALSE | JK38: FALSE | JL38: FALSE | JM38: FALSE | JN38: FALSE | JO38: FALSE | JP38: FALSE | JQ38: FALSE | JR38: FALSE | JS38: FALSE | JT38: FALSE | JU38: FALSE | JV38: FALSE | JW38: FALSE | JX38: FALSE | JY38: FALSE | JZ38: FALSE | KA38: FALSE | KB38: FALSE | KC38: FALSE | KD38: FALSE | KE38: FALSE | KF38: FALSE | KG38: FALSE | KH38: FALSE | KI38: FALSE | KJ38: FALSE | KK38: FALSE | KL38: FALSE | KM38: FALSE | KN38: FALSE | KO38: FALSE | KP38: FALSE | KQ38: FALSE | KR38: FALSE | KS38: FALSE | KT38: FALSE | KU38: FALSE | KV38: FALSE | KW38: FALSE | KX38: FALSE | KY38: FALSE | KZ38: FALSE | LA38: FALSE | LB38: FALSE | LC38: FALSE | LD38: FALSE | LE38: FALSE | LF38: FALSE | LG38: FALSE | LH38: FALSE | LI38: =LI32<$E$38 -> FALSE | LJ38: FALSE | LK38: FALSE | LL38: FALSE | LM38: FALSE | LN38: FALSE | LO38: FALSE | LP38: FALSE | LQ38: FALSE | LR38: FALSE | LS38: FALSE | LT38: FALSE | LU38: FALSE | LV38: FALSE | LW38: FALSE | LX38: FALSE | LY38: FALSE | LZ38: FALSE | MA38: FALSE | MB38: FALSE | MC38: FALSE | MD38: FALSE | ME38: FALSE | MF38: FALSE | MG38: FALSE | MH38: FALSE | MI38: FALSE | MJ38: FALSE | MK38: FALSE | ML38: FALSE | MM38: FALSE | MN38: FALSE | MO38: FALSE | MP38: FALSE | MQ38: FALSE | MR38: FALSE | MS38: FALSE | MT38: FALSE | MU38: FALSE | MV38: FALSE | MW38: FALSE | MX38: FALSE | MY38: FALSE | MZ38: FALSE | NA38: FALSE | NB38: FALSE | NC38: FALSE | ND38: FALSE | NE38: FALSE | NF38: FALSE | NG38: FALSE | NH38: FALSE | NI38: FALSE | NJ38: FALSE | NK38: FALSE | NL38: FALSE | NM38: FALSE | NN38: FALSE | NO38: FALSE | NP38: FALSE | NQ38: FALSE | NR38: FALSE | NS38: FALSE | NT38: FALSE | NU38: =NU32<$E$38 -> FALSE | NV38: FALSE | NW38: FALSE | NX38: FALSE | NY38: FALSE | NZ38: FALSE | OA38: FALSE | OB38: FALSE | OC38: FALSE | OD38: FALSE | OE38: FALSE | OF38: FALSE | OG38: FALSE | OH38: FALSE | OI38: FALSE | OJ38: =OJ32<$E$38 -> FALSE | OK38: FALSE | OL38: FALSE | OM38: FALSE | ON38: FALSE | OO38: FALSE | OP38: FALSE | OQ38: FALSE | OR38: FALSE | OS38: FALSE | OT38: FALSE | OU38: FALSE | OV38: FALSE | OW38: FALSE | OX38: FALSE | OY38: FALSE | OZ38: FALSE | PA38: FALSE | PB38: FALSE | PC38: FALSE | PD38: FALSE | PE38: FALSE | PF38: FALSE | PG38: FALSE | PH38: FALSE | PI38: FALSE | PJ38: FALSE | PK38: FALSE | PL38: FALSE | PM38: FALSE | PN38: FALSE | PO38: FALSE | PP38: FALSE | PQ38: FALSE | PR38: FALSE | PS38: FALSE | PT38: FALSE | PU38: FALSE | PV38: FALSE | PW38: FALSE | PX38: FALSE | PY38: FALSE | PZ38: FALSE | QA38: FALSE | QB38: FALSE | QC38: FALSE | QD38: FALSE | QE38: FALSE | QF38: FALSE | QG38: FALSE | QH38: FALSE | QI38: FALSE | QJ38: FALSE | QK38: FALSE | QL38: FALSE | QM38: FALSE | QN38: FALSE | QO38: FALSE | QP38: FALSE | QQ38: FALSE | QR38: FALSE | QS38: FALSE | QT38: FALSE | QU38: FALSE | QV38: =QV32<$E$38 -> FALSE | QW38: FALSE | QX38: FALSE | QY38: FALSE | QZ38: FALSE | RA38: FALSE | RB38: FALSE | RC38: FALSE | RD38: FALSE | RE38: FALSE | RF38: FALSE | RG38: FALSE | RH38: FALSE | RI38: FALSE | RJ38: FALSE | RK38: FALSE | RL38: FALSE | RM38: FALSE | RN38: FALSE | RO38: FALSE | RP38: FALSE | RQ38: FALSE | RR38: FALSE | RS38: FALSE | RT38: FALSE | RU38: FALSE | RV38: FALSE | RW38: FALSE | RX38: FALSE | RY38: FALSE | RZ38: FALSE | SA38: FALSE | SB38: FALSE | SC38: FALSE | SD38: FALSE | SE38: FALSE | SF38: FALSE | SG38: FALSE
B39: Spend for Period | F39: =INDEX($F$19:$F$25,MATCH(F31,$E$19:$E$25,0)) -> 0 | G39: =INDEX($F$19:$F$25,MATCH(G31,$E$19:$E$25,0)) ->  | P39: 0 | AB39: 10000 | AJ39: 3300 | AY39: 5000 | BI39: 7000 | BS39: =INDEX($F$19:$F$25,MATCH(BS31,$E$19:$E$25,0)) ->  | BX39: 9000 | EE39: =INDEX($F$19:$F$25,MATCH(EE31,$E$19:$E$25,0)) ->  | GQ39: =INDEX($F$19:$F$25,MATCH(GQ31,$E$19:$E$25,0)) ->  | IW39: =INDEX($F$19:$F$25,MATCH(IW31,$E$19:$E$25,0)) ->  | LI39: =INDEX($F$19:$F$25,MATCH(LI31,$E$19:$E$25,0)) ->  | NU39: =INDEX($F$19:$F$25,MATCH(NU31,$E$19:$E$25,0)) ->  | OJ39: =INDEX($F$19:$F$25,MATCH(OJ31,$E$19:$E$25,0)) ->  | QV39: =INDEX($F$19:$F$25,MATCH(QV31,$E$19:$E$25,0)) -> 
B40: Spend Period Switch | G40: =ISNUMBER(G39) -> FALSE | H40: =ISNUMBER(H39) -> FALSE | I40: FALSE | J40: FALSE | K40: FALSE | L40: FALSE | M40: FALSE | N40: FALSE | O40: FALSE | P40: TRUE | Q40: FALSE | R40: FALSE | S40: FALSE | T40: FALSE | U40: FALSE | V40: FALSE | W40: FALSE | X40: FALSE | Y40: FALSE | Z40: FALSE | AA40: FALSE | AB40: TRUE | AC40: FALSE | AD40: FALSE | AE40: FALSE | AF40: FALSE | AG40: FALSE | AH40: FALSE | AI40: FALSE | AJ40: TRUE | AK40: FALSE | AL40: FALSE | AM40: FALSE | AN40: FALSE | AO40: FALSE | AP40: FALSE | AQ40: FALSE | AR40: FALSE | AS40: FALSE | AT40: FALSE | AU40: FALSE | AV40: FALSE | AW40: FALSE | AX40: FALSE | AY40: TRUE | AZ40: FALSE | BA40: FALSE | BB40: FALSE | BC40: FALSE | BD40: FALSE | BE40: FALSE | BF40: FALSE | BG40: FALSE | BH40: FALSE | BI40: TRUE | BJ40: FALSE | BK40: FALSE | BL40: FALSE | BM40: FALSE | BN40: FALSE | BO40: FALSE | BP40: FALSE | BQ40: FALSE | BR40: FALSE | BS40: FALSE | BT40: =ISNUMBER(BT39) -> FALSE | BU40: FALSE | BV40: FALSE | BW40: FALSE | BX40: TRUE | BY40: FALSE | BZ40: FALSE | CA40: FALSE | CB40: FALSE | CC40: FALSE | CD40: FALSE | CE40: FALSE | CF40: FALSE | CG40: FALSE | CH40: FALSE | CI40: FALSE | CJ40: FALSE | CK40: FALSE | CL40: FALSE | CM40: FALSE | CN40: FALSE | CO40: FALSE | CP40: FALSE | CQ40: FALSE | CR40: FALSE | CS40: FALSE | CT40: FALSE | CU40: FALSE | CV40: FALSE | CW40: FALSE | CX40: FALSE | CY40: FALSE | CZ40: FALSE | DA40: FALSE | DB40: FALSE | DC40: FALSE | DD40: FALSE | DE40: FALSE | DF40: FALSE | DG40: FALSE | DH40: FALSE | DI40: FALSE | DJ40: FALSE | DK40: FALSE | DL40: FALSE | DM40: FALSE | DN40: FALSE | DO40: FALSE | DP40: FALSE | DQ40: FALSE | DR40: FALSE | DS40: FALSE | DT40: FALSE | DU40: FALSE | DV40: FALSE | DW40: FALSE | DX40: FALSE | DY40: FALSE | DZ40: FALSE | EA40: FALSE | EB40: FALSE | EC40: FALSE | ED40: FALSE | EE40: FALSE | EF40: =ISNUMBER(EF39) -> FALSE | EG40: FALSE | EH40: FALSE | EI40: FALSE | EJ40: FALSE | EK40: FALSE | EL40: FALSE | EM40: FALSE | EN40: FALSE | EO40: FALSE | EP40: FALSE | EQ40: FALSE | ER40: FALSE | ES40: FALSE | ET40: FALSE | EU40: FALSE | EV40: FALSE | EW40: FALSE | EX40: FALSE | EY40: FALSE | EZ40: FALSE | FA40: FALSE | FB40: FALSE | FC40: FALSE | FD40: FALSE | FE40: FALSE | FF40: FALSE | FG40: FALSE | FH40: FALSE | FI40: FALSE | FJ40: FALSE | FK40: FALSE | FL40: FALSE | FM40: FALSE | FN40: FALSE | FO40: FALSE | FP40: FALSE | FQ40: FALSE | FR40: FALSE | FS40: FALSE | FT40: FALSE | FU40: FALSE | FV40: FALSE | FW40: FALSE | FX40: FALSE | FY40: FALSE | FZ40: FALSE | GA40: FALSE | GB40: FALSE | GC40: FALSE | GD40: FALSE | GE40: FALSE | GF40: FALSE | GG40: FALSE | GH40: FALSE | GI40: FALSE | GJ40: FALSE | GK40: FALSE | GL40: FALSE | GM40: FALSE | GN40: FALSE | GO40: FALSE | GP40: FALSE | GQ40: FALSE | GR40: =ISNUMBER(GR39) -> FALSE | GS40: FALSE | GT40: FALSE | GU40: FALSE | GV40: FALSE | GW40: FALSE | GX40: FALSE | GY40: FALSE | GZ40: FALSE | HA40: FALSE | HB40: FALSE | HC40: FALSE | HD40: FALSE | HE40: FALSE | HF40: FALSE | HG40: FALSE | HH40: FALSE | HI40: FALSE | HJ40: FALSE | HK40: FALSE | HL40: FALSE | HM40: FALSE | HN40: FALSE | HO40: FALSE | HP40: FALSE | HQ40: FALSE | HR40: FALSE | HS40: FALSE | HT40: FALSE | HU40: FALSE | HV40: FALSE | HW40: FALSE | HX40: FALSE | HY40: FALSE | HZ40: FALSE | IA40: FALSE | IB40: FALSE | IC40: FALSE | ID40: FALSE | IE40: FALSE | IF40: FALSE | IG40: FALSE | IH40: FALSE | II40: FALSE | IJ40: FALSE | IK40: FALSE | IL40: FALSE | IM40: FALSE | IN40: FALSE | IO40: FALSE | IP40: FALSE | IQ40: FALSE | IR40: FALSE | IS40: FALSE | IT40: FALSE | IU40: FALSE | IV40: FALSE | IW40: =ISNUMBER(IW39) -> FALSE | IX40: =ISNUMBER(IX39) -> FALSE | IY40: =ISNUMBER(IY39) -> FALSE | IZ40: =ISNUMBER(IZ39) -> FALSE | JA40: =ISNUMBER(JA39) -> FALSE | JB40: =ISNUMBER(JB39) -> FALSE | JC40: =ISNUMBER(JC39) -> FALSE | JD40: =ISNUMBER(JD39) -> FALSE | JE40: =ISNUMBER(JE39) -> FALSE | JF40: =ISNUMBER(JF39) -> FALSE | JG40: =ISNUMBER(JG39) -> FALSE | JH40: =ISNUMBER(JH39) -> FALSE | JI40: =ISNUMBER(JI39) -> FALSE | JJ40: =ISNUMBER(JJ39) -> FALSE | JK40: =ISNUMBER(JK39) -> FALSE | JL40: =ISNUMBER(JL39) -> FALSE | JM40: =ISNUMBER(JM39) -> FALSE | JN40: =ISNUMBER(JN39) -> FALSE | JO40: =ISNUMBER(JO39) -> FALSE | JP40: =ISNUMBER(JP39) -> FALSE | JQ40: =ISNUMBER(JQ39) -> FALSE | JR40: =ISNUMBER(JR39) -> FALSE | JS40: =ISNUMBER(JS39) -> FALSE | JT40: =ISNUMBER(JT39) -> FALSE | JU40: =ISNUMBER(JU39) -> FALSE | JV40: =ISNUMBER(JV39) -> FALSE | JW40: =ISNUMBER(JW39) -> FALSE | JX40: =ISNUMBER(JX39) -> FALSE | JY40: =ISNUMBER(JY39) -> FALSE | JZ40: =ISNUMBER(JZ39) -> FALSE | KA40: =ISNUMBER(KA39) -> FALSE | KB40: =ISNUMBER(KB39) -> FALSE | KC40: =ISNUMBER(KC39) -> FALSE | KD40: =ISNUMBER(KD39) -> FALSE | KE40: =ISNUMBER(KE39) -> FALSE | KF40: =ISNUMBER(KF39) -> FALSE | KG40: =ISNUMBER(KG39) -> FALSE | KH40: =ISNUMBER(KH39) -> FALSE | KI40: =ISNUMBER(KI39) -> FALSE | KJ40: =ISNUMBER(KJ39) -> FALSE | KK40: =ISNUMBER(KK39) -> FALSE | KL40: =ISNUMBER(KL39) -> FALSE | KM40: =ISNUMBER(KM39) -> FALSE | KN40: =ISNUMBER(KN39) -> FALSE | KO40: =ISNUMBER(KO39) -> FALSE | KP40: =ISNUMBER(KP39) -> FALSE | KQ40: =ISNUMBER(KQ39) -> FALSE | KR40: =ISNUMBER(KR39) -> FALSE | KS40: =ISNUMBER(KS39) -> FALSE | KT40: =ISNUMBER(KT39) -> FALSE | KU40: =ISNUMBER(KU39) -> FALSE | KV40: =ISNUMBER(KV39) -> FALSE | KW40: =ISNUMBER(KW39) -> FALSE | KX40: =ISNUMBER(KX39) -> FALSE | KY40: =ISNUMBER(KY39) -> FALSE | KZ40: =ISNUMBER(KZ39) -> FALSE | LA40: =ISNUMBER(LA39) -> FALSE | LB40: =ISNUMBER(LB39) -> FALSE | LC40: =ISNUMBER(LC39) -> FALSE | LD40: =ISNUMBER(LD39) -> FALSE | LE40: =ISNUMBER(LE39) -> FALSE | LF40: =ISNUMBER(LF39) -> FALSE | LG40: =ISNUMBER(LG39) -> FALSE | LH40: =ISNUMBER(LH39) -> FALSE | LI40: =ISNUMBER(LI39) -> FALSE | LJ40: =ISNUMBER(LJ39) -> FALSE | LK40: =ISNUMBER(LK39) -> FALSE | LL40: =ISNUMBER(LL39) -> FALSE | LM40: =ISNUMBER(LM39) -> FALSE | LN40: =ISNUMBER(LN39) -> FALSE | LO40: =ISNUMBER(LO39) -> FALSE | LP40: =ISNUMBER(LP39) -> FALSE | LQ40: =ISNUMBER(LQ39) -> FALSE | LR40: =ISNUMBER(LR39) -> FALSE | LS40: =ISNUMBER(LS39) -> FALSE | LT40: =ISNUMBER(LT39) -> FALSE | LU40: =ISNUMBER(LU39) -> FALSE | LV40: =ISNUMBER(LV39) -> FALSE | LW40: =ISNUMBER(LW39) -> FALSE | LX40: =ISNUMBER(LX39) -> FALSE | LY40: =ISNUMBER(LY39) -> FALSE | LZ40: =ISNUMBER(LZ39) -> FALSE | MA40: =ISNUMBER(MA39) -> FALSE | MB40: =ISNUMBER(MB39) -> FALSE | MC40: =ISNUMBER(MC39) -> FALSE | MD40: =ISNUMBER(MD39) -> FALSE | ME40: =ISNUMBER(ME39) -> FALSE | MF40: =ISNUMBER(MF39) -> FALSE | MG40: =ISNUMBER(MG39) -> FALSE | MH40: =ISNUMBER(MH39) -> FALSE | MI40: =ISNUMBER(MI39) -> FALSE | MJ40: =ISNUMBER(MJ39) -> FALSE | MK40: =ISNUMBER(MK39) -> FALSE | ML40: =ISNUMBER(ML39) -> FALSE | MM40: =ISNUMBER(MM39) -> FALSE | MN40: =ISNUMBER(MN39) -> FALSE | MO40: =ISNUMBER(MO39) -> FALSE | MP40: =ISNUMBER(MP39) -> FALSE | MQ40: =ISNUMBER(MQ39) -> FALSE | MR40: =ISNUMBER(MR39) -> FALSE | MS40: =ISNUMBER(MS39) -> FALSE | MT40: =ISNUMBER(MT39) -> FALSE | MU40: =ISNUMBER(MU39) -> FALSE | MV40: =ISNUMBER(MV39) -> FALSE | MW40: =ISNUMBER(MW39) -> FALSE | MX40: =ISNUMBER(MX39) -> FALSE | MY40: =ISNUMBER(MY39) -> FALSE | MZ40: =ISNUMBER(MZ39) -> FALSE | NA40: =ISNUMBER(NA39) -> FALSE | NB40: =ISNUMBER(NB39) -> FALSE | NC40: =ISNUMBER(NC39) -> FALSE | ND40: =ISNUMBER(ND39) -> FALSE | NE40: =ISNUMBER(NE39) -> FALSE | NF40: =ISNUMBER(NF39) -> FALSE | NG40: =ISNUMBER(NG39) -> FALSE | NH40: =ISNUMBER(NH39) -> FALSE | NI40: =ISNUMBER(NI39) -> FALSE | NJ40: =ISNUMBER(NJ39) -> FALSE | NK40: =ISNUMBER(NK39) -> FALSE | NL40: =ISNUMBER(NL39) -> FALSE | NM40: =ISNUMBER(NM39) -> FALSE | NN40: =ISNUMBER(NN39) -> FALSE | NO40: =ISNUMBER(NO39) -> FALSE | NP40: =ISNUMBER(NP39) -> FALSE | NQ40: =ISNUMBER(NQ39) -> FALSE | NR40: =ISNUMBER(NR39) -> FALSE | NS40: =ISNUMBER(NS39) -> FALSE | NT40: =ISNUMBER(NT39) -> FALSE | NU40: =ISNUMBER(NU39) -> FALSE | NV40: =ISNUMBER(NV39) -> FALSE | NW40: =ISNUMBER(NW39) -> FALSE | NX40: =ISNUMBER(NX39) -> FALSE | NY40: =ISNUMBER(NY39) -> FALSE | NZ40: =ISNUMBER(NZ39) -> FALSE | OA40: =ISNUMBER(OA39) -> FALSE | OB40: =ISNUMBER(OB39) -> FALSE | OC40: =ISNUMBER(OC39) -> FALSE | OD40: =ISNUMBER(OD39) -> FALSE | OE40: =ISNUMBER(OE39) -> FALSE | OF40: =ISNUMBER(OF39) -> FALSE | OG40: =ISNUMBER(OG39) -> FALSE | OH40: =ISNUMBER(OH39) -> FALSE | OI40: =ISNUMBER(OI39) -> FALSE | OJ40: =ISNUMBER(OJ39) -> FALSE | OK40: FALSE | OL40: FALSE | OM40: FALSE | ON40: FALSE | OO40: FALSE | OP40: FALSE | OQ40: FALSE | OR40: FALSE | OS40: FALSE | OT40: FALSE | OU40: FALSE | OV40: FALSE | OW40: FALSE | OX40: FALSE | OY40: FALSE | OZ40: FALSE | PA40: FALSE | PB40: FALSE | PC40: FALSE | PD40: FALSE | PE40: FALSE | PF40: FALSE | PG40: FALSE | PH40: FALSE | PI40: FALSE | PJ40: FALSE | PK40: FALSE | PL40: FALSE | PM40: FALSE | PN40: FALSE | PO40: FALSE | PP40: FALSE | PQ40: FALSE | PR40: FALSE | PS40: FALSE | PT40: FALSE | PU40: FALSE | PV40: FALSE | PW40: FALSE | PX40: FALSE | PY40: FALSE | PZ40: FALSE | QA40: FALSE | QB40: FALSE | QC40: FALSE | QD40: FALSE | QE40: FALSE | QF40: FALSE | QG40: FALSE | QH40: FALSE | QI40: FALSE | QJ40: FALSE | QK40: FALSE | QL40: FALSE | QM40: FALSE | QN40: FALSE | QO40: FALSE | QP40: FALSE | QQ40: FALSE | QR40: FALSE | QS40: FALSE | QT40: FALSE | QU40: FALSE | QV40: =ISNUMBER(QV39) -> FALSE | QW40: FALSE | QX40: FALSE | QY40: FALSE | QZ40: FALSE | RA40: FALSE | RB40: FALSE | RC40: FALSE | RD40: FALSE | RE40: FALSE | RF40: FALSE | RG40: FALSE | RH40: FALSE | RI40: FALSE | RJ40: FALSE | RK40: FALSE | RL40: FALSE | RM40: FALSE | RN40: FALSE | RO40: FALSE | RP40: FALSE | RQ40: FALSE | RR40: FALSE | RS40: FALSE | RT40: FALSE | RU40: FALSE | RV40: FALSE | RW40: FALSE | RX40: FALSE | RY40: FALSE | RZ40: FALSE | SA40: FALSE | SB40: FALSE | SC40: FALSE | SD40: FALSE | SE40: FALSE | SF40: FALSE | SG40: FALSE
B42: Debt Repayment Switch | E42: =F10 -> 2054-12-31 | F42: =F32<=$E$42 -> TRUE | G42: =G32<=$E$42 -> TRUE | H42: =H32<=$E$42 -> TRUE | I42: TRUE | J42: TRUE | K42: TRUE | L42: TRUE | M42: TRUE | N42: TRUE | O42: TRUE | P42: TRUE | Q42: TRUE | R42: TRUE | S42: TRUE | T42: TRUE | U42: TRUE | V42: TRUE | W42: TRUE | X42: TRUE | Y42: TRUE | Z42: TRUE | AA42: TRUE | AB42: TRUE | AC42: TRUE | AD42: TRUE | AE42: TRUE | AF42: TRUE | AG42: TRUE | AH42: TRUE | AI42: TRUE | AJ42: TRUE | AK42: TRUE | AL42: TRUE | AM42: TRUE | AN42: TRUE | AO42: TRUE | AP42: TRUE | AQ42: TRUE | AR42: TRUE | AS42: TRUE | AT42: TRUE | AU42: TRUE | AV42: TRUE | AW42: TRUE | AX42: TRUE | AY42: TRUE | AZ42: TRUE | BA42: TRUE | BB42: TRUE | BC42: TRUE | BD42: TRUE | BE42: TRUE | BF42: TRUE | BG42: TRUE | BH42: TRUE | BI42: TRUE | BJ42: TRUE | BK42: TRUE | BL42: TRUE | BM42: TRUE | BN42: TRUE | BO42: TRUE | BP42: TRUE | BQ42: TRUE | BR42: TRUE | BS42: TRUE | BT42: =BT32<=$E$42 -> TRUE | BU42: TRUE | BV42: TRUE | BW42: TRUE | BX42: TRUE | BY42: TRUE | BZ42: TRUE | CA42: TRUE | CB42: TRUE | CC42: TRUE | CD42: TRUE | CE42: TRUE | CF42: TRUE | CG42: TRUE | CH42: FALSE | CI42: FALSE | CJ42: FALSE | CK42: FALSE | CL42: FALSE | CM42: FALSE | CN42: FALSE | CO42: FALSE | CP42: FALSE | CQ42: FALSE | CR42: FALSE | CS42: FALSE | CT42: FALSE | CU42: FALSE | CV42: FALSE | CW42: FALSE | CX42: FALSE | CY42: FALSE | CZ42: FALSE | DA42: FALSE | DB42: FALSE | DC42: FALSE | DD42: FALSE | DE42: FALSE | DF42: FALSE | DG42: FALSE | DH42: FALSE | DI42: FALSE | DJ42: FALSE | DK42: FALSE | DL42: FALSE | DM42: FALSE | DN42: FALSE | DO42: FALSE | DP42: FALSE | DQ42: FALSE | DR42: FALSE | DS42: FALSE | DT42: FALSE | DU42: FALSE | DV42: FALSE | DW42: FALSE | DX42: FALSE | DY42: FALSE | DZ42: FALSE | EA42: FALSE | EB42: FALSE | EC42: FALSE | ED42: FALSE | EE42: FALSE | EF42: =EF32<=$E$42 -> FALSE | EG42: FALSE | EH42: FALSE | EI42: FALSE | EJ42: FALSE | EK42: FALSE | EL42: FALSE | EM42: FALSE | EN42: FALSE | EO42: FALSE | EP42: FALSE | EQ42: FALSE | ER42: FALSE | ES42: FALSE | ET42: FALSE | EU42: FALSE | EV42: FALSE | EW42: FALSE | EX42: FALSE | EY42: FALSE | EZ42: FALSE | FA42: FALSE | FB42: FALSE | FC42: FALSE | FD42: FALSE | FE42: FALSE | FF42: FALSE | FG42: FALSE | FH42: FALSE | FI42: FALSE | FJ42: FALSE | FK42: FALSE | FL42: FALSE | FM42: FALSE | FN42: FALSE | FO42: FALSE | FP42: FALSE | FQ42: FALSE | FR42: FALSE | FS42: FALSE | FT42: FALSE | FU42: FALSE | FV42: FALSE | FW42: FALSE | FX42: FALSE | FY42: FALSE | FZ42: FALSE | GA42: FALSE | GB42: FALSE | GC42: FALSE | GD42: FALSE | GE42: FALSE | GF42: FALSE | GG42: FALSE | GH42: FALSE | GI42: FALSE | GJ42: FALSE | GK42: FALSE | GL42: FALSE | GM42: FALSE | GN42: FALSE | GO42: FALSE | GP42: FALSE | GQ42: FALSE | GR42: =GR32<=$E$42 -> FALSE | GS42: FALSE | GT42: FALSE | GU42: FALSE | GV42: FALSE | GW42: FALSE | GX42: FALSE | GY42: FALSE | GZ42: FALSE | HA42: FALSE | HB42: FALSE | HC42: FALSE | HD42: FALSE | HE42: FALSE | HF42: FALSE | HG42: FALSE | HH42: FALSE | HI42: FALSE | HJ42: FALSE | HK42: FALSE | HL42: FALSE | HM42: FALSE | HN42: FALSE | HO42: FALSE | HP42: FALSE | HQ42: FALSE | HR42: FALSE | HS42: FALSE | HT42: FALSE | HU42: FALSE | HV42: FALSE | HW42: FALSE | HX42: FALSE | HY42: FALSE | HZ42: FALSE | IA42: FALSE | IB42: FALSE | IC42: FALSE | ID42: FALSE | IE42: FALSE | IF42: FALSE | IG42: FALSE | IH42: FALSE | II42: FALSE | IJ42: FALSE | IK42: FALSE | IL42: FALSE | IM42: FALSE | IN42: FALSE | IO42: FALSE | IP42: FALSE | IQ42: FALSE | IR42: FALSE | IS42: FALSE | IT42: FALSE | IU42: FALSE | IV42: FALSE | IW42: =IW32<=$E$42 -> FALSE | IX42: FALSE | IY42: FALSE | IZ42: FALSE | JA42: FALSE | JB42: FALSE | JC42: FALSE | JD42: FALSE | JE42: FALSE | JF42: FALSE | JG42: FALSE | JH42: FALSE | JI42: FALSE | JJ42: FALSE | JK42: FALSE | JL42: FALSE | JM42: FALSE | JN42: FALSE | JO42: FALSE | JP42: FALSE | JQ42: FALSE | JR42: FALSE | JS42: FALSE | JT42: FALSE | JU42: FALSE | JV42: FALSE | JW42: FALSE | JX42: FALSE | JY42: FALSE | JZ42: FALSE | KA42: FALSE | KB42: FALSE | KC42: FALSE | KD42: FALSE | KE42: FALSE | KF42: FALSE | KG42: FALSE | KH42: FALSE | KI42: FALSE | KJ42: FALSE | KK42: FALSE | KL42: FALSE | KM42: FALSE | KN42: FALSE | KO42: FALSE | KP42: FALSE | KQ42: FALSE | KR42: FALSE | KS42: FALSE | KT42: FALSE | KU42: FALSE | KV42: FALSE | KW42: FALSE | KX42: FALSE | KY42: FALSE | KZ42: FALSE | LA42: FALSE | LB42: FALSE | LC42: FALSE | LD42: FALSE | LE42: FALSE | LF42: FALSE | LG42: FALSE | LH42: FALSE | LI42: =LI32<=$E$42 -> FALSE | LJ42: FALSE | LK42: FALSE | LL42: FALSE | LM42: FALSE | LN42: FALSE | LO42: FALSE | LP42: FALSE | LQ42: FALSE | LR42: FALSE | LS42: FALSE | LT42: FALSE | LU42: FALSE | LV42: FALSE | LW42: FALSE | LX42: FALSE | LY42: FALSE | LZ42: FALSE | MA42: FALSE | MB42: FALSE | MC42: FALSE | MD42: FALSE | ME42: FALSE | MF42: FALSE | MG42: FALSE | MH42: FALSE | MI42: FALSE | MJ42: FALSE | MK42: FALSE | ML42: FALSE | MM42: FALSE | MN42: FALSE | MO42: FALSE | MP42: FALSE | MQ42: FALSE | MR42: FALSE | MS42: FALSE | MT42: FALSE | MU42: FALSE | MV42: FALSE | MW42: FALSE | MX42: FALSE | MY42: FALSE | MZ42: FALSE | NA42: FALSE | NB42: FALSE | NC42: FALSE | ND42: FALSE | NE42: FALSE | NF42: FALSE | NG42: FALSE | NH42: FALSE | NI42: FALSE | NJ42: FALSE | NK42: FALSE | NL42: FALSE | NM42: FALSE | NN42: FALSE | NO42: FALSE | NP42: FALSE | NQ42: FALSE | NR42: FALSE | NS42: FALSE | NT42: FALSE | NU42: =NU32<=$E$42 -> FALSE | NV42: FALSE | NW42: FALSE | NX42: FALSE | NY42: FALSE | NZ42: FALSE | OA42: FALSE | OB42: FALSE | OC42: FALSE | OD42: FALSE | OE42: FALSE | OF42: FALSE | OG42: FALSE | OH42: FALSE | OI42: FALSE | OJ42: =OJ32<=$E$42 -> FALSE | OK42: FALSE | OL42: FALSE | OM42: FALSE | ON42: FALSE | OO42: FALSE | OP42: FALSE | OQ42: FALSE | OR42: FALSE | OS42: FALSE | OT42: FALSE | OU42: FALSE | OV42: FALSE | OW42: FALSE | OX42: FALSE | OY42: FALSE | OZ42: FALSE | PA42: FALSE | PB42: FALSE | PC42: FALSE | PD42: FALSE | PE42: FALSE | PF42: FALSE | PG42: FALSE | PH42: FALSE | PI42: FALSE | PJ42: FALSE | PK42: FALSE | PL42: FALSE | PM42: FALSE | PN42: FALSE | PO42: FALSE | PP42: FALSE | PQ42: FALSE | PR42: FALSE | PS42: FALSE | PT42: FALSE | PU42: FALSE | PV42: FALSE | PW42: FALSE | PX42: FALSE | PY42: FALSE | PZ42: FALSE | QA42: FALSE | QB42: FALSE | QC42: FALSE | QD42: FALSE | QE42: FALSE | QF42: FALSE | QG42: FALSE | QH42: FALSE | QI42: FALSE | QJ42: FALSE | QK42: FALSE | QL42: FALSE | QM42: FALSE | QN42: FALSE | QO42: FALSE | QP42: FALSE | QQ42: FALSE | QR42: FALSE | QS42: FALSE | QT42: FALSE | QU42: FALSE | QV42: =QV32<=$E$42 -> FALSE | QW42: FALSE | QX42: FALSE | QY42: FALSE | QZ42: FALSE | RA42: FALSE | RB42: FALSE | RC42: FALSE | RD42: FALSE | RE42: FALSE | RF42: FALSE | RG42: FALSE | RH42: FALSE | RI42: FALSE | RJ42: FALSE | RK42: FALSE | RL42: FALSE | RM42: FALSE | RN42: FALSE | RO42: FALSE | RP42: FALSE | RQ42: FALSE | RR42: FALSE | RS42: FALSE | RT42: FALSE | RU42: FALSE | RV42: FALSE | RW42: FALSE | RX42: FALSE | RY42: FALSE | RZ42: FALSE | SA42: FALSE | SB42: FALSE | SC42: FALSE | SD42: FALSE | SE42: FALSE | SF42: FALSE | SG42: FALSE
B43: Spend for Period During Debt Repayment | F43: =IF(AND(F42,F40),F39,0) -> 0 | G43: =IF(AND(G42,G40),G39,0) -> 0 | H43: 0 | I43: 0 | J43: 0 | K43: 0 | L43: 0 | M43: 0 | N43: 0 | O43: 0 | P43: 0 | Q43: 0 | R43: 0 | S43: 0 | T43: 0 | U43: 0 | V43: 0 | W43: 0 | X43: 0 | Y43: 0 | Z43: 0 | AA43: 0 | AB43: 10000 | AC43: 0 | AD43: 0 | AE43: 0 | AF43: 0 | AG43: 0 | AH43: 0 | AI43: 0 | AJ43: 3300 | AK43: 0 | AL43: 0 | AM43: 0 | AN43: 0 | AO43: 0 | AP43: 0 | AQ43: 0 | AR43: 0 | AS43: 0 | AT43: 0 | AU43: 0 | AV43: 0 | AW43: 0 | AX43: 0 | AY43: 5000 | AZ43: 0 | BA43: 0 | BB43: 0 | BC43: 0 | BD43: 0 | BE43: 0 | BF43: 0 | BG43: 0 | BH43: 0 | BI43: 7000 | BJ43: 0 | BK43: 0 | BL43: 0 | BM43: 0 | BN43: 0 | BO43: 0 | BP43: 0 | BQ43: 0 | BR43: 0 | BS43: =IF(AND(BS42,BS40),BS39,0) -> 0 | BT43: 0 | BU43: 0 | BV43: 0 | BW43: 0 | BX43: 9000 | BY43: 0 | BZ43: 0 | CA43: 0 | CB43: 0 | CC43: 0 | CD43: 0 | CE43: 0 | CF43: 0 | CG43: 0 | CH43: 0 | CI43: 0 | CJ43: 0 | CK43: 0 | CL43: 0 | CM43: 0 | CN43: 0 | CO43: 0 | CP43: 0 | CQ43: 0 | CR43: 0 | CS43: 0 | CT43: 0 | CU43: 0 | CV43: 0 | CW43: 0 | CX43: 0 | CY43: 0 | CZ43: 0 | DA43: 0 | DB43: 0 | DC43: 0 | DD43: 0 | DE43: 0 | DF43: 0 | DG43: 0 | DH43: 0 | DI43: 0 | DJ43: 0 | DK43: 0 | DL43: 0 | DM43: 0 | DN43: 0 | DO43: 0 | DP43: 0 | DQ43: 0 | DR43: 0 | DS43: 0 | DT43: 0 | DU43: 0 | DV43: 0 | DW43: 0 | DX43: 0 | DY43: 0 | DZ43: 0 | EA43: 0 | EB43: 0 | EC43: 0 | ED43: 0 | EE43: =IF(AND(EE42,EE40),EE39,0) -> 0 | EF43: 0 | EG43: 0 | EH43: 0 | EI43: 0 | EJ43: 0 | EK43: 0 | EL43: 0 | EM43: 0 | EN43: 0 | EO43: 0 | EP43: 0 | EQ43: 0 | ER43: 0 | ES43: 0 | ET43: 0 | EU43: 0 | EV43: 0 | EW43: 0 | EX43: 0 | EY43: 0 | EZ43: 0 | FA43: 0 | FB43: 0 | FC43: 0 | FD43: 0 | FE43: 0 | FF43: 0 | FG43: 0 | FH43: 0 | FI43: 0 | FJ43: 0 | FK43: 0 | FL43: 0 | FM43: 0 | FN43: 0 | FO43: 0 | FP43: 0 | FQ43: 0 | FR43: 0 | FS43: 0 | FT43: 0 | FU43: 0 | FV43: 0 | FW43: 0 | FX43: 0 | FY43: 0 | FZ43: 0 | GA43: 0 | GB43: 0 | GC43: 0 | GD43: 0 | GE43: 0 | GF43: 0 | GG43: 0 | GH43: 0 | GI43: 0 | GJ43: 0 | GK43: 0 | GL43: 0 | GM43: 0 | GN43: 0 | GO43: 0 | GP43: 0 | GQ43: =IF(AND(GQ42,GQ40),GQ39,0) -> 0 | GR43: 0 | GS43: 0 | GT43: 0 | GU43: 0 | GV43: 0 | GW43: 0 | GX43: 0 | GY43: 0 | GZ43: 0 | HA43: 0 | HB43: 0 | HC43: 0 | HD43: 0 | HE43: 0 | HF43: 0 | HG43: 0 | HH43: 0 | HI43: 0 | HJ43: 0 | HK43: 0 | HL43: 0 | HM43: 0 | HN43: 0 | HO43: 0 | HP43: 0 | HQ43: 0 | HR43: 0 | HS43: 0 | HT43: 0 | HU43: 0 | HV43: 0 | HW43: 0 | HX43: 0 | HY43: 0 | HZ43: 0 | IA43: 0 | IB43: 0 | IC43: 0 | ID43: 0 | IE43: 0 | IF43: 0 | IG43: 0 | IH43: 0 | II43: 0 | IJ43: 0 | IK43: 0 | IL43: 0 | IM43: 0 | IN43: 0 | IO43: 0 | IP43: 0 | IQ43: 0 | IR43: 0 | IS43: 0 | IT43: 0 | IU43: 0 | IV43: 0 | IW43: =IF(AND(IW42,IW40),IW39,0) -> 0 | IX43: =IF(AND(IX42,IX40),IX39,0) -> 0 | IY43: =IF(AND(IY42,IY40),IY39,0) -> 0 | IZ43: =IF(AND(IZ42,IZ40),IZ39,0) -> 0 | JA43: =IF(AND(JA42,JA40),JA39,0) -> 0 | JB43: =IF(AND(JB42,JB40),JB39,0) -> 0 | JC43: =IF(AND(JC42,JC40),JC39,0) -> 0 | JD43: =IF(AND(JD42,JD40),JD39,0) -> 0 | JE43: =IF(AND(JE42,JE40),JE39,0) -> 0 | JF43: =IF(AND(JF42,JF40),JF39,0) -> 0 | JG43: =IF(AND(JG42,JG40),JG39,0) -> 0 | JH43: =IF(AND(JH42,JH40),JH39,0) -> 0 | JI43: =IF(AND(JI42,JI40),JI39,0) -> 0 | JJ43: =IF(AND(JJ42,JJ40),JJ39,0) -> 0 | JK43: =IF(AND(JK42,JK40),JK39,0) -> 0 | JL43: =IF(AND(JL42,JL40),JL39,0) -> 0 | JM43: =IF(AND(JM42,JM40),JM39,0) -> 0 | JN43: =IF(AND(JN42,JN40),JN39,0) -> 0 | JO43: =IF(AND(JO42,JO40),JO39,0) -> 0 | JP43: =IF(AND(JP42,JP40),JP39,0) -> 0 | JQ43: =IF(AND(JQ42,JQ40),JQ39,0) -> 0 | JR43: =IF(AND(JR42,JR40),JR39,0) -> 0 | JS43: =IF(AND(JS42,JS40),JS39,0) -> 0 | JT43: =IF(AND(JT42,JT40),JT39,0) -> 0 | JU43: =IF(AND(JU42,JU40),JU39,0) -> 0 | JV43: =IF(AND(JV42,JV40),JV39,0) -> 0 | JW43: =IF(AND(JW42,JW40),JW39,0) -> 0 | JX43: =IF(AND(JX42,JX40),JX39,0) -> 0 | JY43: =IF(AND(JY42,JY40),JY39,0) -> 0 | JZ43: =IF(AND(JZ42,JZ40),JZ39,0) -> 0 | KA43: =IF(AND(KA42,KA40),KA39,0) -> 0 | KB43: =IF(AND(KB42,KB40),KB39,0) -> 0 | KC43: =IF(AND(KC42,KC40),KC39,0) -> 0 | KD43: =IF(AND(KD42,KD40),KD39,0) -> 0 | KE43: =IF(AND(KE42,KE40),KE39,0) -> 0 | KF43: =IF(AND(KF42,KF40),KF39,0) -> 0 | KG43: =IF(AND(KG42,KG40),KG39,0) -> 0 | KH43: =IF(AND(KH42,KH40),KH39,0) -> 0 | KI43: =IF(AND(KI42,KI40),KI39,0) -> 0 | KJ43: =IF(AND(KJ42,KJ40),KJ39,0) -> 0 | KK43: =IF(AND(KK42,KK40),KK39,0) -> 0 | KL43: =IF(AND(KL42,KL40),KL39,0) -> 0 | KM43: =IF(AND(KM42,KM40),KM39,0) -> 0 | KN43: =IF(AND(KN42,KN40),KN39,0) -> 0 | KO43: =IF(AND(KO42,KO40),KO39,0) -> 0 | KP43: =IF(AND(KP42,KP40),KP39,0) -> 0 | KQ43: =IF(AND(KQ42,KQ40),KQ39,0) -> 0 | KR43: =IF(AND(KR42,KR40),KR39,0) -> 0 | KS43: =IF(AND(KS42,KS40),KS39,0) -> 0 | KT43: =IF(AND(KT42,KT40),KT39,0) -> 0 | KU43: =IF(AND(KU42,KU40),KU39,0) -> 0 | KV43: =IF(AND(KV42,KV40),KV39,0) -> 0 | KW43: =IF(AND(KW42,KW40),KW39,0) -> 0 | KX43: =IF(AND(KX42,KX40),KX39,0) -> 0 | KY43: =IF(AND(KY42,KY40),KY39,0) -> 0 | KZ43: =IF(AND(KZ42,KZ40),KZ39,0) -> 0 | LA43: =IF(AND(LA42,LA40),LA39,0) -> 0 | LB43: =IF(AND(LB42,LB40),LB39,0) -> 0 | LC43: =IF(AND(LC42,LC40),LC39,0) -> 0 | LD43: =IF(AND(LD42,LD40),LD39,0) -> 0 | LE43: =IF(AND(LE42,LE40),LE39,0) -> 0 | LF43: =IF(AND(LF42,LF40),LF39,0) -> 0 | LG43: =IF(AND(LG42,LG40),LG39,0) -> 0 | LH43: =IF(AND(LH42,LH40),LH39,0) -> 0 | LI43: =IF(AND(LI42,LI40),LI39,0) -> 0 | LJ43: =IF(AND(LJ42,LJ40),LJ39,0) -> 0 | LK43: =IF(AND(LK42,LK40),LK39,0) -> 0 | LL43: =IF(AND(LL42,LL40),LL39,0) -> 0 | LM43: =IF(AND(LM42,LM40),LM39,0) -> 0 | LN43: =IF(AND(LN42,LN40),LN39,0) -> 0 | LO43: =IF(AND(LO42,LO40),LO39,0) -> 0 | LP43: =IF(AND(LP42,LP40),LP39,0) -> 0 | LQ43: =IF(AND(LQ42,LQ40),LQ39,0) -> 0 | LR43: =IF(AND(LR42,LR40),LR39,0) -> 0 | LS43: =IF(AND(LS42,LS40),LS39,0) -> 0 | LT43: =IF(AND(LT42,LT40),LT39,0) -> 0 | LU43: =IF(AND(LU42,LU40),LU39,0) -> 0 | LV43: =IF(AND(LV42,LV40),LV39,0) -> 0 | LW43: =IF(AND(LW42,LW40),LW39,0) -> 0 | LX43: =IF(AND(LX42,LX40),LX39,0) -> 0 | LY43: =IF(AND(LY42,LY40),LY39,0) -> 0 | LZ43: =IF(AND(LZ42,LZ40),LZ39,0) -> 0 | MA43: =IF(AND(MA42,MA40),MA39,0) -> 0 | MB43: =IF(AND(MB42,MB40),MB39,0) -> 0 | MC43: =IF(AND(MC42,MC40),MC39,0) -> 0 | MD43: =IF(AND(MD42,MD40),MD39,0) -> 0 | ME43: =IF(AND(ME42,ME40),ME39,0) -> 0 | MF43: =IF(AND(MF42,MF40),MF39,0) -> 0 | MG43: =IF(AND(MG42,MG40),MG39,0) -> 0 | MH43: =IF(AND(MH42,MH40),MH39,0) -> 0 | MI43: =IF(AND(MI42,MI40),MI39,0) -> 0 | MJ43: =IF(AND(MJ42,MJ40),MJ39,0) -> 0 | MK43: =IF(AND(MK42,MK40),MK39,0) -> 0 | ML43: =IF(AND(ML42,ML40),ML39,0) -> 0 | MM43: =IF(AND(MM42,MM40),MM39,0) -> 0 | MN43: =IF(AND(MN42,MN40),MN39,0) -> 0 | MO43: =IF(AND(MO42,MO40),MO39,0) -> 0 | MP43: =IF(AND(MP42,MP40),MP39,0) -> 0 | MQ43: =IF(AND(MQ42,MQ40),MQ39,0) -> 0 | MR43: =IF(AND(MR42,MR40),MR39,0) -> 0 | MS43: =IF(AND(MS42,MS40),MS39,0) -> 0 | MT43: =IF(AND(MT42,MT40),MT39,0) -> 0 | MU43: =IF(AND(MU42,MU40),MU39,0) -> 0 | MV43: =IF(AND(MV42,MV40),MV39,0) -> 0 | MW43: =IF(AND(MW42,MW40),MW39,0) -> 0 | MX43: =IF(AND(MX42,MX40),MX39,0) -> 0 | MY43: =IF(AND(MY42,MY40),MY39,0) -> 0 | MZ43: =IF(AND(MZ42,MZ40),MZ39,0) -> 0 | NA43: =IF(AND(NA42,NA40),NA39,0) -> 0 | NB43: =IF(AND(NB42,NB40),NB39,0) -> 0 | NC43: =IF(AND(NC42,NC40),NC39,0) -> 0 | ND43: =IF(AND(ND42,ND40),ND39,0) -> 0 | NE43: =IF(AND(NE42,NE40),NE39,0) -> 0 | NF43: =IF(AND(NF42,NF40),NF39,0) -> 0 | NG43: =IF(AND(NG42,NG40),NG39,0) -> 0 | NH43: =IF(AND(NH42,NH40),NH39,0) -> 0 | NI43: =IF(AND(NI42,NI40),NI39,0) -> 0 | NJ43: =IF(AND(NJ42,NJ40),NJ39,0) -> 0 | NK43: =IF(AND(NK42,NK40),NK39,0) -> 0 | NL43: =IF(AND(NL42,NL40),NL39,0) -> 0 | NM43: =IF(AND(NM42,NM40),NM39,0) -> 0 | NN43: =IF(AND(NN42,NN40),NN39,0) -> 0 | NO43: =IF(AND(NO42,NO40),NO39,0) -> 0 | NP43: =IF(AND(NP42,NP40),NP39,0) -> 0 | NQ43: =IF(AND(NQ42,NQ40),NQ39,0) -> 0 | NR43: =IF(AND(NR42,NR40),NR39,0) -> 0 | NS43: =IF(AND(NS42,NS40),NS39,0) -> 0 | NT43: =IF(AND(NT42,NT40),NT39,0) -> 0 | NU43: =IF(AND(NU42,NU40),NU39,0) -> 0 | NV43: =IF(AND(NV42,NV40),NV39,0) -> 0 | NW43: =IF(AND(NW42,NW40),NW39,0) -> 0 | NX43: =IF(AND(NX42,NX40),NX39,0) -> 0 | NY43: =IF(AND(NY42,NY40),NY39,0) -> 0 | NZ43: =IF(AND(NZ42,NZ40),NZ39,0) -> 0 | OA43: =IF(AND(OA42,OA40),OA39,0) -> 0 | OB43: =IF(AND(OB42,OB40),OB39,0) -> 0 | OC43: =IF(AND(OC42,OC40),OC39,0) -> 0 | OD43: =IF(AND(OD42,OD40),OD39,0) -> 0 | OE43: =IF(AND(OE42,OE40),OE39,0) -> 0 | OF43: =IF(AND(OF42,OF40),OF39,0) -> 0 | OG43: =IF(AND(OG42,OG40),OG39,0) -> 0 | OH43: =IF(AND(OH42,OH40),OH39,0) -> 0 | OI43: =IF(AND(OI42,OI40),OI39,0) -> 0 | OJ43: =IF(AND(OJ42,OJ40),OJ39,0) -> 0 | OK43: 0 | OL43: 0 | OM43: 0 | ON43: 0 | OO43: 0 | OP43: 0 | OQ43: 0 | OR43: 0 | OS43: 0 | OT43: 0 | OU43: 0 | OV43: 0 | OW43: 0 | OX43: 0 | OY43: 0 | OZ43: 0 | PA43: 0 | PB43: 0 | PC43: 0 | PD43: 0 | PE43: 0 | PF43: 0 | PG43: 0 | PH43: 0 | PI43: 0 | PJ43: 0 | PK43: 0 | PL43: 0 | PM43: 0 | PN43: 0 | PO43: 0 | PP43: 0 | PQ43: 0 | PR43: 0 | PS43: 0 | PT43: 0 | PU43: 0 | PV43: 0 | PW43: 0 | PX43: 0 | PY43: 0 | PZ43: 0 | QA43: 0 | QB43: 0 | QC43: 0 | QD43: 0 | QE43: 0 | QF43: 0 | QG43: 0 | QH43: 0 | QI43: 0 | QJ43: 0 | QK43: 0 | QL43: 0 | QM43: 0 | QN43: 0 | QO43: 0 | QP43: 0 | QQ43: 0 | QR43: 0 | QS43: 0 | QT43: 0 | QU43: 0 | QV43: =IF(AND(QV42,QV40),QV39,0) -> 0 | QW43: 0 | QX43: 0 | QY43: 0 | QZ43: 0 | RA43: 0 | RB43: 0 | RC43: 0 | RD43: 0 | RE43: 0 | RF43: 0 | RG43: 0 | RH43: 0 | RI43: 0 | RJ43: 0 | RK43: 0 | RL43: 0 | RM43: 0 | RN43: 0 | RO43: 0 | RP43: 0 | RQ43: 0 | RR43: 0 | RS43: 0 | RT43: 0 | RU43: 0 | RV43: 0 | RW43: 0 | RX43: 0 | RY43: 0 | RZ43: 0 | SA43: 0 | SB43: 0 | SC43: 0 | SD43: 0 | SE43: 0 | SF43: 0 | SG43: 0
B45: Approximate Match of Date | F45: =MATCH(F31,$E$19:$E$25) -> 1 | G45: =MATCH(G31,$E$19:$E$25) -> 1 | H45: 1 | I45: 1 | J45: 1 | K45: 1 | L45: 1 | M45: 1 | N45: 1 | O45: 1 | P45: 2 | Q45: 2 | R45: 2 | S45: 2 | T45: 2 | U45: 2 | V45: 2 | W45: 2 | X45: 2 | Y45: 2 | Z45: 2 | AA45: 2 | AB45: 3 | AC45: 3 | AD45: 3 | AE45: 3 | AF45: 3 | AG45: 3 | AH45: 3 | AI45: 3 | AJ45: 4 | AK45: 4 | AL45: 4 | AM45: 4 | AN45: 4 | AO45: 4 | AP45: 4 | AQ45: 4 | AR45: 4 | AS45: 4 | AT45: 4 | AU45: 4 | AV45: 4 | AW45: 4 | AX45: 4 | AY45: 5 | AZ45: 5 | BA45: 5 | BB45: 5 | BC45: 5 | BD45: 5 | BE45: 5 | BF45: 5 | BG45: 5 | BH45: 5 | BI45: 6 | BJ45: 6 | BK45: 6 | BL45: 6 | BM45: 6 | BN45: 6 | BO45: 6 | BP45: 6 | BQ45: 6 | BR45: 6 | BS45: =MATCH(BS31,$E$19:$E$25) -> 6 | BT45: 6 | BU45: 6 | BV45: 6 | BW45: 6 | BX45: 7 | BY45: 7 | BZ45: 7 | CA45: 7 | CB45: 7 | CC45: 7 | CD45: 7 | CE45: 7 | CF45: 7 | CG45: 7 | CH45: 7 | CI45: 7 | CJ45: 7 | CK45: 7 | CL45: 7 | CM45: 7 | CN45: 7 | CO45: 7 | CP45: 7 | CQ45: 7 | CR45: 7 | CS45: 7 | CT45: 7 | CU45: 7 | CV45: 7 | CW45: 7 | CX45: 7 | CY45: 7 | CZ45: 7 | DA45: 7 | DB45: 7 | DC45: 7 | DD45: 7 | DE45: 7 | DF45: 7 | DG45: 7 | DH45: 7 | DI45: 7 | DJ45: 7 | DK45: 7 | DL45: 7 | DM45: 7 | DN45: 7 | DO45: 7 | DP45: 7 | DQ45: 7 | DR45: 7 | DS45: 7 | DT45: 7 | DU45: 7 | DV45: 7 | DW45: 7 | DX45: 7 | DY45: 7 | DZ45: 7 | EA45: 7 | EB45: 7 | EC45: 7 | ED45: 7 | EE45: =MATCH(EE31,$E$19:$E$25) -> 7 | EF45: 7 | EG45: 7 | EH45: 7 | EI45: 7 | EJ45: 7 | EK45: 7 | EL45: 7 | EM45: 7 | EN45: 7 | EO45: 7 | EP45: 7 | EQ45: 7 | ER45: 7 | ES45: 7 | ET45: 7 | EU45: 7 | EV45: 7 | EW45: 7 | EX45: 7 | EY45: 7 | EZ45: 7 | FA45: 7 | FB45: 7 | FC45: 7 | FD45: 7 | FE45: 7 | FF45: 7 | FG45: 7 | FH45: 7 | FI45: 7 | FJ45: 7 | FK45: 7 | FL45: 7 | FM45: 7 | FN45: 7 | FO45: 7 | FP45: 7 | FQ45: 7 | FR45: 7 | FS45: 7 | FT45: 7 | FU45: 7 | FV45: 7 | FW45: 7 | FX45: 7 | FY45: 7 | FZ45: 7 | GA45: 7 | GB45: 7 | GC45: 7 | GD45: 7 | GE45: 7 | GF45: 7 | GG45: 7 | GH45: 7 | GI45: 7 | GJ45: 7 | GK45: 7 | GL45: 7 | GM45: 7 | GN45: 7 | GO45: 7 | GP45: 7 | GQ45: =MATCH(GQ31,$E$19:$E$25) -> 7 | GR45: 7 | GS45: 7 | GT45: 7 | GU45: 7 | GV45: 7 | GW45: 7 | GX45: 7 | GY45: 7 | GZ45: 7 | HA45: 7 | HB45: 7 | HC45: 7 | HD45: 7 | HE45: 7 | HF45: 7 | HG45: 7 | HH45: 7 | HI45: 7 | HJ45: 7 | HK45: 7 | HL45: 7 | HM45: 7 | HN45: 7 | HO45: 7 | HP45: 7 | HQ45: 7 | HR45: 7 | HS45: 7 | HT45: 7 | HU45: 7 | HV45: 7 | HW45: 7 | HX45: 7 | HY45: 7 | HZ45: 7 | IA45: 7 | IB45: 7 | IC45: 7 | ID45: 7 | IE45: 7 | IF45: 7 | IG45: 7 | IH45: 7 | II45: 7 | IJ45: 7 | IK45: 7 | IL45: 7 | IM45: 7 | IN45: 7 | IO45: 7 | IP45: 7 | IQ45: 7 | IR45: 7 | IS45: 7 | IT45: 7 | IU45: 7 | IV45: 7 | IW45: 7 | IX45: 7 | IY45: 7 | IZ45: 7 | JA45: 7 | JB45: 7 | JC45: =MATCH(JC31,$E$19:$E$25) -> 7 | JD45: 7 | JE45: 7 | JF45: 7 | JG45: 7 | JH45: 7 | JI45: 7 | JJ45: 7 | JK45: 7 | JL45: 7 | JM45: 7 | JN45: 7 | JO45: 7 | JP45: 7 | JQ45: 7 | JR45: 7 | JS45: 7 | JT45: 7 | JU45: 7 | JV45: 7 | JW45: 7 | JX45: 7 | JY45: 7 | JZ45: 7 | KA45: 7 | KB45: 7 | KC45: 7 | KD45: 7 | KE45: 7 | KF45: 7 | KG45: 7 | KH45: 7 | KI45: 7 | KJ45: 7 | KK45: 7 | KL45: 7 | KM45: 7 | KN45: 7 | KO45: 7 | KP45: 7 | KQ45: 7 | KR45: 7 | KS45: 7 | KT45: 7 | KU45: 7 | KV45: 7 | KW45: 7 | KX45: 7 | KY45: 7 | KZ45: 7 | LA45: 7 | LB45: 7 | LC45: 7 | LD45: 7 | LE45: 7 | LF45: 7 | LG45: 7 | LH45: 7 | LI45: 7 | LJ45: 7 | LK45: 7 | LL45: 7 | LM45: 7 | LN45: 7 | LO45: =MATCH(LO31,$E$19:$E$25) -> 7 | LP45: 7 | LQ45: 7 | LR45: 7 | LS45: 7 | LT45: 7 | LU45: 7 | LV45: 7 | LW45: 7 | LX45: 7 | LY45: 7 | LZ45: 7 | MA45: 7 | MB45: 7 | MC45: 7 | MD45: 7 | ME45: 7 | MF45: 7 | MG45: 7 | MH45: 7 | MI45: 7 | MJ45: 7 | MK45: 7 | ML45: 7 | MM45: 7 | MN45: 7 | MO45: 7 | MP45: 7 | MQ45: 7 | MR45: 7 | MS45: 7 | MT45: 7 | MU45: 7 | MV45: 7 | MW45: 7 | MX45: 7 | MY45: 7 | MZ45: 7 | NA45: 7 | NB45: 7 | NC45: 7 | ND45: 7 | NE45: 7 | NF45: 7 | NG45: 7 | NH45: 7 | NI45: 7 | NJ45: 7 | NK45: 7 | NL45: 7 | NM45: 7 | NN45: 7 | NO45: 7 | NP45: 7 | NQ45: 7 | NR45: 7 | NS45: 7 | NT45: 7 | NU45: 7 | NV45: 7 | NW45: 7 | NX45: 7 | NY45: 7 | NZ45: 7 | OA45: =MATCH(OA31,$E$19:$E$25) -> 7 | OB45: 7 | OC45: 7 | OD45: 7 | OE45: 7 | OF45: 7 | OG45: 7 | OH45: 7 | OI45: 7 | OJ45: =MATCH(OJ31,$E$19:$E$25) -> 7 | OK45: 7 | OL45: 7 | OM45: 7 | ON45: 7 | OO45: 7 | OP45: 7 | OQ45: 7 | OR45: 7 | OS45: 7 | OT45: 7 | OU45: 7 | OV45: 7 | OW45: 7 | OX45: 7 | OY45: 7 | OZ45: 7 | PA45: 7 | PB45: 7 | PC45: 7 | PD45: 7 | PE45: 7 | PF45: 7 | PG45: 7 | PH45: 7 | PI45: 7 | PJ45: 7 | PK45: 7 | PL45: 7 | PM45: 7 | PN45: 7 | PO45: 7 | PP45: 7 | PQ45: 7 | PR45: 7 | PS45: 7 | PT45: 7 | PU45: 7 | PV45: 7 | PW45: 7 | PX45: 7 | PY45: 7 | PZ45: 7 | QA45: 7 | QB45: 7 | QC45: 7 | QD45: 7 | QE45: 7 | QF45: 7 | QG45: 7 | QH45: 7 | QI45: 7 | QJ45: 7 | QK45: 7 | QL45: 7 | QM45: 7 | QN45: 7 | QO45: 7 | QP45: 7 | QQ45: 7 | QR45: 7 | QS45: 7 | QT45: 7 | QU45: 7 | QV45: =MATCH(QV31,$E$19:$E$25) -> 7 | QW45: 7 | QX45: 7 | QY45: 7 | QZ45: 7 | RA45: 7 | RB45: 7 | RC45: 7 | RD45: 7 | RE45: 7 | RF45: 7 | RG45: 7 | RH45: 7 | RI45: 7 | RJ45: 7 | RK45: 7 | RL45: 7 | RM45: 7 | RN45: 7 | RO45: 7 | RP45: 7 | RQ45: 7 | RR45: 7 | RS45: 7 | RT45: 7 | RU45: 7 | RV45: 7 | RW45: 7 | RX45: 7 | RY45: 7 | RZ45: 7 | SA45: 7 | SB45: 7 | SC45: 7 | SD45: 7 | SE45: 7 | SF45: 7 | SG45: 7
B46: Index - Periods between Sepnd | F46: =IFERROR(INDEX($G$20:$G$25,F45),0) -> 10 | G46: =IFERROR(INDEX($G$20:$G$25,G45),0) -> 10 | H46: 10 | I46: 10 | J46: 10 | K46: 10 | L46: 10 | M46: 10 | N46: 10 | O46: 10 | P46: 12 | Q46: 12 | R46: 12 | S46: 12 | T46: 12 | U46: 12 | V46: 12 | W46: 12 | X46: 12 | Y46: 12 | Z46: 12 | AA46: 12 | AB46: 8 | AC46: 8 | AD46: 8 | AE46: 8 | AF46: 8 | AG46: 8 | AH46: 8 | AI46: 8 | AJ46: 15 | AK46: 15 | AL46: 15 | AM46: 15 | AN46: 15 | AO46: 15 | AP46: 15 | AQ46: 15 | AR46: 15 | AS46: 15 | AT46: 15 | AU46: 15 | AV46: 15 | AW46: 15 | AX46: 15 | AY46: 10 | AZ46: 10 | BA46: 10 | BB46: 10 | BC46: 10 | BD46: 10 | BE46: 10 | BF46: 10 | BG46: 10 | BH46: 10 | BI46: 15 | BJ46: 15 | BK46: 15 | BL46: 15 | BM46: 15 | BN46: 15 | BO46: 15 | BP46: 15 | BQ46: 15 | BR46: 15 | BS46: =IFERROR(INDEX($G$20:$G$25,BS45),0) -> 15 | BT46: 15 | BU46: 15 | BV46: 15 | BW46: 15 | BX46: 0 | BY46: 0 | BZ46: 0 | CA46: 0 | CB46: 0 | CC46: 0 | CD46: 0 | CE46: 0 | CF46: 0 | CG46: 0 | CH46: 0 | CI46: 0 | CJ46: 0 | CK46: 0 | CL46: 0 | CM46: 0 | CN46: 0 | CO46: 0 | CP46: 0 | CQ46: 0 | CR46: 0 | CS46: 0 | CT46: 0 | CU46: 0 | CV46: 0 | CW46: 0 | CX46: 0 | CY46: 0 | CZ46: 0 | DA46: 0 | DB46: 0 | DC46: 0 | DD46: 0 | DE46: 0 | DF46: 0 | DG46: 0 | DH46: 0 | DI46: 0 | DJ46: 0 | DK46: 0 | DL46: 0 | DM46: 0 | DN46: 0 | DO46: 0 | DP46: 0 | DQ46: 0 | DR46: 0 | DS46: 0 | DT46: 0 | DU46: 0 | DV46: 0 | DW46: 0 | DX46: 0 | DY46: 0 | DZ46: 0 | EA46: 0 | EB46: 0 | EC46: 0 | ED46: 0 | EE46: =IFERROR(INDEX($G$20:$G$25,EE45),0) -> 0 | EF46: 0 | EG46: 0 | EH46: 0 | EI46: 0 | EJ46: 0 | EK46: 0 | EL46: 0 | EM46: 0 | EN46: 0 | EO46: 0 | EP46: 0 | EQ46: 0 | ER46: 0 | ES46: 0 | ET46: 0 | EU46: 0 | EV46: 0 | EW46: 0 | EX46: 0 | EY46: 0 | EZ46: 0 | FA46: 0 | FB46: 0 | FC46: 0 | FD46: 0 | FE46: 0 | FF46: 0 | FG46: 0 | FH46: 0 | FI46: 0 | FJ46: 0 | FK46: 0 | FL46: 0 | FM46: 0 | FN46: 0 | FO46: 0 | FP46: 0 | FQ46: 0 | FR46: 0 | FS46: 0 | FT46: 0 | FU46: 0 | FV46: 0 | FW46: 0 | FX46: 0 | FY46: 0 | FZ46: 0 | GA46: 0 | GB46: 0 | GC46: 0 | GD46: 0 | GE46: 0 | GF46: 0 | GG46: 0 | GH46: 0 | GI46: 0 | GJ46: 0 | GK46: 0 | GL46: 0 | GM46: 0 | GN46: 0 | GO46: 0 | GP46: 0 | GQ46: =IFERROR(INDEX($G$20:$G$25,GQ45),0) -> 0 | GR46: 0 | GS46: 0 | GT46: 0 | GU46: 0 | GV46: 0 | GW46: 0 | GX46: 0 | GY46: 0 | GZ46: 0 | HA46: 0 | HB46: 0 | HC46: 0 | HD46: 0 | HE46: 0 | HF46: 0 | HG46: 0 | HH46: 0 | HI46: 0 | HJ46: 0 | HK46: 0 | HL46: 0 | HM46: 0 | HN46: 0 | HO46: 0 | HP46: 0 | HQ46: 0 | HR46: 0 | HS46: 0 | HT46: 0 | HU46: 0 | HV46: 0 | HW46: 0 | HX46: 0 | HY46: 0 | HZ46: 0 | IA46: 0 | IB46: 0 | IC46: 0 | ID46: 0 | IE46: 0 | IF46: 0 | IG46: 0 | IH46: 0 | II46: 0 | IJ46: 0 | IK46: 0 | IL46: 0 | IM46: 0 | IN46: 0 | IO46: 0 | IP46: 0 | IQ46: 0 | IR46: 0 | IS46: 0 | IT46: 0 | IU46: 0 | IV46: 0 | IW46: 0 | IX46: 0 | IY46: 0 | IZ46: 0 | JA46: 0 | JB46: 0 | JC46: =IFERROR(INDEX($G$20:$G$25,JC45),0) -> 0 | JD46: 0 | JE46: 0 | JF46: 0 | JG46: 0 | JH46: 0 | JI46: 0 | JJ46: 0 | JK46: 0 | JL46: 0 | JM46: 0 | JN46: 0 | JO46: 0 | JP46: 0 | JQ46: 0 | JR46: 0 | JS46: 0 | JT46: 0 | JU46: 0 | JV46: 0 | JW46: 0 | JX46: 0 | JY46: 0 | JZ46: 0 | KA46: 0 | KB46: 0 | KC46: 0 | KD46: 0 | KE46: 0 | KF46: 0 | KG46: 0 | KH46: 0 | KI46: 0 | KJ46: 0 | KK46: 0 | KL46: 0 | KM46: 0 | KN46: 0 | KO46: 0 | KP46: 0 | KQ46: 0 | KR46: 0 | KS46: 0 | KT46: 0 | KU46: 0 | KV46: 0 | KW46: 0 | KX46: 0 | KY46: 0 | KZ46: 0 | LA46: 0 | LB46: 0 | LC46: 0 | LD46: 0 | LE46: 0 | LF46: 0 | LG46: 0 | LH46: 0 | LI46: 0 | LJ46: 0 | LK46: 0 | LL46: 0 | LM46: 0 | LN46: 0 | LO46: =IFERROR(INDEX($G$20:$G$25,LO45),0) -> 0 | LP46: 0 | LQ46: 0 | LR46: 0 | LS46: 0 | LT46: 0 | LU46: 0 | LV46: 0 | LW46: 0 | LX46: 0 | LY46: 0 | LZ46: 0 | MA46: 0 | MB46: 0 | MC46: 0 | MD46: 0 | ME46: 0 | MF46: 0 | MG46: 0 | MH46: 0 | MI46: 0 | MJ46: 0 | MK46: 0 | ML46: 0 | MM46: 0 | MN46: 0 | MO46: 0 | MP46: 0 | MQ46: 0 | MR46: 0 | MS46: 0 | MT46: 0 | MU46: 0 | MV46: 0 | MW46: 0 | MX46: 0 | MY46: 0 | MZ46: 0 | NA46: 0 | NB46: 0 | NC46: 0 | ND46: 0 | NE46: 0 | NF46: 0 | NG46: 0 | NH46: 0 | NI46: 0 | NJ46: 0 | NK46: 0 | NL46: 0 | NM46: 0 | NN46: 0 | NO46: 0 | NP46: 0 | NQ46: 0 | NR46: 0 | NS46: 0 | NT46: 0 | NU46: 0 | NV46: 0 | NW46: 0 | NX46: 0 | NY46: 0 | NZ46: 0 | OA46: =IFERROR(INDEX($G$20:$G$25,OA45),0) -> 0 | OB46: 0 | OC46: 0 | OD46: 0 | OE46: 0 | OF46: 0 | OG46: 0 | OH46: 0 | OI46: 0 | OJ46: =IFERROR(INDEX($G$20:$G$25,OJ45),0) -> 0 | OK46: 0 | OL46: 0 | OM46: 0 | ON46: 0 | OO46: 0 | OP46: 0 | OQ46: 0 | OR46: 0 | OS46: 0 | OT46: 0 | OU46: 0 | OV46: 0 | OW46: 0 | OX46: 0 | OY46: 0 | OZ46: 0 | PA46: 0 | PB46: 0 | PC46: 0 | PD46: 0 | PE46: 0 | PF46: 0 | PG46: 0 | PH46: 0 | PI46: 0 | PJ46: 0 | PK46: 0 | PL46: 0 | PM46: 0 | PN46: 0 | PO46: 0 | PP46: 0 | PQ46: 0 | PR46: 0 | PS46: 0 | PT46: 0 | PU46: 0 | PV46: 0 | PW46: 0 | PX46: 0 | PY46: 0 | PZ46: 0 | QA46: 0 | QB46: 0 | QC46: 0 | QD46: 0 | QE46: 0 | QF46: 0 | QG46: 0 | QH46: 0 | QI46: 0 | QJ46: 0 | QK46: 0 | QL46: 0 | QM46: 0 | QN46: 0 | QO46: 0 | QP46: 0 | QQ46: 0 | QR46: 0 | QS46: 0 | QT46: 0 | QU46: 0 | QV46: =IFERROR(INDEX($G$20:$G$25,QV45),0) -> 0 | QW46: 0 | QX46: 0 | QY46: 0 | QZ46: 0 | RA46: 0 | RB46: 0 | RC46: 0 | RD46: 0 | RE46: 0 | RF46: 0 | RG46: 0 | RH46: 0 | RI46: 0 | RJ46: 0 | RK46: 0 | RL46: 0 | RM46: 0 | RN46: 0 | RO46: 0 | RP46: 0 | RQ46: 0 | RR46: 0 | RS46: 0 | RT46: 0 | RU46: 0 | RV46: 0 | RW46: 0 | RX46: 0 | RY46: 0 | RZ46: 0 | SA46: 0 | SB46: 0 | SC46: 0 | SD46: 0 | SE46: 0 | SF46: 0 | SG46: 0
B47: Prospective MRA Requirements (Match and Index) | F47: =IFERROR(INDEX($H$20:$H$25,F45),0) -> 0 | G47: =IFERROR(INDEX($H$20:$H$25,G45),0) -> 0 | H47: 0 | I47: 0 | J47: 0 | K47: 0 | L47: 0 | M47: 0 | N47: 0 | O47: 0 | P47: 10000 | Q47: 10000 | R47: 10000 | S47: 10000 | T47: 10000 | U47: 10000 | V47: 10000 | W47: 10000 | X47: 10000 | Y47: 10000 | Z47: 10000 | AA47: 10000 | AB47: 3300 | AC47: 3300 | AD47: 3300 | AE47: 3300 | AF47: 3300 | AG47: 3300 | AH47: 3300 | AI47: 3300 | AJ47: 5000 | AK47: 5000 | AL47: 5000 | AM47: 5000 | AN47: 5000 | AO47: 5000 | AP47: 5000 | AQ47: 5000 | AR47: 5000 | AS47: 5000 | AT47: 5000 | AU47: 5000 | AV47: 5000 | AW47: 5000 | AX47: 5000 | AY47: 7000 | AZ47: 7000 | BA47: 7000 | BB47: 7000 | BC47: 7000 | BD47: 7000 | BE47: 7000 | BF47: 7000 | BG47: 7000 | BH47: 7000 | BI47: 9000 | BJ47: 9000 | BK47: 9000 | BL47: 9000 | BM47: 9000 | BN47: 9000 | BO47: 9000 | BP47: 9000 | BQ47: 9000 | BR47: 9000 | BS47: =IFERROR(INDEX($H$20:$H$25,BS45),0) -> 9000 | BT47: 9000 | BU47: 9000 | BV47: 9000 | BW47: 9000 | BX47: 0 | BY47: 0 | BZ47: 0 | CA47: 0 | CB47: 0 | CC47: 0 | CD47: 0 | CE47: 0 | CF47: 0 | CG47: 0 | CH47: 0 | CI47: 0 | CJ47: 0 | CK47: 0 | CL47: 0 | CM47: 0 | CN47: 0 | CO47: 0 | CP47: 0 | CQ47: 0 | CR47: 0 | CS47: 0 | CT47: 0 | CU47: 0 | CV47: 0 | CW47: 0 | CX47: 0 | CY47: 0 | CZ47: 0 | DA47: 0 | DB47: 0 | DC47: 0 | DD47: 0 | DE47: 0 | DF47: 0 | DG47: 0 | DH47: 0 | DI47: 0 | DJ47: 0 | DK47: 0 | DL47: 0 | DM47: 0 | DN47: 0 | DO47: 0 | DP47: 0 | DQ47: 0 | DR47: 0 | DS47: 0 | DT47: 0 | DU47: 0 | DV47: 0 | DW47: 0 | DX47: 0 | DY47: 0 | DZ47: 0 | EA47: 0 | EB47: 0 | EC47: 0 | ED47: 0 | EE47: =IFERROR(INDEX($H$20:$H$25,EE45),0) -> 0 | EF47: 0 | EG47: 0 | EH47: 0 | EI47: 0 | EJ47: 0 | EK47: 0 | EL47: 0 | EM47: 0 | EN47: 0 | EO47: 0 | EP47: 0 | EQ47: 0 | ER47: 0 | ES47: 0 | ET47: 0 | EU47: 0 | EV47: 0 | EW47: 0 | EX47: 0 | EY47: 0 | EZ47: 0 | FA47: 0 | FB47: 0 | FC47: 0 | FD47: 0 | FE47: 0 | FF47: 0 | FG47: 0 | FH47: 0 | FI47: 0 | FJ47: 0 | FK47: 0 | FL47: 0 | FM47: 0 | FN47: 0 | FO47: 0 | FP47: 0 | FQ47: 0 | FR47: 0 | FS47: 0 | FT47: 0 | FU47: 0 | FV47: 0 | FW47: 0 | FX47: 0 | FY47: 0 | FZ47: 0 | GA47: 0 | GB47: 0 | GC47: 0 | GD47: 0 | GE47: 0 | GF47: 0 | GG47: 0 | GH47: 0 | GI47: 0 | GJ47: 0 | GK47: 0 | GL47: 0 | GM47: 0 | GN47: 0 | GO47: 0 | GP47: 0 | GQ47: =IFERROR(INDEX($H$20:$H$25,GQ45),0) -> 0 | GR47: 0 | GS47: 0 | GT47: 0 | GU47: 0 | GV47: 0 | GW47: 0 | GX47: 0 | GY47: 0 | GZ47: 0 | HA47: 0 | HB47: 0 | HC47: 0 | HD47: 0 | HE47: 0 | HF47: 0 | HG47: 0 | HH47: 0 | HI47: 0 | HJ47: 0 | HK47: 0 | HL47: 0 | HM47: 0 | HN47: 0 | HO47: 0 | HP47: 0 | HQ47: 0 | HR47: 0 | HS47: 0 | HT47: 0 | HU47: 0 | HV47: 0 | HW47: 0 | HX47: 0 | HY47: 0 | HZ47: 0 | IA47: 0 | IB47: 0 | IC47: 0 | ID47: 0 | IE47: 0 | IF47: 0 | IG47: 0 | IH47: 0 | II47: 0 | IJ47: 0 | IK47: 0 | IL47: 0 | IM47: 0 | IN47: 0 | IO47: 0 | IP47: 0 | IQ47: 0 | IR47: 0 | IS47: 0 | IT47: 0 | IU47: 0 | IV47: 0 | IW47: 0 | IX47: 0 | IY47: 0 | IZ47: 0 | JA47: 0 | JB47: 0 | JC47: =IFERROR(INDEX($H$20:$H$25,JC45),0) -> 0 | JD47: 0 | JE47: 0 | JF47: 0 | JG47: 0 | JH47: 0 | JI47: 0 | JJ47: 0 | JK47: 0 | JL47: 0 | JM47: 0 | JN47: 0 | JO47: 0 | JP47: 0 | JQ47: 0 | JR47: 0 | JS47: 0 | JT47: 0 | JU47: 0 | JV47: 0 | JW47: 0 | JX47: 0 | JY47: 0 | JZ47: 0 | KA47: 0 | KB47: 0 | KC47: 0 | KD47: 0 | KE47: 0 | KF47: 0 | KG47: 0 | KH47: 0 | KI47: 0 | KJ47: 0 | KK47: 0 | KL47: 0 | KM47: 0 | KN47: 0 | KO47: 0 | KP47: 0 | KQ47: 0 | KR47: 0 | KS47: 0 | KT47: 0 | KU47: 0 | KV47: 0 | KW47: 0 | KX47: 0 | KY47: 0 | KZ47: 0 | LA47: 0 | LB47: 0 | LC47: 0 | LD47: 0 | LE47: 0 | LF47: 0 | LG47: 0 | LH47: 0 | LI47: 0 | LJ47: 0 | LK47: 0 | LL47: 0 | LM47: 0 | LN47: 0 | LO47: =IFERROR(INDEX($H$20:$H$25,LO45),0) -> 0 | LP47: 0 | LQ47: 0 | LR47: 0 | LS47: 0 | LT47: 0 | LU47: 0 | LV47: 0 | LW47: 0 | LX47: 0 | LY47: 0 | LZ47: 0 | MA47: 0 | MB47: 0 | MC47: 0 | MD47: 0 | ME47: 0 | MF47: 0 | MG47: 0 | MH47: 0 | MI47: 0 | MJ47: 0 | MK47: 0 | ML47: 0 | MM47: 0 | MN47: 0 | MO47: 0 | MP47: 0 | MQ47: 0 | MR47: 0 | MS47: 0 | MT47: 0 | MU47: 0 | MV47: 0 | MW47: 0 | MX47: 0 | MY47: 0 | MZ47: 0 | NA47: 0 | NB47: 0 | NC47: 0 | ND47: 0 | NE47: 0 | NF47: 0 | NG47: 0 | NH47: 0 | NI47: 0 | NJ47: 0 | NK47: 0 | NL47: 0 | NM47: 0 | NN47: 0 | NO47: 0 | NP47: 0 | NQ47: 0 | NR47: 0 | NS47: 0 | NT47: 0 | NU47: 0 | NV47: 0 | NW47: 0 | NX47: 0 | NY47: 0 | NZ47: 0 | OA47: =IFERROR(INDEX($H$20:$H$25,OA45),0) -> 0 | OB47: 0 | OC47: 0 | OD47: 0 | OE47: 0 | OF47: 0 | OG47: 0 | OH47: 0 | OI47: 0 | OJ47: =IFERROR(INDEX($H$20:$H$25,OJ45),0) -> 0 | OK47: 0 | OL47: 0 | OM47: 0 | ON47: 0 | OO47: 0 | OP47: 0 | OQ47: 0 | OR47: 0 | OS47: 0 | OT47: 0 | OU47: 0 | OV47: 0 | OW47: 0 | OX47: 0 | OY47: 0 | OZ47: 0 | PA47: 0 | PB47: 0 | PC47: 0 | PD47: 0 | PE47: 0 | PF47: 0 | PG47: 0 | PH47: 0 | PI47: 0 | PJ47: 0 | PK47: 0 | PL47: 0 | PM47: 0 | PN47: 0 | PO47: 0 | PP47: 0 | PQ47: 0 | PR47: 0 | PS47: 0 | PT47: 0 | PU47: 0 | PV47: 0 | PW47: 0 | PX47: 0 | PY47: 0 | PZ47: 0 | QA47: 0 | QB47: 0 | QC47: 0 | QD47: 0 | QE47: 0 | QF47: 0 | QG47: 0 | QH47: 0 | QI47: 0 | QJ47: 0 | QK47: 0 | QL47: 0 | QM47: 0 | QN47: 0 | QO47: 0 | QP47: 0 | QQ47: 0 | QR47: 0 | QS47: 0 | QT47: 0 | QU47: 0 | QV47: =IFERROR(INDEX($H$20:$H$25,QV45),0) -> 0 | QW47: 0 | QX47: 0 | QY47: 0 | QZ47: 0 | RA47: 0 | RB47: 0 | RC47: 0 | RD47: 0 | RE47: 0 | RF47: 0 | RG47: 0 | RH47: 0 | RI47: 0 | RJ47: 0 | RK47: 0 | RL47: 0 | RM47: 0 | RN47: 0 | RO47: 0 | RP47: 0 | RQ47: 0 | RR47: 0 | RS47: 0 | RT47: 0 | RU47: 0 | RV47: 0 | RW47: 0 | RX47: 0 | RY47: 0 | RZ47: 0 | SA47: 0 | SB47: 0 | SC47: 0 | SD47: 0 | SE47: 0 | SF47: 0 | SG47: 0
B48: Contributions to MRA | F48: =IF(F46,F47/F46) -> 0 | G48: =IF(G46,G47/G46) -> 0 | H48: 0 | I48: 0 | J48: 0 | K48: 0 | L48: 0 | M48: 0 | N48: 0 | O48: 0 | P48: 833.3333333 | Q48: 833.3333333 | R48: 833.3333333 | S48: 833.3333333 | T48: 833.3333333 | U48: 833.3333333 | V48: 833.3333333 | W48: 833.3333333 | X48: 833.3333333 | Y48: 833.3333333 | Z48: 833.3333333 | AA48: 833.3333333 | AB48: 412.5 | AC48: 412.5 | AD48: 412.5 | AE48: 412.5 | AF48: 412.5 | AG48: 412.5 | AH48: 412.5 | AI48: 412.5 | AJ48: 333.3333333 | AK48: 333.3333333 | AL48: 333.3333333 | AM48: 333.3333333 | AN48: 333.3333333 | AO48: 333.3333333 | AP48: 333.3333333 | AQ48: 333.3333333 | AR48: 333.3333333 | AS48: 333.3333333 | AT48: 333.3333333 | AU48: 333.3333333 | AV48: 333.3333333 | AW48: 333.3333333 | AX48: 333.3333333 | AY48: 700 | AZ48: 700 | BA48: 700 | BB48: 700 | BC48: 700 | BD48: 700 | BE48: 700 | BF48: 700 | BG48: 700 | BH48: 700 | BI48: 600 | BJ48: 600 | BK48: 600 | BL48: 600 | BM48: 600 | BN48: 600 | BO48: 600 | BP48: 600 | BQ48: 600 | BR48: 600 | BS48: =IF(BS46,BS47/BS46) -> 600 | BT48: 600 | BU48: 600 | BV48: 600 | BW48: 600 | BX48: FALSE | BY48: FALSE | BZ48: FALSE | CA48: FALSE | CB48: FALSE | CC48: FALSE | CD48: FALSE | CE48: FALSE | CF48: FALSE | CG48: FALSE | CH48: FALSE | CI48: FALSE | CJ48: FALSE | CK48: FALSE | CL48: FALSE | CM48: FALSE | CN48: FALSE | CO48: FALSE | CP48: FALSE | CQ48: FALSE | CR48: FALSE | CS48: FALSE | CT48: FALSE | CU48: FALSE | CV48: FALSE | CW48: FALSE | CX48: FALSE | CY48: FALSE | CZ48: FALSE | DA48: FALSE | DB48: FALSE | DC48: FALSE | DD48: FALSE | DE48: FALSE | DF48: FALSE | DG48: FALSE | DH48: FALSE | DI48: FALSE | DJ48: FALSE | DK48: FALSE | DL48: FALSE | DM48: FALSE | DN48: FALSE | DO48: FALSE | DP48: FALSE | DQ48: FALSE | DR48: FALSE | DS48: FALSE | DT48: FALSE | DU48: FALSE | DV48: FALSE | DW48: FALSE | DX48: FALSE | DY48: FALSE | DZ48: FALSE | EA48: FALSE | EB48: FALSE | EC48: FALSE | ED48: FALSE | EE48: =IF(EE46,EE47/EE46) -> FALSE | EF48: FALSE | EG48: FALSE | EH48: FALSE | EI48: FALSE | EJ48: FALSE | EK48: FALSE | EL48: FALSE | EM48: FALSE | EN48: FALSE | EO48: FALSE | EP48: FALSE | EQ48: FALSE | ER48: FALSE | ES48: FALSE | ET48: FALSE | EU48: FALSE | EV48: FALSE | EW48: FALSE | EX48: FALSE | EY48: FALSE | EZ48: FALSE | FA48: FALSE | FB48: FALSE | FC48: FALSE | FD48: FALSE | FE48: FALSE | FF48: FALSE | FG48: FALSE | FH48: FALSE | FI48: FALSE | FJ48: FALSE | FK48: FALSE | FL48: FALSE | FM48: FALSE | FN48: FALSE | FO48: FALSE | FP48: FALSE | FQ48: FALSE | FR48: FALSE | FS48: FALSE | FT48: FALSE | FU48: FALSE | FV48: FALSE | FW48: FALSE | FX48: FALSE | FY48: FALSE | FZ48: FALSE | GA48: FALSE | GB48: FALSE | GC48: FALSE | GD48: FALSE | GE48: FALSE | GF48: FALSE | GG48: FALSE | GH48: FALSE | GI48: FALSE | GJ48: FALSE | GK48: FALSE | GL48: FALSE | GM48: FALSE | GN48: FALSE | GO48: FALSE | GP48: FALSE | GQ48: =IF(GQ46,GQ47/GQ46) -> FALSE | GR48: FALSE | GS48: FALSE | GT48: FALSE | GU48: FALSE | GV48: FALSE | GW48: FALSE | GX48: FALSE | GY48: FALSE | GZ48: FALSE | HA48: FALSE | HB48: FALSE | HC48: FALSE | HD48: FALSE | HE48: FALSE | HF48: FALSE | HG48: FALSE | HH48: FALSE | HI48: FALSE | HJ48: FALSE | HK48: FALSE | HL48: FALSE | HM48: FALSE | HN48: FALSE | HO48: FALSE | HP48: FALSE | HQ48: FALSE | HR48: FALSE | HS48: FALSE | HT48: FALSE | HU48: FALSE | HV48: FALSE | HW48: FALSE | HX48: FALSE | HY48: FALSE | HZ48: FALSE | IA48: FALSE | IB48: FALSE | IC48: FALSE | ID48: FALSE | IE48: FALSE | IF48: FALSE | IG48: FALSE | IH48: FALSE | II48: FALSE | IJ48: FALSE | IK48: FALSE | IL48: FALSE | IM48: FALSE | IN48: FALSE | IO48: FALSE | IP48: FALSE | IQ48: FALSE | IR48: FALSE | IS48: FALSE | IT48: FALSE | IU48: FALSE | IV48: FALSE | IW48: FALSE | IX48: FALSE | IY48: FALSE | IZ48: FALSE | JA48: FALSE | JB48: FALSE | JC48: =IF(JC46,JC47/JC46) -> FALSE | JD48: FALSE | JE48: FALSE | JF48: FALSE | JG48: FALSE | JH48: FALSE | JI48: FALSE | JJ48: FALSE | JK48: FALSE | JL48: FALSE | JM48: FALSE | JN48: FALSE | JO48: FALSE | JP48: FALSE | JQ48: FALSE | JR48: FALSE | JS48: FALSE | JT48: FALSE | JU48: FALSE | JV48: FALSE | JW48: FALSE | JX48: FALSE | JY48: FALSE | JZ48: FALSE | KA48: FALSE | KB48: FALSE | KC48: FALSE | KD48: FALSE | KE48: FALSE | KF48: FALSE | KG48: FALSE | KH48: FALSE | KI48: FALSE | KJ48: FALSE | KK48: FALSE | KL48: FALSE | KM48: FALSE | KN48: FALSE | KO48: FALSE | KP48: FALSE | KQ48: FALSE | KR48: FALSE | KS48: FALSE | KT48: FALSE | KU48: FALSE | KV48: FALSE | KW48: FALSE | KX48: FALSE | KY48: FALSE | KZ48: FALSE | LA48: FALSE | LB48: FALSE | LC48: FALSE | LD48: FALSE | LE48: FALSE | LF48: FALSE | LG48: FALSE | LH48: FALSE | LI48: FALSE | LJ48: FALSE | LK48: FALSE | LL48: FALSE | LM48: FALSE | LN48: FALSE | LO48: =IF(LO46,LO47/LO46) -> FALSE | LP48: FALSE | LQ48: FALSE | LR48: FALSE | LS48: FALSE | LT48: FALSE | LU48: FALSE | LV48: FALSE | LW48: FALSE | LX48: FALSE | LY48: FALSE | LZ48: FALSE | MA48: FALSE | MB48: FALSE | MC48: FALSE | MD48: FALSE | ME48: FALSE | MF48: FALSE | MG48: FALSE | MH48: FALSE | MI48: FALSE | MJ48: FALSE | MK48: FALSE | ML48: FALSE | MM48: FALSE | MN48: FALSE | MO48: FALSE | MP48: FALSE | MQ48: FALSE | MR48: FALSE | MS48: FALSE | MT48: FALSE | MU48: FALSE | MV48: FALSE | MW48: FALSE | MX48: FALSE | MY48: FALSE | MZ48: FALSE | NA48: FALSE | NB48: FALSE | NC48: FALSE | ND48: FALSE | NE48: FALSE | NF48: FALSE | NG48: FALSE | NH48: FALSE | NI48: FALSE | NJ48: FALSE | NK48: FALSE | NL48: FALSE | NM48: FALSE | NN48: FALSE | NO48: FALSE | NP48: FALSE | NQ48: FALSE | NR48: FALSE | NS48: FALSE | NT48: FALSE | NU48: FALSE | NV48: FALSE | NW48: FALSE | NX48: FALSE | NY48: FALSE | NZ48: FALSE | OA48: =IF(OA46,OA47/OA46) -> FALSE | OB48: FALSE | OC48: FALSE | OD48: FALSE | OE48: FALSE | OF48: FALSE | OG48: FALSE | OH48: FALSE | OI48: FALSE | OJ48: =IF(OJ46,OJ47/OJ46) -> FALSE | OK48: FALSE | OL48: FALSE | OM48: FALSE | ON48: FALSE | OO48: FALSE | OP48: FALSE | OQ48: FALSE | OR48: FALSE | OS48: FALSE | OT48: FALSE | OU48: FALSE | OV48: FALSE | OW48: FALSE | OX48: FALSE | OY48: FALSE | OZ48: FALSE | PA48: FALSE | PB48: FALSE | PC48: FALSE | PD48: FALSE | PE48: FALSE | PF48: FALSE | PG48: FALSE | PH48: FALSE | PI48: FALSE | PJ48: FALSE | PK48: FALSE | PL48: FALSE | PM48: FALSE | PN48: FALSE | PO48: FALSE | PP48: FALSE | PQ48: FALSE | PR48: FALSE | PS48: FALSE | PT48: FALSE | PU48: FALSE | PV48: FALSE | PW48: FALSE | PX48: FALSE | PY48: FALSE | PZ48: FALSE | QA48: FALSE | QB48: FALSE | QC48: FALSE | QD48: FALSE | QE48: FALSE | QF48: FALSE | QG48: FALSE | QH48: FALSE | QI48: FALSE | QJ48: FALSE | QK48: FALSE | QL48: FALSE | QM48: FALSE | QN48: FALSE | QO48: FALSE | QP48: FALSE | QQ48: FALSE | QR48: FALSE | QS48: FALSE | QT48: FALSE | QU48: FALSE | QV48: =IF(QV46,QV47/QV46) -> FALSE | QW48: FALSE | QX48: FALSE | QY48: FALSE | QZ48: FALSE | RA48: FALSE | RB48: FALSE | RC48: FALSE | RD48: FALSE | RE48: FALSE | RF48: FALSE | RG48: FALSE | RH48: FALSE | RI48: FALSE | RJ48: FALSE | RK48: FALSE | RL48: FALSE | RM48: FALSE | RN48: FALSE | RO48: FALSE | RP48: FALSE | RQ48: FALSE | RR48: FALSE | RS48: FALSE | RT48: FALSE | RU48: FALSE | RV48: FALSE | RW48: FALSE | RX48: FALSE | RY48: FALSE | RZ48: FALSE | SA48: FALSE | SB48: FALSE | SC48: FALSE | SD48: FALSE | SE48: FALSE | SF48: FALSE | SG48: FALSE
B50: Opening Balance | F50: =E53 -> 0 | G50: =F53 -> 0 | H50: 0 | I50: 0 | J50: 0 | K50: 0 | L50: 0 | M50: 0 | N50: 0 | O50: 0 | P50: 0 | Q50: 833.3333333 | R50: 1666.666667 | S50: 2500 | T50: 3333.333333 | U50: 4166.666667 | V50: 5000 | W50: 5833.333333 | X50: 6666.666667 | Y50: 7500 | Z50: 8333.333333 | AA50: 9166.666667 | AB50: 10000 | AC50: 412.5 | AD50: 825 | AE50: 1237.5 | AF50: 1650 | AG50: 2062.5 | AH50: 2475 | AI50: 2887.5 | AJ50: 3300 | AK50: 333.3333333 | AL50: 666.6666667 | AM50: 1000 | AN50: 1333.333333 | AO50: 1666.666667 | AP50: 2000 | AQ50: 2333.333333 | AR50: 2666.666667 | AS50: 3000 | AT50: 3333.333333 | AU50: 3666.666667 | AV50: 4000 | AW50: 4333.333333 | AX50: 4666.666667 | AY50: 5000 | AZ50: 700 | BA50: 1400 | BB50: 2100 | BC50: 2800 | BD50: 3500 | BE50: 4200 | BF50: 4900 | BG50: 5600 | BH50: 6300 | BI50: 7000 | BJ50: 600 | BK50: 1200 | BL50: 1800 | BM50: 2400 | BN50: 3000 | BO50: 3600 | BP50: 4200 | BQ50: 4800 | BR50: 5400 | BS50: =BR53 -> 6000 | BT50: 6600 | BU50: 7200 | BV50: 7800 | BW50: 8400 | BX50: 9000 | BY50: 0 | BZ50: 0 | CA50: 0 | CB50: 0 | CC50: 0 | CD50: 0 | CE50: 0 | CF50: 0 | CG50: 0 | CH50: 0 | CI50: 0 | CJ50: 0 | CK50: 0 | CL50: 0 | CM50: 0 | CN50: 0 | CO50: 0 | CP50: 0 | CQ50: 0 | CR50: 0 | CS50: 0 | CT50: 0 | CU50: 0 | CV50: 0 | CW50: 0 | CX50: 0 | CY50: 0 | CZ50: 0 | DA50: 0 | DB50: 0 | DC50: 0 | DD50: 0 | DE50: 0 | DF50: 0 | DG50: 0 | DH50: 0 | DI50: 0 | DJ50: 0 | DK50: 0 | DL50: 0 | DM50: 0 | DN50: 0 | DO50: 0 | DP50: 0 | DQ50: 0 | DR50: 0 | DS50: 0 | DT50: 0 | DU50: 0 | DV50: 0 | DW50: 0 | DX50: 0 | DY50: 0 | DZ50: 0 | EA50: 0 | EB50: 0 | EC50: 0 | ED50: 0 | EE50: =ED53 -> 0 | EF50: 0 | EG50: 0 | EH50: 0 | EI50: 0 | EJ50: 0 | EK50: 0 | EL50: 0 | EM50: 0 | EN50: 0 | EO50: 0 | EP50: 0 | EQ50: 0 | ER50: 0 | ES50: 0 | ET50: 0 | EU50: 0 | EV50: 0 | EW50: 0 | EX50: 0 | EY50: 0 | EZ50: 0 | FA50: 0 | FB50: 0 | FC50: 0 | FD50: 0 | FE50: 0 | FF50: 0 | FG50: 0 | FH50: 0 | FI50: 0 | FJ50: 0 | FK50: 0 | FL50: 0 | FM50: 0 | FN50: 0 | FO50: 0 | FP50: 0 | FQ50: 0 | FR50: 0 | FS50: 0 | FT50: 0 | FU50: 0 | FV50: 0 | FW50: 0 | FX50: 0 | FY50: 0 | FZ50: 0 | GA50: 0 | GB50: 0 | GC50: 0 | GD50: 0 | GE50: 0 | GF50: 0 | GG50: 0 | GH50: 0 | GI50: 0 | GJ50: 0 | GK50: 0 | GL50: 0 | GM50: 0 | GN50: 0 | GO50: 0 | GP50: 0 | GQ50: =GP53 -> 0 | GR50: 0 | GS50: 0 | GT50: 0 | GU50: 0 | GV50: 0 | GW50: 0 | GX50: 0 | GY50: 0 | GZ50: 0 | HA50: 0 | HB50: 0 | HC50: 0 | HD50: 0 | HE50: 0 | HF50: 0 | HG50: 0 | HH50: 0 | HI50: 0 | HJ50: 0 | HK50: 0 | HL50: 0 | HM50: 0 | HN50: 0 | HO50: 0 | HP50: 0 | HQ50: 0 | HR50: 0 | HS50: 0 | HT50: 0 | HU50: 0 | HV50: 0 | HW50: 0 | HX50: 0 | HY50: 0 | HZ50: 0 | IA50: 0 | IB50: 0 | IC50: 0 | ID50: 0 | IE50: 0 | IF50: 0 | IG50: 0 | IH50: 0 | II50: 0 | IJ50: 0 | IK50: 0 | IL50: 0 | IM50: 0 | IN50: 0 | IO50: 0 | IP50: 0 | IQ50: 0 | IR50: 0 | IS50: 0 | IT50: 0 | IU50: 0 | IV50: 0 | IW50: 0 | IX50: 0 | IY50: 0 | IZ50: 0 | JA50: 0 | JB50: 0 | JC50: =JB53 -> 0 | JD50: 0 | JE50: 0 | JF50: 0 | JG50: 0 | JH50: 0 | JI50: 0 | JJ50: 0 | JK50: 0 | JL50: 0 | JM50: 0 | JN50: 0 | JO50: 0 | JP50: 0 | JQ50: 0 | JR50: 0 | JS50: 0 | JT50: 0 | JU50: 0 | JV50: 0 | JW50: 0 | JX50: 0 | JY50: 0 | JZ50: 0 | KA50: 0 | KB50: 0 | KC50: 0 | KD50: 0 | KE50: 0 | KF50: 0 | KG50: 0 | KH50: 0 | KI50: 0 | KJ50: 0 | KK50: 0 | KL50: 0 | KM50: 0 | KN50: 0 | KO50: 0 | KP50: 0 | KQ50: 0 | KR50: 0 | KS50: 0 | KT50: 0 | KU50: 0 | KV50: 0 | KW50: 0 | KX50: 0 | KY50: 0 | KZ50: 0 | LA50: 0 | LB50: 0 | LC50: 0 | LD50: 0 | LE50: 0 | LF50: 0 | LG50: 0 | LH50: 0 | LI50: 0 | LJ50: 0 | LK50: 0 | LL50: 0 | LM50: 0 | LN50: 0 | LO50: =LN53 -> 0 | LP50: 0 | LQ50: 0 | LR50: 0 | LS50: 0 | LT50: 0 | LU50: 0 | LV50: 0 | LW50: 0 | LX50: 0 | LY50: 0 | LZ50: 0 | MA50: 0 | MB50: 0 | MC50: 0 | MD50: 0 | ME50: 0 | MF50: 0 | MG50: 0 | MH50: 0 | MI50: 0 | MJ50: 0 | MK50: 0 | ML50: 0 | MM50: 0 | MN50: 0 | MO50: 0 | MP50: 0 | MQ50: 0 | MR50: 0 | MS50: 0 | MT50: 0 | MU50: 0 | MV50: 0 | MW50: 0 | MX50: 0 | MY50: 0 | MZ50: 0 | NA50: 0 | NB50: 0 | NC50: 0 | ND50: 0 | NE50: 0 | NF50: 0 | NG50: 0 | NH50: 0 | NI50: 0 | NJ50: 0 | NK50: 0 | NL50: 0 | NM50: 0 | NN50: 0 | NO50: 0 | NP50: 0 | NQ50: 0 | NR50: 0 | NS50: 0 | NT50: 0 | NU50: 0 | NV50: 0 | NW50: 0 | NX50: 0 | NY50: 0 | NZ50: 0 | OA50: =NZ53 -> 0 | OB50: 0 | OC50: 0 | OD50: 0 | OE50: 0 | OF50: 0 | OG50: 0 | OH50: 0 | OI50: 0 | OJ50: =OI53 -> 0 | OK50: =OJ53 -> 0 | OL50: =OK53 -> 0 | OM50: =OL53 -> 0 | ON50: =OM53 -> 0 | OO50: =ON53 -> 0 | OP50: =OO53 -> 0 | OQ50: =OP53 -> 0 | OR50: =OQ53 -> 0 | OS50: =OR53 -> 0 | OT50: =OS53 -> 0 | OU50: =OT53 -> 0 | OV50: =OU53 -> 0 | OW50: =OV53 -> 0 | OX50: =OW53 -> 0 | OY50: =OX53 -> 0 | OZ50: =OY53 -> 0 | PA50: =OZ53 -> 0 | PB50: =PA53 -> 0 | PC50: =PB53 -> 0 | PD50: =PC53 -> 0 | PE50: =PD53 -> 0 | PF50: =PE53 -> 0 | PG50: =PF53 -> 0 | PH50: =PG53 -> 0 | PI50: =PH53 -> 0 | PJ50: =PI53 -> 0 | PK50: =PJ53 -> 0 | PL50: =PK53 -> 0 | PM50: =PL53 -> 0 | PN50: =PM53 -> 0 | PO50: =PN53 -> 0 | PP50: =PO53 -> 0 | PQ50: =PP53 -> 0 | PR50: =PQ53 -> 0 | PS50: =PR53 -> 0 | PT50: =PS53 -> 0 | PU50: =PT53 -> 0 | PV50: =PU53 -> 0 | PW50: =PV53 -> 0 | PX50: =PW53 -> 0 | PY50: =PX53 -> 0 | PZ50: =PY53 -> 0 | QA50: =PZ53 -> 0 | QB50: =QA53 -> 0 | QC50: =QB53 -> 0 | QD50: =QC53 -> 0 | QE50: =QD53 -> 0 | QF50: =QE53 -> 0 | QG50: =QF53 -> 0 | QH50: =QG53 -> 0 | QI50: =QH53 -> 0 | QJ50: =QI53 -> 0 | QK50: =QJ53 -> 0 | QL50: =QK53 -> 0 | QM50: =QL53 -> 0 | QN50: =QM53 -> 0 | QO50: =QN53 -> 0 | QP50: =QO53 -> 0 | QQ50: =QP53 -> 0 | QR50: =QQ53 -> 0 | QS50: =QR53 -> 0 | QT50: =QS53 -> 0 | QU50: =QT53 -> 0 | QV50: =QU53 -> 0 | QW50: =QV53 -> 0 | QX50: =QW53 -> 0 | QY50: =QX53 -> 0 | QZ50: =QY53 -> 0 | RA50: =QZ53 -> 0 | RB50: =RA53 -> 0 | RC50: =RB53 -> 0 | RD50: =RC53 -> 0 | RE50: =RD53 -> 0 | RF50: =RE53 -> 0 | RG50: =RF53 -> 0 | RH50: =RG53 -> 0 | RI50: =RH53 -> 0 | RJ50: =RI53 -> 0 | RK50: =RJ53 -> 0 | RL50: =RK53 -> 0 | RM50: =RL53 -> 0 | RN50: =RM53 -> 0 | RO50: =RN53 -> 0 | RP50: =RO53 -> 0 | RQ50: =RP53 -> 0 | RR50: =RQ53 -> 0 | RS50: =RR53 -> 0 | RT50: =RS53 -> 0 | RU50: =RT53 -> 0 | RV50: =RU53 -> 0 | RW50: =RV53 -> 0 | RX50: =RW53 -> 0 | RY50: =RX53 -> 0 | RZ50: =RY53 -> 0 | SA50: =RZ53 -> 0 | SB50: =SA53 -> 0 | SC50: =SB53 -> 0 | SD50: =SC53 -> 0 | SE50: =SD53 -> 0 | SF50: =SE53 -> 0 | SG50: =SF53 -> 0
B51: Add: Contributions | F51: =F48*1 -> 0 | G51: =G48*1 -> 0 | H51: 0 | I51: 0 | J51: 0 | K51: 0 | L51: 0 | M51: 0 | N51: 0 | O51: 0 | P51: 833.3333333 | Q51: 833.3333333 | R51: 833.3333333 | S51: 833.3333333 | T51: 833.3333333 | U51: 833.3333333 | V51: 833.3333333 | W51: 833.3333333 | X51: 833.3333333 | Y51: 833.3333333 | Z51: 833.3333333 | AA51: 833.3333333 | AB51: 412.5 | AC51: 412.5 | AD51: 412.5 | AE51: 412.5 | AF51: 412.5 | AG51: 412.5 | AH51: 412.5 | AI51: 412.5 | AJ51: 333.3333333 | AK51: 333.3333333 | AL51: 333.3333333 | AM51: 333.3333333 | AN51: 333.3333333 | AO51: 333.3333333 | AP51: 333.3333333 | AQ51: 333.3333333 | AR51: 333.3333333 | AS51: 333.3333333 | AT51: 333.3333333 | AU51: 333.3333333 | AV51: 333.3333333 | AW51: 333.3333333 | AX51: 333.3333333 | AY51: 700 | AZ51: 700 | BA51: 700 | BB51: 700 | BC51: 700 | BD51: 700 | BE51: 700 | BF51: 700 | BG51: 700 | BH51: 700 | BI51: 600 | BJ51: 600 | BK51: 600 | BL51: 600 | BM51: 600 | BN51: 600 | BO51: 600 | BP51: 600 | BQ51: 600 | BR51: 600 | BS51: =BS48*1 -> 600 | BT51: 600 | BU51: 600 | BV51: 600 | BW51: 600 | BX51: 0 | BY51: 0 | BZ51: 0 | CA51: 0 | CB51: 0 | CC51: 0 | CD51: 0 | CE51: 0 | CF51: 0 | CG51: 0 | CH51: 0 | CI51: 0 | CJ51: 0 | CK51: 0 | CL51: 0 | CM51: 0 | CN51: 0 | CO51: 0 | CP51: 0 | CQ51: 0 | CR51: 0 | CS51: 0 | CT51: 0 | CU51: 0 | CV51: 0 | CW51: 0 | CX51: 0 | CY51: 0 | CZ51: 0 | DA51: 0 | DB51: 0 | DC51: 0 | DD51: 0 | DE51: 0 | DF51: 0 | DG51: 0 | DH51: 0 | DI51: 0 | DJ51: 0 | DK51: 0 | DL51: 0 | DM51: 0 | DN51: 0 | DO51: 0 | DP51: 0 | DQ51: 0 | DR51: 0 | DS51: 0 | DT51: 0 | DU51: 0 | DV51: 0 | DW51: 0 | DX51: 0 | DY51: 0 | DZ51: 0 | EA51: 0 | EB51: 0 | EC51: 0 | ED51: 0 | EE51: =EE48*1 -> 0 | EF51: 0 | EG51: 0 | EH51: 0 | EI51: 0 | EJ51: 0 | EK51: 0 | EL51: 0 | EM51: 0 | EN51: 0 | EO51: 0 | EP51: 0 | EQ51: 0 | ER51: 0 | ES51: 0 | ET51: 0 | EU51: 0 | EV51: 0 | EW51: 0 | EX51: 0 | EY51: 0 | EZ51: 0 | FA51: 0 | FB51: 0 | FC51: 0 | FD51: 0 | FE51: 0 | FF51: 0 | FG51: 0 | FH51: 0 | FI51: 0 | FJ51: 0 | FK51: 0 | FL51: 0 | FM51: 0 | FN51: 0 | FO51: 0 | FP51: 0 | FQ51: 0 | FR51: 0 | FS51: 0 | FT51: 0 | FU51: 0 | FV51: 0 | FW51: 0 | FX51: 0 | FY51: 0 | FZ51: 0 | GA51: 0 | GB51: 0 | GC51: 0 | GD51: 0 | GE51: 0 | GF51: 0 | GG51: 0 | GH51: 0 | GI51: 0 | GJ51: 0 | GK51: 0 | GL51: 0 | GM51: 0 | GN51: 0 | GO51: 0 | GP51: 0 | GQ51: =GQ48*1 -> 0 | GR51: 0 | GS51: 0 | GT51: 0 | GU51: 0 | GV51: 0 | GW51: 0 | GX51: 0 | GY51: 0 | GZ51: 0 | HA51: 0 | HB51: 0 | HC51: 0 | HD51: 0 | HE51: 0 | HF51: 0 | HG51: 0 | HH51: 0 | HI51: 0 | HJ51: 0 | HK51: 0 | HL51: 0 | HM51: 0 | HN51: 0 | HO51: 0 | HP51: 0 | HQ51: 0 | HR51: 0 | HS51: 0 | HT51: 0 | HU51: 0 | HV51: 0 | HW51: 0 | HX51: 0 | HY51: 0 | HZ51: 0 | IA51: 0 | IB51: 0 | IC51: 0 | ID51: 0 | IE51: 0 | IF51: 0 | IG51: 0 | IH51: 0 | II51: 0 | IJ51: 0 | IK51: 0 | IL51: 0 | IM51: 0 | IN51: 0 | IO51: 0 | IP51: 0 | IQ51: 0 | IR51: 0 | IS51: 0 | IT51: 0 | IU51: 0 | IV51: 0 | IW51: 0 | IX51: 0 | IY51: 0 | IZ51: 0 | JA51: 0 | JB51: 0 | JC51: =JC48*1 -> 0 | JD51: 0 | JE51: 0 | JF51: 0 | JG51: 0 | JH51: 0 | JI51: 0 | JJ51: 0 | JK51: 0 | JL51: 0 | JM51: 0 | JN51: 0 | JO51: 0 | JP51: 0 | JQ51: 0 | JR51: 0 | JS51: 0 | JT51: 0 | JU51: 0 | JV51: 0 | JW51: 0 | JX51: 0 | JY51: 0 | JZ51: 0 | KA51: 0 | KB51: 0 | KC51: 0 | KD51: 0 | KE51: 0 | KF51: 0 | KG51: 0 | KH51: 0 | KI51: 0 | KJ51: 0 | KK51: 0 | KL51: 0 | KM51: 0 | KN51: 0 | KO51: 0 | KP51: 0 | KQ51: 0 | KR51: 0 | KS51: 0 | KT51: 0 | KU51: 0 | KV51: 0 | KW51: 0 | KX51: 0 | KY51: 0 | KZ51: 0 | LA51: 0 | LB51: 0 | LC51: 0 | LD51: 0 | LE51: 0 | LF51: 0 | LG51: 0 | LH51: 0 | LI51: 0 | LJ51: 0 | LK51: 0 | LL51: 0 | LM51: 0 | LN51: 0 | LO51: =LO48*1 -> 0 | LP51: 0 | LQ51: 0 | LR51: 0 | LS51: 0 | LT51: 0 | LU51: 0 | LV51: 0 | LW51: 0 | LX51: 0 | LY51: 0 | LZ51: 0 | MA51: 0 | MB51: 0 | MC51: 0 | MD51: 0 | ME51: 0 | MF51: 0 | MG51: 0 | MH51: 0 | MI51: 0 | MJ51: 0 | MK51: 0 | ML51: 0 | MM51: 0 | MN51: 0 | MO51: 0 | MP51: 0 | MQ51: 0 | MR51: 0 | MS51: 0 | MT51: 0 | MU51: 0 | MV51: 0 | MW51: 0 | MX51: 0 | MY51: 0 | MZ51: 0 | NA51: 0 | NB51: 0 | NC51: 0 | ND51: 0 | NE51: 0 | NF51: 0 | NG51: 0 | NH51: 0 | NI51: 0 | NJ51: 0 | NK51: 0 | NL51: 0 | NM51: 0 | NN51: 0 | NO51: 0 | NP51: 0 | NQ51: 0 | NR51: 0 | NS51: 0 | NT51: 0 | NU51: 0 | NV51: 0 | NW51: 0 | NX51: 0 | NY51: 0 | NZ51: 0 | OA51: =OA48*1 -> 0 | OB51: 0 | OC51: 0 | OD51: 0 | OE51: 0 | OF51: 0 | OG51: 0 | OH51: 0 | OI51: 0 | OJ51: 0 | OK51: 0 | OL51: 0 | OM51: 0 | ON51: 0 | OO51: 0 | OP51: 0 | OQ51: 0 | OR51: 0 | OS51: 0 | OT51: 0 | OU51: 0 | OV51: 0 | OW51: 0 | OX51: 0 | OY51: 0 | OZ51: 0 | PA51: 0 | PB51: 0 | PC51: 0 | PD51: 0 | PE51: 0 | PF51: 0 | PG51: 0 | PH51: 0 | PI51: 0 | PJ51: 0 | PK51: 0 | PL51: 0 | PM51: 0 | PN51: 0 | PO51: 0 | PP51: 0 | PQ51: 0 | PR51: 0 | PS51: 0 | PT51: 0 | PU51: 0 | PV51: 0 | PW51: 0 | PX51: 0 | PY51: 0 | PZ51: 0 | QA51: 0 | QB51: 0 | QC51: 0 | QD51: 0 | QE51: 0 | QF51: 0 | QG51: 0 | QH51: 0 | QI51: 0 | QJ51: 0 | QK51: 0 | QL51: 0 | QM51: =QM48*1 -> 0 | QN51: 0 | QO51: 0 | QP51: 0 | QQ51: 0 | QR51: 0 | QS51: 0 | QT51: 0 | QU51: 0 | QV51: 0 | QW51: 0 | QX51: 0 | QY51: 0 | QZ51: 0 | RA51: 0 | RB51: 0 | RC51: 0 | RD51: 0 | RE51: 0 | RF51: 0 | RG51: 0 | RH51: 0 | RI51: 0 | RJ51: 0 | RK51: 0 | RL51: 0 | RM51: 0 | RN51: 0 | RO51: 0 | RP51: 0 | RQ51: 0 | RR51: 0 | RS51: 0 | RT51: 0 | RU51: 0 | RV51: 0 | RW51: 0 | RX51: 0 | RY51: 0 | RZ51: 0 | SA51: 0 | SB51: 0 | SC51: 0 | SD51: 0 | SE51: 0 | SF51: 0 | SG51: 0
B52: Less: With-drawls | F52: =IF(AND(F42,F40),F39,0) -> 0 | G52: =IF(AND(G42,G40),G39,0) -> 0 | H52: 0 | I52: 0 | J52: 0 | K52: 0 | L52: 0 | M52: 0 | N52: 0 | O52: 0 | P52: 0 | Q52: 0 | R52: 0 | S52: 0 | T52: 0 | U52: 0 | V52: 0 | W52: 0 | X52: 0 | Y52: 0 | Z52: 0 | AA52: 0 | AB52: 10000 | AC52: 0 | AD52: 0 | AE52: 0 | AF52: 0 | AG52: 0 | AH52: 0 | AI52: 0 | AJ52: 3300 | AK52: 0 | AL52: 0 | AM52: 0 | AN52: 0 | AO52: 0 | AP52: 0 | AQ52: 0 | AR52: 0 | AS52: 0 | AT52: 0 | AU52: 0 | AV52: 0 | AW52: 0 | AX52: 0 | AY52: 5000 | AZ52: 0 | BA52: 0 | BB52: 0 | BC52: 0 | BD52: 0 | BE52: 0 | BF52: 0 | BG52: 0 | BH52: 0 | BI52: 7000 | BJ52: 0 | BK52: 0 | BL52: 0 | BM52: 0 | BN52: 0 | BO52: 0 | BP52: 0 | BQ52: 0 | BR52: 0 | BS52: =IF(AND(BS42,BS40),BS39,0) -> 0 | BT52: 0 | BU52: 0 | BV52: 0 | BW52: 0 | BX52: 9000 | BY52: 0 | BZ52: 0 | CA52: 0 | CB52: 0 | CC52: 0 | CD52: 0 | CE52: 0 | CF52: 0 | CG52: 0 | CH52: 0 | CI52: 0 | CJ52: 0 | CK52: 0 | CL52: 0 | CM52: 0 | CN52: 0 | CO52: 0 | CP52: 0 | CQ52: 0 | CR52: 0 | CS52: 0 | CT52: 0 | CU52: 0 | CV52: 0 | CW52: 0 | CX52: 0 | CY52: 0 | CZ52: 0 | DA52: 0 | DB52: 0 | DC52: 0 | DD52: 0 | DE52: 0 | DF52: 0 | DG52: 0 | DH52: 0 | DI52: 0 | DJ52: 0 | DK52: 0 | DL52: 0 | DM52: 0 | DN52: 0 | DO52: 0 | DP52: 0 | DQ52: 0 | DR52: 0 | DS52: 0 | DT52: 0 | DU52: 0 | DV52: 0 | DW52: 0 | DX52: 0 | DY52: 0 | DZ52: 0 | EA52: 0 | EB52: 0 | EC52: 0 | ED52: 0 | EE52: =IF(AND(EE42,EE40),EE39,0) -> 0 | EF52: 0 | EG52: 0 | EH52: 0 | EI52: 0 | EJ52: 0 | EK52: 0 | EL52: 0 | EM52: 0 | EN52: 0 | EO52: 0 | EP52: 0 | EQ52: 0 | ER52: 0 | ES52: 0 | ET52: 0 | EU52: 0 | EV52: 0 | EW52: 0 | EX52: 0 | EY52: 0 | EZ52: 0 | FA52: 0 | FB52: 0 | FC52: 0 | FD52: 0 | FE52: 0 | FF52: 0 | FG52: 0 | FH52: 0 | FI52: 0 | FJ52: 0 | FK52: 0 | FL52: 0 | FM52: 0 | FN52: 0 | FO52: 0 | FP52: 0 | FQ52: 0 | FR52: 0 | FS52: 0 | FT52: 0 | FU52: 0 | FV52: 0 | FW52: 0 | FX52: 0 | FY52: 0 | FZ52: 0 | GA52: 0 | GB52: 0 | GC52: 0 | GD52: 0 | GE52: 0 | GF52: 0 | GG52: 0 | GH52: 0 | GI52: 0 | GJ52: 0 | GK52: 0 | GL52: 0 | GM52: 0 | GN52: 0 | GO52: 0 | GP52: 0 | GQ52: =IF(AND(GQ42,GQ40),GQ39,0) -> 0 | GR52: 0 | GS52: 0 | GT52: 0 | GU52: 0 | GV52: 0 | GW52: 0 | GX52: 0 | GY52: 0 | GZ52: 0 | HA52: 0 | HB52: 0 | HC52: 0 | HD52: 0 | HE52: 0 | HF52: 0 | HG52: 0 | HH52: 0 | HI52: 0 | HJ52: 0 | HK52: 0 | HL52: 0 | HM52: 0 | HN52: 0 | HO52: 0 | HP52: 0 | HQ52: 0 | HR52: 0 | HS52: 0 | HT52: 0 | HU52: 0 | HV52: 0 | HW52: 0 | HX52: 0 | HY52: 0 | HZ52: 0 | IA52: 0 | IB52: 0 | IC52: 0 | ID52: 0 | IE52: 0 | IF52: 0 | IG52: 0 | IH52: 0 | II52: 0 | IJ52: 0 | IK52: 0 | IL52: 0 | IM52: 0 | IN52: 0 | IO52: 0 | IP52: 0 | IQ52: 0 | IR52: 0 | IS52: 0 | IT52: 0 | IU52: 0 | IV52: 0 | IW52: 0 | IX52: 0 | IY52: 0 | IZ52: 0 | JA52: 0 | JB52: 0 | JC52: =IF(AND(JC42,JC40),JC39,0) -> 0 | JD52: 0 | JE52: 0 | JF52: 0 | JG52: 0 | JH52: 0 | JI52: 0 | JJ52: 0 | JK52: 0 | JL52: 0 | JM52: 0 | JN52: 0 | JO52: 0 | JP52: 0 | JQ52: 0 | JR52: 0 | JS52: 0 | JT52: 0 | JU52: 0 | JV52: 0 | JW52: 0 | JX52: 0 | JY52: 0 | JZ52: 0 | KA52: 0 | KB52: 0 | KC52: 0 | KD52: 0 | KE52: 0 | KF52: 0 | KG52: 0 | KH52: 0 | KI52: 0 | KJ52: 0 | KK52: 0 | KL52: 0 | KM52: 0 | KN52: 0 | KO52: 0 | KP52: 0 | KQ52: 0 | KR52: 0 | KS52: 0 | KT52: 0 | KU52: 0 | KV52: 0 | KW52: 0 | KX52: 0 | KY52: 0 | KZ52: 0 | LA52: 0 | LB52: 0 | LC52: 0 | LD52: 0 | LE52: 0 | LF52: 0 | LG52: 0 | LH52: 0 | LI52: 0 | LJ52: 0 | LK52: 0 | LL52: 0 | LM52: 0 | LN52: 0 | LO52: =IF(AND(LO42,LO40),LO39,0) -> 0 | LP52: 0 | LQ52: 0 | LR52: 0 | LS52: 0 | LT52: 0 | LU52: 0 | LV52: 0 | LW52: 0 | LX52: 0 | LY52: 0 | LZ52: 0 | MA52: 0 | MB52: 0 | MC52: 0 | MD52: 0 | ME52: 0 | MF52: 0 | MG52: 0 | MH52: 0 | MI52: 0 | MJ52: 0 | MK52: 0 | ML52: 0 | MM52: 0 | MN52: 0 | MO52: 0 | MP52: 0 | MQ52: 0 | MR52: 0 | MS52: 0 | MT52: 0 | MU52: 0 | MV52: 0 | MW52: 0 | MX52: 0 | MY52: 0 | MZ52: 0 | NA52: 0 | NB52: 0 | NC52: 0 | ND52: 0 | NE52: 0 | NF52: 0 | NG52: 0 | NH52: 0 | NI52: 0 | NJ52: 0 | NK52: 0 | NL52: 0 | NM52: 0 | NN52: 0 | NO52: 0 | NP52: 0 | NQ52: 0 | NR52: 0 | NS52: 0 | NT52: 0 | NU52: 0 | NV52: 0 | NW52: 0 | NX52: 0 | NY52: 0 | NZ52: 0 | OA52: =IF(AND(OA42,OA40),OA39,0) -> 0 | OB52: 0 | OC52: 0 | OD52: 0 | OE52: 0 | OF52: 0 | OG52: 0 | OH52: 0 | OI52: 0 | OJ52: =IF(AND(OJ42,OJ40),OJ39,0) -> 0 | OK52: 0 | OL52: 0 | OM52: 0 | ON52: 0 | OO52: 0 | OP52: 0 | OQ52: 0 | OR52: 0 | OS52: 0 | OT52: 0 | OU52: 0 | OV52: 0 | OW52: 0 | OX52: 0 | OY52: 0 | OZ52: 0 | PA52: 0 | PB52: 0 | PC52: 0 | PD52: 0 | PE52: 0 | PF52: 0 | PG52: 0 | PH52: 0 | PI52: 0 | PJ52: 0 | PK52: 0 | PL52: 0 | PM52: 0 | PN52: 0 | PO52: 0 | PP52: 0 | PQ52: 0 | PR52: 0 | PS52: 0 | PT52: 0 | PU52: 0 | PV52: 0 | PW52: 0 | PX52: 0 | PY52: 0 | PZ52: 0 | QA52: 0 | QB52: 0 | QC52: 0 | QD52: 0 | QE52: 0 | QF52: 0 | QG52: 0 | QH52: 0 | QI52: 0 | QJ52: 0 | QK52: 0 | QL52: 0 | QM52: 0 | QN52: 0 | QO52: 0 | QP52: 0 | QQ52: 0 | QR52: 0 | QS52: 0 | QT52: 0 | QU52: 0 | QV52: =IF(AND(QV42,QV40),QV39,0) -> 0 | QW52: 0 | QX52: 0 | QY52: 0 | QZ52: 0 | RA52: 0 | RB52: 0 | RC52: 0 | RD52: 0 | RE52: 0 | RF52: 0 | RG52: 0 | RH52: 0 | RI52: 0 | RJ52: 0 | RK52: 0 | RL52: 0 | RM52: 0 | RN52: 0 | RO52: 0 | RP52: 0 | RQ52: 0 | RR52: 0 | RS52: 0 | RT52: 0 | RU52: 0 | RV52: 0 | RW52: 0 | RX52: 0 | RY52: 0 | RZ52: 0 | SA52: 0 | SB52: 0 | SC52: 0 | SD52: 0 | SE52: 0 | SF52: 0 | SG52: 0
B53: Closing Balance | F53: =F50+F51-F52 -> 0 | G53: =G50+G51-G52 -> 0 | H53: 0 | I53: 0 | J53: 0 | K53: 0 | L53: 0 | M53: 0 | N53: 0 | O53: 0 | P53: 833.3333333 | Q53: 1666.666667 | R53: 2500 | S53: 3333.333333 | T53: 4166.666667 | U53: 5000 | V53: 5833.333333 | W53: 6666.666667 | X53: 7500 | Y53: 8333.333333 | Z53: 9166.666667 | AA53: 10000 | AB53: 412.5 | AC53: 825 | AD53: 1237.5 | AE53: 1650 | AF53: 2062.5 | AG53: 2475 | AH53: 2887.5 | AI53: 3300 | AJ53: 333.3333333 | AK53: 666.6666667 | AL53: 1000 | AM53: 1333.333333 | AN53: 1666.666667 | AO53: 2000 | AP53: 2333.333333 | AQ53: 2666.666667 | AR53: 3000 | AS53: 3333.333333 | AT53: 3666.666667 | AU53: 4000 | AV53: 4333.333333 | AW53: 4666.666667 | AX53: 5000 | AY53: 700 | AZ53: 1400 | BA53: 2100 | BB53: 2800 | BC53: 3500 | BD53: 4200 | BE53: 4900 | BF53: 5600 | BG53: 6300 | BH53: 7000 | BI53: 600 | BJ53: 1200 | BK53: 1800 | BL53: 2400 | BM53: 3000 | BN53: 3600 | BO53: 4200 | BP53: 4800 | BQ53: 5400 | BR53: 6000 | BS53: =BS50+BS51-BS52 -> 6600 | BT53: 7200 | BU53: 7800 | BV53: 8400 | BW53: 9000 | BX53: 0 | BY53: 0 | BZ53: 0 | CA53: 0 | CB53: 0 | CC53: 0 | CD53: 0 | CE53: 0 | CF53: 0 | CG53: 0 | CH53: 0 | CI53: 0 | CJ53: 0 | CK53: 0 | CL53: 0 | CM53: 0 | CN53: 0 | CO53: 0 | CP53: 0 | CQ53: 0 | CR53: 0 | CS53: 0 | CT53: 0 | CU53: 0 | CV53: 0 | CW53: 0 | CX53: 0 | CY53: 0 | CZ53: 0 | DA53: 0 | DB53: 0 | DC53: 0 | DD53: 0 | DE53: 0 | DF53: 0 | DG53: 0 | DH53: 0 | DI53: 0 | DJ53: 0 | DK53: 0 | DL53: 0 | DM53: 0 | DN53: 0 | DO53: 0 | DP53: 0 | DQ53: 0 | DR53: 0 | DS53: 0 | DT53: 0 | DU53: 0 | DV53: 0 | DW53: 0 | DX53: 0 | DY53: 0 | DZ53: 0 | EA53: 0 | EB53: 0 | EC53: 0 | ED53: 0 | EE53: =EE50+EE51-EE52 -> 0 | EF53: 0 | EG53: 0 | EH53: 0 | EI53: 0 | EJ53: 0 | EK53: 0 | EL53: 0 | EM53: 0 | EN53: 0 | EO53: 0 | EP53: 0 | EQ53: 0 | ER53: 0 | ES53: 0 | ET53: 0 | EU53: 0 | EV53: 0 | EW53: 0 | EX53: 0 | EY53: 0 | EZ53: 0 | FA53: 0 | FB53: 0 | FC53: 0 | FD53: 0 | FE53: 0 | FF53: 0 | FG53: 0 | FH53: 0 | FI53: 0 | FJ53: 0 | FK53: 0 | FL53: 0 | FM53: 0 | FN53: 0 | FO53: 0 | FP53: 0 | FQ53: 0 | FR53: 0 | FS53: 0 | FT53: 0 | FU53: 0 | FV53: 0 | FW53: 0 | FX53: 0 | FY53: 0 | FZ53: 0 | GA53: 0 | GB53: 0 | GC53: 0 | GD53: 0 | GE53: 0 | GF53: 0 | GG53: 0 | GH53: 0 | GI53: 0 | GJ53: 0 | GK53: 0 | GL53: 0 | GM53: 0 | GN53: 0 | GO53: 0 | GP53: 0 | GQ53: =GQ50+GQ51-GQ52 -> 0 | GR53: 0 | GS53: 0 | GT53: 0 | GU53: 0 | GV53: 0 | GW53: 0 | GX53: 0 | GY53: 0 | GZ53: 0 | HA53: 0 | HB53: 0 | HC53: 0 | HD53: 0 | HE53: 0 | HF53: 0 | HG53: 0 | HH53: 0 | HI53: 0 | HJ53: 0 | HK53: 0 | HL53: 0 | HM53: 0 | HN53: 0 | HO53: 0 | HP53: 0 | HQ53: 0 | HR53: 0 | HS53: 0 | HT53: 0 | HU53: 0 | HV53: 0 | HW53: 0 | HX53: 0 | HY53: 0 | HZ53: 0 | IA53: 0 | IB53: 0 | IC53: 0 | ID53: 0 | IE53: 0 | IF53: 0 | IG53: 0 | IH53: 0 | II53: 0 | IJ53: 0 | IK53: 0 | IL53: 0 | IM53: 0 | IN53: 0 | IO53: 0 | IP53: 0 | IQ53: 0 | IR53: 0 | IS53: 0 | IT53: 0 | IU53: 0 | IV53: 0 | IW53: 0 | IX53: 0 | IY53: 0 | IZ53: 0 | JA53: 0 | JB53: 0 | JC53: =JC50+JC51-JC52 -> 0 | JD53: 0 | JE53: 0 | JF53: 0 | JG53: 0 | JH53: 0 | JI53: 0 | JJ53: 0 | JK53: 0 | JL53: 0 | JM53: 0 | JN53: 0 | JO53: 0 | JP53: 0 | JQ53: 0 | JR53: 0 | JS53: 0 | JT53: 0 | JU53: 0 | JV53: 0 | JW53: 0 | JX53: 0 | JY53: 0 | JZ53: 0 | KA53: 0 | KB53: 0 | KC53: 0 | KD53: 0 | KE53: 0 | KF53: 0 | KG53: 0 | KH53: 0 | KI53: 0 | KJ53: 0 | KK53: 0 | KL53: 0 | KM53: 0 | KN53: 0 | KO53: 0 | KP53: 0 | KQ53: 0 | KR53: 0 | KS53: 0 | KT53: 0 | KU53: 0 | KV53: 0 | KW53: 0 | KX53: 0 | KY53: 0 | KZ53: 0 | LA53: 0 | LB53: 0 | LC53: 0 | LD53: 0 | LE53: 0 | LF53: 0 | LG53: 0 | LH53: 0 | LI53: 0 | LJ53: 0 | LK53: 0 | LL53: 0 | LM53: 0 | LN53: 0 | LO53: =LO50+LO51-LO52 -> 0 | LP53: 0 | LQ53: 0 | LR53: 0 | LS53: 0 | LT53: 0 | LU53: 0 | LV53: 0 | LW53: 0 | LX53: 0 | LY53: 0 | LZ53: 0 | MA53: 0 | MB53: 0 | MC53: 0 | MD53: 0 | ME53: 0 | MF53: 0 | MG53: 0 | MH53: 0 | MI53: 0 | MJ53: 0 | MK53: 0 | ML53: 0 | MM53: 0 | MN53: 0 | MO53: 0 | MP53: 0 | MQ53: 0 | MR53: 0 | MS53: 0 | MT53: 0 | MU53: 0 | MV53: 0 | MW53: 0 | MX53: 0 | MY53: 0 | MZ53: 0 | NA53: 0 | NB53: 0 | NC53: 0 | ND53: 0 | NE53: 0 | NF53: 0 | NG53: 0 | NH53: 0 | NI53: 0 | NJ53: 0 | NK53: 0 | NL53: 0 | NM53: 0 | NN53: 0 | NO53: 0 | NP53: 0 | NQ53: 0 | NR53: 0 | NS53: 0 | NT53: 0 | NU53: 0 | NV53: 0 | NW53: 0 | NX53: 0 | NY53: 0 | NZ53: 0 | OA53: =OA50+OA51-OA52 -> 0 | OB53: 0 | OC53: 0 | OD53: 0 | OE53: 0 | OF53: 0 | OG53: 0 | OH53: 0 | OI53: 0 | OJ53: =OJ50+OJ51-OJ52 -> 0 | OK53: 0 | OL53: 0 | OM53: 0 | ON53: 0 | OO53: 0 | OP53: 0 | OQ53: 0 | OR53: 0 | OS53: 0 | OT53: 0 | OU53: 0 | OV53: 0 | OW53: 0 | OX53: 0 | OY53: 0 | OZ53: 0 | PA53: 0 | PB53: 0 | PC53: 0 | PD53: 0 | PE53: 0 | PF53: 0 | PG53: 0 | PH53: 0 | PI53: 0 | PJ53: 0 | PK53: 0 | PL53: 0 | PM53: 0 | PN53: 0 | PO53: 0 | PP53: 0 | PQ53: 0 | PR53: 0 | PS53: 0 | PT53: 0 | PU53: 0 | PV53: 0 | PW53: 0 | PX53: 0 | PY53: 0 | PZ53: 0 | QA53: 0 | QB53: 0 | QC53: 0 | QD53: 0 | QE53: 0 | QF53: 0 | QG53: 0 | QH53: 0 | QI53: 0 | QJ53: 0 | QK53: 0 | QL53: 0 | QM53: 0 | QN53: 0 | QO53: 0 | QP53: 0 | QQ53: 0 | QR53: 0 | QS53: 0 | QT53: 0 | QU53: 0 | QV53: =QV50+QV51-QV52 -> 0 | QW53: 0 | QX53: 0 | QY53: 0 | QZ53: 0 | RA53: 0 | RB53: 0 | RC53: 0 | RD53: 0 | RE53: 0 | RF53: 0 | RG53: 0 | RH53: 0 | RI53: 0 | RJ53: 0 | RK53: 0 | RL53: 0 | RM53: 0 | RN53: 0 | RO53: 0 | RP53: 0 | RQ53: 0 | RR53: 0 | RS53: 0 | RT53: 0 | RU53: 0 | RV53: 0 | RW53: 0 | RX53: 0 | RY53: 0 | RZ53: 0 | SA53: 0 | SB53: 0 | SC53: 0 | SD53: 0 | SE53: 0 | SF53: 0 | SG53: 0
B55: Interest Income | E55: =F12/12 -> 0 | F55: =$E$55*F50 -> 0 | G55: =$E$55*G50 -> 0 | H55: 0 | I55: 0 | J55: 0 | K55: 0 | L55: 0 | M55: 0 | N55: 0 | O55: 0 | P55: 0 | Q55: 0 | R55: 0 | S55: 0 | T55: 0 | U55: 0 | V55: 0 | W55: 0 | X55: 0 | Y55: 0 | Z55: 0 | AA55: 0 | AB55: 0 | AC55: 0 | AD55: 0 | AE55: 0 | AF55: 0 | AG55: 0 | AH55: 0 | AI55: 0 | AJ55: 0 | AK55: 0 | AL55: 0 | AM55: 0 | AN55: 0 | AO55: 0 | AP55: 0 | AQ55: 0 | AR55: 0 | AS55: 0 | AT55: 0 | AU55: 0 | AV55: 0 | AW55: 0 | AX55: 0 | AY55: 0 | AZ55: 0 | BA55: 0 | BB55: 0 | BC55: 0 | BD55: 0 | BE55: 0 | BF55: 0 | BG55: 0 | BH55: 0 | BI55: 0 | BJ55: 0 | BK55: 0 | BL55: 0 | BM55: 0 | BN55: 0 | BO55: 0 | BP55: 0 | BQ55: 0 | BR55: 0 | BS55: =$E$55*BS50 -> 0 | BT55: 0 | BU55: 0 | BV55: 0 | BW55: 0 | BX55: 0 | BY55: 0 | BZ55: 0 | CA55: 0 | CB55: 0 | CC55: 0 | CD55: 0 | CE55: 0 | CF55: 0 | CG55: 0 | CH55: 0 | CI55: 0 | CJ55: 0 | CK55: 0 | CL55: 0 | CM55: 0 | CN55: 0 | CO55: 0 | CP55: 0 | CQ55: 0 | CR55: 0 | CS55: 0 | CT55: 0 | CU55: 0 | CV55: 0 | CW55: 0 | CX55: 0 | CY55: 0 | CZ55: 0 | DA55: 0 | DB55: 0 | DC55: 0 | DD55: 0 | DE55: 0 | DF55: 0 | DG55: 0 | DH55: 0 | DI55: 0 | DJ55: 0 | DK55: 0 | DL55: 0 | DM55: 0 | DN55: 0 | DO55: 0 | DP55: 0 | DQ55: 0 | DR55: 0 | DS55: 0 | DT55: 0 | DU55: 0 | DV55: 0 | DW55: 0 | DX55: 0 | DY55: 0 | DZ55: 0 | EA55: 0 | EB55: 0 | EC55: 0 | ED55: 0 | EE55: =$E$55*EE50 -> 0 | EF55: 0 | EG55: 0 | EH55: 0 | EI55: 0 | EJ55: 0 | EK55: 0 | EL55: 0 | EM55: 0 | EN55: 0 | EO55: 0 | EP55: 0 | EQ55: 0 | ER55: 0 | ES55: 0 | ET55: 0 | EU55: 0 | EV55: 0 | EW55: 0 | EX55: 0 | EY55: 0 | EZ55: 0 | FA55: 0 | FB55: 0 | FC55: 0 | FD55: 0 | FE55: 0 | FF55: 0 | FG55: 0 | FH55: 0 | FI55: 0 | FJ55: 0 | FK55: 0 | FL55: 0 | FM55: 0 | FN55: 0 | FO55: 0 | FP55: 0 | FQ55: 0 | FR55: 0 | FS55: 0 | FT55: 0 | FU55: 0 | FV55: 0 | FW55: 0 | FX55: 0 | FY55: 0 | FZ55: 0 | GA55: 0 | GB55: 0 | GC55: 0 | GD55: 0 | GE55: 0 | GF55: 0 | GG55: 0 | GH55: 0 | GI55: 0 | GJ55: 0 | GK55: 0 | GL55: 0 | GM55: 0 | GN55: 0 | GO55: 0 | GP55: 0 | GQ55: =$E$55*GQ50 -> 0 | GR55: 0 | GS55: 0 | GT55: 0 | GU55: 0 | GV55: 0 | GW55: 0 | GX55: 0 | GY55: 0 | GZ55: 0 | HA55: 0 | HB55: 0 | HC55: 0 | HD55: 0 | HE55: 0 | HF55: 0 | HG55: 0 | HH55: 0 | HI55: 0 | HJ55: 0 | HK55: 0 | HL55: 0 | HM55: 0 | HN55: 0 | HO55: 0 | HP55: 0 | HQ55: 0 | HR55: 0 | HS55: 0 | HT55: 0 | HU55: 0 | HV55: 0 | HW55: 0 | HX55: 0 | HY55: 0 | HZ55: 0 | IA55: 0 | IB55: 0 | IC55: 0 | ID55: 0 | IE55: 0 | IF55: 0 | IG55: 0 | IH55: 0 | II55: 0 | IJ55: 0 | IK55: 0 | IL55: 0 | IM55: 0 | IN55: 0 | IO55: 0 | IP55: 0 | IQ55: 0 | IR55: 0 | IS55: 0 | IT55: 0 | IU55: 0 | IV55: 0 | IW55: 0 | IX55: 0 | IY55: 0 | IZ55: 0 | JA55: 0 | JB55: 0 | JC55: =$E$55*JC50 -> 0 | JD55: 0 | JE55: 0 | JF55: 0 | JG55: 0 | JH55: 0 | JI55: 0 | JJ55: 0 | JK55: 0 | JL55: 0 | JM55: 0 | JN55: 0 | JO55: 0 | JP55: 0 | JQ55: 0 | JR55: 0 | JS55: 0 | JT55: 0 | JU55: 0 | JV55: 0 | JW55: 0 | JX55: 0 | JY55: 0 | JZ55: 0 | KA55: 0 | KB55: 0 | KC55: 0 | KD55: 0 | KE55: 0 | KF55: 0 | KG55: 0 | KH55: 0 | KI55: 0 | KJ55: 0 | KK55: 0 | KL55: 0 | KM55: 0 | KN55: 0 | KO55: 0 | KP55: 0 | KQ55: 0 | KR55: 0 | KS55: 0 | KT55: 0 | KU55: 0 | KV55: 0 | KW55: 0 | KX55: 0 | KY55: 0 | KZ55: 0 | LA55: 0 | LB55: 0 | LC55: 0 | LD55: 0 | LE55: 0 | LF55: 0 | LG55: 0 | LH55: 0 | LI55: 0 | LJ55: 0 | LK55: 0 | LL55: 0 | LM55: 0 | LN55: 0 | LO55: =$E$55*LO50 -> 0 | LP55: 0 | LQ55: 0 | LR55: 0 | LS55: 0 | LT55: 0 | LU55: 0 | LV55: 0 | LW55: 0 | LX55: 0 | LY55: 0 | LZ55: 0 | MA55: 0 | MB55: 0 | MC55: 0 | MD55: 0 | ME55: 0 | MF55: 0 | MG55: 0 | MH55: 0 | MI55: 0 | MJ55: 0 | MK55: 0 | ML55: 0 | MM55: 0 | MN55: 0 | MO55: 0 | MP55: 0 | MQ55: 0 | MR55: 0 | MS55: 0 | MT55: 0 | MU55: 0 | MV55: 0 | MW55: 0 | MX55: 0 | MY55: 0 | MZ55: 0 | NA55: 0 | NB55: 0 | NC55: 0 | ND55: 0 | NE55: 0 | NF55: 0 | NG55: 0 | NH55: 0 | NI55: 0 | NJ55: 0 | NK55: 0 | NL55: 0 | NM55: 0 | NN55: 0 | NO55: 0 | NP55: 0 | NQ55: 0 | NR55: 0 | NS55: 0 | NT55: 0 | NU55: 0 | NV55: 0 | NW55: 0 | NX55: 0 | NY55: 0 | NZ55: 0 | OA55: =$E$55*OA50 -> 0 | OB55: 0 | OC55: 0 | OD55: 0 | OE55: 0 | OF55: 0 | OG55: 0 | OH55: 0 | OI55: 0 | OJ55: =$E$55*OJ50 -> 0 | OK55: 0 | OL55: 0 | OM55: 0 | ON55: 0 | OO55: 0 | OP55: 0 | OQ55: 0 | OR55: 0 | OS55: 0 | OT55: 0 | OU55: 0 | OV55: 0 | OW55: 0 | OX55: 0 | OY55: 0 | OZ55: 0 | PA55: 0 | PB55: 0 | PC55: 0 | PD55: 0 | PE55: 0 | PF55: 0 | PG55: 0 | PH55: 0 | PI55: 0 | PJ55: 0 | PK55: 0 | PL55: 0 | PM55: 0 | PN55: 0 | PO55: 0 | PP55: 0 | PQ55: 0 | PR55: 0 | PS55: 0 | PT55: 0 | PU55: 0 | PV55: 0 | PW55: 0 | PX55: 0 | PY55: 0 | PZ55: 0 | QA55: 0 | QB55: 0 | QC55: 0 | QD55: 0 | QE55: 0 | QF55: 0 | QG55: 0 | QH55: 0 | QI55: 0 | QJ55: 0 | QK55: 0 | QL55: 0 | QM55: 0 | QN55: 0 | QO55: 0 | QP55: 0 | QQ55: 0 | QR55: 0 | QS55: 0 | QT55: 0 | QU55: 0 | QV55: =$E$55*QV50 -> 0 | QW55: 0 | QX55: 0 | QY55: 0 | QZ55: 0 | RA55: 0 | RB55: 0 | RC55: 0 | RD55: 0 | RE55: 0 | RF55: 0 | RG55: 0 | RH55: 0 | RI55: 0 | RJ55: 0 | RK55: 0 | RL55: 0 | RM55: 0 | RN55: 0 | RO55: 0 | RP55: 0 | RQ55: 0 | RR55: 0 | RS55: 0 | RT55: 0 | RU55: 0 | RV55: 0 | RW55: 0 | RX55: 0 | RY55: 0 | RZ55: 0 | SA55: 0 | SB55: 0 | SC55: 0 | SD55: 0 | SE55: 0 | SF55: 0 | SG55: 0
B57: Test of Closing Balance at Spend Period | E57: =SUMIF(42:42,FALSE,53:53)=0 -> TRUE
B59: Net Cash Flow | F59: =F36-F51+F55 -> 2400 | G59: =G36-G51+G55 -> 2400 | H59: 2400 | I59: 2400 | J59: 2400 | K59: 2400 | L59: 2400 | M59: 2400 | N59: 2400 | O59: 2400 | P59: 1566.666667 | Q59: 1566.666667 | R59: 1566.666667 | S59: 1566.666667 | T59: 1566.666667 | U59: 1566.666667 | V59: 1566.666667 | W59: 1566.666667 | X59: 1566.666667 | Y59: 1566.666667 | Z59: 1566.666667 | AA59: 1566.666667 | AB59: 1987.5 | AC59: 1987.5 | AD59: 1987.5 | AE59: 1987.5 | AF59: 1987.5 | AG59: 1987.5 | AH59: 1987.5 | AI59: 1987.5 | AJ59: 2066.666667 | AK59: 2066.666667 | AL59: 2066.666667 | AM59: 2066.666667 | AN59: 2066.666667 | AO59: 2066.666667 | AP59: 2066.666667 | AQ59: 2066.666667 | AR59: 2066.666667 | AS59: 2066.666667 | AT59: 2066.666667 | AU59: 2066.666667 | AV59: 2066.666667 | AW59: 2066.666667 | AX59: 2066.666667 | AY59: 1700 | AZ59: 1700 | BA59: 1700 | BB59: 1700 | BC59: 1700 | BD59: 1700 | BE59: 1700 | BF59: 1700 | BG59: 1700 | BH59: 1700 | BI59: 1800 | BJ59: 1800 | BK59: 1800 | BL59: 1800 | BM59: 1800 | BN59: 1800 | BO59: 1800 | BP59: 1800 | BQ59: 1800 | BR59: 1800 | BS59: =BS36-BS51+BS55 -> 1800 | BT59: 1800 | BU59: 1800 | BV59: 1800 | BW59: 1800 | BX59: 2400 | BY59: 2400 | BZ59: 2400 | CA59: 2400 | CB59: 2400 | CC59: 2400 | CD59: 2400 | CE59: 2400 | CF59: 2400 | CG59: 2400 | CH59: 0 | CI59: 0 | CJ59: 0 | CK59: 0 | CL59: 0 | CM59: 0 | CN59: 0 | CO59: 0 | CP59: 0 | CQ59: 0 | CR59: 0 | CS59: 0 | CT59: 0 | CU59: 0 | CV59: 0 | CW59: 0 | CX59: 0 | CY59: 0 | CZ59: 0 | DA59: 0 | DB59: 0 | DC59: 0 | DD59: 0 | DE59: 0 | DF59: 0 | DG59: 0 | DH59: 0 | DI59: 0 | DJ59: 0 | DK59: 0 | DL59: 0 | DM59: 0 | DN59: 0 | DO59: 0 | DP59: 0 | DQ59: 0 | DR59: 0 | DS59: 0 | DT59: 0 | DU59: 0 | DV59: 0 | DW59: 0 | DX59: 0 | DY59: 0 | DZ59: 0 | EA59: 0 | EB59: 0 | EC59: 0 | ED59: 0 | EE59: =EE36-EE51+EE55 -> 0 | EF59: 0 | EG59: 0 | EH59: 0 | EI59: 0 | EJ59: 0 | EK59: 0 | EL59: 0 | EM59: 0 | EN59: 0 | EO59: 0 | EP59: 0 | EQ59: 0 | ER59: 0 | ES59: 0 | ET59: 0 | EU59: 0 | EV59: 0 | EW59: 0 | EX59: 0 | EY59: 0 | EZ59: 0 | FA59: 0 | FB59: 0 | FC59: 0 | FD59: 0 | FE59: 0 | FF59: 0 | FG59: 0 | FH59: 0 | FI59: 0 | FJ59: 0 | FK59: 0 | FL59: 0 | FM59: 0 | FN59: 0 | FO59: 0 | FP59: 0 | FQ59: 0 | FR59: 0 | FS59: 0 | FT59: 0 | FU59: 0 | FV59: 0 | FW59: 0 | FX59: 0 | FY59: 0 | FZ59: 0 | GA59: 0 | GB59: 0 | GC59: 0 | GD59: 0 | GE59: 0 | GF59: 0 | GG59: 0 | GH59: 0 | GI59: 0 | GJ59: 0 | GK59: 0 | GL59: 0 | GM59: 0 | GN59: 0 | GO59: 0 | GP59: 0 | GQ59: =GQ36-GQ51+GQ55 -> 0 | GR59: 0 | GS59: 0 | GT59: 0 | GU59: 0 | GV59: 0 | GW59: 0 | GX59: 0 | GY59: 0 | GZ59: 0 | HA59: 0 | HB59: 0 | HC59: 0 | HD59: 0 | HE59: 0 | HF59: 0 | HG59: 0 | HH59: 0 | HI59: 0 | HJ59: 0 | HK59: 0 | HL59: 0 | HM59: 0 | HN59: 0 | HO59: 0 | HP59: 0 | HQ59: 0 | HR59: 0 | HS59: 0 | HT59: 0 | HU59: 0 | HV59: 0 | HW59: 0 | HX59: 0 | HY59: 0 | HZ59: 0 | IA59: 0 | IB59: 0 | IC59: 0 | ID59: 0 | IE59: 0 | IF59: 0 | IG59: 0 | IH59: 0 | II59: 0 | IJ59: 0 | IK59: 0 | IL59: 0 | IM59: 0 | IN59: 0 | IO59: 0 | IP59: 0 | IQ59: 0 | IR59: 0 | IS59: 0 | IT59: 0 | IU59: 0 | IV59: 0 | IW59: 0 | IX59: 0 | IY59: 0 | IZ59: 0 | JA59: 0 | JB59: 0 | JC59: =JC36-JC51+JC55 -> 0 | JD59: 0 | JE59: 0 | JF59: 0 | JG59: 0 | JH59: 0 | JI59: 0 | JJ59: 0 | JK59: 0 | JL59: 0 | JM59: 0 | JN59: 0 | JO59: 0 | JP59: 0 | JQ59: 0 | JR59: 0 | JS59: 0 | JT59: 0 | JU59: 0 | JV59: 0 | JW59: 0 | JX59: 0 | JY59: 0 | JZ59: 0 | KA59: 0 | KB59: 0 | KC59: 0 | KD59: 0 | KE59: 0 | KF59: 0 | KG59: 0 | KH59: 0 | KI59: 0 | KJ59: 0 | KK59: 0 | KL59: 0 | KM59: 0 | KN59: 0 | KO59: 0 | KP59: 0 | KQ59: 0 | KR59: 0 | KS59: 0 | KT59: 0 | KU59: 0 | KV59: 0 | KW59: 0 | KX59: 0 | KY59: 0 | KZ59: 0 | LA59: 0 | LB59: 0 | LC59: 0 | LD59: 0 | LE59: 0 | LF59: 0 | LG59: 0 | LH59: 0 | LI59: 0 | LJ59: 0 | LK59: 0 | LL59: 0 | LM59: 0 | LN59: 0 | LO59: =LO36-LO51+LO55 -> 0 | LP59: 0 | LQ59: 0 | LR59: 0 | LS59: 0 | LT59: 0 | LU59: 0 | LV59: 0 | LW59: 0 | LX59: 0 | LY59: 0 | LZ59: 0 | MA59: 0 | MB59: 0 | MC59: 0 | MD59: 0 | ME59: 0 | MF59: 0 | MG59: 0 | MH59: 0 | MI59: 0 | MJ59: 0 | MK59: 0 | ML59: 0 | MM59: 0 | MN59: 0 | MO59: 0 | MP59: 0 | MQ59: 0 | MR59: 0 | MS59: 0 | MT59: 0 | MU59: 0 | MV59: 0 | MW59: 0 | MX59: 0 | MY59: 0 | MZ59: 0 | NA59: 0 | NB59: 0 | NC59: 0 | ND59: 0 | NE59: 0 | NF59: 0 | NG59: 0 | NH59: 0 | NI59: 0 | NJ59: 0 | NK59: 0 | NL59: 0 | NM59: 0 | NN59: 0 | NO59: 0 | NP59: 0 | NQ59: 0 | NR59: 0 | NS59: 0 | NT59: 0 | NU59: 0 | NV59: 0 | NW59: 0 | NX59: 0 | NY59: 0 | NZ59: 0 | OA59: =OA36-OA51+OA55 -> 0 | OB59: 0 | OC59: 0 | OD59: 0 | OE59: 0 | OF59: 0 | OG59: 0 | OH59: 0 | OI59: 0 | OJ59: =OJ36-OJ51+OJ55 -> 0 | OK59: 0 | OL59: 0 | OM59: 0 | ON59: 0 | OO59: 0 | OP59: 0 | OQ59: 0 | OR59: 0 | OS59: 0 | OT59: 0 | OU59: 0 | OV59: 0 | OW59: 0 | OX59: 0 | OY59: 0 | OZ59: 0 | PA59: 0 | PB59: 0 | PC59: 0 | PD59: 0 | PE59: 0 | PF59: 0 | PG59: 0 | PH59: 0 | PI59: 0 | PJ59: 0 | PK59: 0 | PL59: 0 | PM59: 0 | PN59: 0 | PO59: 0 | PP59: 0 | PQ59: 0 | PR59: 0 | PS59: 0 | PT59: 0 | PU59: 0 | PV59: 0 | PW59: 0 | PX59: 0 | PY59: 0 | PZ59: 0 | QA59: 0 | QB59: 0 | QC59: 0 | QD59: 0 | QE59: 0 | QF59: 0 | QG59: 0 | QH59: 0 | QI59: 0 | QJ59: 0 | QK59: 0 | QL59: 0 | QM59: 0 | QN59: 0 | QO59: 0 | QP59: 0 | QQ59: 0 | QR59: 0 | QS59: 0 | QT59: 0 | QU59: 0 | QV59: =QV36-QV51+QV55 -> 0 | QW59: 0 | QX59: 0 | QY59: 0 | QZ59: 0 | RA59: 0 | RB59: 0 | RC59: 0 | RD59: 0 | RE59: 0 | RF59: 0 | RG59: 0 | RH59: 0 | RI59: 0 | RJ59: 0 | RK59: 0 | RL59: 0 | RM59: 0 | RN59: 0 | RO59: 0 | RP59: 0 | RQ59: 0 | RR59: 0 | RS59: 0 | RT59: 0 | RU59: 0 | RV59: 0 | RW59: 0 | RX59: 0 | RY59: 0 | RZ59: 0 | SA59: 0 | SB59: 0 | SC59: 0 | SD59: 0 | SE59: 0 | SF59: 0 | SG59: 0
B60: Initial Expenditure | E60: 50000
B61: Project Cash Flow | E61: =E59-E60 -> -50000 | F61: =F59-F60 -> 2400 | G61: 2400 | H61: 2400 | I61: 2400 | J61: 2400 | K61: 2400 | L61: 2400 | M61: 2400 | N61: 2400 | O61: 2400 | P61: 1566.666667 | Q61: 1566.666667 | R61: 1566.666667 | S61: 1566.666667 | T61: 1566.666667 | U61: 1566.666667 | V61: 1566.666667 | W61: 1566.666667 | X61: 1566.666667 | Y61: 1566.666667 | Z61: 1566.666667 | AA61: 1566.666667 | AB61: 1987.5 | AC61: 1987.5 | AD61: 1987.5 | AE61: 1987.5 | AF61: 1987.5 | AG61: 1987.5 | AH61: 1987.5 | AI61: 1987.5 | AJ61: 2066.666667 | AK61: 2066.666667 | AL61: 2066.666667 | AM61: 2066.666667 | AN61: 2066.666667 | AO61: 2066.666667 | AP61: 2066.666667 | AQ61: 2066.666667 | AR61: 2066.666667 | AS61: 2066.666667 | AT61: 2066.666667 | AU61: 2066.666667 | AV61: 2066.666667 | AW61: 2066.666667 | AX61: 2066.666667 | AY61: 1700 | AZ61: 1700 | BA61: 1700 | BB61: 1700 | BC61: 1700 | BD61: 1700 | BE61: 1700 | BF61: 1700 | BG61: 1700 | BH61: 1700 | BI61: 1800 | BJ61: 1800 | BK61: 1800 | BL61: 1800 | BM61: 1800 | BN61: 1800 | BO61: 1800 | BP61: 1800 | BQ61: 1800 | BR61: =BR59-BR60 -> 1800 | BS61: 1800 | BT61: 1800 | BU61: 1800 | BV61: 1800 | BW61: 1800 | BX61: 2400 | BY61: 2400 | BZ61: 2400 | CA61: 2400 | CB61: 2400 | CC61: 2400 | CD61: 2400 | CE61: 2400 | CF61: 2400 | CG61: 2400 | CH61: 0 | CI61: 0 | CJ61: 0 | CK61: 0 | CL61: 0 | CM61: 0 | CN61: 0 | CO61: 0 | CP61: 0 | CQ61: 0 | CR61: 0 | CS61: 0 | CT61: 0 | CU61: 0 | CV61: 0 | CW61: 0 | CX61: 0 | CY61: 0 | CZ61: 0 | DA61: 0 | DB61: 0 | DC61: 0 | DD61: 0 | DE61: 0 | DF61: 0 | DG61: 0 | DH61: 0 | DI61: 0 | DJ61: 0 | DK61: 0 | DL61: 0 | DM61: 0 | DN61: 0 | DO61: 0 | DP61: 0 | DQ61: 0 | DR61: 0 | DS61: 0 | DT61: 0 | DU61: 0 | DV61: 0 | DW61: 0 | DX61: 0 | DY61: 0 | DZ61: 0 | EA61: 0 | EB61: 0 | EC61: 0 | ED61: =ED59-ED60 -> 0 | EE61: 0 | EF61: 0 | EG61: 0 | EH61: 0 | EI61: 0 | EJ61: 0 | EK61: 0 | EL61: 0 | EM61: 0 | EN61: 0 | EO61: 0 | EP61: 0 | EQ61: 0 | ER61: 0 | ES61: 0 | ET61: 0 | EU61: 0 | EV61: 0 | EW61: 0 | EX61: 0 | EY61: 0 | EZ61: 0 | FA61: 0 | FB61: 0 | FC61: 0 | FD61: 0 | FE61: 0 | FF61: 0 | FG61: 0 | FH61: 0 | FI61: 0 | FJ61: 0 | FK61: 0 | FL61: 0 | FM61: 0 | FN61: 0 | FO61: 0 | FP61: 0 | FQ61: 0 | FR61: 0 | FS61: 0 | FT61: 0 | FU61: 0 | FV61: 0 | FW61: 0 | FX61: 0 | FY61: 0 | FZ61: 0 | GA61: 0 | GB61: 0 | GC61: 0 | GD61: 0 | GE61: 0 | GF61: 0 | GG61: 0 | GH61: 0 | GI61: 0 | GJ61: 0 | GK61: 0 | GL61: 0 | GM61: 0 | GN61: 0 | GO61: 0 | GP61: =GP59-GP60 -> 0 | GQ61: 0 | GR61: 0 | GS61: 0 | GT61: 0 | GU61: 0 | GV61: 0 | GW61: 0 | GX61: 0 | GY61: 0 | GZ61: 0 | HA61: 0 | HB61: 0 | HC61: 0 | HD61: 0 | HE61: 0 | HF61: 0 | HG61: 0 | HH61: 0 | HI61: 0 | HJ61: 0 | HK61: 0 | HL61: 0 | HM61: 0 | HN61: 0 | HO61: 0 | HP61: 0 | HQ61: 0 | HR61: 0 | HS61: 0 | HT61: 0 | HU61: 0 | HV61: 0 | HW61: 0 | HX61: 0 | HY61: 0 | HZ61: 0 | IA61: 0 | IB61: 0 | IC61: 0 | ID61: 0 | IE61: 0 | IF61: 0 | IG61: 0 | IH61: 0 | II61: 0 | IJ61: 0 | IK61: 0 | IL61: 0 | IM61: 0 | IN61: 0 | IO61: 0 | IP61: 0 | IQ61: 0 | IR61: 0 | IS61: 0 | IT61: 0 | IU61: 0 | IV61: 0 | IW61: 0 | IX61: 0 | IY61: 0 | IZ61: 0 | JA61: 0 | JB61: =JB59-JB60 -> 0 | JC61: 0 | JD61: 0 | JE61: 0 | JF61: 0 | JG61: 0 | JH61: 0 | JI61: 0 | JJ61: 0 | JK61: 0 | JL61: 0 | JM61: 0 | JN61: 0 | JO61: 0 | JP61: 0 | JQ61: 0 | JR61: 0 | JS61: 0 | JT61: 0 | JU61: 0 | JV61: 0 | JW61: 0 | JX61: 0 | JY61: 0 | JZ61: 0 | KA61: 0 | KB61: 0 | KC61: 0 | KD61: 0 | KE61: 0 | KF61: 0 | KG61: 0 | KH61: 0 | KI61: 0 | KJ61: 0 | KK61: 0 | KL61: 0 | KM61: 0 | KN61: 0 | KO61: 0 | KP61: 0 | KQ61: 0 | KR61: 0 | KS61: 0 | KT61: 0 | KU61: 0 | KV61: 0 | KW61: 0 | KX61: 0 | KY61: 0 | KZ61: 0 | LA61: 0 | LB61: 0 | LC61: 0 | LD61: 0 | LE61: 0 | LF61: 0 | LG61: 0 | LH61: 0 | LI61: 0 | LJ61: 0 | LK61: 0 | LL61: 0 | LM61: 0 | LN61: =LN59-LN60 -> 0 | LO61: 0 | LP61: 0 | LQ61: 0 | LR61: 0 | LS61: 0 | LT61: 0 | LU61: 0 | LV61: 0 | LW61: 0 | LX61: 0 | LY61: 0 | LZ61: 0 | MA61: 0 | MB61: 0 | MC61: 0 | MD61: 0 | ME61: 0 | MF61: 0 | MG61: 0 | MH61: 0 | MI61: 0 | MJ61: 0 | MK61: 0 | ML61: 0 | MM61: 0 | MN61: 0 | MO61: 0 | MP61: 0 | MQ61: 0 | MR61: 0 | MS61: 0 | MT61: 0 | MU61: 0 | MV61: 0 | MW61: 0 | MX61: 0 | MY61: 0 | MZ61: 0 | NA61: 0 | NB61: 0 | NC61: 0 | ND61: 0 | NE61: 0 | NF61: 0 | NG61: 0 | NH61: 0 | NI61: 0 | NJ61: 0 | NK61: 0 | NL61: 0 | NM61: 0 | NN61: 0 | NO61: 0 | NP61: 0 | NQ61: 0 | NR61: 0 | NS61: 0 | NT61: 0 | NU61: 0 | NV61: 0 | NW61: 0 | NX61: 0 | NY61: 0 | NZ61: =NZ59-NZ60 -> 0 | OA61: 0 | OB61: 0 | OC61: 0 | OD61: 0 | OE61: 0 | OF61: 0 | OG61: 0 | OH61: 0 | OI61: 0 | OJ61: =OJ59-OJ60 -> 0 | OK61: =OK59-OK60 -> 0 | OL61: =OL59-OL60 -> 0 | OM61: =OM59-OM60 -> 0 | ON61: =ON59-ON60 -> 0 | OO61: =OO59-OO60 -> 0 | OP61: =OP59-OP60 -> 0 | OQ61: =OQ59-OQ60 -> 0 | OR61: =OR59-OR60 -> 0 | OS61: =OS59-OS60 -> 0 | OT61: =OT59-OT60 -> 0 | OU61: =OU59-OU60 -> 0 | OV61: =OV59-OV60 -> 0 | OW61: =OW59-OW60 -> 0 | OX61: =OX59-OX60 -> 0 | OY61: =OY59-OY60 -> 0 | OZ61: =OZ59-OZ60 -> 0 | PA61: =PA59-PA60 -> 0 | PB61: =PB59-PB60 -> 0 | PC61: =PC59-PC60 -> 0 | PD61: =PD59-PD60 -> 0 | PE61: =PE59-PE60 -> 0 | PF61: =PF59-PF60 -> 0 | PG61: =PG59-PG60 -> 0 | PH61: =PH59-PH60 -> 0 | PI61: =PI59-PI60 -> 0 | PJ61: =PJ59-PJ60 -> 0 | PK61: =PK59-PK60 -> 0 | PL61: =PL59-PL60 -> 0 | PM61: =PM59-PM60 -> 0 | PN61: =PN59-PN60 -> 0 | PO61: =PO59-PO60 -> 0 | PP61: =PP59-PP60 -> 0 | PQ61: =PQ59-PQ60 -> 0 | PR61: =PR59-PR60 -> 0 | PS61: =PS59-PS60 -> 0 | PT61: =PT59-PT60 -> 0 | PU61: =PU59-PU60 -> 0 | PV61: =PV59-PV60 -> 0 | PW61: =PW59-PW60 -> 0 | PX61: =PX59-PX60 -> 0 | PY61: =PY59-PY60 -> 0 | PZ61: =PZ59-PZ60 -> 0 | QA61: =QA59-QA60 -> 0 | QB61: =QB59-QB60 -> 0 | QC61: =QC59-QC60 -> 0 | QD61: =QD59-QD60 -> 0 | QE61: =QE59-QE60 -> 0 | QF61: =QF59-QF60 -> 0 | QG61: =QG59-QG60 -> 0 | QH61: =QH59-QH60 -> 0 | QI61: =QI59-QI60 -> 0 | QJ61: =QJ59-QJ60 -> 0 | QK61: =QK59-QK60 -> 0 | QL61: =QL59-QL60 -> 0 | QM61: =QM59-QM60 -> 0 | QN61: =QN59-QN60 -> 0 | QO61: =QO59-QO60 -> 0 | QP61: =QP59-QP60 -> 0 | QQ61: =QQ59-QQ60 -> 0 | QR61: =QR59-QR60 -> 0 | QS61: =QS59-QS60 -> 0 | QT61: =QT59-QT60 -> 0 | QU61: =QU59-QU60 -> 0 | QV61: =QV59-QV60 -> 0 | QW61: =QW59-QW60 -> 0 | QX61: =QX59-QX60 -> 0 | QY61: =QY59-QY60 -> 0 | QZ61: =QZ59-QZ60 -> 0 | RA61: =RA59-RA60 -> 0 | RB61: =RB59-RB60 -> 0 | RC61: =RC59-RC60 -> 0 | RD61: =RD59-RD60 -> 0 | RE61: =RE59-RE60 -> 0 | RF61: =RF59-RF60 -> 0 | RG61: =RG59-RG60 -> 0 | RH61: =RH59-RH60 -> 0 | RI61: =RI59-RI60 -> 0 | RJ61: =RJ59-RJ60 -> 0 | RK61: =RK59-RK60 -> 0 | RL61: =RL59-RL60 -> 0 | RM61: =RM59-RM60 -> 0 | RN61: =RN59-RN60 -> 0 | RO61: =RO59-RO60 -> 0 | RP61: =RP59-RP60 -> 0 | RQ61: =RQ59-RQ60 -> 0 | RR61: =RR59-RR60 -> 0 | RS61: =RS59-RS60 -> 0 | RT61: =RT59-RT60 -> 0 | RU61: =RU59-RU60 -> 0 | RV61: =RV59-RV60 -> 0 | RW61: =RW59-RW60 -> 0 | RX61: =RX59-RX60 -> 0 | RY61: =RY59-RY60 -> 0 | RZ61: =RZ59-RZ60 -> 0 | SA61: =SA59-SA60 -> 0 | SB61: =SB59-SB60 -> 0 | SC61: =SC59-SC60 -> 0 | SD61: =SD59-SD60 -> 0 | SE61: =SE59-SE60 -> 0 | SF61: =SF59-SF60 -> 0 | SG61: =SG59-SG60 -> 0
B63: IRR | E63: =XIRR(E61:SG61,E32:SG32) -> 0.07761794031
B64: NPV | E64: =F11 -> 0.08 | F64: =XNPV(E64,F51:SG51,F32:SG32) -> 9897.667024 | G64: Sum | H64: =SUM(F51:SG51) -> 34300
B67: Level Payment | F67: =$J$16*F33 -> 303.2902881 | G67: =$J$16*G33 -> 303.2902881 | H67: 303.2902881 | I67: 303.2902881 | J67: 303.2902881 | K67: 303.2902881 | L67: 303.2902881 | M67: 303.2902881 | N67: 303.2902881 | O67: 303.2902881 | P67: 303.2902881 | Q67: 303.2902881 | R67: 303.2902881 | S67: 303.2902881 | T67: 303.2902881 | U67: 303.2902881 | V67: 303.2902881 | W67: 303.2902881 | X67: 303.2902881 | Y67: 303.2902881 | Z67: 303.2902881 | AA67: 303.2902881 | AB67: 303.2902881 | AC67: 303.2902881 | AD67: 303.2902881 | AE67: 303.2902881 | AF67: 303.2902881 | AG67: 303.2902881 | AH67: 303.2902881 | AI67: 303.2902881 | AJ67: 303.2902881 | AK67: 303.2902881 | AL67: 303.2902881 | AM67: 303.2902881 | AN67: 303.2902881 | AO67: 303.2902881 | AP67: 303.2902881 | AQ67: 303.2902881 | AR67: 303.2902881 | AS67: 303.2902881 | AT67: 303.2902881 | AU67: 303.2902881 | AV67: 303.2902881 | AW67: 303.2902881 | AX67: 303.2902881 | AY67: 303.2902881 | AZ67: 303.2902881 | BA67: 303.2902881 | BB67: 303.2902881 | BC67: 303.2902881 | BD67: 303.2902881 | BE67: 303.2902881 | BF67: 303.2902881 | BG67: 303.2902881 | BH67: 303.2902881 | BI67: 303.2902881 | BJ67: 303.2902881 | BK67: 303.2902881 | BL67: 303.2902881 | BM67: 303.2902881 | BN67: 303.2902881 | BO67: 303.2902881 | BP67: 303.2902881 | BQ67: 303.2902881 | BR67: 303.2902881 | BS67: =$J$16*BS33 -> 303.2902881 | BT67: 303.2902881 | BU67: 303.2902881 | BV67: 303.2902881 | BW67: 303.2902881 | BX67: 303.2902881 | BY67: 303.2902881 | BZ67: 303.2902881 | CA67: 303.2902881 | CB67: 303.2902881 | CC67: 303.2902881 | CD67: 303.2902881 | CE67: 303.2902881 | CF67: 303.2902881 | CG67: 303.2902881 | CH67: 0 | CI67: 0 | CJ67: 0 | CK67: 0 | CL67: 0 | CM67: 0 | CN67: 0 | CO67: 0 | CP67: 0 | CQ67: 0 | CR67: 0 | CS67: 0 | CT67: 0 | CU67: 0 | CV67: 0 | CW67: 0 | CX67: 0 | CY67: 0 | CZ67: 0 | DA67: 0 | DB67: 0 | DC67: 0 | DD67: 0 | DE67: 0 | DF67: 0 | DG67: 0 | DH67: 0 | DI67: 0 | DJ67: 0 | DK67: 0 | DL67: 0 | DM67: 0 | DN67: 0 | DO67: 0 | DP67: 0 | DQ67: 0 | DR67: 0 | DS67: 0 | DT67: 0 | DU67: 0 | DV67: 0 | DW67: 0 | DX67: 0 | DY67: 0 | DZ67: 0 | EA67: 0 | EB67: 0 | EC67: 0 | ED67: 0 | EE67: =$J$16*EE33 -> 0 | EF67: 0 | EG67: 0 | EH67: 0 | EI67: 0 | EJ67: 0 | EK67: 0 | EL67: 0 | EM67: 0 | EN67: 0 | EO67: 0 | EP67: 0 | EQ67: 0 | ER67: 0 | ES67: 0 | ET67: 0 | EU67: 0 | EV67: 0 | EW67: 0 | EX67: 0 | EY67: 0 | EZ67: 0 | FA67: 0 | FB67: 0 | FC67: 0 | FD67: 0 | FE67: 0 | FF67: 0 | FG67: 0 | FH67: 0 | FI67: 0 | FJ67: 0 | FK67: 0 | FL67: 0 | FM67: 0 | FN67: 0 | FO67: 0 | FP67: 0 | FQ67: 0 | FR67: 0 | FS67: 0 | FT67: 0 | FU67: 0 | FV67: 0 | FW67: 0 | FX67: 0 | FY67: 0 | FZ67: 0 | GA67: 0 | GB67: 0 | GC67: 0 | GD67: 0 | GE67: 0 | GF67: 0 | GG67: 0 | GH67: 0 | GI67: 0 | GJ67: 0 | GK67: 0 | GL67: 0 | GM67: 0 | GN67: 0 | GO67: 0 | GP67: 0 | GQ67: =$J$16*GQ33 -> 0 | GR67: 0 | GS67: 0 | GT67: 0 | GU67: 0 | GV67: 0 | GW67: 0 | GX67: 0 | GY67: 0 | GZ67: 0 | HA67: 0 | HB67: 0 | HC67: 0 | HD67: 0 | HE67: 0 | HF67: 0 | HG67: 0 | HH67: 0 | HI67: 0 | HJ67: 0 | HK67: 0 | HL67: 0 | HM67: 0 | HN67: 0 | HO67: 0 | HP67: 0 | HQ67: 0 | HR67: 0 | HS67: 0 | HT67: 0 | HU67: 0 | HV67: 0 | HW67: 0 | HX67: 0 | HY67: 0 | HZ67: 0 | IA67: 0 | IB67: 0 | IC67: 0 | ID67: 0 | IE67: 0 | IF67: 0 | IG67: 0 | IH67: 0 | II67: 0 | IJ67: 0 | IK67: 0 | IL67: 0 | IM67: 0 | IN67: 0 | IO67: 0 | IP67: 0 | IQ67: 0 | IR67: 0 | IS67: 0 | IT67: 0 | IU67: 0 | IV67: 0 | IW67: 0 | IX67: 0 | IY67: 0 | IZ67: 0 | JA67: 0 | JB67: 0 | JC67: =$J$16*JC33 -> 0 | JD67: 0 | JE67: 0 | JF67: 0 | JG67: 0 | JH67: 0 | JI67: 0 | JJ67: 0 | JK67: 0 | JL67: 0 | JM67: 0 | JN67: 0 | JO67: 0 | JP67: 0 | JQ67: 0 | JR67: 0 | JS67: 0 | JT67: 0 | JU67: 0 | JV67: 0 | JW67: 0 | JX67: 0 | JY67: 0 | JZ67: 0 | KA67: 0 | KB67: 0 | KC67: 0 | KD67: 0 | KE67: 0 | KF67: 0 | KG67: 0 | KH67: 0 | KI67: 0 | KJ67: 0 | KK67: 0 | KL67: 0 | KM67: 0 | KN67: 0 | KO67: 0 | KP67: 0 | KQ67: 0 | KR67: 0 | KS67: 0 | KT67: 0 | KU67: 0 | KV67: 0 | KW67: 0 | KX67: 0 | KY67: 0 | KZ67: 0 | LA67: 0 | LB67: 0 | LC67: 0 | LD67: 0 | LE67: 0 | LF67: 0 | LG67: 0 | LH67: 0 | LI67: 0 | LJ67: 0 | LK67: 0 | LL67: 0 | LM67: 0 | LN67: 0 | LO67: =$J$16*LO33 -> 0 | LP67: 0 | LQ67: 0 | LR67: 0 | LS67: 0 | LT67: 0 | LU67: 0 | LV67: 0 | LW67: 0 | LX67: 0 | LY67: 0 | LZ67: 0 | MA67: 0 | MB67: 0 | MC67: 0 | MD67: 0 | ME67: 0 | MF67: 0 | MG67: 0 | MH67: 0 | MI67: 0 | MJ67: 0 | MK67: 0 | ML67: 0 | MM67: 0 | MN67: 0 | MO67: 0 | MP67: 0 | MQ67: 0 | MR67: 0 | MS67: 0 | MT67: 0 | MU67: 0 | MV67: 0 | MW67: 0 | MX67: 0 | MY67: 0 | MZ67: 0 | NA67: 0 | NB67: 0 | NC67: 0 | ND67: 0 | NE67: 0 | NF67: 0 | NG67: 0 | NH67: 0 | NI67: 0 | NJ67: 0 | NK67: 0 | NL67: 0 | NM67: 0 | NN67: 0 | NO67: 0 | NP67: 0 | NQ67: 0 | NR67: 0 | NS67: 0 | NT67: 0 | NU67: 0 | NV67: 0 | NW67: 0 | NX67: 0 | NY67: 0 | NZ67: 0 | OA67: =$J$16*OA33 -> 0 | OB67: 0 | OC67: 0 | OD67: 0 | OE67: 0 | OF67: 0 | OG67: 0 | OH67: 0 | OI67: 0 | OJ67: =$J$16*OJ33 -> 0 | OK67: 0 | OL67: 0 | OM67: 0 | ON67: 0 | OO67: 0 | OP67: 0 | OQ67: 0 | OR67: 0 | OS67: 0 | OT67: 0 | OU67: 0 | OV67: 0 | OW67: 0 | OX67: 0 | OY67: 0 | OZ67: 0 | PA67: 0 | PB67: 0 | PC67: 0 | PD67: 0 | PE67: 0 | PF67: 0 | PG67: 0 | PH67: 0 | PI67: 0 | PJ67: 0 | PK67: 0 | PL67: 0 | PM67: 0 | PN67: 0 | PO67: 0 | PP67: 0 | PQ67: 0 | PR67: 0 | PS67: 0 | PT67: 0 | PU67: 0 | PV67: 0 | PW67: 0 | PX67: 0 | PY67: 0 | PZ67: 0 | QA67: 0 | QB67: 0 | QC67: 0 | QD67: 0 | QE67: 0 | QF67: 0 | QG67: 0 | QH67: 0 | QI67: 0 | QJ67: 0 | QK67: 0 | QL67: 0 | QM67: 0 | QN67: 0 | QO67: 0 | QP67: 0 | QQ67: 0 | QR67: 0 | QS67: 0 | QT67: 0 | QU67: 0 | QV67: =$J$16*QV33 -> 0 | QW67: 0 | QX67: 0 | QY67: 0 | QZ67: 0 | RA67: 0 | RB67: 0 | RC67: 0 | RD67: 0 | RE67: 0 | RF67: 0 | RG67: 0 | RH67: 0 | RI67: 0 | RJ67: 0 | RK67: 0 | RL67: 0 | RM67: 0 | RN67: 0 | RO67: 0 | RP67: 0 | RQ67: 0 | RR67: 0 | RS67: 0 | RT67: 0 | RU67: 0 | RV67: 0 | RW67: 0 | RX67: 0 | RY67: 0 | RZ67: 0 | SA67: 0 | SB67: 0 | SC67: 0 | SD67: 0 | SE67: 0 | SF67: 0 | SG67: 0
B68: Cash Flow Level Payment | E68: =E36-E67-E60 -> -50000 | F68: =F36-F67-F60 -> 2096.709712 | G68: 2096.709712 | H68: 2096.709712 | I68: 2096.709712 | J68: 2096.709712 | K68: 2096.709712 | L68: 2096.709712 | M68: 2096.709712 | N68: 2096.709712 | O68: 2096.709712 | P68: 2096.709712 | Q68: 2096.709712 | R68: 2096.709712 | S68: 2096.709712 | T68: 2096.709712 | U68: 2096.709712 | V68: 2096.709712 | W68: 2096.709712 | X68: 2096.709712 | Y68: 2096.709712 | Z68: 2096.709712 | AA68: 2096.709712 | AB68: 2096.709712 | AC68: 2096.709712 | AD68: 2096.709712 | AE68: 2096.709712 | AF68: 2096.709712 | AG68: 2096.709712 | AH68: 2096.709712 | AI68: 2096.709712 | AJ68: 2096.709712 | AK68: 2096.709712 | AL68: 2096.709712 | AM68: 2096.709712 | AN68: 2096.709712 | AO68: 2096.709712 | AP68: 2096.709712 | AQ68: 2096.709712 | AR68: 2096.709712 | AS68: 2096.709712 | AT68: 2096.709712 | AU68: 2096.709712 | AV68: 2096.709712 | AW68: 2096.709712 | AX68: 2096.709712 | AY68: 2096.709712 | AZ68: 2096.709712 | BA68: 2096.709712 | BB68: 2096.709712 | BC68: 2096.709712 | BD68: 2096.709712 | BE68: 2096.709712 | BF68: 2096.709712 | BG68: 2096.709712 | BH68: 2096.709712 | BI68: 2096.709712 | BJ68: 2096.709712 | BK68: 2096.709712 | BL68: 2096.709712 | BM68: 2096.709712 | BN68: 2096.709712 | BO68: 2096.709712 | BP68: 2096.709712 | BQ68: 2096.709712 | BR68: =BR36-BR67-BR60 -> 2096.709712 | BS68: 2096.709712 | BT68: 2096.709712 | BU68: 2096.709712 | BV68: 2096.709712 | BW68: 2096.709712 | BX68: 2096.709712 | BY68: 2096.709712 | BZ68: 2096.709712 | CA68: 2096.709712 | CB68: 2096.709712 | CC68: 2096.709712 | CD68: 2096.709712 | CE68: 2096.709712 | CF68: 2096.709712 | CG68: 2096.709712 | CH68: 0 | CI68: 0 | CJ68: 0 | CK68: 0 | CL68: 0 | CM68: 0 | CN68: 0 | CO68: 0 | CP68: 0 | CQ68: 0 | CR68: 0 | CS68: 0 | CT68: 0 | CU68: 0 | CV68: 0 | CW68: 0 | CX68: 0 | CY68: 0 | CZ68: 0 | DA68: 0 | DB68: 0 | DC68: 0 | DD68: 0 | DE68: 0 | DF68: 0 | DG68: 0 | DH68: 0 | DI68: 0 | DJ68: 0 | DK68: 0 | DL68: 0 | DM68: 0 | DN68: 0 | DO68: 0 | DP68: 0 | DQ68: 0 | DR68: 0 | DS68: 0 | DT68: 0 | DU68: 0 | DV68: 0 | DW68: 0 | DX68: 0 | DY68: 0 | DZ68: 0 | EA68: 0 | EB68: 0 | EC68: 0 | ED68: =ED36-ED67-ED60 -> 0 | EE68: 0 | EF68: 0 | EG68: 0 | EH68: 0 | EI68: 0 | EJ68: 0 | EK68: 0 | EL68: 0 | EM68: 0 | EN68: 0 | EO68: 0 | EP68: 0 | EQ68: 0 | ER68: 0 | ES68: 0 | ET68: 0 | EU68: 0 | EV68: 0 | EW68: 0 | EX68: 0 | EY68: 0 | EZ68: 0 | FA68: 0 | FB68: 0 | FC68: 0 | FD68: 0 | FE68: 0 | FF68: 0 | FG68: 0 | FH68: 0 | FI68: 0 | FJ68: 0 | FK68: 0 | FL68: 0 | FM68: 0 | FN68: 0 | FO68: 0 | FP68: 0 | FQ68: 0 | FR68: 0 | FS68: 0 | FT68: 0 | FU68: 0 | FV68: 0 | FW68: 0 | FX68: 0 | FY68: 0 | FZ68: 0 | GA68: 0 | GB68: 0 | GC68: 0 | GD68: 0 | GE68: 0 | GF68: 0 | GG68: 0 | GH68: 0 | GI68: 0 | GJ68: 0 | GK68: 0 | GL68: 0 | GM68: 0 | GN68: 0 | GO68: 0 | GP68: =GP36-GP67-GP60 -> 0 | GQ68: 0 | GR68: 0 | GS68: 0 | GT68: 0 | GU68: 0 | GV68: 0 | GW68: 0 | GX68: 0 | GY68: 0 | GZ68: 0 | HA68: 0 | HB68: 0 | HC68: 0 | HD68: 0 | HE68: 0 | HF68: 0 | HG68: 0 | HH68: 0 | HI68: 0 | HJ68: 0 | HK68: 0 | HL68: 0 | HM68: 0 | HN68: 0 | HO68: 0 | HP68: 0 | HQ68: 0 | HR68: 0 | HS68: 0 | HT68: 0 | HU68: 0 | HV68: 0 | HW68: 0 | HX68: 0 | HY68: 0 | HZ68: 0 | IA68: 0 | IB68: 0 | IC68: 0 | ID68: 0 | IE68: 0 | IF68: 0 | IG68: 0 | IH68: 0 | II68: 0 | IJ68: 0 | IK68: 0 | IL68: 0 | IM68: 0 | IN68: 0 | IO68: 0 | IP68: 0 | IQ68: 0 | IR68: 0 | IS68: 0 | IT68: 0 | IU68: 0 | IV68: 0 | IW68: 0 | IX68: 0 | IY68: 0 | IZ68: 0 | JA68: 0 | JB68: =JB36-JB67-JB60 -> 0 | JC68: 0 | JD68: 0 | JE68: 0 | JF68: 0 | JG68: 0 | JH68: 0 | JI68: 0 | JJ68: 0 | JK68: 0 | JL68: 0 | JM68: 0 | JN68: 0 | JO68: 0 | JP68: 0 | JQ68: 0 | JR68: 0 | JS68: 0 | JT68: 0 | JU68: 0 | JV68: 0 | JW68: 0 | JX68: 0 | JY68: 0 | JZ68: 0 | KA68: 0 | KB68: 0 | KC68: 0 | KD68: 0 | KE68: 0 | KF68: 0 | KG68: 0 | KH68: 0 | KI68: 0 | KJ68: 0 | KK68: 0 | KL68: 0 | KM68: 0 | KN68: 0 | KO68: 0 | KP68: 0 | KQ68: 0 | KR68: 0 | KS68: 0 | KT68: 0 | KU68: 0 | KV68: 0 | KW68: 0 | KX68: 0 | KY68: 0 | KZ68: 0 | LA68: 0 | LB68: 0 | LC68: 0 | LD68: 0 | LE68: 0 | LF68: 0 | LG68: 0 | LH68: 0 | LI68: 0 | LJ68: 0 | LK68: 0 | LL68: 0 | LM68: 0 | LN68: =LN36-LN67-LN60 -> 0 | LO68: 0 | LP68: 0 | LQ68: 0 | LR68: 0 | LS68: 0 | LT68: 0 | LU68: 0 | LV68: 0 | LW68: 0 | LX68: 0 | LY68: 0 | LZ68: 0 | MA68: 0 | MB68: 0 | MC68: 0 | MD68: 0 | ME68: 0 | MF68: 0 | MG68: 0 | MH68: 0 | MI68: 0 | MJ68: 0 | MK68: 0 | ML68: 0 | MM68: 0 | MN68: 0 | MO68: 0 | MP68: 0 | MQ68: 0 | MR68: 0 | MS68: 0 | MT68: 0 | MU68: 0 | MV68: 0 | MW68: 0 | MX68: 0 | MY68: 0 | MZ68: 0 | NA68: 0 | NB68: 0 | NC68: 0 | ND68: 0 | NE68: 0 | NF68: 0 | NG68: 0 | NH68: 0 | NI68: 0 | NJ68: 0 | NK68: 0 | NL68: 0 | NM68: 0 | NN68: 0 | NO68: 0 | NP68: 0 | NQ68: 0 | NR68: 0 | NS68: 0 | NT68: 0 | NU68: 0 | NV68: 0 | NW68: 0 | NX68: 0 | NY68: 0 | NZ68: =NZ36-NZ67-NZ60 -> 0 | OA68: 0 | OB68: 0 | OC68: 0 | OD68: 0 | OE68: 0 | OF68: 0 | OG68: 0 | OH68: 0 | OI68: 0 | OJ68: =OJ36-OJ67-OJ60 -> 0 | OK68: 0 | OL68: 0 | OM68: 0 | ON68: 0 | OO68: 0 | OP68: 0 | OQ68: 0 | OR68: 0 | OS68: 0 | OT68: 0 | OU68: 0 | OV68: 0 | OW68: 0 | OX68: 0 | OY68: 0 | OZ68: 0 | PA68: 0 | PB68: 0 | PC68: 0 | PD68: 0 | PE68: 0 | PF68: 0 | PG68: 0 | PH68: 0 | PI68: 0 | PJ68: 0 | PK68: 0 | PL68: 0 | PM68: 0 | PN68: 0 | PO68: 0 | PP68: 0 | PQ68: 0 | PR68: 0 | PS68: 0 | PT68: 0 | PU68: 0 | PV68: 0 | PW68: 0 | PX68: 0 | PY68: 0 | PZ68: 0 | QA68: 0 | QB68: 0 | QC68: 0 | QD68: 0 | QE68: 0 | QF68: 0 | QG68: 0 | QH68: 0 | QI68: 0 | QJ68: 0 | QK68: 0 | QL68: 0 | QM68: 0 | QN68: 0 | QO68: 0 | QP68: 0 | QQ68: 0 | QR68: 0 | QS68: 0 | QT68: 0 | QU68: 0 | QV68: =QV36-QV67-QV60 -> 0 | QW68: 0 | QX68: 0 | QY68: 0 | QZ68: 0 | RA68: 0 | RB68: 0 | RC68: 0 | RD68: 0 | RE68: 0 | RF68: 0 | RG68: 0 | RH68: 0 | RI68: 0 | RJ68: 0 | RK68: 0 | RL68: 0 | RM68: 0 | RN68: 0 | RO68: 0 | RP68: 0 | RQ68: 0 | RR68: 0 | RS68: 0 | RT68: 0 | RU68: 0 | RV68: 0 | RW68: 0 | RX68: 0 | RY68: 0 | RZ68: 0 | SA68: 0 | SB68: 0 | SC68: 0 | SD68: 0 | SE68: 0 | SF68: 0 | SG68: 0
B70: IRR | E70: =XIRR(E68:SG68,E32:SG32) -> 0.08183154762
B71: NPV of Maintenance | E71: =E64 -> 0.08 | F71: =XNPV(E71,F67:OI67,F32:OI32) -> 7658.397339 | G71: Sum | H71: =SUM(F67:SG67) -> 24263.22304
E72: =SUM(F67:OI67) -> 24263.22304
B73: Maintenance Spend | F73: =F52 -> 0 | G73: =G52 -> 0 | H73: 0 | I73: 0 | J73: 0 | K73: 0 | L73: 0 | M73: 0 | N73: 0 | O73: 0 | P73: 0 | Q73: 0 | R73: 0 | S73: 0 | T73: 0 | U73: 0 | V73: 0 | W73: 0 | X73: 0 | Y73: 0 | Z73: 0 | AA73: 0 | AB73: 10000 | AC73: 0 | AD73: 0 | AE73: 0 | AF73: 0 | AG73: 0 | AH73: 0 | AI73: 0 | AJ73: 3300 | AK73: 0 | AL73: 0 | AM73: 0 | AN73: 0 | AO73: 0 | AP73: 0 | AQ73: 0 | AR73: 0 | AS73: 0 | AT73: 0 | AU73: 0 | AV73: 0 | AW73: 0 | AX73: 0 | AY73: 5000 | AZ73: 0 | BA73: 0 | BB73: 0 | BC73: 0 | BD73: 0 | BE73: 0 | BF73: 0 | BG73: 0 | BH73: 0 | BI73: 7000 | BJ73: 0 | BK73: 0 | BL73: 0 | BM73: 0 | BN73: 0 | BO73: 0 | BP73: 0 | BQ73: 0 | BR73: 0 | BS73: =BS52 -> 0 | BT73: 0 | BU73: 0 | BV73: 0 | BW73: 0 | BX73: 9000 | BY73: 0 | BZ73: 0 | CA73: 0 | CB73: 0 | CC73: 0 | CD73: 0 | CE73: 0 | CF73: 0 | CG73: 0 | CH73: 0 | CI73: 0 | CJ73: 0 | CK73: 0 | CL73: 0 | CM73: 0 | CN73: 0 | CO73: 0 | CP73: 0 | CQ73: 0 | CR73: 0 | CS73: 0 | CT73: 0 | CU73: 0 | CV73: 0 | CW73: 0 | CX73: 0 | CY73: 0 | CZ73: 0 | DA73: 0 | DB73: 0 | DC73: 0 | DD73: 0 | DE73: 0 | DF73: 0 | DG73: 0 | DH73: 0 | DI73: 0 | DJ73: 0 | DK73: 0 | DL73: 0 | DM73: 0 | DN73: 0 | DO73: 0 | DP73: 0 | DQ73: 0 | DR73: 0 | DS73: 0 | DT73: 0 | DU73: 0 | DV73: 0 | DW73: 0 | DX73: 0 | DY73: 0 | DZ73: 0 | EA73: 0 | EB73: 0 | EC73: 0 | ED73: 0 | EE73: =EE52 -> 0 | EF73: 0 | EG73: 0 | EH73: 0 | EI73: 0 | EJ73: 0 | EK73: 0 | EL73: 0 | EM73: 0 | EN73: 0 | EO73: 0 | EP73: 0 | EQ73: 0 | ER73: 0 | ES73: 0 | ET73: 0 | EU73: 0 | EV73: 0 | EW73: 0 | EX73: 0 | EY73: 0 | EZ73: 0 | FA73: 0 | FB73: 0 | FC73: 0 | FD73: 0 | FE73: 0 | FF73: 0 | FG73: 0 | FH73: 0 | FI73: 0 | FJ73: 0 | FK73: 0 | FL73: 0 | FM73: 0 | FN73: 0 | FO73: 0 | FP73: 0 | FQ73: 0 | FR73: 0 | FS73: 0 | FT73: 0 | FU73: 0 | FV73: 0 | FW73: 0 | FX73: 0 | FY73: 0 | FZ73: 0 | GA73: 0 | GB73: 0 | GC73: 0 | GD73: 0 | GE73: 0 | GF73: 0 | GG73: 0 | GH73: 0 | GI73: 0 | GJ73: 0 | GK73: 0 | GL73: 0 | GM73: 0 | GN73: 0 | GO73: 0 | GP73: 0 | GQ73: =GQ52 -> 0 | GR73: 0 | GS73: 0 | GT73: 0 | GU73: 0 | GV73: 0 | GW73: 0 | GX73: 0 | GY73: 0 | GZ73: 0 | HA73: 0 | HB73: 0 | HC73: 0 | HD73: 0 | HE73: 0 | HF73: 0 | HG73: 0 | HH73: 0 | HI73: 0 | HJ73: 0 | HK73: 0 | HL73: 0 | HM73: 0 | HN73: 0 | HO73: 0 | HP73: 0 | HQ73: 0 | HR73: 0 | HS73: 0 | HT73: 0 | HU73: 0 | HV73: 0 | HW73: 0 | HX73: 0 | HY73: 0 | HZ73: 0 | IA73: 0 | IB73: 0 | IC73: 0 | ID73: 0 | IE73: 0 | IF73: 0 | IG73: 0 | IH73: 0 | II73: 0 | IJ73: 0 | IK73: 0 | IL73: 0 | IM73: 0 | IN73: 0 | IO73: 0 | IP73: 0 | IQ73: 0 | IR73: 0 | IS73: 0 | IT73: 0 | IU73: 0 | IV73: 0 | IW73: 0 | IX73: 0 | IY73: 0 | IZ73: 0 | JA73: 0 | JB73: 0 | JC73: =JC52 -> 0 | JD73: 0 | JE73: 0 | JF73: 0 | JG73: 0 | JH73: 0 | JI73: 0 | JJ73: 0 | JK73: 0 | JL73: 0 | JM73: 0 | JN73: 0 | JO73: 0 | JP73: 0 | JQ73: 0 | JR73: 0 | JS73: 0 | JT73: 0 | JU73: 0 | JV73: 0 | JW73: 0 | JX73: 0 | JY73: 0 | JZ73: 0 | KA73: 0 | KB73: 0 | KC73: 0 | KD73: 0 | KE73: 0 | KF73: 0 | KG73: 0 | KH73: 0 | KI73: 0 | KJ73: 0 | KK73: 0 | KL73: 0 | KM73: 0 | KN73: 0 | KO73: 0 | KP73: 0 | KQ73: 0 | KR73: 0 | KS73: 0 | KT73: 0 | KU73: 0 | KV73: 0 | KW73: 0 | KX73: 0 | KY73: 0 | KZ73: 0 | LA73: 0 | LB73: 0 | LC73: 0 | LD73: 0 | LE73: 0 | LF73: 0 | LG73: 0 | LH73: 0 | LI73: 0 | LJ73: 0 | LK73: 0 | LL73: 0 | LM73: 0 | LN73: 0 | LO73: =LO52 -> 0 | LP73: 0 | LQ73: 0 | LR73: 0 | LS73: 0 | LT73: 0 | LU73: 0 | LV73: 0 | LW73: 0 | LX73: 0 | LY73: 0 | LZ73: 0 | MA73: 0 | MB73: 0 | MC73: 0 | MD73: 0 | ME73: 0 | MF73: 0 | MG73: 0 | MH73: 0 | MI73: 0 | MJ73: 0 | MK73: 0 | ML73: 0 | MM73: 0 | MN73: 0 | MO73: 0 | MP73: 0 | MQ73: 0 | MR73: 0 | MS73: 0 | MT73: 0 | MU73: 0 | MV73: 0 | MW73: 0 | MX73: 0 | MY73: 0 | MZ73: 0 | NA73: 0 | NB73: 0 | NC73: 0 | ND73: 0 | NE73: 0 | NF73: 0 | NG73: 0 | NH73: 0 | NI73: 0 | NJ73: 0 | NK73: 0 | NL73: 0 | NM73: 0 | NN73: 0 | NO73: 0 | NP73: 0 | NQ73: 0 | NR73: 0 | NS73: 0 | NT73: 0 | NU73: 0 | NV73: 0 | NW73: 0 | NX73: 0 | NY73: 0 | NZ73: 0 | OA73: =OA52 -> 0 | OB73: 0 | OC73: 0 | OD73: 0 | OE73: 0 | OF73: 0 | OG73: 0 | OH73: 0 | OI73: 0 | OJ73: =OJ52 -> 0 | OK73: 0 | OL73: 0 | OM73: 0 | ON73: 0 | OO73: 0 | OP73: 0 | OQ73: 0 | OR73: 0 | OS73: 0 | OT73: 0 | OU73: 0 | OV73: 0 | OW73: 0 | OX73: 0 | OY73: 0 | OZ73: 0 | PA73: 0 | PB73: 0 | PC73: 0 | PD73: 0 | PE73: 0 | PF73: 0 | PG73: 0 | PH73: 0 | PI73: 0 | PJ73: 0 | PK73: 0 | PL73: 0 | PM73: 0 | PN73: 0 | PO73: 0 | PP73: 0 | PQ73: 0 | PR73: 0 | PS73: 0 | PT73: 0 | PU73: 0 | PV73: 0 | PW73: 0 | PX73: 0 | PY73: 0 | PZ73: 0 | QA73: 0 | QB73: 0 | QC73: 0 | QD73: 0 | QE73: 0 | QF73: 0 | QG73: 0 | QH73: 0 | QI73: 0 | QJ73: 0 | QK73: 0 | QL73: 0 | QM73: 0 | QN73: 0 | QO73: 0 | QP73: 0 | QQ73: 0 | QR73: 0 | QS73: 0 | QT73: 0 | QU73: 0 | QV73: =QV52 -> 0 | QW73: 0 | QX73: 0 | QY73: 0 | QZ73: 0 | RA73: 0 | RB73: 0 | RC73: 0 | RD73: 0 | RE73: 0 | RF73: 0 | RG73: 0 | RH73: 0 | RI73: 0 | RJ73: 0 | RK73: 0 | RL73: 0 | RM73: 0 | RN73: 0 | RO73: 0 | RP73: 0 | RQ73: 0 | RR73: 0 | RS73: 0 | RT73: 0 | RU73: 0 | RV73: 0 | RW73: 0 | RX73: 0 | RY73: 0 | RZ73: 0 | SA73: 0 | SB73: 0 | SC73: 0 | SD73: 0 | SE73: 0 | SF73: 0 | SG73: 0
B74: Cash Flow No Reserve | E74: =E68 -> -50000 | F74: =F36-F43 -> 2400 | G74: =G36-G43 -> 2400 | H74: 2400 | I74: 2400 | J74: 2400 | K74: 2400 | L74: 2400 | M74: 2400 | N74: 2400 | O74: 2400 | P74: 2400 | Q74: 2400 | R74: 2400 | S74: 2400 | T74: 2400 | U74: 2400 | V74: 2400 | W74: 2400 | X74: 2400 | Y74: 2400 | Z74: 2400 | AA74: 2400 | AB74: -7600 | AC74: 2400 | AD74: 2400 | AE74: 2400 | AF74: 2400 | AG74: 2400 | AH74: 2400 | AI74: 2400 | AJ74: -900 | AK74: 2400 | AL74: 2400 | AM74: 2400 | AN74: 2400 | AO74: 2400 | AP74: 2400 | AQ74: 2400 | AR74: 2400 | AS74: 2400 | AT74: 2400 | AU74: 2400 | AV74: 2400 | AW74: 2400 | AX74: 2400 | AY74: -2600 | AZ74: 2400 | BA74: 2400 | BB74: 2400 | BC74: 2400 | BD74: 2400 | BE74: 2400 | BF74: 2400 | BG74: 2400 | BH74: 2400 | BI74: -4600 | BJ74: 2400 | BK74: 2400 | BL74: 2400 | BM74: 2400 | BN74: 2400 | BO74: 2400 | BP74: 2400 | BQ74: 2400 | BR74: 2400 | BS74: =BS36-BS43 -> 2400 | BT74: 2400 | BU74: 2400 | BV74: 2400 | BW74: 2400 | BX74: -6600 | BY74: 2400 | BZ74: 2400 | CA74: 2400 | CB74: 2400 | CC74: 2400 | CD74: 2400 | CE74: 2400 | CF74: 2400 | CG74: 2400 | CH74: 0 | CI74: 0 | CJ74: 0 | CK74: 0 | CL74: 0 | CM74: 0 | CN74: 0 | CO74: 0 | CP74: 0 | CQ74: 0 | CR74: 0 | CS74: 0 | CT74: 0 | CU74: 0 | CV74: 0 | CW74: 0 | CX74: 0 | CY74: 0 | CZ74: 0 | DA74: 0 | DB74: 0 | DC74: 0 | DD74: 0 | DE74: 0 | DF74: 0 | DG74: 0 | DH74: 0 | DI74: 0 | DJ74: 0 | DK74: 0 | DL74: 0 | DM74: 0 | DN74: 0 | DO74: 0 | DP74: 0 | DQ74: 0 | DR74: 0 | DS74: 0 | DT74: 0 | DU74: 0 | DV74: 0 | DW74: 0 | DX74: 0 | DY74: 0 | DZ74: 0 | EA74: 0 | EB74: 0 | EC74: 0 | ED74: 0 | EE74: =EE36-EE43 -> 0 | EF74: 0 | EG74: 0 | EH74: 0 | EI74: 0 | EJ74: 0 | EK74: 0 | EL74: 0 | EM74: 0 | EN74: 0 | EO74: 0 | EP74: 0 | EQ74: 0 | ER74: 0 | ES74: 0 | ET74: 0 | EU74: 0 | EV74: 0 | EW74: 0 | EX74: 0 | EY74: 0 | EZ74: 0 | FA74: 0 | FB74: 0 | FC74: 0 | FD74: 0 | FE74: 0 | FF74: 0 | FG74: 0 | FH74: 0 | FI74: 0 | FJ74: 0 | FK74: 0 | FL74: 0 | FM74: 0 | FN74: 0 | FO74: 0 | FP74: 0 | FQ74: 0 | FR74: 0 | FS74: 0 | FT74: 0 | FU74: 0 | FV74: 0 | FW74: 0 | FX74: 0 | FY74: 0 | FZ74: 0 | GA74: 0 | GB74: 0 | GC74: 0 | GD74: 0 | GE74: 0 | GF74: 0 | GG74: 0 | GH74: 0 | GI74: 0 | GJ74: 0 | GK74: 0 | GL74: 0 | GM74: 0 | GN74: 0 | GO74: 0 | GP74: 0 | GQ74: =GQ36-GQ43 -> 0 | GR74: 0 | GS74: 0 | GT74: 0 | GU74: 0 | GV74: 0 | GW74: 0 | GX74: 0 | GY74: 0 | GZ74: 0 | HA74: 0 | HB74: 0 | HC74: 0 | HD74: 0 | HE74: 0 | HF74: 0 | HG74: 0 | HH74: 0 | HI74: 0 | HJ74: 0 | HK74: 0 | HL74: 0 | HM74: 0 | HN74: 0 | HO74: 0 | HP74: 0 | HQ74: 0 | HR74: 0 | HS74: 0 | HT74: 0 | HU74: 0 | HV74: 0 | HW74: 0 | HX74: 0 | HY74: 0 | HZ74: 0 | IA74: 0 | IB74: 0 | IC74: 0 | ID74: 0 | IE74: 0 | IF74: 0 | IG74: 0 | IH74: 0 | II74: 0 | IJ74: 0 | IK74: 0 | IL74: 0 | IM74: 0 | IN74: 0 | IO74: 0 | IP74: 0 | IQ74: 0 | IR74: 0 | IS74: 0 | IT74: 0 | IU74: 0 | IV74: 0 | IW74: 0 | IX74: 0 | IY74: 0 | IZ74: 0 | JA74: 0 | JB74: 0 | JC74: =JC36-JC43 -> 0 | JD74: 0 | JE74: 0 | JF74: 0 | JG74: 0 | JH74: 0 | JI74: 0 | JJ74: 0 | JK74: 0 | JL74: 0 | JM74: 0 | JN74: 0 | JO74: 0 | JP74: 0 | JQ74: 0 | JR74: 0 | JS74: 0 | JT74: 0 | JU74: 0 | JV74: 0 | JW74: 0 | JX74: 0 | JY74: 0 | JZ74: 0 | KA74: 0 | KB74: 0 | KC74: 0 | KD74: 0 | KE74: 0 | KF74: 0 | KG74: 0 | KH74: 0 | KI74: 0 | KJ74: 0 | KK74: 0 | KL74: 0 | KM74: 0 | KN74: 0 | KO74: 0 | KP74: 0 | KQ74: 0 | KR74: 0 | KS74: 0 | KT74: 0 | KU74: 0 | KV74: 0 | KW74: 0 | KX74: 0 | KY74: 0 | KZ74: 0 | LA74: 0 | LB74: 0 | LC74: 0 | LD74: 0 | LE74: 0 | LF74: 0 | LG74: 0 | LH74: 0 | LI74: 0 | LJ74: 0 | LK74: 0 | LL74: 0 | LM74: 0 | LN74: 0 | LO74: =LO36-LO43 -> 0 | LP74: 0 | LQ74: 0 | LR74: 0 | LS74: 0 | LT74: 0 | LU74: 0 | LV74: 0 | LW74: 0 | LX74: 0 | LY74: 0 | LZ74: 0 | MA74: 0 | MB74: 0 | MC74: 0 | MD74: 0 | ME74: 0 | MF74: 0 | MG74: 0 | MH74: 0 | MI74: 0 | MJ74: 0 | MK74: 0 | ML74: 0 | MM74: 0 | MN74: 0 | MO74: 0 | MP74: 0 | MQ74: 0 | MR74: 0 | MS74: 0 | MT74: 0 | MU74: 0 | MV74: 0 | MW74: 0 | MX74: 0 | MY74: 0 | MZ74: 0 | NA74: 0 | NB74: 0 | NC74: 0 | ND74: 0 | NE74: 0 | NF74: 0 | NG74: 0 | NH74: 0 | NI74: 0 | NJ74: 0 | NK74: 0 | NL74: 0 | NM74: 0 | NN74: 0 | NO74: 0 | NP74: 0 | NQ74: 0 | NR74: 0 | NS74: 0 | NT74: 0 | NU74: 0 | NV74: 0 | NW74: 0 | NX74: 0 | NY74: 0 | NZ74: 0 | OA74: =OA36-OA43 -> 0 | OB74: 0 | OC74: 0 | OD74: 0 | OE74: 0 | OF74: 0 | OG74: 0 | OH74: 0 | OI74: 0 | OJ74: =OJ36-OJ43 -> 0 | OK74: 0 | OL74: 0 | OM74: 0 | ON74: 0 | OO74: 0 | OP74: 0 | OQ74: 0 | OR74: 0 | OS74: 0 | OT74: 0 | OU74: 0 | OV74: 0 | OW74: 0 | OX74: 0 | OY74: 0 | OZ74: 0 | PA74: 0 | PB74: 0 | PC74: 0 | PD74: 0 | PE74: 0 | PF74: 0 | PG74: 0 | PH74: 0 | PI74: 0 | PJ74: 0 | PK74: 0 | PL74: 0 | PM74: 0 | PN74: 0 | PO74: 0 | PP74: 0 | PQ74: 0 | PR74: 0 | PS74: 0 | PT74: 0 | PU74: 0 | PV74: 0 | PW74: 0 | PX74: 0 | PY74: 0 | PZ74: 0 | QA74: 0 | QB74: 0 | QC74: 0 | QD74: 0 | QE74: 0 | QF74: 0 | QG74: 0 | QH74: 0 | QI74: 0 | QJ74: 0 | QK74: 0 | QL74: 0 | QM74: 0 | QN74: 0 | QO74: 0 | QP74: 0 | QQ74: 0 | QR74: 0 | QS74: 0 | QT74: 0 | QU74: 0 | QV74: =QV36-QV43 -> 0 | QW74: 0 | QX74: 0 | QY74: 0 | QZ74: 0 | RA74: 0 | RB74: 0 | RC74: 0 | RD74: 0 | RE74: 0 | RF74: 0 | RG74: 0 | RH74: 0 | RI74: 0 | RJ74: 0 | RK74: 0 | RL74: 0 | RM74: 0 | RN74: 0 | RO74: 0 | RP74: 0 | RQ74: 0 | RR74: 0 | RS74: 0 | RT74: 0 | RU74: 0 | RV74: 0 | RW74: 0 | RX74: 0 | RY74: 0 | RZ74: 0 | SA74: 0 | SB74: 0 | SC74: 0 | SD74: 0 | SE74: 0 | SF74: 0 | SG74: 0
B76: IRR | E76: =XIRR(E74:OI74,E32:OI32) -> 0.08197963536
B77: NPV of Maintenance | E77: =E71 -> 0.08 | F77: =XNPV(E77,F73:OI73,F32:OI32) -> 7658.397339 | G77: Sum | H77: =SUM(F73:SG73) -> 34300
E78: =SUM(F73:OI73) -> 34300

Sheet Simple Case Exercise
A1: Assumptions
B2: General
C3: Commercial Operation | E3: Date | F3: 2012-05-01
C4: Concession Period | E4: Years | F4: 40
C5: Periods per Year | E5: Periods | F5: 2
C6: Months per Period | E6: Months | F6: =12/F5 -> 6
C7: Days per Period | E7: Days | F7: =360/F5 -> 180
C8: Retirement | E8: Date | F8: =EDATE(F3,F4*12)-1 -> 2052-04-30
C9: Debt Tenor | E9: Years | F9: 30
C10: Ending Debt Period | E10: Date | F10: =EDATE(F3,F9*12)-1 -> 2042-04-30
B12: Extraordinary Maintenenace
C13: Years Between Maintenance | E13: Years | F13: 5
C14: Periods Between Maintenance | E14: Periods | F14: =F13*F5 -> 10
C15: Maintenance Expenditure | E15: Currency | F15: 1000
A17: Model
C18: Period | F18: 0 | G18: =F18+1 -> 1 | H18: 2 | I18: 3 | J18: 4 | K18: 5 | L18: 6 | M18: 7 | N18: 8 | O18: 9 | P18: 10 | Q18: 11 | R18: 12 | S18: 13 | T18: 14 | U18: 15 | V18: 16 | W18: 17 | X18: 18 | Y18: 19 | Z18: 20 | AA18: 21 | AB18: 22 | AC18: 23 | AD18: 24 | AE18: 25 | AF18: 26 | AG18: 27 | AH18: 28 | AI18: 29 | AJ18: 30 | AK18: 31 | AL18: 32 | AM18: 33 | AN18: 34 | AO18: 35 | AP18: 36 | AQ18: 37 | AR18: 38 | AS18: 39 | AT18: 40 | AU18: 41 | AV18: 42 | AW18: 43 | AX18: 44 | AY18: 45 | AZ18: 46 | BA18: 47 | BB18: 48 | BC18: 49 | BD18: 50 | BE18: 51 | BF18: 52 | BG18: 53 | BH18: 54 | BI18: 55 | BJ18: 56 | BK18: 57 | BL18: 58 | BM18: 59 | BN18: 60 | BO18: 61 | BP18: 62 | BQ18: 63 | BR18: 64 | BS18: =BR18+1 -> 65 | BT18: 66 | BU18: 67 | BV18: 68 | BW18: 69 | BX18: 70 | BY18: 71 | BZ18: 72 | CA18: 73 | CB18: 74 | CC18: 75 | CD18: 76 | CE18: 77 | CF18: 78 | CG18: 79 | CH18: 80 | CI18: 81 | CJ18: 82 | CK18: 83 | CL18: 84 | CM18: 85 | CN18: 86 | CO18: 87 | CP18: 88 | CQ18: 89 | CR18: 90 | CS18: 91 | CT18: 92 | CU18: 93 | CV18: 94 | CW18: 95 | CX18: 96 | CY18: 97 | CZ18: 98 | DA18: 99 | DB18: 100 | DC18: 101 | DD18: 102 | DE18: 103 | DF18: 104 | DG18: 105 | DH18: 106 | DI18: 107 | DJ18: 108 | DK18: 109 | DL18: 110 | DM18: 111 | DN18: 112 | DO18: 113 | DP18: 114 | DQ18: 115 | DR18: 116 | DS18: 117 | DT18: 118 | DU18: 119 | DV18: 120 | DW18: 121 | DX18: 122 | DY18: 123 | DZ18: 124 | EA18: 125 | EB18: 126 | EC18: 127 | ED18: 128 | EE18: =ED18+1 -> 129 | EF18: 130 | EG18: 131 | EH18: 132 | EI18: 133 | EJ18: 134 | EK18: 135 | EL18: 136 | EM18: 137 | EN18: 138 | EO18: 139 | EP18: 140 | EQ18: 141 | ER18: 142 | ES18: 143 | ET18: 144 | EU18: 145 | EV18: 146 | EW18: 147 | EX18: 148 | EY18: 149 | EZ18: 150 | FA18: 151 | FB18: 152 | FC18: 153 | FD18: 154 | FE18: 155 | FF18: 156 | FG18: 157 | FH18: 158 | FI18: 159 | FJ18: 160 | FK18: 161 | FL18: 162 | FM18: 163 | FN18: 164 | FO18: 165 | FP18: 166 | FQ18: 167 | FR18: 168 | FS18: 169 | FT18: 170 | FU18: 171 | FV18: 172 | FW18: 173 | FX18: 174 | FY18: 175 | FZ18: 176 | GA18: 177 | GB18: 178 | GC18: 179 | GD18: 180 | GE18: 181 | GF18: 182 | GG18: 183 | GH18: 184 | GI18: 185 | GJ18: 186 | GK18: 187 | GL18: 188 | GM18: 189 | GN18: 190 | GO18: 191 | GP18: 192 | GQ18: =GP18+1 -> 193 | GR18: 194 | GS18: 195 | GT18: 196 | GU18: 197 | GV18: 198 | GW18: 199 | GX18: 200 | GY18: 201 | GZ18: 202 | HA18: 203 | HB18: 204 | HC18: 205 | HD18: 206 | HE18: 207 | HF18: 208 | HG18: 209 | HH18: 210 | HI18: 211 | HJ18: 212 | HK18: 213 | HL18: 214 | HM18: 215 | HN18: 216 | HO18: 217 | HP18: 218 | HQ18: 219 | HR18: 220 | HS18: 221 | HT18: 222 | HU18: 223 | HV18: 224 | HW18: 225 | HX18: 226 | HY18: 227 | HZ18: 228 | IA18: 229 | IB18: 230 | IC18: 231 | ID18: 232 | IE18: 233 | IF18: 234 | IG18: 235 | IH18: 236 | II18: 237 | IJ18: 238 | IK18: 239 | IL18: 240 | IM18: 241 | IN18: 242 | IO18: 243 | IP18: 244 | IQ18: 245 | IR18: 246 | IS18: 247 | IT18: 248 | IU18: 249 | IV18: 250
C19: Months in Period | F19: =F6 -> 6 | G19: =F19 -> 6 | H19: 6 | I19: 6 | J19: 6 | K19: 6 | L19: 6 | M19: 6 | N19: 6 | O19: 6 | P19: 6 | Q19: 6 | R19: 6 | S19: 6 | T19: 6 | U19: 6 | V19: 6 | W19: 6 | X19: 6 | Y19: 6 | Z19: 6 | AA19: 6 | AB19: 6 | AC19: 6 | AD19: 6 | AE19: 6 | AF19: 6 | AG19: 6 | AH19: 6 | AI19: 6 | AJ19: 6 | AK19: 6 | AL19: 6 | AM19: 6 | AN19: 6 | AO19: 6 | AP19: 6 | AQ19: 6 | AR19: 6 | AS19: 6 | AT19: 6 | AU19: 6 | AV19: 6 | AW19: 6 | AX19: 6 | AY19: 6 | AZ19: 6 | BA19: 6 | BB19: 6 | BC19: 6 | BD19: 6 | BE19: 6 | BF19: 6 | BG19: 6 | BH19: 6 | BI19: 6 | BJ19: 6 | BK19: 6 | BL19: 6 | BM19: 6 | BN19: 6 | BO19: 6 | BP19: 6 | BQ19: 6 | BR19: 6 | BS19: =BR19 -> 6 | BT19: 6 | BU19: 6 | BV19: 6 | BW19: 6 | BX19: 6 | BY19: 6 | BZ19: 6 | CA19: 6 | CB19: 6 | CC19: 6 | CD19: 6 | CE19: 6 | CF19: 6 | CG19: 6 | CH19: 6 | CI19: 6 | CJ19: 6 | CK19: 6 | CL19: 6 | CM19: 6 | CN19: 6 | CO19: 6 | CP19: 6 | CQ19: 6 | CR19: 6 | CS19: 6 | CT19: 6 | CU19: 6 | CV19: 6 | CW19: 6 | CX19: 6 | CY19: 6 | CZ19: 6 | DA19: 6 | DB19: 6 | DC19: 6 | DD19: 6 | DE19: 6 | DF19: 6 | DG19: 6 | DH19: 6 | DI19: 6 | DJ19: 6 | DK19: 6 | DL19: 6 | DM19: 6 | DN19: 6 | DO19: 6 | DP19: 6 | DQ19: 6 | DR19: 6 | DS19: 6 | DT19: 6 | DU19: 6 | DV19: 6 | DW19: 6 | DX19: 6 | DY19: 6 | DZ19: 6 | EA19: 6 | EB19: 6 | EC19: 6 | ED19: 6 | EE19: =ED19 -> 6 | EF19: 6 | EG19: 6 | EH19: 6 | EI19: 6 | EJ19: 6 | EK19: 6 | EL19: 6 | EM19: 6 | EN19: 6 | EO19: 6 | EP19: 6 | EQ19: 6 | ER19: 6 | ES19: 6 | ET19: 6 | EU19: 6 | EV19: 6 | EW19: 6 | EX19: 6 | EY19: 6 | EZ19: 6 | FA19: 6 | FB19: 6 | FC19: 6 | FD19: 6 | FE19: 6 | FF19: 6 | FG19: 6 | FH19: 6 | FI19: 6 | FJ19: 6 | FK19: 6 | FL19: 6 | FM19: 6 | FN19: 6 | FO19: 6 | FP19: 6 | FQ19: 6 | FR19: 6 | FS19: 6 | FT19: 6 | FU19: 6 | FV19: 6 | FW19: 6 | FX19: 6 | FY19: 6 | FZ19: 6 | GA19: 6 | GB19: 6 | GC19: 6 | GD19: 6 | GE19: 6 | GF19: 6 | GG19: 6 | GH19: 6 | GI19: 6 | GJ19: 6 | GK19: 6 | GL19: 6 | GM19: 6 | GN19: 6 | GO19: 6 | GP19: 6 | GQ19: =GP19 -> 6 | GR19: 6 | GS19: 6 | GT19: 6 | GU19: 6 | GV19: 6 | GW19: 6 | GX19: 6 | GY19: 6 | GZ19: 6 | HA19: 6 | HB19: 6 | HC19: 6 | HD19: 6 | HE19: 6 | HF19: 6 | HG19: 6 | HH19: 6 | HI19: 6 | HJ19: 6 | HK19: 6 | HL19: 6 | HM19: 6 | HN19: 6 | HO19: 6 | HP19: 6 | HQ19: 6 | HR19: 6 | HS19: 6 | HT19: 6 | HU19: 6 | HV19: 6 | HW19: 6 | HX19: 6 | HY19: 6 | HZ19: 6 | IA19: 6 | IB19: 6 | IC19: 6 | ID19: 6 | IE19: 6 | IF19: 6 | IG19: 6 | IH19: 6 | II19: 6 | IJ19: 6 | IK19: 6 | IL19: 6 | IM19: 6 | IN19: 6 | IO19: 6 | IP19: 6 | IQ19: 6 | IR19: 6 | IS19: 6 | IT19: 6 | IU19: 6 | IV19: 6
C21: Start Date
C22: End Date | F22: =F3-1 -> 2012-04-30
C23: Operating Period | F23: =AND(F22>$F$3,F21<$F$8) -> FALSE
C25: Spend Peiod | E25: =F14 -> 10
C26: Sepnd Amount | E26: =F15 -> 1000
C27: Peirods between Spend | E27: =F14 -> 10
C29: Debt repayment Switch | E29: =F10 -> 2042-04-30
C30: Spend amount Adjusted for Debt Repayment | E30: =F15 -> 1000
C32: MRA Contribution
B34: MRA Balance
C35: Opening Balance
C36: Add: MRA Contributions
C37: Less: Spend
C38: Closing Balance
C40: Test
C41: Aggregate

Sheet Simple Case Complete
A1: Assumptions
B2: General
C3: Commercial Operation | E3: Date | F3: 2012-05-01
C4: Concession Period | E4: Years | F4: 40
C5: Periods per Year | E5: Periods | F5: 2
C6: Months per Period | E6: Months | F6: =12/F5 -> 6
C7: Days per Period | E7: Days | F7: =360/F5 -> 180
C8: Retirement | E8: Date | F8: =EDATE(F3,F4*12)-1 -> 2052-04-30
C9: Debt Tenor | E9: Years | F9: 30
C10: Ending Debt Period | E10: Date | F10: =EDATE(F3,F9*12)-1 -> 2042-04-30
B12: Extraordinary Maintenenace
C13: Years Between Maintenance | E13: Years | F13: 5
C14: Periods Between Maintenance | E14: Periods | F14: =F13*F5 -> 10
C15: Maintenance Expenditure | E15: Currency | F15: 1000
A17: Model
C18: Period | F18: 0 | G18: =F18+1 -> 1 | H18: 2 | I18: 3 | J18: 4 | K18: 5 | L18: 6 | M18: 7 | N18: 8 | O18: 9 | P18: 10 | Q18: 11 | R18: 12 | S18: 13 | T18: 14 | U18: 15 | V18: 16 | W18: 17 | X18: 18 | Y18: 19 | Z18: 20 | AA18: 21 | AB18: 22 | AC18: 23 | AD18: 24 | AE18: 25 | AF18: 26 | AG18: 27 | AH18: 28 | AI18: 29 | AJ18: 30 | AK18: 31 | AL18: 32 | AM18: 33 | AN18: 34 | AO18: 35 | AP18: 36 | AQ18: 37 | AR18: 38 | AS18: 39 | AT18: 40 | AU18: 41 | AV18: 42 | AW18: 43 | AX18: 44 | AY18: 45 | AZ18: 46 | BA18: 47 | BB18: 48 | BC18: 49 | BD18: 50 | BE18: 51 | BF18: 52 | BG18: 53 | BH18: 54 | BI18: 55 | BJ18: 56 | BK18: 57 | BL18: 58 | BM18: 59 | BN18: 60 | BO18: 61 | BP18: 62 | BQ18: 63 | BR18: 64 | BS18: =BR18+1 -> 65 | BT18: 66 | BU18: 67 | BV18: 68 | BW18: 69 | BX18: 70 | BY18: 71 | BZ18: 72 | CA18: 73 | CB18: 74 | CC18: 75 | CD18: 76 | CE18: 77 | CF18: 78 | CG18: 79 | CH18: 80 | CI18: 81 | CJ18: 82 | CK18: 83 | CL18: 84 | CM18: 85 | CN18: 86 | CO18: 87 | CP18: 88 | CQ18: 89 | CR18: 90 | CS18: 91 | CT18: 92 | CU18: 93 | CV18: 94 | CW18: 95 | CX18: 96 | CY18: 97 | CZ18: 98 | DA18: 99 | DB18: 100 | DC18: 101 | DD18: 102 | DE18: 103 | DF18: 104 | DG18: 105 | DH18: 106 | DI18: 107 | DJ18: 108 | DK18: 109 | DL18: 110 | DM18: 111 | DN18: 112 | DO18: 113 | DP18: 114 | DQ18: 115 | DR18: 116 | DS18: 117 | DT18: 118 | DU18: 119 | DV18: 120 | DW18: 121 | DX18: 122 | DY18: 123 | DZ18: 124 | EA18: 125 | EB18: 126 | EC18: 127 | ED18: 128 | EE18: =ED18+1 -> 129 | EF18: 130 | EG18: 131 | EH18: 132 | EI18: 133 | EJ18: 134 | EK18: 135 | EL18: 136 | EM18: 137 | EN18: 138 | EO18: 139 | EP18: 140 | EQ18: 141 | ER18: 142 | ES18: 143 | ET18: 144 | EU18: 145 | EV18: 146 | EW18: 147 | EX18: 148 | EY18: 149 | EZ18: 150 | FA18: 151 | FB18: 152 | FC18: 153 | FD18: 154 | FE18: 155 | FF18: 156 | FG18: 157 | FH18: 158 | FI18: 159 | FJ18: 160 | FK18: 161 | FL18: 162 | FM18: 163 | FN18: 164 | FO18: 165 | FP18: 166 | FQ18: 167 | FR18: 168 | FS18: 169 | FT18: 170 | FU18: 171 | FV18: 172 | FW18: 173 | FX18: 174 | FY18: 175 | FZ18: 176 | GA18: 177 | GB18: 178 | GC18: 179 | GD18: 180 | GE18: 181 | GF18: 182 | GG18: 183 | GH18: 184 | GI18: 185 | GJ18: 186 | GK18: 187 | GL18: 188 | GM18: 189 | GN18: 190 | GO18: 191 | GP18: 192 | GQ18: =GP18+1 -> 193 | GR18: 194 | GS18: 195 | GT18: 196 | GU18: 197 | GV18: 198 | GW18: 199 | GX18: 200 | GY18: 201 | GZ18: 202 | HA18: 203 | HB18: 204 | HC18: 205 | HD18: 206 | HE18: 207 | HF18: 208 | HG18: 209 | HH18: 210 | HI18: 211 | HJ18: 212 | HK18: 213 | HL18: 214 | HM18: 215 | HN18: 216 | HO18: 217 | HP18: 218 | HQ18: 219 | HR18: 220 | HS18: 221 | HT18: 222 | HU18: 223 | HV18: 224 | HW18: 225 | HX18: 226 | HY18: 227 | HZ18: 228 | IA18: 229 | IB18: 230 | IC18: 231 | ID18: 232 | IE18: 233 | IF18: 234 | IG18: 235 | IH18: 236 | II18: 237 | IJ18: 238 | IK18: 239 | IL18: 240 | IM18: 241 | IN18: 242 | IO18: 243 | IP18: 244 | IQ18: 245 | IR18: 246 | IS18: 247 | IT18: 248 | IU18: 249 | IV18: 250
C19: Months in Period | F19: =F6 -> 6 | G19: =F19 -> 6 | H19: 6 | I19: 6 | J19: 6 | K19: 6 | L19: 6 | M19: 6 | N19: 6 | O19: 6 | P19: 6 | Q19: 6 | R19: 6 | S19: 6 | T19: 6 | U19: 6 | V19: 6 | W19: 6 | X19: 6 | Y19: 6 | Z19: 6 | AA19: 6 | AB19: 6 | AC19: 6 | AD19: 6 | AE19: 6 | AF19: 6 | AG19: 6 | AH19: 6 | AI19: 6 | AJ19: 6 | AK19: 6 | AL19: 6 | AM19: 6 | AN19: 6 | AO19: 6 | AP19: 6 | AQ19: 6 | AR19: 6 | AS19: 6 | AT19: 6 | AU19: 6 | AV19: 6 | AW19: 6 | AX19: 6 | AY19: 6 | AZ19: 6 | BA19: 6 | BB19: 6 | BC19: 6 | BD19: 6 | BE19: 6 | BF19: 6 | BG19: 6 | BH19: 6 | BI19: 6 | BJ19: 6 | BK19: 6 | BL19: 6 | BM19: 6 | BN19: 6 | BO19: 6 | BP19: 6 | BQ19: 6 | BR19: 6 | BS19: =BR19 -> 6 | BT19: 6 | BU19: 6 | BV19: 6 | BW19: 6 | BX19: 6 | BY19: 6 | BZ19: 6 | CA19: 6 | CB19: 6 | CC19: 6 | CD19: 6 | CE19: 6 | CF19: 6 | CG19: 6 | CH19: 6 | CI19: 6 | CJ19: 6 | CK19: 6 | CL19: 6 | CM19: 6 | CN19: 6 | CO19: 6 | CP19: 6 | CQ19: 6 | CR19: 6 | CS19: 6 | CT19: 6 | CU19: 6 | CV19: 6 | CW19: 6 | CX19: 6 | CY19: 6 | CZ19: 6 | DA19: 6 | DB19: 6 | DC19: 6 | DD19: 6 | DE19: 6 | DF19: 6 | DG19: 6 | DH19: 6 | DI19: 6 | DJ19: 6 | DK19: 6 | DL19: 6 | DM19: 6 | DN19: 6 | DO19: 6 | DP19: 6 | DQ19: 6 | DR19: 6 | DS19: 6 | DT19: 6 | DU19: 6 | DV19: 6 | DW19: 6 | DX19: 6 | DY19: 6 | DZ19: 6 | EA19: 6 | EB19: 6 | EC19: 6 | ED19: 6 | EE19: =ED19 -> 6 | EF19: 6 | EG19: 6 | EH19: 6 | EI19: 6 | EJ19: 6 | EK19: 6 | EL19: 6 | EM19: 6 | EN19: 6 | EO19: 6 | EP19: 6 | EQ19: 6 | ER19: 6 | ES19: 6 | ET19: 6 | EU19: 6 | EV19: 6 | EW19: 6 | EX19: 6 | EY19: 6 | EZ19: 6 | FA19: 6 | FB19: 6 | FC19: 6 | FD19: 6 | FE19: 6 | FF19: 6 | FG19: 6 | FH19: 6 | FI19: 6 | FJ19: 6 | FK19: 6 | FL19: 6 | FM19: 6 | FN19: 6 | FO19: 6 | FP19: 6 | FQ19: 6 | FR19: 6 | FS19: 6 | FT19: 6 | FU19: 6 | FV19: 6 | FW19: 6 | FX19: 6 | FY19: 6 | FZ19: 6 | GA19: 6 | GB19: 6 | GC19: 6 | GD19: 6 | GE19: 6 | GF19: 6 | GG19: 6 | GH19: 6 | GI19: 6 | GJ19: 6 | GK19: 6 | GL19: 6 | GM19: 6 | GN19: 6 | GO19: 6 | GP19: 6 | GQ19: =GP19 -> 6 | GR19: 6 | GS19: 6 | GT19: 6 | GU19: 6 | GV19: 6 | GW19: 6 | GX19: 6 | GY19: 6 | GZ19: 6 | HA19: 6 | HB19: 6 | HC19: 6 | HD19: 6 | HE19: 6 | HF19: 6 | HG19: 6 | HH19: 6 | HI19: 6 | HJ19: 6 | HK19: 6 | HL19: 6 | HM19: 6 | HN19: 6 | HO19: 6 | HP19: 6 | HQ19: 6 | HR19: 6 | HS19: 6 | HT19: 6 | HU19: 6 | HV19: 6 | HW19: 6 | HX19: 6 | HY19: 6 | HZ19: 6 | IA19: 6 | IB19: 6 | IC19: 6 | ID19: 6 | IE19: 6 | IF19: 6 | IG19: 6 | IH19: 6 | II19: 6 | IJ19: 6 | IK19: 6 | IL19: 6 | IM19: 6 | IN19: 6 | IO19: 6 | IP19: 6 | IQ19: 6 | IR19: 6 | IS19: 6 | IT19: 6 | IU19: 6 | IV19: 6
C21: Start Date | G21: =F22+1 -> 2012-05-01 | H21: 2012-11-01 | I21: 2013-05-01 | J21: 2013-11-01 | K21: 2014-05-01 | L21: 2014-11-01 | M21: 2015-05-01 | N21: 2015-11-01 | O21: 2016-05-01 | P21: 2016-11-01 | Q21: 2017-05-01 | R21: 2017-11-01 | S21: 2018-05-01 | T21: 2018-11-01 | U21: 2019-05-01 | V21: 2019-11-01 | W21: 2020-05-01 | X21: 2020-11-01 | Y21: 2021-05-01 | Z21: 2021-11-01 | AA21: 2022-05-01 | AB21: 2022-11-01 | AC21: 2023-05-01 | AD21: 2023-11-01 | AE21: 2024-05-01 | AF21: 2024-11-01 | AG21: 2025-05-01 | AH21: 2025-11-01 | AI21: 2026-05-01 | AJ21: 2026-11-01 | AK21: 2027-05-01 | AL21: 2027-11-01 | AM21: 2028-05-01 | AN21: 2028-11-01 | AO21: 2029-05-01 | AP21: 2029-11-01 | AQ21: 2030-05-01 | AR21: 2030-11-01 | AS21: 2031-05-01 | AT21: 2031-11-01 | AU21: 2032-05-01 | AV21: 2032-11-01 | AW21: 2033-05-01 | AX21: 2033-11-01 | AY21: 2034-05-01 | AZ21: 2034-11-01 | BA21: 2035-05-01 | BB21: 2035-11-01 | BC21: 2036-05-01 | BD21: 2036-11-01 | BE21: 2037-05-01 | BF21: 2037-11-01 | BG21: 2038-05-01 | BH21: 2038-11-01 | BI21: 2039-05-01 | BJ21: 2039-11-01 | BK21: 2040-05-01 | BL21: 2040-11-01 | BM21: 2041-05-01 | BN21: 2041-11-01 | BO21: 2042-05-01 | BP21: 2042-11-01 | BQ21: 2043-05-01 | BR21: 2043-11-01 | BS21: =BR22+1 -> 2044-05-01 | BT21: 2044-11-01 | BU21: 2045-05-01 | BV21: 2045-11-01 | BW21: 2046-05-01 | BX21: 2046-11-01 | BY21: 2047-05-01 | BZ21: 2047-11-01 | CA21: 2048-05-01 | CB21: 2048-11-01 | CC21: 2049-05-01 | CD21: 2049-11-01 | CE21: 2050-05-01 | CF21: 2050-11-01 | CG21: 2051-05-01 | CH21: 2051-11-01 | CI21: 2052-05-01 | CJ21: 2052-05-01 | CK21: 2052-05-01 | CL21: 2052-05-01 | CM21: 2052-05-01 | CN21: 2052-05-01 | CO21: 2052-05-01 | CP21: 2052-05-01 | CQ21: 2052-05-01 | CR21: 2052-05-01 | CS21: 2052-05-01 | CT21: 2052-05-01 | CU21: 2052-05-01 | CV21: 2052-05-01 | CW21: 2052-05-01 | CX21: 2052-05-01 | CY21: 2052-05-01 | CZ21: 2052-05-01 | DA21: 2052-05-01 | DB21: 2052-05-01 | DC21: 2052-05-01 | DD21: 2052-05-01 | DE21: 2052-05-01 | DF21: 2052-05-01 | DG21: 2052-05-01 | DH21: 2052-05-01 | DI21: 2052-05-01 | DJ21: 2052-05-01 | DK21: 2052-05-01 | DL21: 2052-05-01 | DM21: 2052-05-01 | DN21: 2052-05-01 | DO21: 2052-05-01 | DP21: 2052-05-01 | DQ21: 2052-05-01 | DR21: 2052-05-01 | DS21: 2052-05-01 | DT21: 2052-05-01 | DU21: 2052-05-01 | DV21: 2052-05-01 | DW21: 2052-05-01 | DX21: 2052-05-01 | DY21: 2052-05-01 | DZ21: 2052-05-01 | EA21: 2052-05-01 | EB21: 2052-05-01 | EC21: 2052-05-01 | ED21: 2052-05-01 | EE21: =ED22+1 -> 2052-05-01 | EF21: 2052-05-01 | EG21: 2052-05-01 | EH21: 2052-05-01 | EI21: 2052-05-01 | EJ21: 2052-05-01 | EK21: 2052-05-01 | EL21: 2052-05-01 | EM21: 2052-05-01 | EN21: 2052-05-01 | EO21: 2052-05-01 | EP21: 2052-05-01 | EQ21: 2052-05-01 | ER21: 2052-05-01 | ES21: 2052-05-01 | ET21: 2052-05-01 | EU21: 2052-05-01 | EV21: 2052-05-01 | EW21: 2052-05-01 | EX21: 2052-05-01 | EY21: 2052-05-01 | EZ21: 2052-05-01 | FA21: 2052-05-01 | FB21: 2052-05-01 | FC21: 2052-05-01 | FD21: 2052-05-01 | FE21: 2052-05-01 | FF21: 2052-05-01 | FG21: 2052-05-01 | FH21: 2052-05-01 | FI21: 2052-05-01 | FJ21: 2052-05-01 | FK21: 2052-05-01 | FL21: 2052-05-01 | FM21: 2052-05-01 | FN21: 2052-05-01 | FO21: 2052-05-01 | FP21: 2052-05-01 | FQ21: 2052-05-01 | FR21: 2052-05-01 | FS21: 2052-05-01 | FT21: 2052-05-01 | FU21: 2052-05-01 | FV21: 2052-05-01 | FW21: 2052-05-01 | FX21: 2052-05-01 | FY21: 2052-05-01 | FZ21: 2052-05-01 | GA21: 2052-05-01 | GB21: 2052-05-01 | GC21: 2052-05-01 | GD21: 2052-05-01 | GE21: 2052-05-01 | GF21: 2052-05-01 | GG21: 2052-05-01 | GH21: 2052-05-01 | GI21: 2052-05-01 | GJ21: 2052-05-01 | GK21: 2052-05-01 | GL21: 2052-05-01 | GM21: 2052-05-01 | GN21: 2052-05-01 | GO21: 2052-05-01 | GP21: 2052-05-01 | GQ21: =GP22+1 -> 2052-05-01 | GR21: 2052-05-01 | GS21: 2052-05-01 | GT21: 2052-05-01 | GU21: 2052-05-01 | GV21: 2052-05-01 | GW21: 2052-05-01 | GX21: 2052-05-01 | GY21: 2052-05-01 | GZ21: 2052-05-01 | HA21: 2052-05-01 | HB21: 2052-05-01 | HC21: 2052-05-01 | HD21: 2052-05-01 | HE21: 2052-05-01 | HF21: 2052-05-01 | HG21: 2052-05-01 | HH21: 2052-05-01 | HI21: 2052-05-01 | HJ21: 2052-05-01 | HK21: 2052-05-01 | HL21: 2052-05-01 | HM21: 2052-05-01 | HN21: 2052-05-01 | HO21: 2052-05-01 | HP21: 2052-05-01 | HQ21: 2052-05-01 | HR21: 2052-05-01 | HS21: 2052-05-01 | HT21: 2052-05-01 | HU21: 2052-05-01 | HV21: 2052-05-01 | HW21: 2052-05-01 | HX21: 2052-05-01 | HY21: 2052-05-01 | HZ21: 2052-05-01 | IA21: 2052-05-01 | IB21: 2052-05-01 | IC21: 2052-05-01 | ID21: 2052-05-01 | IE21: 2052-05-01 | IF21: 2052-05-01 | IG21: 2052-05-01 | IH21: 2052-05-01 | II21: 2052-05-01 | IJ21: 2052-05-01 | IK21: 2052-05-01 | IL21: 2052-05-01 | IM21: 2052-05-01 | IN21: 2052-05-01 | IO21: 2052-05-01 | IP21: 2052-05-01 | IQ21: 2052-05-01 | IR21: 2052-05-01 | IS21: 2052-05-01 | IT21: 2052-05-01 | IU21: 2052-05-01 | IV21: 2052-05-01
C22: End Date | F22: =F3-1 -> 2012-04-30 | G22: =MIN(EDATE(G21,G19)-1,$F$8) -> 2012-10-31 | H22: 2013-04-30 | I22: 2013-10-31 | J22: 2014-04-30 | K22: 2014-10-31 | L22: 2015-04-30 | M22: 2015-10-31 | N22: 2016-04-30 | O22: 2016-10-31 | P22: 2017-04-30 | Q22: 2017-10-31 | R22: 2018-04-30 | S22: 2018-10-31 | T22: 2019-04-30 | U22: 2019-10-31 | V22: 2020-04-30 | W22: 2020-10-31 | X22: 2021-04-30 | Y22: 2021-10-31 | Z22: 2022-04-30 | AA22: 2022-10-31 | AB22: 2023-04-30 | AC22: 2023-10-31 | AD22: 2024-04-30 | AE22: 2024-10-31 | AF22: 2025-04-30 | AG22: 2025-10-31 | AH22: 2026-04-30 | AI22: 2026-10-31 | AJ22: 2027-04-30 | AK22: 2027-10-31 | AL22: 2028-04-30 | AM22: 2028-10-31 | AN22: 2029-04-30 | AO22: 2029-10-31 | AP22: 2030-04-30 | AQ22: 2030-10-31 | AR22: 2031-04-30 | AS22: 2031-10-31 | AT22: 2032-04-30 | AU22: 2032-10-31 | AV22: 2033-04-30 | AW22: 2033-10-31 | AX22: 2034-04-30 | AY22: 2034-10-31 | AZ22: 2035-04-30 | BA22: 2035-10-31 | BB22: 2036-04-30 | BC22: 2036-10-31 | BD22: 2037-04-30 | BE22: 2037-10-31 | BF22: 2038-04-30 | BG22: 2038-10-31 | BH22: 2039-04-30 | BI22: 2039-10-31 | BJ22: 2040-04-30 | BK22: 2040-10-31 | BL22: 2041-04-30 | BM22: 2041-10-31 | BN22: 2042-04-30 | BO22: 2042-10-31 | BP22: 2043-04-30 | BQ22: 2043-10-31 | BR22: 2044-04-30 | BS22: =MIN(EDATE(BS21,BS19)-1,$F$8) -> 2044-10-31 | BT22: 2045-04-30 | BU22: 2045-10-31 | BV22: 2046-04-30 | BW22: 2046-10-31 | BX22: 2047-04-30 | BY22: 2047-10-31 | BZ22: 2048-04-30 | CA22: 2048-10-31 | CB22: 2049-04-30 | CC22: 2049-10-31 | CD22: 2050-04-30 | CE22: 2050-10-31 | CF22: 2051-04-30 | CG22: 2051-10-31 | CH22: 2052-04-30 | CI22: 2052-04-30 | CJ22: 2052-04-30 | CK22: 2052-04-30 | CL22: 2052-04-30 | CM22: 2052-04-30 | CN22: 2052-04-30 | CO22: 2052-04-30 | CP22: 2052-04-30 | CQ22: 2052-04-30 | CR22: 2052-04-30 | CS22: 2052-04-30 | CT22: 2052-04-30 | CU22: 2052-04-30 | CV22: 2052-04-30 | CW22: 2052-04-30 | CX22: 2052-04-30 | CY22: 2052-04-30 | CZ22: 2052-04-30 | DA22: 2052-04-30 | DB22: 2052-04-30 | DC22: 2052-04-30 | DD22: 2052-04-30 | DE22: 2052-04-30 | DF22: 2052-04-30 | DG22: 2052-04-30 | DH22: 2052-04-30 | DI22: 2052-04-30 | DJ22: 2052-04-30 | DK22: 2052-04-30 | DL22: 2052-04-30 | DM22: 2052-04-30 | DN22: 2052-04-30 | DO22: 2052-04-30 | DP22: 2052-04-30 | DQ22: 2052-04-30 | DR22: 2052-04-30 | DS22: 2052-04-30 | DT22: 2052-04-30 | DU22: 2052-04-30 | DV22: 2052-04-30 | DW22: 2052-04-30 | DX22: 2052-04-30 | DY22: 2052-04-30 | DZ22: 2052-04-30 | EA22: 2052-04-30 | EB22: 2052-04-30 | EC22: 2052-04-30 | ED22: 2052-04-30 | EE22: =MIN(EDATE(EE21,EE19)-1,$F$8) -> 2052-04-30 | EF22: 2052-04-30 | EG22: 2052-04-30 | EH22: 2052-04-30 | EI22: 2052-04-30 | EJ22: 2052-04-30 | EK22: 2052-04-30 | EL22: 2052-04-30 | EM22: 2052-04-30 | EN22: 2052-04-30 | EO22: 2052-04-30 | EP22: 2052-04-30 | EQ22: 2052-04-30 | ER22: 2052-04-30 | ES22: 2052-04-30 | ET22: 2052-04-30 | EU22: 2052-04-30 | EV22: 2052-04-30 | EW22: 2052-04-30 | EX22: 2052-04-30 | EY22: 2052-04-30 | EZ22: 2052-04-30 | FA22: 2052-04-30 | FB22: 2052-04-30 | FC22: 2052-04-30 | FD22: 2052-04-30 | FE22: 2052-04-30 | FF22: 2052-04-30 | FG22: 2052-04-30 | FH22: 2052-04-30 | FI22: 2052-04-30 | FJ22: 2052-04-30 | FK22: 2052-04-30 | FL22: 2052-04-30 | FM22: 2052-04-30 | FN22: 2052-04-30 | FO22: 2052-04-30 | FP22: 2052-04-30 | FQ22: 2052-04-30 | FR22: 2052-04-30 | FS22: 2052-04-30 | FT22: 2052-04-30 | FU22: 2052-04-30 | FV22: 2052-04-30 | FW22: 2052-04-30 | FX22: 2052-04-30 | FY22: 2052-04-30 | FZ22: 2052-04-30 | GA22: 2052-04-30 | GB22: 2052-04-30 | GC22: 2052-04-30 | GD22: 2052-04-30 | GE22: 2052-04-30 | GF22: 2052-04-30 | GG22: 2052-04-30 | GH22: 2052-04-30 | GI22: 2052-04-30 | GJ22: 2052-04-30 | GK22: 2052-04-30 | GL22: 2052-04-30 | GM22: 2052-04-30 | GN22: 2052-04-30 | GO22: 2052-04-30 | GP22: 2052-04-30 | GQ22: =MIN(EDATE(GQ21,GQ19)-1,$F$8) -> 2052-04-30 | GR22: 2052-04-30 | GS22: 2052-04-30 | GT22: 2052-04-30 | GU22: 2052-04-30 | GV22: 2052-04-30 | GW22: 2052-04-30 | GX22: 2052-04-30 | GY22: 2052-04-30 | GZ22: 2052-04-30 | HA22: 2052-04-30 | HB22: 2052-04-30 | HC22: 2052-04-30 | HD22: 2052-04-30 | HE22: 2052-04-30 | HF22: 2052-04-30 | HG22: 2052-04-30 | HH22: 2052-04-30 | HI22: 2052-04-30 | HJ22: 2052-04-30 | HK22: 2052-04-30 | HL22: 2052-04-30 | HM22: 2052-04-30 | HN22: 2052-04-30 | HO22: 2052-04-30 | HP22: 2052-04-30 | HQ22: 2052-04-30 | HR22: 2052-04-30 | HS22: 2052-04-30 | HT22: 2052-04-30 | HU22: 2052-04-30 | HV22: 2052-04-30 | HW22: 2052-04-30 | HX22: 2052-04-30 | HY22: 2052-04-30 | HZ22: 2052-04-30 | IA22: 2052-04-30 | IB22: 2052-04-30 | IC22: 2052-04-30 | ID22: 2052-04-30 | IE22: 2052-04-30 | IF22: 2052-04-30 | IG22: 2052-04-30 | IH22: 2052-04-30 | II22: 2052-04-30 | IJ22: 2052-04-30 | IK22: 2052-04-30 | IL22: 2052-04-30 | IM22: 2052-04-30 | IN22: 2052-04-30 | IO22: 2052-04-30 | IP22: 2052-04-30 | IQ22: 2052-04-30 | IR22: 2052-04-30 | IS22: 2052-04-30 | IT22: 2052-04-30 | IU22: 2052-04-30 | IV22: 2052-04-30
C23: Operating Period | F23: =AND(F22>$F$3,F21<$F$8) -> FALSE | G23: TRUE | H23: TRUE | I23: TRUE | J23: TRUE | K23: TRUE | L23: TRUE | M23: TRUE | N23: TRUE | O23: TRUE | P23: TRUE | Q23: TRUE | R23: TRUE | S23: TRUE | T23: TRUE | U23: TRUE | V23: TRUE | W23: TRUE | X23: TRUE | Y23: TRUE | Z23: TRUE | AA23: TRUE | AB23: TRUE | AC23: TRUE | AD23: TRUE | AE23: TRUE | AF23: TRUE | AG23: TRUE | AH23: TRUE | AI23: TRUE | AJ23: TRUE | AK23: TRUE | AL23: TRUE | AM23: TRUE | AN23: TRUE | AO23: TRUE | AP23: TRUE | AQ23: TRUE | AR23: TRUE | AS23: TRUE | AT23: TRUE | AU23: TRUE | AV23: TRUE | AW23: TRUE | AX23: TRUE | AY23: TRUE | AZ23: TRUE | BA23: TRUE | BB23: TRUE | BC23: TRUE | BD23: TRUE | BE23: TRUE | BF23: TRUE | BG23: TRUE | BH23: TRUE | BI23: TRUE | BJ23: TRUE | BK23: TRUE | BL23: TRUE | BM23: TRUE | BN23: TRUE | BO23: TRUE | BP23: TRUE | BQ23: TRUE | BR23: =AND(BR22>$F$3,BR21<$F$8) -> TRUE | BS23: TRUE | BT23: TRUE | BU23: TRUE | BV23: TRUE | BW23: TRUE | BX23: TRUE | BY23: TRUE | BZ23: TRUE | CA23: TRUE | CB23: TRUE | CC23: TRUE | CD23: TRUE | CE23: TRUE | CF23: TRUE | CG23: TRUE | CH23: TRUE | CI23: FALSE | CJ23: FALSE | CK23: FALSE | CL23: FALSE | CM23: FALSE | CN23: FALSE | CO23: FALSE | CP23: FALSE | CQ23: FALSE | CR23: FALSE | CS23: FALSE | CT23: FALSE | CU23: FALSE | CV23: FALSE | CW23: FALSE | CX23: FALSE | CY23: FALSE | CZ23: FALSE | DA23: FALSE | DB23: FALSE | DC23: FALSE | DD23: FALSE | DE23: FALSE | DF23: FALSE | DG23: FALSE | DH23: FALSE | DI23: FALSE | DJ23: FALSE | DK23: FALSE | DL23: FALSE | DM23: FALSE | DN23: FALSE | DO23: FALSE | DP23: FALSE | DQ23: FALSE | DR23: FALSE | DS23: FALSE | DT23: FALSE | DU23: FALSE | DV23: FALSE | DW23: FALSE | DX23: FALSE | DY23: FALSE | DZ23: FALSE | EA23: FALSE | EB23: FALSE | EC23: FALSE | ED23: =AND(ED22>$F$3,ED21<$F$8) -> FALSE | EE23: FALSE | EF23: FALSE | EG23: FALSE | EH23: FALSE | EI23: FALSE | EJ23: FALSE | EK23: FALSE | EL23: FALSE | EM23: FALSE | EN23: FALSE | EO23: FALSE | EP23: FALSE | EQ23: FALSE | ER23: FALSE | ES23: FALSE | ET23: FALSE | EU23: FALSE | EV23: FALSE | EW23: FALSE | EX23: FALSE | EY23: FALSE | EZ23: FALSE | FA23: FALSE | FB23: FALSE | FC23: FALSE | FD23: FALSE | FE23: FALSE | FF23: FALSE | FG23: FALSE | FH23: FALSE | FI23: FALSE | FJ23: FALSE | FK23: FALSE | FL23: FALSE | FM23: FALSE | FN23: FALSE | FO23: FALSE | FP23: FALSE | FQ23: FALSE | FR23: FALSE | FS23: FALSE | FT23: FALSE | FU23: FALSE | FV23: FALSE | FW23: FALSE | FX23: FALSE | FY23: FALSE | FZ23: FALSE | GA23: FALSE | GB23: FALSE | GC23: FALSE | GD23: FALSE | GE23: FALSE | GF23: FALSE | GG23: FALSE | GH23: FALSE | GI23: FALSE | GJ23: FALSE | GK23: FALSE | GL23: FALSE | GM23: FALSE | GN23: FALSE | GO23: FALSE | GP23: =AND(GP22>$F$3,GP21<$F$8) -> FALSE | GQ23: FALSE | GR23: FALSE | GS23: FALSE | GT23: FALSE | GU23: FALSE | GV23: FALSE | GW23: FALSE | GX23: FALSE | GY23: FALSE | GZ23: FALSE | HA23: FALSE | HB23: FALSE | HC23: FALSE | HD23: FALSE | HE23: FALSE | HF23: FALSE | HG23: FALSE | HH23: FALSE | HI23: FALSE | HJ23: FALSE | HK23: FALSE | HL23: FALSE | HM23: FALSE | HN23: FALSE | HO23: FALSE | HP23: FALSE | HQ23: FALSE | HR23: FALSE | HS23: FALSE | HT23: FALSE | HU23: FALSE | HV23: FALSE | HW23: FALSE | HX23: FALSE | HY23: FALSE | HZ23: FALSE | IA23: FALSE | IB23: FALSE | IC23: FALSE | ID23: FALSE | IE23: FALSE | IF23: FALSE | IG23: FALSE | IH23: FALSE | II23: FALSE | IJ23: FALSE | IK23: FALSE | IL23: FALSE | IM23: FALSE | IN23: FALSE | IO23: FALSE | IP23: FALSE | IQ23: FALSE | IR23: FALSE | IS23: FALSE | IT23: FALSE | IU23: FALSE | IV23: FALSE
C25: Spend Peiod | E25: =F14 -> 10 | G25: =MOD(G18,$E$25)=0 -> FALSE | H25: =MOD(H18,$E$25)=0 -> FALSE | I25: FALSE | J25: FALSE | K25: FALSE | L25: FALSE | M25: FALSE | N25: FALSE | O25: FALSE | P25: TRUE | Q25: FALSE | R25: FALSE | S25: FALSE | T25: FALSE | U25: FALSE | V25: FALSE | W25: FALSE | X25: FALSE | Y25: FALSE | Z25: TRUE | AA25: FALSE | AB25: FALSE | AC25: FALSE | AD25: FALSE | AE25: FALSE | AF25: FALSE | AG25: FALSE | AH25: FALSE | AI25: FALSE | AJ25: TRUE | AK25: FALSE | AL25: FALSE | AM25: FALSE | AN25: FALSE | AO25: FALSE | AP25: FALSE | AQ25: FALSE | AR25: FALSE | AS25: FALSE | AT25: TRUE | AU25: FALSE | AV25: FALSE | AW25: FALSE | AX25: FALSE | AY25: FALSE | AZ25: FALSE | BA25: FALSE | BB25: FALSE | BC25: FALSE | BD25: TRUE | BE25: FALSE | BF25: FALSE | BG25: FALSE | BH25: FALSE | BI25: FALSE | BJ25: FALSE | BK25: FALSE | BL25: FALSE | BM25: FALSE | BN25: TRUE | BO25: FALSE | BP25: FALSE | BQ25: FALSE | BR25: FALSE | BS25: FALSE | BT25: =MOD(BT18,$E$25)=0 -> FALSE | BU25: FALSE | BV25: FALSE | BW25: FALSE | BX25: TRUE | BY25: FALSE | BZ25: FALSE | CA25: FALSE | CB25: FALSE | CC25: FALSE | CD25: FALSE | CE25: FALSE | CF25: FALSE | CG25: FALSE | CH25: TRUE | CI25: FALSE | CJ25: FALSE | CK25: FALSE | CL25: FALSE | CM25: FALSE | CN25: FALSE | CO25: FALSE | CP25: FALSE | CQ25: FALSE | CR25: TRUE | CS25: FALSE | CT25: FALSE | CU25: FALSE | CV25: FALSE | CW25: FALSE | CX25: FALSE | CY25: FALSE | CZ25: FALSE | DA25: FALSE | DB25: TRUE | DC25: FALSE | DD25: FALSE | DE25: FALSE | DF25: FALSE | DG25: FALSE | DH25: FALSE | DI25: FALSE | DJ25: FALSE | DK25: FALSE | DL25: TRUE | DM25: FALSE | DN25: FALSE | DO25: FALSE | DP25: FALSE | DQ25: FALSE | DR25: FALSE | DS25: FALSE | DT25: FALSE | DU25: FALSE | DV25: TRUE | DW25: FALSE | DX25: FALSE | DY25: FALSE | DZ25: FALSE | EA25: FALSE | EB25: FALSE | EC25: FALSE | ED25: FALSE | EE25: FALSE | EF25: =MOD(EF18,$E$25)=0 -> TRUE | EG25: FALSE | EH25: FALSE | EI25: FALSE | EJ25: FALSE | EK25: FALSE | EL25: FALSE | EM25: FALSE | EN25: FALSE | EO25: FALSE | EP25: TRUE | EQ25: FALSE | ER25: FALSE | ES25: FALSE | ET25: FALSE | EU25: FALSE | EV25: FALSE | EW25: FALSE | EX25: FALSE | EY25: FALSE | EZ25: TRUE | FA25: FALSE | FB25: FALSE | FC25: FALSE | FD25: FALSE | FE25: FALSE | FF25: FALSE | FG25: FALSE | FH25: FALSE | FI25: FALSE | FJ25: TRUE | FK25: FALSE | FL25: FALSE | FM25: FALSE | FN25: FALSE | FO25: FALSE | FP25: FALSE | FQ25: FALSE | FR25: FALSE | FS25: FALSE | FT25: TRUE | FU25: FALSE | FV25: FALSE | FW25: FALSE | FX25: FALSE | FY25: FALSE | FZ25: FALSE | GA25: FALSE | GB25: FALSE | GC25: FALSE | GD25: TRUE | GE25: FALSE | GF25: FALSE | GG25: FALSE | GH25: FALSE | GI25: FALSE | GJ25: FALSE | GK25: FALSE | GL25: FALSE | GM25: FALSE | GN25: TRUE | GO25: FALSE | GP25: FALSE | GQ25: FALSE | GR25: =MOD(GR18,$E$25)=0 -> FALSE | GS25: FALSE | GT25: FALSE | GU25: FALSE | GV25: FALSE | GW25: FALSE | GX25: TRUE | GY25: FALSE | GZ25: FALSE | HA25: FALSE | HB25: FALSE | HC25: FALSE | HD25: FALSE | HE25: FALSE | HF25: FALSE | HG25: FALSE | HH25: TRUE | HI25: FALSE | HJ25: FALSE | HK25: FALSE | HL25: FALSE | HM25: FALSE | HN25: FALSE | HO25: FALSE | HP25: FALSE | HQ25: FALSE | HR25: TRUE | HS25: FALSE | HT25: FALSE | HU25: FALSE | HV25: FALSE | HW25: FALSE | HX25: FALSE | HY25: FALSE | HZ25: FALSE | IA25: FALSE | IB25: TRUE | IC25: FALSE | ID25: FALSE | IE25: FALSE | IF25: FALSE | IG25: FALSE | IH25: FALSE | II25: FALSE | IJ25: FALSE | IK25: FALSE | IL25: TRUE | IM25: FALSE | IN25: FALSE | IO25: FALSE | IP25: FALSE | IQ25: FALSE | IR25: FALSE | IS25: FALSE | IT25: FALSE | IU25: FALSE | IV25: TRUE
C26: Sepnd Amount | E26: =F15 -> 1000 | G26: =$E$26*G25 -> 0 | H26: =$E$26*H25 -> 0 | I26: 0 | J26: 0 | K26: 0 | L26: 0 | M26: 0 | N26: 0 | O26: 0 | P26: 1000 | Q26: 0 | R26: 0 | S26: 0 | T26: 0 | U26: 0 | V26: 0 | W26: 0 | X26: 0 | Y26: 0 | Z26: 1000 | AA26: 0 | AB26: 0 | AC26: 0 | AD26: 0 | AE26: 0 | AF26: 0 | AG26: 0 | AH26: 0 | AI26: 0 | AJ26: 1000 | AK26: 0 | AL26: 0 | AM26: 0 | AN26: 0 | AO26: 0 | AP26: 0 | AQ26: 0 | AR26: 0 | AS26: 0 | AT26: 1000 | AU26: 0 | AV26: 0 | AW26: 0 | AX26: 0 | AY26: 0 | AZ26: 0 | BA26: 0 | BB26: 0 | BC26: 0 | BD26: 1000 | BE26: 0 | BF26: 0 | BG26: 0 | BH26: 0 | BI26: 0 | BJ26: 0 | BK26: 0 | BL26: 0 | BM26: 0 | BN26: 1000 | BO26: 0 | BP26: 0 | BQ26: 0 | BR26: 0 | BS26: 0 | BT26: =$E$26*BT25 -> 0 | BU26: 0 | BV26: 0 | BW26: 0 | BX26: 1000 | BY26: 0 | BZ26: 0 | CA26: 0 | CB26: 0 | CC26: 0 | CD26: 0 | CE26: 0 | CF26: 0 | CG26: 0 | CH26: 1000 | CI26: 0 | CJ26: 0 | CK26: 0 | CL26: 0 | CM26: 0 | CN26: 0 | CO26: 0 | CP26: 0 | CQ26: 0 | CR26: 1000 | CS26: 0 | CT26: 0 | CU26: 0 | CV26: 0 | CW26: 0 | CX26: 0 | CY26: 0 | CZ26: 0 | DA26: 0 | DB26: 1000 | DC26: 0 | DD26: 0 | DE26: 0 | DF26: 0 | DG26: 0 | DH26: 0 | DI26: 0 | DJ26: 0 | DK26: 0 | DL26: 1000 | DM26: 0 | DN26: 0 | DO26: 0 | DP26: 0 | DQ26: 0 | DR26: 0 | DS26: 0 | DT26: 0 | DU26: 0 | DV26: 1000 | DW26: 0 | DX26: 0 | DY26: 0 | DZ26: 0 | EA26: 0 | EB26: 0 | EC26: 0 | ED26: 0 | EE26: 0 | EF26: =$E$26*EF25 -> 1000 | EG26: 0 | EH26: 0 | EI26: 0 | EJ26: 0 | EK26: 0 | EL26: 0 | EM26: 0 | EN26: 0 | EO26: 0 | EP26: 1000 | EQ26: 0 | ER26: 0 | ES26: 0 | ET26: 0 | EU26: 0 | EV26: 0 | EW26: 0 | EX26: 0 | EY26: 0 | EZ26: 1000 | FA26: 0 | FB26: 0 | FC26: 0 | FD26: 0 | FE26: 0 | FF26: 0 | FG26: 0 | FH26: 0 | FI26: 0 | FJ26: 1000 | FK26: 0 | FL26: 0 | FM26: 0 | FN26: 0 | FO26: 0 | FP26: 0 | FQ26: 0 | FR26: 0 | FS26: 0 | FT26: 1000 | FU26: 0 | FV26: 0 | FW26: 0 | FX26: 0 | FY26: 0 | FZ26: 0 | GA26: 0 | GB26: 0 | GC26: 0 | GD26: 1000 | GE26: 0 | GF26: 0 | GG26: 0 | GH26: 0 | GI26: 0 | GJ26: 0 | GK26: 0 | GL26: 0 | GM26: 0 | GN26: 1000 | GO26: 0 | GP26: 0 | GQ26: 0 | GR26: =$E$26*GR25 -> 0 | GS26: 0 | GT26: 0 | GU26: 0 | GV26: 0 | GW26: 0 | GX26: 1000 | GY26: 0 | GZ26: 0 | HA26: 0 | HB26: 0 | HC26: 0 | HD26: 0 | HE26: 0 | HF26: 0 | HG26: 0 | HH26: 1000 | HI26: 0 | HJ26: 0 | HK26: 0 | HL26: 0 | HM26: 0 | HN26: 0 | HO26: 0 | HP26: 0 | HQ26: 0 | HR26: 1000 | HS26: 0 | HT26: 0 | HU26: 0 | HV26: 0 | HW26: 0 | HX26: 0 | HY26: 0 | HZ26: 0 | IA26: 0 | IB26: 1000 | IC26: 0 | ID26: 0 | IE26: 0 | IF26: 0 | IG26: 0 | IH26: 0 | II26: 0 | IJ26: 0 | IK26: 0 | IL26: 1000 | IM26: 0 | IN26: 0 | IO26: 0 | IP26: 0 | IQ26: 0 | IR26: 0 | IS26: 0 | IT26: 0 | IU26: 0 | IV26: 1000
C27: Peirods between Spend | E27: =F14 -> 10 | G27: =$E$27 -> 10 | H27: =$E$27 -> 10 | I27: 10 | J27: 10 | K27: 10 | L27: 10 | M27: 10 | N27: 10 | O27: 10 | P27: 10 | Q27: 10 | R27: 10 | S27: 10 | T27: 10 | U27: 10 | V27: 10 | W27: 10 | X27: 10 | Y27: 10 | Z27: 10 | AA27: 10 | AB27: 10 | AC27: 10 | AD27: 10 | AE27: 10 | AF27: 10 | AG27: 10 | AH27: 10 | AI27: 10 | AJ27: 10 | AK27: 10 | AL27: 10 | AM27: 10 | AN27: 10 | AO27: 10 | AP27: 10 | AQ27: 10 | AR27: 10 | AS27: 10 | AT27: 10 | AU27: 10 | AV27: 10 | AW27: 10 | AX27: 10 | AY27: 10 | AZ27: 10 | BA27: 10 | BB27: 10 | BC27: 10 | BD27: 10 | BE27: 10 | BF27: 10 | BG27: 10 | BH27: 10 | BI27: 10 | BJ27: 10 | BK27: 10 | BL27: 10 | BM27: 10 | BN27: 10 | BO27: 10 | BP27: 10 | BQ27: 10 | BR27: 10 | BS27: 10 | BT27: =$E$27 -> 10 | BU27: 10 | BV27: 10 | BW27: 10 | BX27: 10 | BY27: 10 | BZ27: 10 | CA27: 10 | CB27: 10 | CC27: 10 | CD27: 10 | CE27: 10 | CF27: 10 | CG27: 10 | CH27: 10 | CI27: 10 | CJ27: 10 | CK27: 10 | CL27: 10 | CM27: 10 | CN27: 10 | CO27: 10 | CP27: 10 | CQ27: 10 | CR27: 10 | CS27: 10 | CT27: 10 | CU27: 10 | CV27: 10 | CW27: 10 | CX27: 10 | CY27: 10 | CZ27: 10 | DA27: 10 | DB27: 10 | DC27: 10 | DD27: 10 | DE27: 10 | DF27: 10 | DG27: 10 | DH27: 10 | DI27: 10 | DJ27: 10 | DK27: 10 | DL27: 10 | DM27: 10 | DN27: 10 | DO27: 10 | DP27: 10 | DQ27: 10 | DR27: 10 | DS27: 10 | DT27: 10 | DU27: 10 | DV27: 10 | DW27: 10 | DX27: 10 | DY27: 10 | DZ27: 10 | EA27: 10 | EB27: 10 | EC27: 10 | ED27: 10 | EE27: 10 | EF27: =$E$27 -> 10 | EG27: 10 | EH27: 10 | EI27: 10 | EJ27: 10 | EK27: 10 | EL27: 10 | EM27: 10 | EN27: 10 | EO27: 10 | EP27: 10 | EQ27: 10 | ER27: 10 | ES27: 10 | ET27: 10 | EU27: 10 | EV27: 10 | EW27: 10 | EX27: 10 | EY27: 10 | EZ27: 10 | FA27: 10 | FB27: 10 | FC27: 10 | FD27: 10 | FE27: 10 | FF27: 10 | FG27: 10 | FH27: 10 | FI27: 10 | FJ27: 10 | FK27: 10 | FL27: 10 | FM27: 10 | FN27: 10 | FO27: 10 | FP27: 10 | FQ27: 10 | FR27: 10 | FS27: 10 | FT27: 10 | FU27: 10 | FV27: 10 | FW27: 10 | FX27: 10 | FY27: 10 | FZ27: 10 | GA27: 10 | GB27: 10 | GC27: 10 | GD27: 10 | GE27: 10 | GF27: 10 | GG27: 10 | GH27: 10 | GI27: 10 | GJ27: 10 | GK27: 10 | GL27: 10 | GM27: 10 | GN27: 10 | GO27: 10 | GP27: 10 | GQ27: 10 | GR27: =$E$27 -> 10 | GS27: 10 | GT27: 10 | GU27: 10 | GV27: 10 | GW27: 10 | GX27: 10 | GY27: 10 | GZ27: 10 | HA27: 10 | HB27: 10 | HC27: 10 | HD27: 10 | HE27: 10 | HF27: 10 | HG27: 10 | HH27: 10 | HI27: 10 | HJ27: 10 | HK27: 10 | HL27: 10 | HM27: 10 | HN27: 10 | HO27: 10 | HP27: 10 | HQ27: 10 | HR27: 10 | HS27: 10 | HT27: 10 | HU27: 10 | HV27: 10 | HW27: 10 | HX27: 10 | HY27: 10 | HZ27: 10 | IA27: 10 | IB27: 10 | IC27: 10 | ID27: 10 | IE27: 10 | IF27: 10 | IG27: 10 | IH27: 10 | II27: 10 | IJ27: 10 | IK27: 10 | IL27: 10 | IM27: 10 | IN27: 10 | IO27: 10 | IP27: 10 | IQ27: 10 | IR27: 10 | IS27: 10 | IT27: 10 | IU27: 10 | IV27: 10
C29: Debt repayment Switch | E29: =F10 -> 2042-04-30 | G29: =G21<$E$29 -> TRUE | H29: =H21<$E$29 -> TRUE | I29: TRUE | J29: TRUE | K29: TRUE | L29: TRUE | M29: TRUE | N29: TRUE | O29: TRUE | P29: TRUE | Q29: TRUE | R29: TRUE | S29: TRUE | T29: TRUE | U29: TRUE | V29: TRUE | W29: TRUE | X29: TRUE | Y29: TRUE | Z29: TRUE | AA29: TRUE | AB29: TRUE | AC29: TRUE | AD29: TRUE | AE29: TRUE | AF29: TRUE | AG29: TRUE | AH29: TRUE | AI29: TRUE | AJ29: TRUE | AK29: TRUE | AL29: TRUE | AM29: TRUE | AN29: TRUE | AO29: TRUE | AP29: TRUE | AQ29: TRUE | AR29: TRUE | AS29: TRUE | AT29: TRUE | AU29: TRUE | AV29: TRUE | AW29: TRUE | AX29: TRUE | AY29: TRUE | AZ29: TRUE | BA29: TRUE | BB29: TRUE | BC29: TRUE | BD29: TRUE | BE29: TRUE | BF29: TRUE | BG29: TRUE | BH29: TRUE | BI29: TRUE | BJ29: TRUE | BK29: TRUE | BL29: TRUE | BM29: TRUE | BN29: TRUE | BO29: FALSE | BP29: FALSE | BQ29: FALSE | BR29: FALSE | BS29: FALSE | BT29: =BT21<$E$29 -> FALSE | BU29: FALSE | BV29: FALSE | BW29: FALSE | BX29: FALSE | BY29: FALSE | BZ29: FALSE | CA29: FALSE | CB29: FALSE | CC29: FALSE | CD29: FALSE | CE29: FALSE | CF29: FALSE | CG29: FALSE | CH29: FALSE | CI29: FALSE | CJ29: FALSE | CK29: FALSE | CL29: FALSE | CM29: FALSE | CN29: FALSE | CO29: FALSE | CP29: FALSE | CQ29: FALSE | CR29: FALSE | CS29: FALSE | CT29: FALSE | CU29: FALSE | CV29: FALSE | CW29: FALSE | CX29: FALSE | CY29: FALSE | CZ29: FALSE | DA29: FALSE | DB29: FALSE | DC29: FALSE | DD29: FALSE | DE29: FALSE | DF29: FALSE | DG29: FALSE | DH29: FALSE | DI29: FALSE | DJ29: FALSE | DK29: FALSE | DL29: FALSE | DM29: FALSE | DN29: FALSE | DO29: FALSE | DP29: FALSE | DQ29: FALSE | DR29: FALSE | DS29: FALSE | DT29: FALSE | DU29: FALSE | DV29: FALSE | DW29: FALSE | DX29: FALSE | DY29: FALSE | DZ29: FALSE | EA29: FALSE | EB29: FALSE | EC29: FALSE | ED29: FALSE | EE29: FALSE | EF29: =EF21<$E$29 -> FALSE | EG29: FALSE | EH29: FALSE | EI29: FALSE | EJ29: FALSE | EK29: FALSE | EL29: FALSE | EM29: FALSE | EN29: FALSE | EO29: FALSE | EP29: FALSE | EQ29: FALSE | ER29: FALSE | ES29: FALSE | ET29: FALSE | EU29: FALSE | EV29: FALSE | EW29: FALSE | EX29: FALSE | EY29: FALSE | EZ29: FALSE | FA29: FALSE | FB29: FALSE | FC29: FALSE | FD29: FALSE | FE29: FALSE | FF29: FALSE | FG29: FALSE | FH29: FALSE | FI29: FALSE | FJ29: FALSE | FK29: FALSE | FL29: FALSE | FM29: FALSE | FN29: FALSE | FO29: FALSE | FP29: FALSE | FQ29: FALSE | FR29: FALSE | FS29: FALSE | FT29: FALSE | FU29: FALSE | FV29: FALSE | FW29: FALSE | FX29: FALSE | FY29: FALSE | FZ29: FALSE | GA29: FALSE | GB29: FALSE | GC29: FALSE | GD29: FALSE | GE29: FALSE | GF29: FALSE | GG29: FALSE | GH29: FALSE | GI29: FALSE | GJ29: FALSE | GK29: FALSE | GL29: FALSE | GM29: FALSE | GN29: FALSE | GO29: FALSE | GP29: FALSE | GQ29: FALSE | GR29: =GR21<$E$29 -> FALSE | GS29: FALSE | GT29: FALSE | GU29: FALSE | GV29: FALSE | GW29: FALSE | GX29: FALSE | GY29: FALSE | GZ29: FALSE | HA29: FALSE | HB29: FALSE | HC29: FALSE | HD29: FALSE | HE29: FALSE | HF29: FALSE | HG29: FALSE | HH29: FALSE | HI29: FALSE | HJ29: FALSE | HK29: FALSE | HL29: FALSE | HM29: FALSE | HN29: FALSE | HO29: FALSE | HP29: FALSE | HQ29: FALSE | HR29: FALSE | HS29: FALSE | HT29: FALSE | HU29: FALSE | HV29: FALSE | HW29: FALSE | HX29: FALSE | HY29: FALSE | HZ29: FALSE | IA29: FALSE | IB29: FALSE | IC29: FALSE | ID29: FALSE | IE29: FALSE | IF29: FALSE | IG29: FALSE | IH29: FALSE | II29: FALSE | IJ29: FALSE | IK29: FALSE | IL29: FALSE | IM29: FALSE | IN29: FALSE | IO29: FALSE | IP29: FALSE | IQ29: FALSE | IR29: FALSE | IS29: FALSE | IT29: FALSE | IU29: FALSE | IV29: FALSE
C30: Spend amount Adjusted for Debt Repayment | E30: =F15 -> 1000 | G30: =$E$30*G29 -> 1000 | H30: =$E$30*H29 -> 1000 | I30: 1000 | J30: 1000 | K30: 1000 | L30: 1000 | M30: 1000 | N30: 1000 | O30: 1000 | P30: 1000 | Q30: 1000 | R30: 1000 | S30: 1000 | T30: 1000 | U30: 1000 | V30: 1000 | W30: 1000 | X30: 1000 | Y30: 1000 | Z30: 1000 | AA30: 1000 | AB30: 1000 | AC30: 1000 | AD30: 1000 | AE30: 1000 | AF30: 1000 | AG30: 1000 | AH30: 1000 | AI30: 1000 | AJ30: 1000 | AK30: 1000 | AL30: 1000 | AM30: 1000 | AN30: 1000 | AO30: 1000 | AP30: 1000 | AQ30: 1000 | AR30: 1000 | AS30: 1000 | AT30: 1000 | AU30: 1000 | AV30: 1000 | AW30: 1000 | AX30: 1000 | AY30: 1000 | AZ30: 1000 | BA30: 1000 | BB30: 1000 | BC30: 1000 | BD30: 1000 | BE30: 1000 | BF30: 1000 | BG30: 1000 | BH30: 1000 | BI30: 1000 | BJ30: 1000 | BK30: 1000 | BL30: 1000 | BM30: 1000 | BN30: 1000 | BO30: 0 | BP30: 0 | BQ30: 0 | BR30: 0 | BS30: 0 | BT30: =$E$30*BT29 -> 0 | BU30: 0 | BV30: 0 | BW30: 0 | BX30: 0 | BY30: 0 | BZ30: 0 | CA30: 0 | CB30: 0 | CC30: 0 | CD30: 0 | CE30: 0 | CF30: 0 | CG30: 0 | CH30: 0 | CI30: 0 | CJ30: 0 | CK30: 0 | CL30: 0 | CM30: 0 | CN30: 0 | CO30: 0 | CP30: 0 | CQ30: 0 | CR30: 0 | CS30: 0 | CT30: 0 | CU30: 0 | CV30: 0 | CW30: 0 | CX30: 0 | CY30: 0 | CZ30: 0 | DA30: 0 | DB30: 0 | DC30: 0 | DD30: 0 | DE30: 0 | DF30: 0 | DG30: 0 | DH30: 0 | DI30: 0 | DJ30: 0 | DK30: 0 | DL30: 0 | DM30: 0 | DN30: 0 | DO30: 0 | DP30: 0 | DQ30: 0 | DR30: 0 | DS30: 0 | DT30: 0 | DU30: 0 | DV30: 0 | DW30: 0 | DX30: 0 | DY30: 0 | DZ30: 0 | EA30: 0 | EB30: 0 | EC30: 0 | ED30: 0 | EE30: 0 | EF30: =$E$30*EF29 -> 0 | EG30: 0 | EH30: 0 | EI30: 0 | EJ30: 0 | EK30: 0 | EL30: 0 | EM30: 0 | EN30: 0 | EO30: 0 | EP30: 0 | EQ30: 0 | ER30: 0 | ES30: 0 | ET30: 0 | EU30: 0 | EV30: 0 | EW30: 0 | EX30: 0 | EY30: 0 | EZ30: 0 | FA30: 0 | FB30: 0 | FC30: 0 | FD30: 0 | FE30: 0 | FF30: 0 | FG30: 0 | FH30: 0 | FI30: 0 | FJ30: 0 | FK30: 0 | FL30: 0 | FM30: 0 | FN30: 0 | FO30: 0 | FP30: 0 | FQ30: 0 | FR30: 0 | FS30: 0 | FT30: 0 | FU30: 0 | FV30: 0 | FW30: 0 | FX30: 0 | FY30: 0 | FZ30: 0 | GA30: 0 | GB30: 0 | GC30: 0 | GD30: 0 | GE30: 0 | GF30: 0 | GG30: 0 | GH30: 0 | GI30: 0 | GJ30: 0 | GK30: 0 | GL30: 0 | GM30: 0 | GN30: 0 | GO30: 0 | GP30: 0 | GQ30: 0 | GR30: =$E$30*GR29 -> 0 | GS30: 0 | GT30: 0 | GU30: 0 | GV30: 0 | GW30: 0 | GX30: 0 | GY30: 0 | GZ30: 0 | HA30: 0 | HB30: 0 | HC30: 0 | HD30: 0 | HE30: 0 | HF30: 0 | HG30: 0 | HH30: 0 | HI30: 0 | HJ30: 0 | HK30: 0 | HL30: 0 | HM30: 0 | HN30: 0 | HO30: 0 | HP30: 0 | HQ30: 0 | HR30: 0 | HS30: 0 | HT30: 0 | HU30: 0 | HV30: 0 | HW30: 0 | HX30: 0 | HY30: 0 | HZ30: 0 | IA30: 0 | IB30: 0 | IC30: 0 | ID30: 0 | IE30: 0 | IF30: 0 | IG30: 0 | IH30: 0 | II30: 0 | IJ30: 0 | IK30: 0 | IL30: 0 | IM30: 0 | IN30: 0 | IO30: 0 | IP30: 0 | IQ30: 0 | IR30: 0 | IS30: 0 | IT30: 0 | IU30: 0 | IV30: 0
C32: MRA Contribution | G32: =G30/G27 -> 100 | H32: =H30/H27 -> 100 | I32: 100 | J32: 100 | K32: 100 | L32: 100 | M32: 100 | N32: 100 | O32: 100 | P32: 100 | Q32: 100 | R32: 100 | S32: 100 | T32: 100 | U32: 100 | V32: 100 | W32: 100 | X32: 100 | Y32: 100 | Z32: 100 | AA32: 100 | AB32: 100 | AC32: 100 | AD32: 100 | AE32: 100 | AF32: 100 | AG32: 100 | AH32: 100 | AI32: 100 | AJ32: 100 | AK32: 100 | AL32: 100 | AM32: 100 | AN32: 100 | AO32: 100 | AP32: 100 | AQ32: 100 | AR32: 100 | AS32: 100 | AT32: 100 | AU32: 100 | AV32: 100 | AW32: 100 | AX32: 100 | AY32: 100 | AZ32: 100 | BA32: 100 | BB32: 100 | BC32: 100 | BD32: 100 | BE32: 100 | BF32: 100 | BG32: 100 | BH32: 100 | BI32: 100 | BJ32: 100 | BK32: 100 | BL32: 100 | BM32: 100 | BN32: 100 | BO32: 0 | BP32: 0 | BQ32: 0 | BR32: 0 | BS32: 0 | BT32: =BT30/BT27 -> 0 | BU32: 0 | BV32: 0 | BW32: 0 | BX32: 0 | BY32: 0 | BZ32: 0 | CA32: 0 | CB32: 0 | CC32: 0 | CD32: 0 | CE32: 0 | CF32: 0 | CG32: 0 | CH32: 0 | CI32: 0 | CJ32: 0 | CK32: 0 | CL32: 0 | CM32: 0 | CN32: 0 | CO32: 0 | CP32: 0 | CQ32: 0 | CR32: 0 | CS32: 0 | CT32: 0 | CU32: 0 | CV32: 0 | CW32: 0 | CX32: 0 | CY32: 0 | CZ32: 0 | DA32: 0 | DB32: 0 | DC32: 0 | DD32: 0 | DE32: 0 | DF32: 0 | DG32: 0 | DH32: 0 | DI32: 0 | DJ32: 0 | DK32: 0 | DL32: 0 | DM32: 0 | DN32: 0 | DO32: 0 | DP32: 0 | DQ32: 0 | DR32: 0 | DS32: 0 | DT32: 0 | DU32: 0 | DV32: 0 | DW32: 0 | DX32: 0 | DY32: 0 | DZ32: 0 | EA32: 0 | EB32: 0 | EC32: 0 | ED32: 0 | EE32: 0 | EF32: =EF30/EF27 -> 0 | EG32: 0 | EH32: 0 | EI32: 0 | EJ32: 0 | EK32: 0 | EL32: 0 | EM32: 0 | EN32: 0 | EO32: 0 | EP32: 0 | EQ32: 0 | ER32: 0 | ES32: 0 | ET32: 0 | EU32: 0 | EV32: 0 | EW32: 0 | EX32: 0 | EY32: 0 | EZ32: 0 | FA32: 0 | FB32: 0 | FC32: 0 | FD32: 0 | FE32: 0 | FF32: 0 | FG32: 0 | FH32: 0 | FI32: 0 | FJ32: 0 | FK32: 0 | FL32: 0 | FM32: 0 | FN32: 0 | FO32: 0 | FP32: 0 | FQ32: 0 | FR32: 0 | FS32: 0 | FT32: 0 | FU32: 0 | FV32: 0 | FW32: 0 | FX32: 0 | FY32: 0 | FZ32: 0 | GA32: 0 | GB32: 0 | GC32: 0 | GD32: 0 | GE32: 0 | GF32: 0 | GG32: 0 | GH32: 0 | GI32: 0 | GJ32: 0 | GK32: 0 | GL32: 0 | GM32: 0 | GN32: 0 | GO32: 0 | GP32: 0 | GQ32: 0 | GR32: =GR30/GR27 -> 0 | GS32: 0 | GT32: 0 | GU32: 0 | GV32: 0 | GW32: 0 | GX32: 0 | GY32: 0 | GZ32: 0 | HA32: 0 | HB32: 0 | HC32: 0 | HD32: 0 | HE32: 0 | HF32: 0 | HG32: 0 | HH32: 0 | HI32: 0 | HJ32: 0 | HK32: 0 | HL32: 0 | HM32: 0 | HN32: 0 | HO32: 0 | HP32: 0 | HQ32: 0 | HR32: 0 | HS32: 0 | HT32: 0 | HU32: 0 | HV32: 0 | HW32: 0 | HX32: 0 | HY32: 0 | HZ32: 0 | IA32: 0 | IB32: 0 | IC32: 0 | ID32: 0 | IE32: 0 | IF32: 0 | IG32: 0 | IH32: 0 | II32: 0 | IJ32: 0 | IK32: 0 | IL32: 0 | IM32: 0 | IN32: 0 | IO32: 0 | IP32: 0 | IQ32: 0 | IR32: 0 | IS32: 0 | IT32: 0 | IU32: 0 | IV32: 0
B34: MRA Balance
C35: Opening Balance | G35: =F38 -> 0 | H35: =G38 -> 100 | I35: 200 | J35: 300 | K35: 400 | L35: 500 | M35: 600 | N35: 700 | O35: 800 | P35: 900 | Q35: 0 | R35: 100 | S35: 200 | T35: 300 | U35: 400 | V35: 500 | W35: 600 | X35: 700 | Y35: 800 | Z35: 900 | AA35: 0 | AB35: 100 | AC35: 200 | AD35: 300 | AE35: 400 | AF35: 500 | AG35: 600 | AH35: 700 | AI35: 800 | AJ35: 900 | AK35: 0 | AL35: 100 | AM35: 200 | AN35: 300 | AO35: 400 | AP35: 500 | AQ35: 600 | AR35: 700 | AS35: 800 | AT35: 900 | AU35: 0 | AV35: 100 | AW35: 200 | AX35: 300 | AY35: 400 | AZ35: 500 | BA35: 600 | BB35: 700 | BC35: 800 | BD35: 900 | BE35: 0 | BF35: 100 | BG35: 200 | BH35: 300 | BI35: 400 | BJ35: 500 | BK35: 600 | BL35: 700 | BM35: 800 | BN35: 900 | BO35: 0 | BP35: 0 | BQ35: 0 | BR35: 0 | BS35: 0 | BT35: =BS38 -> 0 | BU35: 0 | BV35: 0 | BW35: 0 | BX35: 0 | BY35: 0 | BZ35: 0 | CA35: 0 | CB35: 0 | CC35: 0 | CD35: 0 | CE35: 0 | CF35: 0 | CG35: 0 | CH35: 0 | CI35: 0 | CJ35: 0 | CK35: 0 | CL35: 0 | CM35: 0 | CN35: 0 | CO35: 0 | CP35: 0 | CQ35: 0 | CR35: 0 | CS35: 0 | CT35: 0 | CU35: 0 | CV35: 0 | CW35: 0 | CX35: 0 | CY35: 0 | CZ35: 0 | DA35: 0 | DB35: 0 | DC35: 0 | DD35: 0 | DE35: 0 | DF35: 0 | DG35: 0 | DH35: 0 | DI35: 0 | DJ35: 0 | DK35: 0 | DL35: 0 | DM35: 0 | DN35: 0 | DO35: 0 | DP35: 0 | DQ35: 0 | DR35: 0 | DS35: 0 | DT35: 0 | DU35: 0 | DV35: 0 | DW35: 0 | DX35: 0 | DY35: 0 | DZ35: 0 | EA35: 0 | EB35: 0 | EC35: 0 | ED35: 0 | EE35: 0 | EF35: =EE38 -> 0 | EG35: 0 | EH35: 0 | EI35: 0 | EJ35: 0 | EK35: 0 | EL35: 0 | EM35: 0 | EN35: 0 | EO35: 0 | EP35: 0 | EQ35: 0 | ER35: 0 | ES35: 0 | ET35: 0 | EU35: 0 | EV35: 0 | EW35: 0 | EX35: 0 | EY35: 0 | EZ35: 0 | FA35: 0 | FB35: 0 | FC35: 0 | FD35: 0 | FE35: 0 | FF35: 0 | FG35: 0 | FH35: 0 | FI35: 0 | FJ35: 0 | FK35: 0 | FL35: 0 | FM35: 0 | FN35: 0 | FO35: 0 | FP35: 0 | FQ35: 0 | FR35: 0 | FS35: 0 | FT35: 0 | FU35: 0 | FV35: 0 | FW35: 0 | FX35: 0 | FY35: 0 | FZ35: 0 | GA35: 0 | GB35: 0 | GC35: 0 | GD35: 0 | GE35: 0 | GF35: 0 | GG35: 0 | GH35: 0 | GI35: 0 | GJ35: 0 | GK35: 0 | GL35: 0 | GM35: 0 | GN35: 0 | GO35: 0 | GP35: 0 | GQ35: 0 | GR35: =GQ38 -> 0 | GS35: 0 | GT35: 0 | GU35: 0 | GV35: 0 | GW35: 0 | GX35: 0 | GY35: 0 | GZ35: 0 | HA35: 0 | HB35: 0 | HC35: 0 | HD35: 0 | HE35: 0 | HF35: 0 | HG35: 0 | HH35: 0 | HI35: 0 | HJ35: 0 | HK35: 0 | HL35: 0 | HM35: 0 | HN35: 0 | HO35: 0 | HP35: 0 | HQ35: 0 | HR35: 0 | HS35: 0 | HT35: 0 | HU35: 0 | HV35: 0 | HW35: 0 | HX35: 0 | HY35: 0 | HZ35: 0 | IA35: 0 | IB35: 0 | IC35: 0 | ID35: 0 | IE35: 0 | IF35: 0 | IG35: 0 | IH35: 0 | II35: 0 | IJ35: 0 | IK35: 0 | IL35: 0 | IM35: 0 | IN35: 0 | IO35: 0 | IP35: 0 | IQ35: 0 | IR35: 0 | IS35: 0 | IT35: 0 | IU35: 0 | IV35: 0
C36: Add: MRA Contributions | G36: =G32 -> 100 | H36: =H32 -> 100 | I36: 100 | J36: 100 | K36: 100 | L36: 100 | M36: 100 | N36: 100 | O36: 100 | P36: 100 | Q36: 100 | R36: 100 | S36: 100 | T36: 100 | U36: 100 | V36: 100 | W36: 100 | X36: 100 | Y36: 100 | Z36: 100 | AA36: 100 | AB36: 100 | AC36: 100 | AD36: 100 | AE36: 100 | AF36: 100 | AG36: 100 | AH36: 100 | AI36: 100 | AJ36: 100 | AK36: 100 | AL36: 100 | AM36: 100 | AN36: 100 | AO36: 100 | AP36: 100 | AQ36: 100 | AR36: 100 | AS36: 100 | AT36: 100 | AU36: 100 | AV36: 100 | AW36: 100 | AX36: 100 | AY36: 100 | AZ36: 100 | BA36: 100 | BB36: 100 | BC36: 100 | BD36: 100 | BE36: 100 | BF36: 100 | BG36: 100 | BH36: 100 | BI36: 100 | BJ36: 100 | BK36: 100 | BL36: 100 | BM36: 100 | BN36: 100 | BO36: 0 | BP36: 0 | BQ36: 0 | BR36: 0 | BS36: 0 | BT36: =BT32 -> 0 | BU36: 0 | BV36: 0 | BW36: 0 | BX36: 0 | BY36: 0 | BZ36: 0 | CA36: 0 | CB36: 0 | CC36: 0 | CD36: 0 | CE36: 0 | CF36: 0 | CG36: 0 | CH36: 0 | CI36: 0 | CJ36: 0 | CK36: 0 | CL36: 0 | CM36: 0 | CN36: 0 | CO36: 0 | CP36: 0 | CQ36: 0 | CR36: 0 | CS36: 0 | CT36: 0 | CU36: 0 | CV36: 0 | CW36: 0 | CX36: 0 | CY36: 0 | CZ36: 0 | DA36: 0 | DB36: 0 | DC36: 0 | DD36: 0 | DE36: 0 | DF36: 0 | DG36: 0 | DH36: 0 | DI36: 0 | DJ36: 0 | DK36: 0 | DL36: 0 | DM36: 0 | DN36: 0 | DO36: 0 | DP36: 0 | DQ36: 0 | DR36: 0 | DS36: 0 | DT36: 0 | DU36: 0 | DV36: 0 | DW36: 0 | DX36: 0 | DY36: 0 | DZ36: 0 | EA36: 0 | EB36: 0 | EC36: 0 | ED36: 0 | EE36: 0 | EF36: =EF32 -> 0 | EG36: 0 | EH36: 0 | EI36: 0 | EJ36: 0 | EK36: 0 | EL36: 0 | EM36: 0 | EN36: 0 | EO36: 0 | EP36: 0 | EQ36: 0 | ER36: 0 | ES36: 0 | ET36: 0 | EU36: 0 | EV36: 0 | EW36: 0 | EX36: 0 | EY36: 0 | EZ36: 0 | FA36: 0 | FB36: 0 | FC36: 0 | FD36: 0 | FE36: 0 | FF36: 0 | FG36: 0 | FH36: 0 | FI36: 0 | FJ36: 0 | FK36: 0 | FL36: 0 | FM36: 0 | FN36: 0 | FO36: 0 | FP36: 0 | FQ36: 0 | FR36: 0 | FS36: 0 | FT36: 0 | FU36: 0 | FV36: 0 | FW36: 0 | FX36: 0 | FY36: 0 | FZ36: 0 | GA36: 0 | GB36: 0 | GC36: 0 | GD36: 0 | GE36: 0 | GF36: 0 | GG36: 0 | GH36: 0 | GI36: 0 | GJ36: 0 | GK36: 0 | GL36: 0 | GM36: 0 | GN36: 0 | GO36: 0 | GP36: 0 | GQ36: 0 | GR36: =GR32 -> 0 | GS36: 0 | GT36: 0 | GU36: 0 | GV36: 0 | GW36: 0 | GX36: 0 | GY36: 0 | GZ36: 0 | HA36: 0 | HB36: 0 | HC36: 0 | HD36: 0 | HE36: 0 | HF36: 0 | HG36: 0 | HH36: 0 | HI36: 0 | HJ36: 0 | HK36: 0 | HL36: 0 | HM36: 0 | HN36: 0 | HO36: 0 | HP36: 0 | HQ36: 0 | HR36: 0 | HS36: 0 | HT36: 0 | HU36: 0 | HV36: 0 | HW36: 0 | HX36: 0 | HY36: 0 | HZ36: 0 | IA36: 0 | IB36: 0 | IC36: 0 | ID36: 0 | IE36: 0 | IF36: 0 | IG36: 0 | IH36: 0 | II36: 0 | IJ36: 0 | IK36: 0 | IL36: 0 | IM36: 0 | IN36: 0 | IO36: 0 | IP36: 0 | IQ36: 0 | IR36: 0 | IS36: 0 | IT36: 0 | IU36: 0 | IV36: 0
C37: Less: Spend | G37: =G26*G29 -> 0 | H37: =H29*H26 -> 0 | I37: 0 | J37: 0 | K37: 0 | L37: 0 | M37: 0 | N37: 0 | O37: 0 | P37: 1000 | Q37: 0 | R37: 0 | S37: 0 | T37: 0 | U37: 0 | V37: 0 | W37: 0 | X37: 0 | Y37: 0 | Z37: 1000 | AA37: 0 | AB37: 0 | AC37: 0 | AD37: 0 | AE37: 0 | AF37: 0 | AG37: 0 | AH37: 0 | AI37: 0 | AJ37: 1000 | AK37: 0 | AL37: 0 | AM37: 0 | AN37: 0 | AO37: 0 | AP37: 0 | AQ37: 0 | AR37: 0 | AS37: 0 | AT37: 1000 | AU37: 0 | AV37: 0 | AW37: 0 | AX37: 0 | AY37: 0 | AZ37: 0 | BA37: 0 | BB37: 0 | BC37: 0 | BD37: 1000 | BE37: 0 | BF37: 0 | BG37: 0 | BH37: 0 | BI37: 0 | BJ37: 0 | BK37: 0 | BL37: 0 | BM37: 0 | BN37: 1000 | BO37: 0 | BP37: 0 | BQ37: 0 | BR37: 0 | BS37: 0 | BT37: =BT29*BT26 -> 0 | BU37: 0 | BV37: 0 | BW37: 0 | BX37: 0 | BY37: 0 | BZ37: 0 | CA37: 0 | CB37: 0 | CC37: 0 | CD37: 0 | CE37: 0 | CF37: 0 | CG37: 0 | CH37: 0 | CI37: 0 | CJ37: 0 | CK37: 0 | CL37: 0 | CM37: 0 | CN37: 0 | CO37: 0 | CP37: 0 | CQ37: 0 | CR37: 0 | CS37: 0 | CT37: 0 | CU37: 0 | CV37: 0 | CW37: 0 | CX37: 0 | CY37: 0 | CZ37: 0 | DA37: 0 | DB37: 0 | DC37: 0 | DD37: 0 | DE37: 0 | DF37: 0 | DG37: 0 | DH37: 0 | DI37: 0 | DJ37: 0 | DK37: 0 | DL37: 0 | DM37: 0 | DN37: 0 | DO37: 0 | DP37: 0 | DQ37: 0 | DR37: 0 | DS37: 0 | DT37: 0 | DU37: 0 | DV37: 0 | DW37: 0 | DX37: 0 | DY37: 0 | DZ37: 0 | EA37: 0 | EB37: 0 | EC37: 0 | ED37: 0 | EE37: 0 | EF37: =EF29*EF26 -> 0 | EG37: 0 | EH37: 0 | EI37: 0 | EJ37: 0 | EK37: 0 | EL37: 0 | EM37: 0 | EN37: 0 | EO37: 0 | EP37: 0 | EQ37: 0 | ER37: 0 | ES37: 0 | ET37: 0 | EU37: 0 | EV37: 0 | EW37: 0 | EX37: 0 | EY37: 0 | EZ37: 0 | FA37: 0 | FB37: 0 | FC37: 0 | FD37: 0 | FE37: 0 | FF37: 0 | FG37: 0 | FH37: 0 | FI37: 0 | FJ37: 0 | FK37: 0 | FL37: 0 | FM37: 0 | FN37: 0 | FO37: 0 | FP37: 0 | FQ37: 0 | FR37: 0 | FS37: 0 | FT37: 0 | FU37: 0 | FV37: 0 | FW37: 0 | FX37: 0 | FY37: 0 | FZ37: 0 | GA37: 0 | GB37: 0 | GC37: 0 | GD37: 0 | GE37: 0 | GF37: 0 | GG37: 0 | GH37: 0 | GI37: 0 | GJ37: 0 | GK37: 0 | GL37: 0 | GM37: 0 | GN37: 0 | GO37: 0 | GP37: 0 | GQ37: 0 | GR37: =GR29*GR26 -> 0 | GS37: 0 | GT37: 0 | GU37: 0 | GV37: 0 | GW37: 0 | GX37: 0 | GY37: 0 | GZ37: 0 | HA37: 0 | HB37: 0 | HC37: 0 | HD37: 0 | HE37: 0 | HF37: 0 | HG37: 0 | HH37: 0 | HI37: 0 | HJ37: 0 | HK37: 0 | HL37: 0 | HM37: 0 | HN37: 0 | HO37: 0 | HP37: 0 | HQ37: 0 | HR37: 0 | HS37: 0 | HT37: 0 | HU37: 0 | HV37: 0 | HW37: 0 | HX37: 0 | HY37: 0 | HZ37: 0 | IA37: 0 | IB37: 0 | IC37: 0 | ID37: 0 | IE37: 0 | IF37: 0 | IG37: 0 | IH37: 0 | II37: 0 | IJ37: 0 | IK37: 0 | IL37: 0 | IM37: 0 | IN37: 0 | IO37: 0 | IP37: 0 | IQ37: 0 | IR37: 0 | IS37: 0 | IT37: 0 | IU37: 0 | IV37: 0
C38: Closing Balance | G38: =G35+G36-G37 -> 100 | H38: =H35+H36-H37 -> 200 | I38: 300 | J38: 400 | K38: 500 | L38: 600 | M38: 700 | N38: 800 | O38: 900 | P38: 0 | Q38: 100 | R38: 200 | S38: 300 | T38: 400 | U38: 500 | V38: 600 | W38: 700 | X38: 800 | Y38: 900 | Z38: 0 | AA38: 100 | AB38: 200 | AC38: 300 | AD38: 400 | AE38: 500 | AF38: 600 | AG38: 700 | AH38: 800 | AI38: 900 | AJ38: 0 | AK38: 100 | AL38: 200 | AM38: 300 | AN38: 400 | AO38: 500 | AP38: 600 | AQ38: 700 | AR38: 800 | AS38: 900 | AT38: 0 | AU38: 100 | AV38: 200 | AW38: 300 | AX38: 400 | AY38: 500 | AZ38: 600 | BA38: 700 | BB38: 800 | BC38: 900 | BD38: 0 | BE38: 100 | BF38: 200 | BG38: 300 | BH38: 400 | BI38: 500 | BJ38: 600 | BK38: 700 | BL38: 800 | BM38: 900 | BN38: 0 | BO38: 0 | BP38: 0 | BQ38: 0 | BR38: 0 | BS38: 0 | BT38: =BT35+BT36-BT37 -> 0 | BU38: 0 | BV38: 0 | BW38: 0 | BX38: 0 | BY38: 0 | BZ38: 0 | CA38: 0 | CB38: 0 | CC38: 0 | CD38: 0 | CE38: 0 | CF38: 0 | CG38: 0 | CH38: 0 | CI38: 0 | CJ38: 0 | CK38: 0 | CL38: 0 | CM38: 0 | CN38: 0 | CO38: 0 | CP38: 0 | CQ38: 0 | CR38: 0 | CS38: 0 | CT38: 0 | CU38: 0 | CV38: 0 | CW38: 0 | CX38: 0 | CY38: 0 | CZ38: 0 | DA38: 0 | DB38: 0 | DC38: 0 | DD38: 0 | DE38: 0 | DF38: 0 | DG38: 0 | DH38: 0 | DI38: 0 | DJ38: 0 | DK38: 0 | DL38: 0 | DM38: 0 | DN38: 0 | DO38: 0 | DP38: 0 | DQ38: 0 | DR38: 0 | DS38: 0 | DT38: 0 | DU38: 0 | DV38: 0 | DW38: 0 | DX38: 0 | DY38: 0 | DZ38: 0 | EA38: 0 | EB38: 0 | EC38: 0 | ED38: 0 | EE38: 0 | EF38: =EF35+EF36-EF37 -> 0 | EG38: 0 | EH38: 0 | EI38: 0 | EJ38: 0 | EK38: 0 | EL38: 0 | EM38: 0 | EN38: 0 | EO38: 0 | EP38: 0 | EQ38: 0 | ER38: 0 | ES38: 0 | ET38: 0 | EU38: 0 | EV38: 0 | EW38: 0 | EX38: 0 | EY38: 0 | EZ38: 0 | FA38: 0 | FB38: 0 | FC38: 0 | FD38: 0 | FE38: 0 | FF38: 0 | FG38: 0 | FH38: 0 | FI38: 0 | FJ38: 0 | FK38: 0 | FL38: 0 | FM38: 0 | FN38: 0 | FO38: 0 | FP38: 0 | FQ38: 0 | FR38: 0 | FS38: 0 | FT38: 0 | FU38: 0 | FV38: 0 | FW38: 0 | FX38: 0 | FY38: 0 | FZ38: 0 | GA38: 0 | GB38: 0 | GC38: 0 | GD38: 0 | GE38: 0 | GF38: 0 | GG38: 0 | GH38: 0 | GI38: 0 | GJ38: 0 | GK38: 0 | GL38: 0 | GM38: 0 | GN38: 0 | GO38: 0 | GP38: 0 | GQ38: 0 | GR38: =GR35+GR36-GR37 -> 0 | GS38: 0 | GT38: 0 | GU38: 0 | GV38: 0 | GW38: 0 | GX38: 0 | GY38: 0 | GZ38: 0 | HA38: 0 | HB38: 0 | HC38: 0 | HD38: 0 | HE38: 0 | HF38: 0 | HG38: 0 | HH38: 0 | HI38: 0 | HJ38: 0 | HK38: 0 | HL38: 0 | HM38: 0 | HN38: 0 | HO38: 0 | HP38: 0 | HQ38: 0 | HR38: 0 | HS38: 0 | HT38: 0 | HU38: 0 | HV38: 0 | HW38: 0 | HX38: 0 | HY38: 0 | HZ38: 0 | IA38: 0 | IB38: 0 | IC38: 0 | ID38: 0 | IE38: 0 | IF38: 0 | IG38: 0 | IH38: 0 | II38: 0 | IJ38: 0 | IK38: 0 | IL38: 0 | IM38: 0 | IN38: 0 | IO38: 0 | IP38: 0 | IQ38: 0 | IR38: 0 | IS38: 0 | IT38: 0 | IU38: 0 | IV38: 0
C40: Test | G40: =IF(G25,G38=0,TRUE) -> TRUE | H40: =IF(H25,H38=0,TRUE) -> TRUE | I40: TRUE | J40: TRUE | K40: TRUE | L40: TRUE | M40: TRUE | N40: TRUE | O40: TRUE | P40: TRUE | Q40: TRUE | R40: TRUE | S40: TRUE | T40: TRUE | U40: TRUE | V40: TRUE | W40: TRUE | X40: TRUE | Y40: TRUE | Z40: TRUE | AA40: TRUE | AB40: TRUE | AC40: TRUE | AD40: TRUE | AE40: TRUE | AF40: TRUE | AG40: TRUE | AH40: TRUE | AI40: TRUE | AJ40: TRUE | AK40: TRUE | AL40: TRUE | AM40: TRUE | AN40: TRUE | AO40: TRUE | AP40: TRUE | AQ40: TRUE | AR40: TRUE | AS40: TRUE | AT40: TRUE | AU40: TRUE | AV40: TRUE | AW40: TRUE | AX40: TRUE | AY40: TRUE | AZ40: TRUE | BA40: TRUE | BB40: TRUE | BC40: TRUE | BD40: TRUE | BE40: TRUE | BF40: TRUE | BG40: TRUE | BH40: TRUE | BI40: TRUE | BJ40: TRUE | BK40: TRUE | BL40: TRUE | BM40: TRUE | BN40: TRUE | BO40: TRUE | BP40: TRUE | BQ40: TRUE | BR40: TRUE | BS40: TRUE | BT40: =IF(BT25,BT38=0,TRUE) -> TRUE | BU40: TRUE | BV40: TRUE | BW40: TRUE | BX40: TRUE | BY40: TRUE | BZ40: TRUE | CA40: TRUE | CB40: TRUE | CC40: TRUE | CD40: TRUE | CE40: TRUE | CF40: TRUE | CG40: TRUE | CH40: TRUE | CI40: TRUE | CJ40: TRUE | CK40: TRUE | CL40: TRUE | CM40: TRUE | CN40: TRUE | CO40: TRUE | CP40: TRUE | CQ40: TRUE | CR40: TRUE | CS40: TRUE | CT40: TRUE | CU40: TRUE | CV40: TRUE | CW40: TRUE | CX40: TRUE | CY40: TRUE | CZ40: TRUE | DA40: TRUE | DB40: TRUE | DC40: TRUE | DD40: TRUE | DE40: TRUE | DF40: TRUE | DG40: TRUE | DH40: TRUE | DI40: TRUE | DJ40: TRUE | DK40: TRUE | DL40: TRUE | DM40: TRUE | DN40: TRUE | DO40: TRUE | DP40: TRUE | DQ40: TRUE | DR40: TRUE | DS40: TRUE | DT40: TRUE | DU40: TRUE | DV40: TRUE | DW40: TRUE | DX40: TRUE | DY40: TRUE | DZ40: TRUE | EA40: TRUE | EB40: TRUE | EC40: TRUE | ED40: TRUE | EE40: TRUE | EF40: =IF(EF25,EF38=0,TRUE) -> TRUE | EG40: TRUE | EH40: TRUE | EI40: TRUE | EJ40: TRUE | EK40: TRUE | EL40: TRUE | EM40: TRUE | EN40: TRUE | EO40: TRUE | EP40: TRUE | EQ40: TRUE | ER40: TRUE | ES40: TRUE | ET40: TRUE | EU40: TRUE | EV40: TRUE | EW40: TRUE | EX40: TRUE | EY40: TRUE | EZ40: TRUE | FA40: TRUE | FB40: TRUE | FC40: TRUE | FD40: TRUE | FE40: TRUE | FF40: TRUE | FG40: TRUE | FH40: TRUE | FI40: TRUE | FJ40: TRUE | FK40: TRUE | FL40: TRUE | FM40: TRUE | FN40: TRUE | FO40: TRUE | FP40: TRUE | FQ40: TRUE | FR40: TRUE | FS40: TRUE | FT40: TRUE | FU40: TRUE | FV40: TRUE | FW40: TRUE | FX40: TRUE | FY40: TRUE | FZ40: TRUE | GA40: TRUE | GB40: TRUE | GC40: TRUE | GD40: TRUE | GE40: TRUE | GF40: TRUE | GG40: TRUE | GH40: TRUE | GI40: TRUE | GJ40: TRUE | GK40: TRUE | GL40: TRUE | GM40: TRUE | GN40: TRUE | GO40: TRUE | GP40: TRUE | GQ40: TRUE | GR40: =IF(GR25,GR38=0,TRUE) -> TRUE | GS40: TRUE | GT40: TRUE | GU40: TRUE | GV40: TRUE | GW40: TRUE | GX40: TRUE | GY40: TRUE | GZ40: TRUE | HA40: TRUE | HB40: TRUE | HC40: TRUE | HD40: TRUE | HE40: TRUE | HF40: TRUE | HG40: TRUE | HH40: TRUE | HI40: TRUE | HJ40: TRUE | HK40: TRUE | HL40: TRUE | HM40: TRUE | HN40: TRUE | HO40: TRUE | HP40: TRUE | HQ40: TRUE | HR40: TRUE | HS40: TRUE | HT40: TRUE | HU40: TRUE | HV40: TRUE | HW40: TRUE | HX40: TRUE | HY40: TRUE | HZ40: TRUE | IA40: TRUE | IB40: TRUE | IC40: TRUE | ID40: TRUE | IE40: TRUE | IF40: TRUE | IG40: TRUE | IH40: TRUE | II40: TRUE | IJ40: TRUE | IK40: TRUE | IL40: TRUE | IM40: TRUE | IN40: TRUE | IO40: TRUE | IP40: TRUE | IQ40: TRUE | IR40: TRUE | IS40: TRUE | IT40: TRUE | IU40: TRUE | IV40: TRUE
C41: Aggregate | E41: =AND(G40:IV40) -> TRUE

Sheet Varying Time Period Exercise
B2: General
C3: Commercial Operation | E3: Date | F3: 2015-01-01
C4: Concession Period | E4: Years | F4: 40
C5: Periods per Year | E5: Periods | F5: 2
C6: Months per Period | E6: Months | F6: =12/F5 -> 6
C7: Days per Period | E7: Days | F7: =360/F5 -> 180
C8: Retirement | E8: Date | F8: =EDATE(F3,F4*12)-1 -> 2054-12-31
C9: Debt Tenor | E9: Years | F9: 30
C10: Ending Debt Period | E10: Date | F10: =EDATE(F3,F9*12)-1 -> 2044-12-31
B12: Extraordinary Maintenenace
G13: Periods
G14: Since Prior | H14: Debt Repay
E15: Date | F15: Expenditure | G15: Exp | H15: Spend
E16: =F3 -> 2015-01-01
E17: =EDATE(E16,G17*$F$6) -> 2020-01-01 | F17: 3000 | G17: 10 | H17: =F17*(E17<=$F$10) -> 3000
E18: 2026-01-01 | F18: 3500 | G18: 12 | H18: =F18*(E18<=$F$10) -> 3500
E19: 2030-01-01 | F19: 3300 | G19: 8 | H19: 3300
E20: 2037-07-01 | F20: 4200 | G20: 15 | H20: 4200
E21: 2042-07-01 | F21: 3500 | G21: 10 | H21: 3500
E22: 2050-01-01 | F22: 2000 | G22: 15 | H22: 0
B25: Period | E25: 0 | F25: =E25+1 -> 1 | G25: =F25+1 -> 2 | H25: 3 | I25: 4 | J25: 5 | K25: 6 | L25: 7 | M25: 8 | N25: 9 | O25: 10 | P25: 11 | Q25: 12 | R25: 13 | S25: 14 | T25: 15 | U25: 16 | V25: 17 | W25: 18 | X25: 19 | Y25: 20 | Z25: 21 | AA25: 22 | AB25: 23 | AC25: 24 | AD25: 25 | AE25: 26 | AF25: 27 | AG25: 28 | AH25: 29 | AI25: 30 | AJ25: 31 | AK25: 32 | AL25: 33 | AM25: 34 | AN25: 35 | AO25: 36 | AP25: 37 | AQ25: 38 | AR25: 39 | AS25: 40 | AT25: 41 | AU25: 42 | AV25: 43 | AW25: 44 | AX25: 45 | AY25: 46 | AZ25: 47 | BA25: 48 | BB25: 49 | BC25: 50 | BD25: 51 | BE25: 52 | BF25: 53 | BG25: 54 | BH25: 55 | BI25: 56 | BJ25: 57 | BK25: 58 | BL25: 59 | BM25: 60 | BN25: 61 | BO25: 62 | BP25: 63 | BQ25: 64 | BR25: 65 | BS25: =BR25+1 -> 66 | BT25: 67 | BU25: 68 | BV25: 69 | BW25: 70 | BX25: 71 | BY25: 72 | BZ25: 73 | CA25: 74 | CB25: 75 | CC25: 76 | CD25: 77 | CE25: 78 | CF25: 79 | CG25: 80 | CH25: 81 | CI25: 82 | CJ25: 83 | CK25: 84 | CL25: 85 | CM25: 86 | CN25: 87 | CO25: 88 | CP25: 89 | CQ25: 90 | CR25: 91 | CS25: 92 | CT25: 93 | CU25: 94 | CV25: 95 | CW25: 96 | CX25: 97 | CY25: 98 | CZ25: 99 | DA25: 100 | DB25: 101 | DC25: 102 | DD25: 103 | DE25: 104 | DF25: 105 | DG25: 106 | DH25: 107 | DI25: 108 | DJ25: 109 | DK25: 110 | DL25: 111 | DM25: 112 | DN25: 113 | DO25: 114 | DP25: 115 | DQ25: 116 | DR25: 117 | DS25: 118 | DT25: 119 | DU25: 120 | DV25: 121 | DW25: 122 | DX25: 123 | DY25: 124 | DZ25: 125 | EA25: 126 | EB25: 127 | EC25: 128 | ED25: 129 | EE25: =ED25+1 -> 130 | EF25: 131 | EG25: 132 | EH25: 133 | EI25: 134 | EJ25: 135 | EK25: 136 | EL25: 137 | EM25: 138 | EN25: 139 | EO25: 140 | EP25: 141 | EQ25: 142 | ER25: 143 | ES25: 144 | ET25: 145 | EU25: 146 | EV25: 147 | EW25: 148 | EX25: 149 | EY25: 150 | EZ25: 151 | FA25: 152 | FB25: 153 | FC25: 154 | FD25: 155 | FE25: 156 | FF25: 157 | FG25: 158 | FH25: 159 | FI25: 160 | FJ25: 161 | FK25: 162 | FL25: 163 | FM25: 164 | FN25: 165 | FO25: 166 | FP25: 167 | FQ25: 168 | FR25: 169 | FS25: 170 | FT25: 171 | FU25: 172 | FV25: 173 | FW25: 174 | FX25: 175 | FY25: 176 | FZ25: 177 | GA25: 178 | GB25: 179 | GC25: 180 | GD25: 181 | GE25: 182 | GF25: 183 | GG25: 184 | GH25: 185 | GI25: 186 | GJ25: 187 | GK25: 188 | GL25: 189 | GM25: 190 | GN25: 191 | GO25: 192 | GP25: 193 | GQ25: =GP25+1 -> 194 | GR25: 195 | GS25: 196 | GT25: 197 | GU25: 198 | GV25: 199 | GW25: 200 | GX25: 201 | GY25: 202 | GZ25: 203 | HA25: 204 | HB25: 205 | HC25: 206 | HD25: 207 | HE25: 208 | HF25: 209 | HG25: 210 | HH25: 211 | HI25: 212 | HJ25: 213 | HK25: 214 | HL25: 215 | HM25: 216 | HN25: 217 | HO25: 218 | HP25: 219 | HQ25: 220 | HR25: 221 | HS25: 222 | HT25: 223 | HU25: 224 | HV25: 225 | HW25: 226 | HX25: 227 | HY25: 228 | HZ25: 229 | IA25: 230 | IB25: 231 | IC25: 232 | ID25: 233 | IE25: 234 | IF25: 235 | IG25: 236 | IH25: 237 | II25: 238 | IJ25: 239 | IK25: 240 | IL25: 241 | IM25: 242 | IN25: 243 | IO25: 244 | IP25: 245 | IQ25: 246 | IR25: 247 | IS25: 248 | IT25: 249 | IU25: 250 | IV25: 251 | IW25: 252 | IX25: 253 | IY25: 254 | IZ25: 255 | JA25: 256 | JB25: 257 | JC25: =JB25+1 -> 258 | JD25: 259 | JE25: 260 | JF25: 261 | JG25: 262 | JH25: 263 | JI25: 264 | JJ25: 265 | JK25: 266 | JL25: 267 | JM25: 268 | JN25: 269 | JO25: 270 | JP25: 271 | JQ25: 272 | JR25: 273 | JS25: 274 | JT25: 275 | JU25: 276 | JV25: 277 | JW25: 278 | JX25: 279 | JY25: 280 | JZ25: 281 | KA25: 282 | KB25: 283 | KC25: 284 | KD25: 285 | KE25: 286 | KF25: 287 | KG25: 288 | KH25: 289 | KI25: 290 | KJ25: 291 | KK25: 292 | KL25: 293 | KM25: 294 | KN25: 295 | KO25: 296 | KP25: 297 | KQ25: 298 | KR25: 299 | KS25: 300 | KT25: 301 | KU25: 302 | KV25: 303 | KW25: 304 | KX25: 305 | KY25: 306 | KZ25: 307 | LA25: 308 | LB25: 309 | LC25: 310 | LD25: 311 | LE25: 312 | LF25: 313 | LG25: 314 | LH25: 315 | LI25: 316 | LJ25: 317 | LK25: 318 | LL25: 319 | LM25: 320 | LN25: 321 | LO25: =LN25+1 -> 322 | LP25: 323 | LQ25: 324 | LR25: 325 | LS25: 326 | LT25: 327 | LU25: 328 | LV25: 329 | LW25: 330 | LX25: 331 | LY25: 332 | LZ25: 333 | MA25: 334 | MB25: 335 | MC25: 336 | MD25: 337 | ME25: 338 | MF25: 339 | MG25: 340 | MH25: 341 | MI25: 342 | MJ25: 343 | MK25: 344 | ML25: 345 | MM25: 346 | MN25: 347 | MO25: 348 | MP25: 349 | MQ25: 350 | MR25: 351 | MS25: 352 | MT25: 353 | MU25: 354 | MV25: 355 | MW25: 356 | MX25: 357 | MY25: 358 | MZ25: 359 | NA25: 360 | NB25: 361 | NC25: 362 | ND25: 363 | NE25: 364 | NF25: 365 | NG25: 366 | NH25: 367 | NI25: 368 | NJ25: 369 | NK25: 370 | NL25: 371 | NM25: 372 | NN25: 373 | NO25: 374 | NP25: 375 | NQ25: 376 | NR25: 377 | NS25: 378 | NT25: 379 | NU25: 380 | NV25: 381 | NW25: 382 | NX25: 383 | NY25: 384 | NZ25: 385 | OA25: =NZ25+1 -> 386 | OB25: 387 | OC25: 388 | OD25: 389 | OE25: 390 | OF25: 391 | OG25: 392 | OH25: 393 | OI25: 394
B26: Months in Period | E26: =$F$6 -> 6 | F26: =$F$6 -> 6 | G26: 6 | H26: 6 | I26: 6 | J26: 6 | K26: 6 | L26: 6 | M26: 6 | N26: 6 | O26: 6 | P26: 6 | Q26: 6 | R26: 6 | S26: 6 | T26: 6 | U26: 6 | V26: 6 | W26: 6 | X26: 6 | Y26: 6 | Z26: 6 | AA26: 6 | AB26: 6 | AC26: 6 | AD26: 6 | AE26: 6 | AF26: 6 | AG26: 6 | AH26: 6 | AI26: 6 | AJ26: 6 | AK26: 6 | AL26: 6 | AM26: 6 | AN26: 6 | AO26: 6 | AP26: 6 | AQ26: 6 | AR26: 6 | AS26: 6 | AT26: 6 | AU26: 6 | AV26: 6 | AW26: 6 | AX26: 6 | AY26: 6 | AZ26: 6 | BA26: 6 | BB26: 6 | BC26: 6 | BD26: 6 | BE26: 6 | BF26: 6 | BG26: 6 | BH26: 6 | BI26: 6 | BJ26: 6 | BK26: 6 | BL26: 6 | BM26: 6 | BN26: 6 | BO26: 6 | BP26: 6 | BQ26: 6 | BR26: =$F$6 -> 6 | BS26: 6 | BT26: 6 | BU26: 6 | BV26: 6 | BW26: 6 | BX26: 6 | BY26: 6 | BZ26: 6 | CA26: 6 | CB26: 6 | CC26: 6 | CD26: 6 | CE26: 6 | CF26: 6 | CG26: 6 | CH26: 6 | CI26: 6 | CJ26: 6 | CK26: 6 | CL26: 6 | CM26: 6 | CN26: 6 | CO26: 6 | CP26: 6 | CQ26: 6 | CR26: 6 | CS26: 6 | CT26: 6 | CU26: 6 | CV26: 6 | CW26: 6 | CX26: 6 | CY26: 6 | CZ26: 6 | DA26: 6 | DB26: 6 | DC26: 6 | DD26: 6 | DE26: 6 | DF26: 6 | DG26: 6 | DH26: 6 | DI26: 6 | DJ26: 6 | DK26: 6 | DL26: 6 | DM26: 6 | DN26: 6 | DO26: 6 | DP26: 6 | DQ26: 6 | DR26: 6 | DS26: 6 | DT26: 6 | DU26: 6 | DV26: 6 | DW26: 6 | DX26: 6 | DY26: 6 | DZ26: 6 | EA26: 6 | EB26: 6 | EC26: 6 | ED26: =$F$6 -> 6 | EE26: 6 | EF26: 6 | EG26: 6 | EH26: 6 | EI26: 6 | EJ26: 6 | EK26: 6 | EL26: 6 | EM26: 6 | EN26: 6 | EO26: 6 | EP26: 6 | EQ26: 6 | ER26: 6 | ES26: 6 | ET26: 6 | EU26: 6 | EV26: 6 | EW26: 6 | EX26: 6 | EY26: 6 | EZ26: 6 | FA26: 6 | FB26: 6 | FC26: 6 | FD26: 6 | FE26: 6 | FF26: 6 | FG26: 6 | FH26: 6 | FI26: 6 | FJ26: 6 | FK26: 6 | FL26: 6 | FM26: 6 | FN26: 6 | FO26: 6 | FP26: 6 | FQ26: 6 | FR26: 6 | FS26: 6 | FT26: 6 | FU26: 6 | FV26: 6 | FW26: 6 | FX26: 6 | FY26: 6 | FZ26: 6 | GA26: 6 | GB26: 6 | GC26: 6 | GD26: 6 | GE26: 6 | GF26: 6 | GG26: 6 | GH26: 6 | GI26: 6 | GJ26: 6 | GK26: 6 | GL26: 6 | GM26: 6 | GN26: 6 | GO26: 6 | GP26: =$F$6 -> 6 | GQ26: 6 | GR26: 6 | GS26: 6 | GT26: 6 | GU26: 6 | GV26: 6 | GW26: 6 | GX26: 6 | GY26: 6 | GZ26: 6 | HA26: 6 | HB26: 6 | HC26: 6 | HD26: 6 | HE26: 6 | HF26: 6 | HG26: 6 | HH26: 6 | HI26: 6 | HJ26: 6 | HK26: 6 | HL26: 6 | HM26: 6 | HN26: 6 | HO26: 6 | HP26: 6 | HQ26: 6 | HR26: 6 | HS26: 6 | HT26: 6 | HU26: 6 | HV26: 6 | HW26: 6 | HX26: 6 | HY26: 6 | HZ26: 6 | IA26: 6 | IB26: 6 | IC26: 6 | ID26: 6 | IE26: 6 | IF26: 6 | IG26: 6 | IH26: 6 | II26: 6 | IJ26: 6 | IK26: 6 | IL26: 6 | IM26: 6 | IN26: 6 | IO26: 6 | IP26: 6 | IQ26: 6 | IR26: 6 | IS26: 6 | IT26: 6 | IU26: 6 | IV26: 6 | IW26: 6 | IX26: 6 | IY26: 6 | IZ26: 6 | JA26: 6 | JB26: =$F$6 -> 6 | JC26: 6 | JD26: 6 | JE26: 6 | JF26: 6 | JG26: 6 | JH26: 6 | JI26: 6 | JJ26: 6 | JK26: 6 | JL26: 6 | JM26: 6 | JN26: 6 | JO26: 6 | JP26: 6 | JQ26: 6 | JR26: 6 | JS26: 6 | JT26: 6 | JU26: 6 | JV26: 6 | JW26: 6 | JX26: 6 | JY26: 6 | JZ26: 6 | KA26: 6 | KB26: 6 | KC26: 6 | KD26: 6 | KE26: 6 | KF26: 6 | KG26: 6 | KH26: 6 | KI26: 6 | KJ26: 6 | KK26: 6 | KL26: 6 | KM26: 6 | KN26: 6 | KO26: 6 | KP26: 6 | KQ26: 6 | KR26: 6 | KS26: 6 | KT26: 6 | KU26: 6 | KV26: 6 | KW26: 6 | KX26: 6 | KY26: 6 | KZ26: 6 | LA26: 6 | LB26: 6 | LC26: 6 | LD26: 6 | LE26: 6 | LF26: 6 | LG26: 6 | LH26: 6 | LI26: 6 | LJ26: 6 | LK26: 6 | LL26: 6 | LM26: 6 | LN26: =$F$6 -> 6 | LO26: 6 | LP26: 6 | LQ26: 6 | LR26: 6 | LS26: 6 | LT26: 6 | LU26: 6 | LV26: 6 | LW26: 6 | LX26: 6 | LY26: 6 | LZ26: 6 | MA26: 6 | MB26: 6 | MC26: 6 | MD26: 6 | ME26: 6 | MF26: 6 | MG26: 6 | MH26: 6 | MI26: 6 | MJ26: 6 | MK26: 6 | ML26: 6 | MM26: 6 | MN26: 6 | MO26: 6 | MP26: 6 | MQ26: 6 | MR26: 6 | MS26: 6 | MT26: 6 | MU26: 6 | MV26: 6 | MW26: 6 | MX26: 6 | MY26: 6 | MZ26: 6 | NA26: 6 | NB26: 6 | NC26: 6 | ND26: 6 | NE26: 6 | NF26: 6 | NG26: 6 | NH26: 6 | NI26: 6 | NJ26: 6 | NK26: 6 | NL26: 6 | NM26: 6 | NN26: 6 | NO26: 6 | NP26: 6 | NQ26: 6 | NR26: 6 | NS26: 6 | NT26: 6 | NU26: 6 | NV26: 6 | NW26: 6 | NX26: 6 | NY26: 6 | NZ26: =$F$6 -> 6 | OA26: 6 | OB26: 6 | OC26: 6 | OD26: 6 | OE26: 6 | OF26: 6 | OG26: 6 | OH26: 6 | OI26: 6
B28: Start Date | F28: =E29+1 -> 2015-01-01 | G28: =F29+1 -> 2015-07-01 | H28: 2016-01-01 | I28: 2016-07-01 | J28: 2017-01-01 | K28: 2017-07-01 | L28: 2018-01-01 | M28: 2018-07-01 | N28: 2019-01-01 | O28: 2019-07-01 | P28: 2020-01-01 | Q28: 2020-07-01 | R28: 2021-01-01 | S28: 2021-07-01 | T28: 2022-01-01 | U28: 2022-07-01 | V28: 2023-01-01 | W28: 2023-07-01 | X28: 2024-01-01 | Y28: 2024-07-01 | Z28: 2025-01-01 | AA28: 2025-07-01 | AB28: 2026-01-01 | AC28: 2026-07-01 | AD28: 2027-01-01 | AE28: 2027-07-01 | AF28: 2028-01-01 | AG28: 2028-07-01 | AH28: 2029-01-01 | AI28: 2029-07-01 | AJ28: 2030-01-01 | AK28: 2030-07-01 | AL28: 2031-01-01 | AM28: 2031-07-01 | AN28: 2032-01-01 | AO28: 2032-07-01 | AP28: 2033-01-01 | AQ28: 2033-07-01 | AR28: 2034-01-01 | AS28: 2034-07-01 | AT28: 2035-01-01 | AU28: 2035-07-01 | AV28: 2036-01-01 | AW28: 2036-07-01 | AX28: 2037-01-01 | AY28: 2037-07-01 | AZ28: 2038-01-01 | BA28: 2038-07-01 | BB28: 2039-01-01 | BC28: 2039-07-01 | BD28: 2040-01-01 | BE28: 2040-07-01 | BF28: 2041-01-01 | BG28: 2041-07-01 | BH28: 2042-01-01 | BI28: 2042-07-01 | BJ28: 2043-01-01 | BK28: 2043-07-01 | BL28: 2044-01-01 | BM28: 2044-07-01 | BN28: 2045-01-01 | BO28: 2045-07-01 | BP28: 2046-01-01 | BQ28: 2046-07-01 | BR28: 2047-01-01 | BS28: =BR29+1 -> 2047-07-01 | BT28: 2048-01-01 | BU28: 2048-07-01 | BV28: 2049-01-01 | BW28: 2049-07-01 | BX28: 2050-01-01 | BY28: 2050-07-01 | BZ28: 2051-01-01 | CA28: 2051-07-01 | CB28: 2052-01-01 | CC28: 2052-07-01 | CD28: 2053-01-01 | CE28: 2053-07-01 | CF28: 2054-01-01 | CG28: 2054-07-01 | CH28: 2055-01-01 | CI28: 2055-07-01 | CJ28: 2056-01-01 | CK28: 2056-07-01 | CL28: 2057-01-01 | CM28: 2057-07-01 | CN28: 2058-01-01 | CO28: 2058-07-01 | CP28: 2059-01-01 | CQ28: 2059-07-01 | CR28: 2060-01-01 | CS28: 2060-07-01 | CT28: 2061-01-01 | CU28: 2061-07-01 | CV28: 2062-01-01 | CW28: 2062-07-01 | CX28: 2063-01-01 | CY28: 2063-07-01 | CZ28: 2064-01-01 | DA28: 2064-07-01 | DB28: 2065-01-01 | DC28: 2065-07-01 | DD28: 2066-01-01 | DE28: 2066-07-01 | DF28: 2067-01-01 | DG28: 2067-07-01 | DH28: 2068-01-01 | DI28: 2068-07-01 | DJ28: 2069-01-01 | DK28: 2069-07-01 | DL28: 2070-01-01 | DM28: 2070-07-01 | DN28: 2071-01-01 | DO28: 2071-07-01 | DP28: 2072-01-01 | DQ28: 2072-07-01 | DR28: 2073-01-01 | DS28: 2073-07-01 | DT28: 2074-01-01 | DU28: 2074-07-01 | DV28: 2075-01-01 | DW28: 2075-07-01 | DX28: 2076-01-01 | DY28: 2076-07-01 | DZ28: 2077-01-01 | EA28: 2077-07-01 | EB28: 2078-01-01 | EC28: 2078-07-01 | ED28: 2079-01-01 | EE28: =ED29+1 -> 2079-07-01 | EF28: 2080-01-01 | EG28: 2080-07-01 | EH28: 2081-01-01 | EI28: 2081-07-01 | EJ28: 2082-01-01 | EK28: 2082-07-01 | EL28: 2083-01-01 | EM28: 2083-07-01 | EN28: 2084-01-01 | EO28: 2084-07-01 | EP28: 2085-01-01 | EQ28: 2085-07-01 | ER28: 2086-01-01 | ES28: 2086-07-01 | ET28: 2087-01-01 | EU28: 2087-07-01 | EV28: 2088-01-01 | EW28: 2088-07-01 | EX28: 2089-01-01 | EY28: 2089-07-01 | EZ28: 2090-01-01 | FA28: 2090-07-01 | FB28: 2091-01-01 | FC28: 2091-07-01 | FD28: 2092-01-01 | FE28: 2092-07-01 | FF28: 2093-01-01 | FG28: 2093-07-01 | FH28: 2094-01-01 | FI28: 2094-07-01 | FJ28: 2095-01-01 | FK28: 2095-07-01 | FL28: 2096-01-01 | FM28: 2096-07-01 | FN28: 2097-01-01 | FO28: 2097-07-01 | FP28: 2098-01-01 | FQ28: 2098-07-01 | FR28: 2099-01-01 | FS28: 2099-07-01 | FT28: 2100-01-01 | FU28: 2100-07-01 | FV28: 2101-01-01 | FW28: 2101-07-01 | FX28: 2102-01-01 | FY28: 2102-07-01 | FZ28: 2103-01-01 | GA28: 2103-07-01 | GB28: 2104-01-01 | GC28: 2104-07-01 | GD28: 2105-01-01 | GE28: 2105-07-01 | GF28: 2106-01-01 | GG28: 2106-07-01 | GH28: 2107-01-01 | GI28: 2107-07-01 | GJ28: 2108-01-01 | GK28: 2108-07-01 | GL28: 2109-01-01 | GM28: 2109-07-01 | GN28: 2110-01-01 | GO28: 2110-07-01 | GP28: 2111-01-01 | GQ28: =GP29+1 -> 2111-07-01 | GR28: 2112-01-01 | GS28: 2112-07-01 | GT28: 2113-01-01 | GU28: 2113-07-01 | GV28: 2114-01-01 | GW28: 2114-07-01 | GX28: 2115-01-01 | GY28: 2115-07-01 | GZ28: 2116-01-01 | HA28: 2116-07-01 | HB28: 2117-01-01 | HC28: 2117-07-01 | HD28: 2118-01-01 | HE28: 2118-07-01 | HF28: 2119-01-01 | HG28: 2119-07-01 | HH28: 2120-01-01 | HI28: 2120-07-01 | HJ28: 2121-01-01 | HK28: 2121-07-01 | HL28: 2122-01-01 | HM28: 2122-07-01 | HN28: 2123-01-01 | HO28: 2123-07-01 | HP28: 2124-01-01 | HQ28: 2124-07-01 | HR28: 2125-01-01 | HS28: 2125-07-01 | HT28: 2126-01-01 | HU28: 2126-07-01 | HV28: 2127-01-01 | HW28: 2127-07-01 | HX28: 2128-01-01 | HY28: 2128-07-01 | HZ28: 2129-01-01 | IA28: 2129-07-01 | IB28: 2130-01-01 | IC28: 2130-07-01 | ID28: 2131-01-01 | IE28: 2131-07-01 | IF28: 2132-01-01 | IG28: 2132-07-01 | IH28: 2133-01-01 | II28: 2133-07-01 | IJ28: 2134-01-01 | IK28: 2134-07-01 | IL28: 2135-01-01 | IM28: 2135-07-01 | IN28: 2136-01-01 | IO28: 2136-07-01 | IP28: 2137-01-01 | IQ28: 2137-07-01 | IR28: 2138-01-01 | IS28: 2138-07-01 | IT28: 2139-01-01 | IU28: 2139-07-01 | IV28: 2140-01-01 | IW28: 2140-07-01 | IX28: 2141-01-01 | IY28: 2141-07-01 | IZ28: 2142-01-01 | JA28: 2142-07-01 | JB28: 2143-01-01 | JC28: =JB29+1 -> 2143-07-01 | JD28: 2144-01-01 | JE28: 2144-07-01 | JF28: 2145-01-01 | JG28: 2145-07-01 | JH28: 2146-01-01 | JI28: 2146-07-01 | JJ28: 2147-01-01 | JK28: 2147-07-01 | JL28: 2148-01-01 | JM28: 2148-07-01 | JN28: 2149-01-01 | JO28: 2149-07-01 | JP28: 2150-01-01 | JQ28: 2150-07-01 | JR28: 2151-01-01 | JS28: 2151-07-01 | JT28: 2152-01-01 | JU28: 2152-07-01 | JV28: 2153-01-01 | JW28: 2153-07-01 | JX28: 2154-01-01 | JY28: 2154-07-01 | JZ28: 2155-01-01 | KA28: 2155-07-01 | KB28: 2156-01-01 | KC28: 2156-07-01 | KD28: 2157-01-01 | KE28: 2157-07-01 | KF28: 2158-01-01 | KG28: 2158-07-01 | KH28: 2159-01-01 | KI28: 2159-07-01 | KJ28: 2160-01-01 | KK28: 2160-07-01 | KL28: 2161-01-01 | KM28: 2161-07-01 | KN28: 2162-01-01 | KO28: 2162-07-01 | KP28: 2163-01-01 | KQ28: 2163-07-01 | KR28: 2164-01-01 | KS28: 2164-07-01 | KT28: 2165-01-01 | KU28: 2165-07-01 | KV28: 2166-01-01 | KW28: 2166-07-01 | KX28: 2167-01-01 | KY28: 2167-07-01 | KZ28: 2168-01-01 | LA28: 2168-07-01 | LB28: 2169-01-01 | LC28: 2169-07-01 | LD28: 2170-01-01 | LE28: 2170-07-01 | LF28: 2171-01-01 | LG28: 2171-07-01 | LH28: 2172-01-01 | LI28: 2172-07-01 | LJ28: 2173-01-01 | LK28: 2173-07-01 | LL28: 2174-01-01 | LM28: 2174-07-01 | LN28: 2175-01-01 | LO28: =LN29+1 -> 2175-07-01 | LP28: 2176-01-01 | LQ28: 2176-07-01 | LR28: 2177-01-01 | LS28: 2177-07-01 | LT28: 2178-01-01 | LU28: 2178-07-01 | LV28: 2179-01-01 | LW28: 2179-07-01 | LX28: 2180-01-01 | LY28: 2180-07-01 | LZ28: 2181-01-01 | MA28: 2181-07-01 | MB28: 2182-01-01 | MC28: 2182-07-01 | MD28: 2183-01-01 | ME28: 2183-07-01 | MF28: 2184-01-01 | MG28: 2184-07-01 | MH28: 2185-01-01 | MI28: 2185-07-01 | MJ28: 2186-01-01 | MK28: 2186-07-01 | ML28: 2187-01-01 | MM28: 2187-07-01 | MN28: 2188-01-01 | MO28: 2188-07-01 | MP28: 2189-01-01 | MQ28: 2189-07-01 | MR28: 2190-01-01 | MS28: 2190-07-01 | MT28: 2191-01-01 | MU28: 2191-07-01 | MV28: 2192-01-01 | MW28: 2192-07-01 | MX28: 2193-01-01 | MY28: 2193-07-01 | MZ28: 2194-01-01 | NA28: 2194-07-01 | NB28: 2195-01-01 | NC28: 2195-07-01 | ND28: 2196-01-01 | NE28: 2196-07-01 | NF28: 2197-01-01 | NG28: 2197-07-01 | NH28: 2198-01-01 | NI28: 2198-07-01 | NJ28: 2199-01-01 | NK28: 2199-07-01 | NL28: 2200-01-01 | NM28: 2200-07-01 | NN28: 2201-01-01 | NO28: 2201-07-01 | NP28: 2202-01-01 | NQ28: 2202-07-01 | NR28: 2203-01-01 | NS28: 2203-07-01 | NT28: 2204-01-01 | NU28: 2204-07-01 | NV28: 2205-01-01 | NW28: 2205-07-01 | NX28: 2206-01-01 | NY28: 2206-07-01 | NZ28: 2207-01-01 | OA28: =NZ29+1 -> 2207-07-01 | OB28: 2208-01-01 | OC28: 2208-07-01 | OD28: 2209-01-01 | OE28: 2209-07-01 | OF28: 2210-01-01 | OG28: 2210-07-01 | OH28: 2211-01-01 | OI28: 2211-07-01
B29: End Date | E29: =F3-1 -> 2014-12-31 | F29: =EOMONTH(F28,$F$6-1) -> 2015-06-30 | G29: =EOMONTH(G28,$F$6-1) -> 2015-12-31 | H29: 2016-06-30 | I29: 2016-12-31 | J29: 2017-06-30 | K29: 2017-12-31 | L29: 2018-06-30 | M29: 2018-12-31 | N29: 2019-06-30 | O29: 2019-12-31 | P29: 2020-06-30 | Q29: 2020-12-31 | R29: 2021-06-30 | S29: 2021-12-31 | T29: 2022-06-30 | U29: 2022-12-31 | V29: 2023-06-30 | W29: 2023-12-31 | X29: 2024-06-30 | Y29: 2024-12-31 | Z29: 2025-06-30 | AA29: 2025-12-31 | AB29: 2026-06-30 | AC29: 2026-12-31 | AD29: 2027-06-30 | AE29: 2027-12-31 | AF29: 2028-06-30 | AG29: 2028-12-31 | AH29: 2029-06-30 | AI29: 2029-12-31 | AJ29: 2030-06-30 | AK29: 2030-12-31 | AL29: 2031-06-30 | AM29: 2031-12-31 | AN29: 2032-06-30 | AO29: 2032-12-31 | AP29: 2033-06-30 | AQ29: 2033-12-31 | AR29: 2034-06-30 | AS29: 2034-12-31 | AT29: 2035-06-30 | AU29: 2035-12-31 | AV29: 2036-06-30 | AW29: 2036-12-31 | AX29: 2037-06-30 | AY29: 2037-12-31 | AZ29: 2038-06-30 | BA29: 2038-12-31 | BB29: 2039-06-30 | BC29: 2039-12-31 | BD29: 2040-06-30 | BE29: 2040-12-31 | BF29: 2041-06-30 | BG29: 2041-12-31 | BH29: 2042-06-30 | BI29: 2042-12-31 | BJ29: 2043-06-30 | BK29: 2043-12-31 | BL29: 2044-06-30 | BM29: 2044-12-31 | BN29: 2045-06-30 | BO29: 2045-12-31 | BP29: 2046-06-30 | BQ29: 2046-12-31 | BR29: 2047-06-30 | BS29: =EOMONTH(BS28,$F$6-1) -> 2047-12-31 | BT29: 2048-06-30 | BU29: 2048-12-31 | BV29: 2049-06-30 | BW29: 2049-12-31 | BX29: 2050-06-30 | BY29: 2050-12-31 | BZ29: 2051-06-30 | CA29: 2051-12-31 | CB29: 2052-06-30 | CC29: 2052-12-31 | CD29: 2053-06-30 | CE29: 2053-12-31 | CF29: 2054-06-30 | CG29: 2054-12-31 | CH29: 2055-06-30 | CI29: 2055-12-31 | CJ29: 2056-06-30 | CK29: 2056-12-31 | CL29: 2057-06-30 | CM29: 2057-12-31 | CN29: 2058-06-30 | CO29: 2058-12-31 | CP29: 2059-06-30 | CQ29: 2059-12-31 | CR29: 2060-06-30 | CS29: 2060-12-31 | CT29: 2061-06-30 | CU29: 2061-12-31 | CV29: 2062-06-30 | CW29: 2062-12-31 | CX29: 2063-06-30 | CY29: 2063-12-31 | CZ29: 2064-06-30 | DA29: 2064-12-31 | DB29: 2065-06-30 | DC29: 2065-12-31 | DD29: 2066-06-30 | DE29: 2066-12-31 | DF29: 2067-06-30 | DG29: 2067-12-31 | DH29: 2068-06-30 | DI29: 2068-12-31 | DJ29: 2069-06-30 | DK29: 2069-12-31 | DL29: 2070-06-30 | DM29: 2070-12-31 | DN29: 2071-06-30 | DO29: 2071-12-31 | DP29: 2072-06-30 | DQ29: 2072-12-31 | DR29: 2073-06-30 | DS29: 2073-12-31 | DT29: 2074-06-30 | DU29: 2074-12-31 | DV29: 2075-06-30 | DW29: 2075-12-31 | DX29: 2076-06-30 | DY29: 2076-12-31 | DZ29: 2077-06-30 | EA29: 2077-12-31 | EB29: 2078-06-30 | EC29: 2078-12-31 | ED29: 2079-06-30 | EE29: =EOMONTH(EE28,$F$6-1) -> 2079-12-31 | EF29: 2080-06-30 | EG29: 2080-12-31 | EH29: 2081-06-30 | EI29: 2081-12-31 | EJ29: 2082-06-30 | EK29: 2082-12-31 | EL29: 2083-06-30 | EM29: 2083-12-31 | EN29: 2084-06-30 | EO29: 2084-12-31 | EP29: 2085-06-30 | EQ29: 2085-12-31 | ER29: 2086-06-30 | ES29: 2086-12-31 | ET29: 2087-06-30 | EU29: 2087-12-31 | EV29: 2088-06-30 | EW29: 2088-12-31 | EX29: 2089-06-30 | EY29: 2089-12-31 | EZ29: 2090-06-30 | FA29: 2090-12-31 | FB29: 2091-06-30 | FC29: 2091-12-31 | FD29: 2092-06-30 | FE29: 2092-12-31 | FF29: 2093-06-30 | FG29: 2093-12-31 | FH29: 2094-06-30 | FI29: 2094-12-31 | FJ29: 2095-06-30 | FK29: 2095-12-31 | FL29: 2096-06-30 | FM29: 2096-12-31 | FN29: 2097-06-30 | FO29: 2097-12-31 | FP29: 2098-06-30 | FQ29: 2098-12-31 | FR29: 2099-06-30 | FS29: 2099-12-31 | FT29: 2100-06-30 | FU29: 2100-12-31 | FV29: 2101-06-30 | FW29: 2101-12-31 | FX29: 2102-06-30 | FY29: 2102-12-31 | FZ29: 2103-06-30 | GA29: 2103-12-31 | GB29: 2104-06-30 | GC29: 2104-12-31 | GD29: 2105-06-30 | GE29: 2105-12-31 | GF29: 2106-06-30 | GG29: 2106-12-31 | GH29: 2107-06-30 | GI29: 2107-12-31 | GJ29: 2108-06-30 | GK29: 2108-12-31 | GL29: 2109-06-30 | GM29: 2109-12-31 | GN29: 2110-06-30 | GO29: 2110-12-31 | GP29: 2111-06-30 | GQ29: =EOMONTH(GQ28,$F$6-1) -> 2111-12-31 | GR29: 2112-06-30 | GS29: 2112-12-31 | GT29: 2113-06-30 | GU29: 2113-12-31 | GV29: 2114-06-30 | GW29: 2114-12-31 | GX29: 2115-06-30 | GY29: 2115-12-31 | GZ29: 2116-06-30 | HA29: 2116-12-31 | HB29: 2117-06-30 | HC29: 2117-12-31 | HD29: 2118-06-30 | HE29: 2118-12-31 | HF29: 2119-06-30 | HG29: 2119-12-31 | HH29: 2120-06-30 | HI29: 2120-12-31 | HJ29: 2121-06-30 | HK29: 2121-12-31 | HL29: 2122-06-30 | HM29: 2122-12-31 | HN29: 2123-06-30 | HO29: 2123-12-31 | HP29: 2124-06-30 | HQ29: 2124-12-31 | HR29: 2125-06-30 | HS29: 2125-12-31 | HT29: 2126-06-30 | HU29: 2126-12-31 | HV29: 2127-06-30 | HW29: 2127-12-31 | HX29: 2128-06-30 | HY29: 2128-12-31 | HZ29: 2129-06-30 | IA29: 2129-12-31 | IB29: 2130-06-30 | IC29: 2130-12-31 | ID29: 2131-06-30 | IE29: 2131-12-31 | IF29: 2132-06-30 | IG29: 2132-12-31 | IH29: 2133-06-30 | II29: 2133-12-31 | IJ29: 2134-06-30 | IK29: 2134-12-31 | IL29: 2135-06-30 | IM29: 2135-12-31 | IN29: 2136-06-30 | IO29: 2136-12-31 | IP29: 2137-06-30 | IQ29: 2137-12-31 | IR29: 2138-06-30 | IS29: 2138-12-31 | IT29: 2139-06-30 | IU29: 2139-12-31 | IV29: 2140-06-30 | IW29: 2140-12-31 | IX29: 2141-06-30 | IY29: 2141-12-31 | IZ29: 2142-06-30 | JA29: 2142-12-31 | JB29: 2143-06-30 | JC29: =EOMONTH(JC28,$F$6-1) -> 2143-12-31 | JD29: 2144-06-30 | JE29: 2144-12-31 | JF29: 2145-06-30 | JG29: 2145-12-31 | JH29: 2146-06-30 | JI29: 2146-12-31 | JJ29: 2147-06-30 | JK29: 2147-12-31 | JL29: 2148-06-30 | JM29: 2148-12-31 | JN29: 2149-06-30 | JO29: 2149-12-31 | JP29: 2150-06-30 | JQ29: 2150-12-31 | JR29: 2151-06-30 | JS29: 2151-12-31 | JT29: 2152-06-30 | JU29: 2152-12-31 | JV29: 2153-06-30 | JW29: 2153-12-31 | JX29: 2154-06-30 | JY29: 2154-12-31 | JZ29: 2155-06-30 | KA29: 2155-12-31 | KB29: 2156-06-30 | KC29: 2156-12-31 | KD29: 2157-06-30 | KE29: 2157-12-31 | KF29: 2158-06-30 | KG29: 2158-12-31 | KH29: 2159-06-30 | KI29: 2159-12-31 | KJ29: 2160-06-30 | KK29: 2160-12-31 | KL29: 2161-06-30 | KM29: 2161-12-31 | KN29: 2162-06-30 | KO29: 2162-12-31 | KP29: 2163-06-30 | KQ29: 2163-12-31 | KR29: 2164-06-30 | KS29: 2164-12-31 | KT29: 2165-06-30 | KU29: 2165-12-31 | KV29: 2166-06-30 | KW29: 2166-12-31 | KX29: 2167-06-30 | KY29: 2167-12-31 | KZ29: 2168-06-30 | LA29: 2168-12-31 | LB29: 2169-06-30 | LC29: 2169-12-31 | LD29: 2170-06-30 | LE29: 2170-12-31 | LF29: 2171-06-30 | LG29: 2171-12-31 | LH29: 2172-06-30 | LI29: 2172-12-31 | LJ29: 2173-06-30 | LK29: 2173-12-31 | LL29: 2174-06-30 | LM29: 2174-12-31 | LN29: 2175-06-30 | LO29: =EOMONTH(LO28,$F$6-1) -> 2175-12-31 | LP29: 2176-06-30 | LQ29: 2176-12-31 | LR29: 2177-06-30 | LS29: 2177-12-31 | LT29: 2178-06-30 | LU29: 2178-12-31 | LV29: 2179-06-30 | LW29: 2179-12-31 | LX29: 2180-06-30 | LY29: 2180-12-31 | LZ29: 2181-06-30 | MA29: 2181-12-31 | MB29: 2182-06-30 | MC29: 2182-12-31 | MD29: 2183-06-30 | ME29: 2183-12-31 | MF29: 2184-06-30 | MG29: 2184-12-31 | MH29: 2185-06-30 | MI29: 2185-12-31 | MJ29: 2186-06-30 | MK29: 2186-12-31 | ML29: 2187-06-30 | MM29: 2187-12-31 | MN29: 2188-06-30 | MO29: 2188-12-31 | MP29: 2189-06-30 | MQ29: 2189-12-31 | MR29: 2190-06-30 | MS29: 2190-12-31 | MT29: 2191-06-30 | MU29: 2191-12-31 | MV29: 2192-06-30 | MW29: 2192-12-31 | MX29: 2193-06-30 | MY29: 2193-12-31 | MZ29: 2194-06-30 | NA29: 2194-12-31 | NB29: 2195-06-30 | NC29: 2195-12-31 | ND29: 2196-06-30 | NE29: 2196-12-31 | NF29: 2197-06-30 | NG29: 2197-12-31 | NH29: 2198-06-30 | NI29: 2198-12-31 | NJ29: 2199-06-30 | NK29: 2199-12-31 | NL29: 2200-06-30 | NM29: 2200-12-31 | NN29: 2201-06-30 | NO29: 2201-12-31 | NP29: 2202-06-30 | NQ29: 2202-12-31 | NR29: 2203-06-30 | NS29: 2203-12-31 | NT29: 2204-06-30 | NU29: 2204-12-31 | NV29: 2205-06-30 | NW29: 2205-12-31 | NX29: 2206-06-30 | NY29: 2206-12-31 | NZ29: 2207-06-30 | OA29: =EOMONTH(OA28,$F$6-1) -> 2207-12-31 | OB29: 2208-06-30 | OC29: 2208-12-31 | OD29: 2209-06-30 | OE29: 2209-12-31 | OF29: 2210-06-30 | OG29: 2210-12-31 | OH29: 2211-06-30 | OI29: 2211-12-31
B31: Operating Period
B32: Spend for Period
B33: Spend Period Switch
B35: Debt Repayment Switch
B36: Spend for Period During Debt Repayment
B38: Approximate Match of Date
B39: Index - Periods between Sepnd
B40: Prospective MRA Requirements (Match and Index)
B41: Contributions to MRA
B43: Opening Balance
B44: Add: Contributions
B45: Less: With-drawls
B46: Closing Balance
B48: Test of Closing Balance at Spend Period
B49: Aggregate Test

Sheet Changing Expenditures
B4: General
C5: Commercial Operation | E5: Date | F5: 2012-05-01
C6: Concession Period | E6: Years | F6: 40
C7: Periods per Year | E7: Periods | F7: 2
C8: Months per Period | E8: Months | F8: =12/F7 -> 6
C9: Days per Period | E9: Days | F9: =360/F7 -> 180
C10: Retirement | E10: Date | F10: =EDATE(F5,F6*12)-1 -> 2052-04-30
C11: Debt Tenor | E11: Years | F11: 28
C12: Ending Debt Period | E12: Date | F12: =EDATE(F5,F11*12)-1 -> 2040-04-30
B14: Extraordinary Maintenenace
C15: Years Between Maintenance | E15: Years | F15: 3
C16: Periods Between Maintenance | E16: Periods | F16: =F15*F7 -> 6
C17: Maintenance Expenditure | E17: Currency | F17: 1000
C18: Inflation Rate | E18: Percent | F18: 0.05
C19: Periodic Inflaion Rate | E19: Percent | F19: =(1+F18)^(1/F7)-1 -> 0.0246950766
C21: Period | F21: 0 | G21: =F21+1 -> 1 | H21: 2 | I21: 3 | J21: 4 | K21: 5 | L21: 6 | M21: 7 | N21: 8 | O21: 9 | P21: 10 | Q21: 11 | R21: 12 | S21: 13 | T21: 14 | U21: 15 | V21: 16 | W21: 17 | X21: 18 | Y21: 19 | Z21: 20 | AA21: 21 | AB21: 22 | AC21: 23 | AD21: 24 | AE21: 25 | AF21: 26 | AG21: 27 | AH21: 28 | AI21: 29 | AJ21: 30 | AK21: 31 | AL21: 32 | AM21: 33 | AN21: 34 | AO21: 35 | AP21: 36 | AQ21: 37 | AR21: 38 | AS21: 39 | AT21: 40 | AU21: 41 | AV21: 42 | AW21: 43 | AX21: 44 | AY21: 45 | AZ21: 46 | BA21: 47 | BB21: 48 | BC21: 49 | BD21: 50 | BE21: 51 | BF21: 52 | BG21: 53 | BH21: 54 | BI21: 55 | BJ21: 56 | BK21: 57 | BL21: 58 | BM21: 59 | BN21: 60 | BO21: 61 | BP21: 62 | BQ21: 63 | BR21: 64 | BS21: =BR21+1 -> 65 | BT21: 66 | BU21: 67 | BV21: 68 | BW21: 69 | BX21: 70 | BY21: 71 | BZ21: 72 | CA21: 73 | CB21: 74 | CC21: 75 | CD21: 76 | CE21: 77 | CF21: 78 | CG21: 79 | CH21: 80 | CI21: 81 | CJ21: 82 | CK21: 83 | CL21: 84 | CM21: 85 | CN21: 86 | CO21: 87 | CP21: 88 | CQ21: 89 | CR21: 90 | CS21: 91 | CT21: 92 | CU21: 93 | CV21: 94 | CW21: 95 | CX21: 96 | CY21: 97 | CZ21: 98 | DA21: 99 | DB21: 100 | DC21: 101 | DD21: 102 | DE21: 103 | DF21: 104 | DG21: 105 | DH21: 106 | DI21: 107 | DJ21: 108 | DK21: 109 | DL21: 110 | DM21: 111 | DN21: 112 | DO21: 113 | DP21: 114 | DQ21: 115 | DR21: 116 | DS21: 117 | DT21: 118 | DU21: 119 | DV21: 120 | DW21: 121 | DX21: 122 | DY21: 123 | DZ21: 124 | EA21: 125 | EB21: 126 | EC21: 127 | ED21: 128 | EE21: =ED21+1 -> 129 | EF21: 130 | EG21: 131 | EH21: 132 | EI21: 133 | EJ21: 134 | EK21: 135 | EL21: 136 | EM21: 137 | EN21: 138 | EO21: 139 | EP21: 140 | EQ21: 141 | ER21: 142 | ES21: 143 | ET21: 144 | EU21: 145 | EV21: 146 | EW21: 147 | EX21: 148 | EY21: 149 | EZ21: 150 | FA21: 151 | FB21: 152 | FC21: 153 | FD21: 154 | FE21: 155 | FF21: 156 | FG21: 157 | FH21: 158 | FI21: 159 | FJ21: 160 | FK21: 161 | FL21: 162 | FM21: 163 | FN21: 164 | FO21: 165 | FP21: 166 | FQ21: 167 | FR21: 168 | FS21: 169 | FT21: 170 | FU21: 171 | FV21: 172 | FW21: 173 | FX21: 174 | FY21: 175 | FZ21: 176 | GA21: 177 | GB21: 178 | GC21: 179 | GD21: 180 | GE21: 181 | GF21: 182 | GG21: 183 | GH21: 184 | GI21: 185 | GJ21: 186 | GK21: 187 | GL21: 188 | GM21: 189 | GN21: 190 | GO21: 191 | GP21: 192 | GQ21: =GP21+1 -> 193 | GR21: 194 | GS21: 195 | GT21: 196 | GU21: 197 | GV21: 198 | GW21: 199 | GX21: 200 | GY21: 201 | GZ21: 202 | HA21: 203 | HB21: 204 | HC21: 205 | HD21: 206 | HE21: 207 | HF21: 208 | HG21: 209 | HH21: 210 | HI21: 211 | HJ21: 212 | HK21: 213 | HL21: 214 | HM21: 215 | HN21: 216 | HO21: 217 | HP21: 218 | HQ21: 219 | HR21: 220 | HS21: 221 | HT21: 222 | HU21: 223 | HV21: 224 | HW21: 225 | HX21: 226 | HY21: 227 | HZ21: 228 | IA21: 229 | IB21: 230 | IC21: 231 | ID21: 232 | IE21: 233 | IF21: 234 | IG21: 235 | IH21: 236 | II21: 237 | IJ21: 238 | IK21: 239 | IL21: 240 | IM21: 241 | IN21: 242 | IO21: 243 | IP21: 244 | IQ21: 245 | IR21: 246 | IS21: 247 | IT21: 248 | IU21: 249 | IV21: 250
C22: Months in Period | F22: =F8 -> 6 | G22: =F22 -> 6 | H22: 6 | I22: 6 | J22: 6 | K22: 6 | L22: 6 | M22: 6 | N22: 6 | O22: 6 | P22: 6 | Q22: 6 | R22: 6 | S22: 6 | T22: 6 | U22: 6 | V22: 6 | W22: 6 | X22: 6 | Y22: 6 | Z22: 6 | AA22: 6 | AB22: 6 | AC22: 6 | AD22: 6 | AE22: 6 | AF22: 6 | AG22: 6 | AH22: 6 | AI22: 6 | AJ22: 6 | AK22: 6 | AL22: 6 | AM22: 6 | AN22: 6 | AO22: 6 | AP22: 6 | AQ22: 6 | AR22: 6 | AS22: 6 | AT22: 6 | AU22: 6 | AV22: 6 | AW22: 6 | AX22: 6 | AY22: 6 | AZ22: 6 | BA22: 6 | BB22: 6 | BC22: 6 | BD22: 6 | BE22: 6 | BF22: 6 | BG22: 6 | BH22: 6 | BI22: 6 | BJ22: 6 | BK22: 6 | BL22: 6 | BM22: 6 | BN22: 6 | BO22: 6 | BP22: 6 | BQ22: 6 | BR22: 6 | BS22: =BR22 -> 6 | BT22: 6 | BU22: 6 | BV22: 6 | BW22: 6 | BX22: 6 | BY22: 6 | BZ22: 6 | CA22: 6 | CB22: 6 | CC22: 6 | CD22: 6 | CE22: 6 | CF22: 6 | CG22: 6 | CH22: 6 | CI22: 6 | CJ22: 6 | CK22: 6 | CL22: 6 | CM22: 6 | CN22: 6 | CO22: 6 | CP22: 6 | CQ22: 6 | CR22: 6 | CS22: 6 | CT22: 6 | CU22: 6 | CV22: 6 | CW22: 6 | CX22: 6 | CY22: 6 | CZ22: 6 | DA22: 6 | DB22: 6 | DC22: 6 | DD22: 6 | DE22: 6 | DF22: 6 | DG22: 6 | DH22: 6 | DI22: 6 | DJ22: 6 | DK22: 6 | DL22: 6 | DM22: 6 | DN22: 6 | DO22: 6 | DP22: 6 | DQ22: 6 | DR22: 6 | DS22: 6 | DT22: 6 | DU22: 6 | DV22: 6 | DW22: 6 | DX22: 6 | DY22: 6 | DZ22: 6 | EA22: 6 | EB22: 6 | EC22: 6 | ED22: 6 | EE22: =ED22 -> 6 | EF22: 6 | EG22: 6 | EH22: 6 | EI22: 6 | EJ22: 6 | EK22: 6 | EL22: 6 | EM22: 6 | EN22: 6 | EO22: 6 | EP22: 6 | EQ22: 6 | ER22: 6 | ES22: 6 | ET22: 6 | EU22: 6 | EV22: 6 | EW22: 6 | EX22: 6 | EY22: 6 | EZ22: 6 | FA22: 6 | FB22: 6 | FC22: 6 | FD22: 6 | FE22: 6 | FF22: 6 | FG22: 6 | FH22: 6 | FI22: 6 | FJ22: 6 | FK22: 6 | FL22: 6 | FM22: 6 | FN22: 6 | FO22: 6 | FP22: 6 | FQ22: 6 | FR22: 6 | FS22: 6 | FT22: 6 | FU22: 6 | FV22: 6 | FW22: 6 | FX22: 6 | FY22: 6 | FZ22: 6 | GA22: 6 | GB22: 6 | GC22: 6 | GD22: 6 | GE22: 6 | GF22: 6 | GG22: 6 | GH22: 6 | GI22: 6 | GJ22: 6 | GK22: 6 | GL22: 6 | GM22: 6 | GN22: 6 | GO22: 6 | GP22: 6 | GQ22: =GP22 -> 6 | GR22: 6 | GS22: 6 | GT22: 6 | GU22: 6 | GV22: 6 | GW22: 6 | GX22: 6 | GY22: 6 | GZ22: 6 | HA22: 6 | HB22: 6 | HC22: 6 | HD22: 6 | HE22: 6 | HF22: 6 | HG22: 6 | HH22: 6 | HI22: 6 | HJ22: 6 | HK22: 6 | HL22: 6 | HM22: 6 | HN22: 6 | HO22: 6 | HP22: 6 | HQ22: 6 | HR22: 6 | HS22: 6 | HT22: 6 | HU22: 6 | HV22: 6 | HW22: 6 | HX22: 6 | HY22: 6 | HZ22: 6 | IA22: 6 | IB22: 6 | IC22: 6 | ID22: 6 | IE22: 6 | IF22: 6 | IG22: 6 | IH22: 6 | II22: 6 | IJ22: 6 | IK22: 6 | IL22: 6 | IM22: 6 | IN22: 6 | IO22: 6 | IP22: 6 | IQ22: 6 | IR22: 6 | IS22: 6 | IT22: 6 | IU22: 6 | IV22: 6
C24: Start Date | G24: =F25+1 -> 2012-05-01 | H24: 2012-11-01 | I24: 2013-05-01 | J24: 2013-11-01 | K24: 2014-05-01 | L24: 2014-11-01 | M24: 2015-05-01 | N24: 2015-11-01 | O24: 2016-05-01 | P24: 2016-11-01 | Q24: 2017-05-01 | R24: 2017-11-01 | S24: 2018-05-01 | T24: 2018-11-01 | U24: 2019-05-01 | V24: 2019-11-01 | W24: 2020-05-01 | X24: 2020-11-01 | Y24: 2021-05-01 | Z24: 2021-11-01 | AA24: 2022-05-01 | AB24: 2022-11-01 | AC24: 2023-05-01 | AD24: 2023-11-01 | AE24: 2024-05-01 | AF24: 2024-11-01 | AG24: 2025-05-01 | AH24: 2025-11-01 | AI24: 2026-05-01 | AJ24: 2026-11-01 | AK24: 2027-05-01 | AL24: 2027-11-01 | AM24: 2028-05-01 | AN24: 2028-11-01 | AO24: 2029-05-01 | AP24: 2029-11-01 | AQ24: 2030-05-01 | AR24: 2030-11-01 | AS24: 2031-05-01 | AT24: 2031-11-01 | AU24: 2032-05-01 | AV24: 2032-11-01 | AW24: 2033-05-01 | AX24: 2033-11-01 | AY24: 2034-05-01 | AZ24: 2034-11-01 | BA24: 2035-05-01 | BB24: 2035-11-01 | BC24: 2036-05-01 | BD24: 2036-11-01 | BE24: 2037-05-01 | BF24: 2037-11-01 | BG24: 2038-05-01 | BH24: 2038-11-01 | BI24: 2039-05-01 | BJ24: 2039-11-01 | BK24: 2040-05-01 | BL24: 2040-11-01 | BM24: 2041-05-01 | BN24: 2041-11-01 | BO24: 2042-05-01 | BP24: 2042-11-01 | BQ24: 2043-05-01 | BR24: 2043-11-01 | BS24: =BR25+1 -> 2044-05-01 | BT24: 2044-11-01 | BU24: 2045-05-01 | BV24: 2045-11-01 | BW24: 2046-05-01 | BX24: 2046-11-01 | BY24: 2047-05-01 | BZ24: 2047-11-01 | CA24: 2048-05-01 | CB24: 2048-11-01 | CC24: 2049-05-01 | CD24: 2049-11-01 | CE24: 2050-05-01 | CF24: 2050-11-01 | CG24: 2051-05-01 | CH24: 2051-11-01 | CI24: 2052-05-01 | CJ24: 2052-05-01 | CK24: 2052-05-01 | CL24: 2052-05-01 | CM24: 2052-05-01 | CN24: 2052-05-01 | CO24: 2052-05-01 | CP24: 2052-05-01 | CQ24: 2052-05-01 | CR24: 2052-05-01 | CS24: 2052-05-01 | CT24: 2052-05-01 | CU24: 2052-05-01 | CV24: 2052-05-01 | CW24: 2052-05-01 | CX24: 2052-05-01 | CY24: 2052-05-01 | CZ24: 2052-05-01 | DA24: 2052-05-01 | DB24: 2052-05-01 | DC24: 2052-05-01 | DD24: 2052-05-01 | DE24: 2052-05-01 | DF24: 2052-05-01 | DG24: 2052-05-01 | DH24: 2052-05-01 | DI24: 2052-05-01 | DJ24: 2052-05-01 | DK24: 2052-05-01 | DL24: 2052-05-01 | DM24: 2052-05-01 | DN24: 2052-05-01 | DO24: 2052-05-01 | DP24: 2052-05-01 | DQ24: 2052-05-01 | DR24: 2052-05-01 | DS24: 2052-05-01 | DT24: 2052-05-01 | DU24: 2052-05-01 | DV24: 2052-05-01 | DW24: 2052-05-01 | DX24: 2052-05-01 | DY24: 2052-05-01 | DZ24: 2052-05-01 | EA24: 2052-05-01 | EB24: 2052-05-01 | EC24: 2052-05-01 | ED24: 2052-05-01 | EE24: =ED25+1 -> 2052-05-01 | EF24: 2052-05-01 | EG24: 2052-05-01 | EH24: 2052-05-01 | EI24: 2052-05-01 | EJ24: 2052-05-01 | EK24: 2052-05-01 | EL24: 2052-05-01 | EM24: 2052-05-01 | EN24: 2052-05-01 | EO24: 2052-05-01 | EP24: 2052-05-01 | EQ24: 2052-05-01 | ER24: 2052-05-01 | ES24: 2052-05-01 | ET24: 2052-05-01 | EU24: 2052-05-01 | EV24: 2052-05-01 | EW24: 2052-05-01 | EX24: 2052-05-01 | EY24: 2052-05-01 | EZ24: 2052-05-01 | FA24: 2052-05-01 | FB24: 2052-05-01 | FC24: 2052-05-01 | FD24: 2052-05-01 | FE24: 2052-05-01 | FF24: 2052-05-01 | FG24: 2052-05-01 | FH24: 2052-05-01 | FI24: 2052-05-01 | FJ24: 2052-05-01 | FK24: 2052-05-01 | FL24: 2052-05-01 | FM24: 2052-05-01 | FN24: 2052-05-01 | FO24: 2052-05-01 | FP24: 2052-05-01 | FQ24: 2052-05-01 | FR24: 2052-05-01 | FS24: 2052-05-01 | FT24: 2052-05-01 | FU24: 2052-05-01 | FV24: 2052-05-01 | FW24: 2052-05-01 | FX24: 2052-05-01 | FY24: 2052-05-01 | FZ24: 2052-05-01 | GA24: 2052-05-01 | GB24: 2052-05-01 | GC24: 2052-05-01 | GD24: 2052-05-01 | GE24: 2052-05-01 | GF24: 2052-05-01 | GG24: 2052-05-01 | GH24: 2052-05-01 | GI24: 2052-05-01 | GJ24: 2052-05-01 | GK24: 2052-05-01 | GL24: 2052-05-01 | GM24: 2052-05-01 | GN24: 2052-05-01 | GO24: 2052-05-01 | GP24: 2052-05-01 | GQ24: =GP25+1 -> 2052-05-01 | GR24: 2052-05-01 | GS24: 2052-05-01 | GT24: 2052-05-01 | GU24: 2052-05-01 | GV24: 2052-05-01 | GW24: 2052-05-01 | GX24: 2052-05-01 | GY24: 2052-05-01 | GZ24: 2052-05-01 | HA24: 2052-05-01 | HB24: 2052-05-01 | HC24: 2052-05-01 | HD24: 2052-05-01 | HE24: 2052-05-01 | HF24: 2052-05-01 | HG24: 2052-05-01 | HH24: 2052-05-01 | HI24: 2052-05-01 | HJ24: 2052-05-01 | HK24: 2052-05-01 | HL24: 2052-05-01 | HM24: 2052-05-01 | HN24: 2052-05-01 | HO24: 2052-05-01 | HP24: 2052-05-01 | HQ24: 2052-05-01 | HR24: 2052-05-01 | HS24: 2052-05-01 | HT24: 2052-05-01 | HU24: 2052-05-01 | HV24: 2052-05-01 | HW24: 2052-05-01 | HX24: 2052-05-01 | HY24: 2052-05-01 | HZ24: 2052-05-01 | IA24: 2052-05-01 | IB24: 2052-05-01 | IC24: 2052-05-01 | ID24: 2052-05-01 | IE24: 2052-05-01 | IF24: 2052-05-01 | IG24: 2052-05-01 | IH24: 2052-05-01 | II24: 2052-05-01 | IJ24: 2052-05-01 | IK24: 2052-05-01 | IL24: 2052-05-01 | IM24: 2052-05-01 | IN24: 2052-05-01 | IO24: 2052-05-01 | IP24: 2052-05-01 | IQ24: 2052-05-01 | IR24: 2052-05-01 | IS24: 2052-05-01 | IT24: 2052-05-01 | IU24: 2052-05-01 | IV24: 2052-05-01
C25: End Date | F25: =F5-1 -> 2012-04-30 | G25: =MIN(EDATE(G24,G22)-1,$F$10) -> 2012-10-31 | H25: 2013-04-30 | I25: 2013-10-31 | J25: 2014-04-30 | K25: 2014-10-31 | L25: 2015-04-30 | M25: 2015-10-31 | N25: 2016-04-30 | O25: 2016-10-31 | P25: 2017-04-30 | Q25: 2017-10-31 | R25: 2018-04-30 | S25: 2018-10-31 | T25: 2019-04-30 | U25: 2019-10-31 | V25: 2020-04-30 | W25: 2020-10-31 | X25: 2021-04-30 | Y25: 2021-10-31 | Z25: 2022-04-30 | AA25: 2022-10-31 | AB25: 2023-04-30 | AC25: 2023-10-31 | AD25: 2024-04-30 | AE25: 2024-10-31 | AF25: 2025-04-30 | AG25: 2025-10-31 | AH25: 2026-04-30 | AI25: 2026-10-31 | AJ25: 2027-04-30 | AK25: 2027-10-31 | AL25: 2028-04-30 | AM25: 2028-10-31 | AN25: 2029-04-30 | AO25: 2029-10-31 | AP25: 2030-04-30 | AQ25: 2030-10-31 | AR25: 2031-04-30 | AS25: 2031-10-31 | AT25: 2032-04-30 | AU25: 2032-10-31 | AV25: 2033-04-30 | AW25: 2033-10-31 | AX25: 2034-04-30 | AY25: 2034-10-31 | AZ25: 2035-04-30 | BA25: 2035-10-31 | BB25: 2036-04-30 | BC25: 2036-10-31 | BD25: 2037-04-30 | BE25: 2037-10-31 | BF25: 2038-04-30 | BG25: 2038-10-31 | BH25: 2039-04-30 | BI25: 2039-10-31 | BJ25: 2040-04-30 | BK25: 2040-10-31 | BL25: 2041-04-30 | BM25: 2041-10-31 | BN25: 2042-04-30 | BO25: 2042-10-31 | BP25: 2043-04-30 | BQ25: 2043-10-31 | BR25: 2044-04-30 | BS25: =MIN(EDATE(BS24,BS22)-1,$F$10) -> 2044-10-31 | BT25: 2045-04-30 | BU25: 2045-10-31 | BV25: 2046-04-30 | BW25: 2046-10-31 | BX25: 2047-04-30 | BY25: 2047-10-31 | BZ25: 2048-04-30 | CA25: 2048-10-31 | CB25: 2049-04-30 | CC25: 2049-10-31 | CD25: 2050-04-30 | CE25: 2050-10-31 | CF25: 2051-04-30 | CG25: 2051-10-31 | CH25: 2052-04-30 | CI25: 2052-04-30 | CJ25: 2052-04-30 | CK25: 2052-04-30 | CL25: 2052-04-30 | CM25: 2052-04-30 | CN25: 2052-04-30 | CO25: 2052-04-30 | CP25: 2052-04-30 | CQ25: 2052-04-30 | CR25: 2052-04-30 | CS25: 2052-04-30 | CT25: 2052-04-30 | CU25: 2052-04-30 | CV25: 2052-04-30 | CW25: 2052-04-30 | CX25: 2052-04-30 | CY25: 2052-04-30 | CZ25: 2052-04-30 | DA25: 2052-04-30 | DB25: 2052-04-30 | DC25: 2052-04-30 | DD25: 2052-04-30 | DE25: 2052-04-30 | DF25: 2052-04-30 | DG25: 2052-04-30 | DH25: 2052-04-30 | DI25: 2052-04-30 | DJ25: 2052-04-30 | DK25: 2052-04-30 | DL25: 2052-04-30 | DM25: 2052-04-30 | DN25: 2052-04-30 | DO25: 2052-04-30 | DP25: 2052-04-30 | DQ25: 2052-04-30 | DR25: 2052-04-30 | DS25: 2052-04-30 | DT25: 2052-04-30 | DU25: 2052-04-30 | DV25: 2052-04-30 | DW25: 2052-04-30 | DX25: 2052-04-30 | DY25: 2052-04-30 | DZ25: 2052-04-30 | EA25: 2052-04-30 | EB25: 2052-04-30 | EC25: 2052-04-30 | ED25: 2052-04-30 | EE25: =MIN(EDATE(EE24,EE22)-1,$F$10) -> 2052-04-30 | EF25: 2052-04-30 | EG25: 2052-04-30 | EH25: 2052-04-30 | EI25: 2052-04-30 | EJ25: 2052-04-30 | EK25: 2052-04-30 | EL25: 2052-04-30 | EM25: 2052-04-30 | EN25: 2052-04-30 | EO25: 2052-04-30 | EP25: 2052-04-30 | EQ25: 2052-04-30 | ER25: 2052-04-30 | ES25: 2052-04-30 | ET25: 2052-04-30 | EU25: 2052-04-30 | EV25: 2052-04-30 | EW25: 2052-04-30 | EX25: 2052-04-30 | EY25: 2052-04-30 | EZ25: 2052-04-30 | FA25: 2052-04-30 | FB25: 2052-04-30 | FC25: 2052-04-30 | FD25: 2052-04-30 | FE25: 2052-04-30 | FF25: 2052-04-30 | FG25: 2052-04-30 | FH25: 2052-04-30 | FI25: 2052-04-30 | FJ25: 2052-04-30 | FK25: 2052-04-30 | FL25: 2052-04-30 | FM25: 2052-04-30 | FN25: 2052-04-30 | FO25: 2052-04-30 | FP25: 2052-04-30 | FQ25: 2052-04-30 | FR25: 2052-04-30 | FS25: 2052-04-30 | FT25: 2052-04-30 | FU25: 2052-04-30 | FV25: 2052-04-30 | FW25: 2052-04-30 | FX25: 2052-04-30 | FY25: 2052-04-30 | FZ25: 2052-04-30 | GA25: 2052-04-30 | GB25: 2052-04-30 | GC25: 2052-04-30 | GD25: 2052-04-30 | GE25: 2052-04-30 | GF25: 2052-04-30 | GG25: 2052-04-30 | GH25: 2052-04-30 | GI25: 2052-04-30 | GJ25: 2052-04-30 | GK25: 2052-04-30 | GL25: 2052-04-30 | GM25: 2052-04-30 | GN25: 2052-04-30 | GO25: 2052-04-30 | GP25: 2052-04-30 | GQ25: =MIN(EDATE(GQ24,GQ22)-1,$F$10) -> 2052-04-30 | GR25: 2052-04-30 | GS25: 2052-04-30 | GT25: 2052-04-30 | GU25: 2052-04-30 | GV25: 2052-04-30 | GW25: 2052-04-30 | GX25: 2052-04-30 | GY25: 2052-04-30 | GZ25: 2052-04-30 | HA25: 2052-04-30 | HB25: 2052-04-30 | HC25: 2052-04-30 | HD25: 2052-04-30 | HE25: 2052-04-30 | HF25: 2052-04-30 | HG25: 2052-04-30 | HH25: 2052-04-30 | HI25: 2052-04-30 | HJ25: 2052-04-30 | HK25: 2052-04-30 | HL25: 2052-04-30 | HM25: 2052-04-30 | HN25: 2052-04-30 | HO25: 2052-04-30 | HP25: 2052-04-30 | HQ25: 2052-04-30 | HR25: 2052-04-30 | HS25: 2052-04-30 | HT25: 2052-04-30 | HU25: 2052-04-30 | HV25: 2052-04-30 | HW25: 2052-04-30 | HX25: 2052-04-30 | HY25: 2052-04-30 | HZ25: 2052-04-30 | IA25: 2052-04-30 | IB25: 2052-04-30 | IC25: 2052-04-30 | ID25: 2052-04-30 | IE25: 2052-04-30 | IF25: 2052-04-30 | IG25: 2052-04-30 | IH25: 2052-04-30 | II25: 2052-04-30 | IJ25: 2052-04-30 | IK25: 2052-04-30 | IL25: 2052-04-30 | IM25: 2052-04-30 | IN25: 2052-04-30 | IO25: 2052-04-30 | IP25: 2052-04-30 | IQ25: 2052-04-30 | IR25: 2052-04-30 | IS25: 2052-04-30 | IT25: 2052-04-30 | IU25: 2052-04-30 | IV25: 2052-04-30
C27: Operating Period | F27: =AND(F25>=$F$5,F24<=$F$10) -> FALSE | G27: TRUE | H27: TRUE | I27: TRUE | J27: TRUE | K27: TRUE | L27: TRUE | M27: TRUE | N27: TRUE | O27: TRUE | P27: TRUE | Q27: TRUE | R27: TRUE | S27: TRUE | T27: TRUE | U27: TRUE | V27: TRUE | W27: TRUE | X27: TRUE | Y27: TRUE | Z27: TRUE | AA27: TRUE | AB27: TRUE | AC27: TRUE | AD27: TRUE | AE27: TRUE | AF27: TRUE | AG27: TRUE | AH27: TRUE | AI27: TRUE | AJ27: TRUE | AK27: TRUE | AL27: TRUE | AM27: TRUE | AN27: TRUE | AO27: TRUE | AP27: TRUE | AQ27: TRUE | AR27: TRUE | AS27: TRUE | AT27: TRUE | AU27: TRUE | AV27: TRUE | AW27: TRUE | AX27: TRUE | AY27: TRUE | AZ27: TRUE | BA27: TRUE | BB27: TRUE | BC27: TRUE | BD27: TRUE | BE27: TRUE | BF27: TRUE | BG27: TRUE | BH27: TRUE | BI27: TRUE | BJ27: TRUE | BK27: TRUE | BL27: TRUE | BM27: TRUE | BN27: TRUE | BO27: TRUE | BP27: TRUE | BQ27: TRUE | BR27: =AND(BR25>=$F$5,BR24<=$F$10) -> TRUE | BS27: TRUE | BT27: TRUE | BU27: TRUE | BV27: TRUE | BW27: TRUE | BX27: TRUE | BY27: TRUE | BZ27: TRUE | CA27: TRUE | CB27: TRUE | CC27: TRUE | CD27: TRUE | CE27: TRUE | CF27: TRUE | CG27: TRUE | CH27: TRUE | CI27: FALSE | CJ27: FALSE | CK27: FALSE | CL27: FALSE | CM27: FALSE | CN27: FALSE | CO27: FALSE | CP27: FALSE | CQ27: FALSE | CR27: FALSE | CS27: FALSE | CT27: FALSE | CU27: FALSE | CV27: FALSE | CW27: FALSE | CX27: FALSE | CY27: FALSE | CZ27: FALSE | DA27: FALSE | DB27: FALSE | DC27: FALSE | DD27: FALSE | DE27: FALSE | DF27: FALSE | DG27: FALSE | DH27: FALSE | DI27: FALSE | DJ27: FALSE | DK27: FALSE | DL27: FALSE | DM27: FALSE | DN27: FALSE | DO27: FALSE | DP27: FALSE | DQ27: FALSE | DR27: FALSE | DS27: FALSE | DT27: FALSE | DU27: FALSE | DV27: FALSE | DW27: FALSE | DX27: FALSE | DY27: FALSE | DZ27: FALSE | EA27: FALSE | EB27: FALSE | EC27: FALSE | ED27: =AND(ED25>=$F$5,ED24<=$F$10) -> FALSE | EE27: FALSE | EF27: FALSE | EG27: FALSE | EH27: FALSE | EI27: FALSE | EJ27: FALSE | EK27: FALSE | EL27: FALSE | EM27: FALSE | EN27: FALSE | EO27: FALSE | EP27: FALSE | EQ27: FALSE | ER27: FALSE | ES27: FALSE | ET27: FALSE | EU27: FALSE | EV27: FALSE | EW27: FALSE | EX27: FALSE | EY27: FALSE | EZ27: FALSE | FA27: FALSE | FB27: FALSE | FC27: FALSE | FD27: FALSE | FE27: FALSE | FF27: FALSE | FG27: FALSE | FH27: FALSE | FI27: FALSE | FJ27: FALSE | FK27: FALSE | FL27: FALSE | FM27: FALSE | FN27: FALSE | FO27: FALSE | FP27: FALSE | FQ27: FALSE | FR27: FALSE | FS27: FALSE | FT27: FALSE | FU27: FALSE | FV27: FALSE | FW27: FALSE | FX27: FALSE | FY27: FALSE | FZ27: FALSE | GA27: FALSE | GB27: FALSE | GC27: FALSE | GD27: FALSE | GE27: FALSE | GF27: FALSE | GG27: FALSE | GH27: FALSE | GI27: FALSE | GJ27: FALSE | GK27: FALSE | GL27: FALSE | GM27: FALSE | GN27: FALSE | GO27: FALSE | GP27: =AND(GP25>=$F$5,GP24<=$F$10) -> FALSE | GQ27: FALSE | GR27: FALSE | GS27: FALSE | GT27: FALSE | GU27: FALSE | GV27: FALSE | GW27: FALSE | GX27: FALSE | GY27: FALSE | GZ27: FALSE | HA27: FALSE | HB27: FALSE | HC27: FALSE | HD27: FALSE | HE27: FALSE | HF27: FALSE | HG27: FALSE | HH27: FALSE | HI27: FALSE | HJ27: FALSE | HK27: FALSE | HL27: FALSE | HM27: FALSE | HN27: FALSE | HO27: FALSE | HP27: FALSE | HQ27: FALSE | HR27: FALSE | HS27: FALSE | HT27: FALSE | HU27: FALSE | HV27: FALSE | HW27: FALSE | HX27: FALSE | HY27: FALSE | HZ27: FALSE | IA27: FALSE | IB27: FALSE | IC27: FALSE | ID27: FALSE | IE27: FALSE | IF27: FALSE | IG27: FALSE | IH27: FALSE | II27: FALSE | IJ27: FALSE | IK27: FALSE | IL27: FALSE | IM27: FALSE | IN27: FALSE | IO27: FALSE | IP27: FALSE | IQ27: FALSE | IR27: FALSE | IS27: FALSE | IT27: FALSE | IU27: FALSE | IV27: FALSE
C29: Spend Peiod | F29: =MOD(F21,$F$16)=0 -> TRUE | G29: FALSE | H29: FALSE | I29: FALSE | J29: FALSE | K29: FALSE | L29: TRUE | M29: FALSE | N29: FALSE | O29: FALSE | P29: FALSE | Q29: FALSE | R29: TRUE | S29: FALSE | T29: FALSE | U29: FALSE | V29: FALSE | W29: FALSE | X29: TRUE | Y29: FALSE | Z29: FALSE | AA29: FALSE | AB29: FALSE | AC29: FALSE | AD29: TRUE | AE29: FALSE | AF29: FALSE | AG29: FALSE | AH29: FALSE | AI29: FALSE | AJ29: TRUE | AK29: FALSE | AL29: FALSE | AM29: FALSE | AN29: FALSE | AO29: FALSE | AP29: TRUE | AQ29: FALSE | AR29: FALSE | AS29: FALSE | AT29: FALSE | AU29: FALSE | AV29: TRUE | AW29: FALSE | AX29: FALSE | AY29: FALSE | AZ29: FALSE | BA29: FALSE | BB29: TRUE | BC29: FALSE | BD29: FALSE | BE29: FALSE | BF29: FALSE | BG29: FALSE | BH29: TRUE | BI29: FALSE | BJ29: FALSE | BK29: FALSE | BL29: FALSE | BM29: FALSE | BN29: TRUE | BO29: FALSE | BP29: FALSE | BQ29: FALSE | BR29: =MOD(BR21,$F$16)=0 -> FALSE | BS29: FALSE | BT29: TRUE | BU29: FALSE | BV29: FALSE | BW29: FALSE | BX29: FALSE | BY29: FALSE | BZ29: TRUE | CA29: FALSE | CB29: FALSE | CC29: FALSE | CD29: FALSE | CE29: FALSE | CF29: TRUE | CG29: FALSE | CH29: FALSE | CI29: FALSE | CJ29: FALSE | CK29: FALSE | CL29: TRUE | CM29: FALSE | CN29: FALSE | CO29: FALSE | CP29: FALSE | CQ29: FALSE | CR29: TRUE | CS29: FALSE | CT29: FALSE | CU29: FALSE | CV29: FALSE | CW29: FALSE | CX29: TRUE | CY29: FALSE | CZ29: FALSE | DA29: FALSE | DB29: FALSE | DC29: FALSE | DD29: TRUE | DE29: FALSE | DF29: FALSE | DG29: FALSE | DH29: FALSE | DI29: FALSE | DJ29: TRUE | DK29: FALSE | DL29: FALSE | DM29: FALSE | DN29: FALSE | DO29: FALSE | DP29: TRUE | DQ29: FALSE | DR29: FALSE | DS29: FALSE | DT29: FALSE | DU29: FALSE | DV29: TRUE | DW29: FALSE | DX29: FALSE | DY29: FALSE | DZ29: FALSE | EA29: FALSE | EB29: TRUE | EC29: FALSE | ED29: =MOD(ED21,$F$16)=0 -> FALSE | EE29: FALSE | EF29: FALSE | EG29: FALSE | EH29: TRUE | EI29: FALSE | EJ29: FALSE | EK29: FALSE | EL29: FALSE | EM29: FALSE | EN29: TRUE | EO29: FALSE | EP29: FALSE | EQ29: FALSE | ER29: FALSE | ES29: FALSE | ET29: TRUE | EU29: FALSE | EV29: FALSE | EW29: FALSE | EX29: FALSE | EY29: FALSE | EZ29: TRUE | FA29: FALSE | FB29: FALSE | FC29: FALSE | FD29: FALSE | FE29: FALSE | FF29: TRUE | FG29: FALSE | FH29: FALSE | FI29: FALSE | FJ29: FALSE | FK29: FALSE | FL29: TRUE | FM29: FALSE | FN29: FALSE | FO29: FALSE | FP29: FALSE | FQ29: FALSE | FR29: TRUE | FS29: FALSE | FT29: FALSE | FU29: FALSE | FV29: FALSE | FW29: FALSE | FX29: TRUE | FY29: FALSE | FZ29: FALSE | GA29: FALSE | GB29: FALSE | GC29: FALSE | GD29: TRUE | GE29: FALSE | GF29: FALSE | GG29: FALSE | GH29: FALSE | GI29: FALSE | GJ29: TRUE | GK29: FALSE | GL29: FALSE | GM29: FALSE | GN29: FALSE | GO29: FALSE | GP29: =MOD(GP21,$F$16)=0 -> TRUE | GQ29: FALSE | GR29: FALSE | GS29: FALSE | GT29: FALSE | GU29: FALSE | GV29: TRUE | GW29: FALSE | GX29: FALSE | GY29: FALSE | GZ29: FALSE | HA29: FALSE | HB29: TRUE | HC29: FALSE | HD29: FALSE | HE29: FALSE | HF29: FALSE | HG29: FALSE | HH29: TRUE | HI29: FALSE | HJ29: FALSE | HK29: FALSE | HL29: FALSE | HM29: FALSE | HN29: TRUE | HO29: FALSE | HP29: FALSE | HQ29: FALSE | HR29: FALSE | HS29: FALSE | HT29: TRUE | HU29: FALSE | HV29: FALSE | HW29: FALSE | HX29: FALSE | HY29: FALSE | HZ29: TRUE | IA29: FALSE | IB29: FALSE | IC29: FALSE | ID29: FALSE | IE29: FALSE | IF29: TRUE | IG29: FALSE | IH29: FALSE | II29: FALSE | IJ29: FALSE | IK29: FALSE | IL29: TRUE | IM29: FALSE | IN29: FALSE | IO29: FALSE | IP29: FALSE | IQ29: FALSE | IR29: TRUE | IS29: FALSE | IT29: FALSE | IU29: FALSE | IV29: FALSE
C30: Periods Between Spend | F30: =$F$16 -> 6 | G30: 6 | H30: 6 | I30: 6 | J30: 6 | K30: 6 | L30: 6 | M30: 6 | N30: 6 | O30: 6 | P30: 6 | Q30: 6 | R30: 6 | S30: 6 | T30: 6 | U30: 6 | V30: 6 | W30: 6 | X30: 6 | Y30: 6 | Z30: 6 | AA30: 6 | AB30: 6 | AC30: 6 | AD30: 6 | AE30: 6 | AF30: 6 | AG30: 6 | AH30: 6 | AI30: 6 | AJ30: 6 | AK30: 6 | AL30: 6 | AM30: 6 | AN30: 6 | AO30: 6 | AP30: 6 | AQ30: 6 | AR30: 6 | AS30: 6 | AT30: 6 | AU30: 6 | AV30: 6 | AW30: 6 | AX30: 6 | AY30: 6 | AZ30: 6 | BA30: 6 | BB30: 6 | BC30: 6 | BD30: 6 | BE30: 6 | BF30: 6 | BG30: 6 | BH30: 6 | BI30: 6 | BJ30: 6 | BK30: 6 | BL30: 6 | BM30: 6 | BN30: 6 | BO30: 6 | BP30: 6 | BQ30: 6 | BR30: =$F$16 -> 6 | BS30: 6 | BT30: 6 | BU30: 6 | BV30: 6 | BW30: 6 | BX30: 6 | BY30: 6 | BZ30: 6 | CA30: 6 | CB30: 6 | CC30: 6 | CD30: 6 | CE30: 6 | CF30: 6 | CG30: 6 | CH30: 6 | CI30: 6 | CJ30: 6 | CK30: 6 | CL30: 6 | CM30: 6 | CN30: 6 | CO30: 6 | CP30: 6 | CQ30: 6 | CR30: 6 | CS30: 6 | CT30: 6 | CU30: 6 | CV30: 6 | CW30: 6 | CX30: 6 | CY30: 6 | CZ30: 6 | DA30: 6 | DB30: 6 | DC30: 6 | DD30: 6 | DE30: 6 | DF30: 6 | DG30: 6 | DH30: 6 | DI30: 6 | DJ30: 6 | DK30: 6 | DL30: 6 | DM30: 6 | DN30: 6 | DO30: 6 | DP30: 6 | DQ30: 6 | DR30: 6 | DS30: 6 | DT30: 6 | DU30: 6 | DV30: 6 | DW30: 6 | DX30: 6 | DY30: 6 | DZ30: 6 | EA30: 6 | EB30: 6 | EC30: 6 | ED30: =$F$16 -> 6 | EE30: 6 | EF30: 6 | EG30: 6 | EH30: 6 | EI30: 6 | EJ30: 6 | EK30: 6 | EL30: 6 | EM30: 6 | EN30: 6 | EO30: 6 | EP30: 6 | EQ30: 6 | ER30: 6 | ES30: 6 | ET30: 6 | EU30: 6 | EV30: 6 | EW30: 6 | EX30: 6 | EY30: 6 | EZ30: 6 | FA30: 6 | FB30: 6 | FC30: 6 | FD30: 6 | FE30: 6 | FF30: 6 | FG30: 6 | FH30: 6 | FI30: 6 | FJ30: 6 | FK30: 6 | FL30: 6 | FM30: 6 | FN30: 6 | FO30: 6 | FP30: 6 | FQ30: 6 | FR30: 6 | FS30: 6 | FT30: 6 | FU30: 6 | FV30: 6 | FW30: 6 | FX30: 6 | FY30: 6 | FZ30: 6 | GA30: 6 | GB30: 6 | GC30: 6 | GD30: 6 | GE30: 6 | GF30: 6 | GG30: 6 | GH30: 6 | GI30: 6 | GJ30: 6 | GK30: 6 | GL30: 6 | GM30: 6 | GN30: 6 | GO30: 6 | GP30: =$F$16 -> 6 | GQ30: 6 | GR30: 6 | GS30: 6 | GT30: 6 | GU30: 6 | GV30: 6 | GW30: 6 | GX30: 6 | GY30: 6 | GZ30: 6 | HA30: 6 | HB30: 6 | HC30: 6 | HD30: 6 | HE30: 6 | HF30: 6 | HG30: 6 | HH30: 6 | HI30: 6 | HJ30: 6 | HK30: 6 | HL30: 6 | HM30: 6 | HN30: 6 | HO30: 6 | HP30: 6 | HQ30: 6 | HR30: 6 | HS30: 6 | HT30: 6 | HU30: 6 | HV30: 6 | HW30: 6 | HX30: 6 | HY30: 6 | HZ30: 6 | IA30: 6 | IB30: 6 | IC30: 6 | ID30: 6 | IE30: 6 | IF30: 6 | IG30: 6 | IH30: 6 | II30: 6 | IJ30: 6 | IK30: 6 | IL30: 6 | IM30: 6 | IN30: 6 | IO30: 6 | IP30: 6 | IQ30: 6 | IR30: 6 | IS30: 6 | IT30: 6 | IU30: 6 | IV30: 6
C31: Period Counter for MRA | F31: =IF(E29,1,E31+1) -> 1 | G31: =IF(F29,1,F31+1) -> 1 | H31: =IF(G29,1,G31+1) -> 2 | I31: =IF(H29,1,H31+1) -> 3 | J31: 4 | K31: 5 | L31: 6 | M31: 1 | N31: 2 | O31: 3 | P31: 4 | Q31: 5 | R31: 6 | S31: 1 | T31: 2 | U31: 3 | V31: 4 | W31: 5 | X31: 6 | Y31: 1 | Z31: 2 | AA31: 3 | AB31: 4 | AC31: 5 | AD31: 6 | AE31: 1 | AF31: 2 | AG31: 3 | AH31: 4 | AI31: 5 | AJ31: 6 | AK31: 1 | AL31: 2 | AM31: 3 | AN31: 4 | AO31: 5 | AP31: 6 | AQ31: 1 | AR31: 2 | AS31: 3 | AT31: 4 | AU31: 5 | AV31: 6 | AW31: 1 | AX31: 2 | AY31: 3 | AZ31: 4 | BA31: 5 | BB31: 6 | BC31: 1 | BD31: 2 | BE31: 3 | BF31: 4 | BG31: 5 | BH31: 6 | BI31: 1 | BJ31: 2 | BK31: 3 | BL31: 4 | BM31: 5 | BN31: 6 | BO31: 1 | BP31: 2 | BQ31: 3 | BR31: =IF(BQ29,1,BQ31+1) -> 4 | BS31: 5 | BT31: 6 | BU31: 1 | BV31: 2 | BW31: 3 | BX31: 4 | BY31: 5 | BZ31: 6 | CA31: 1 | CB31: 2 | CC31: 3 | CD31: 4 | CE31: 5 | CF31: 6 | CG31: 1 | CH31: 2 | CI31: 3 | CJ31: 4 | CK31: 5 | CL31: 6 | CM31: 1 | CN31: 2 | CO31: 3 | CP31: 4 | CQ31: 5 | CR31: 6 | CS31: 1 | CT31: 2 | CU31: 3 | CV31: 4 | CW31: 5 | CX31: 6 | CY31: 1 | CZ31: 2 | DA31: 3 | DB31: 4 | DC31: 5 | DD31: 6 | DE31: 1 | DF31: 2 | DG31: 3 | DH31: 4 | DI31: 5 | DJ31: 6 | DK31: 1 | DL31: 2 | DM31: 3 | DN31: 4 | DO31: 5 | DP31: 6 | DQ31: 1 | DR31: 2 | DS31: 3 | DT31: 4 | DU31: 5 | DV31: 6 | DW31: 1 | DX31: 2 | DY31: 3 | DZ31: 4 | EA31: 5 | EB31: 6 | EC31: 1 | ED31: =IF(EC29,1,EC31+1) -> 2 | EE31: 3 | EF31: 4 | EG31: 5 | EH31: 6 | EI31: 1 | EJ31: 2 | EK31: 3 | EL31: 4 | EM31: 5 | EN31: 6 | EO31: 1 | EP31: 2 | EQ31: 3 | ER31: 4 | ES31: 5 | ET31: 6 | EU31: 1 | EV31: 2 | EW31: 3 | EX31: 4 | EY31: 5 | EZ31: 6 | FA31: 1 | FB31: 2 | FC31: 3 | FD31: 4 | FE31: 5 | FF31: 6 | FG31: 1 | FH31: 2 | FI31: 3 | FJ31: 4 | FK31: 5 | FL31: 6 | FM31: 1 | FN31: 2 | FO31: 3 | FP31: 4 | FQ31: 5 | FR31: 6 | FS31: 1 | FT31: 2 | FU31: 3 | FV31: 4 | FW31: 5 | FX31: 6 | FY31: 1 | FZ31: 2 | GA31: 3 | GB31: 4 | GC31: 5 | GD31: 6 | GE31: 1 | GF31: 2 | GG31: 3 | GH31: 4 | GI31: 5 | GJ31: 6 | GK31: 1 | GL31: 2 | GM31: 3 | GN31: 4 | GO31: 5 | GP31: =IF(GO29,1,GO31+1) -> 6 | GQ31: 1 | GR31: 2 | GS31: 3 | GT31: 4 | GU31: 5 | GV31: 6 | GW31: 1 | GX31: 2 | GY31: 3 | GZ31: 4 | HA31: 5 | HB31: 6 | HC31: 1 | HD31: 2 | HE31: 3 | HF31: 4 | HG31: 5 | HH31: 6 | HI31: 1 | HJ31: 2 | HK31: 3 | HL31: 4 | HM31: 5 | HN31: 6 | HO31: 1 | HP31: 2 | HQ31: 3 | HR31: 4 | HS31: 5 | HT31: 6 | HU31: 1 | HV31: 2 | HW31: 3 | HX31: 4 | HY31: 5 | HZ31: 6 | IA31: 1 | IB31: 2 | IC31: 3 | ID31: 4 | IE31: 5 | IF31: 6 | IG31: 1 | IH31: 2 | II31: 3 | IJ31: 4 | IK31: 5 | IL31: 6 | IM31: 1 | IN31: 2 | IO31: 3 | IP31: 4 | IQ31: 5 | IR31: 6 | IS31: 1 | IT31: 2 | IU31: 3 | IV31: 4
C32: Remaining Periods until Next Spend | F32: =F30-F31 -> 5 | G32: 5 | H32: 4 | I32: 3 | J32: 2 | K32: 1 | L32: 0 | M32: 5 | N32: 4 | O32: 3 | P32: 2 | Q32: 1 | R32: 0 | S32: 5 | T32: 4 | U32: 3 | V32: 2 | W32: 1 | X32: 0 | Y32: 5 | Z32: 4 | AA32: 3 | AB32: 2 | AC32: 1 | AD32: 0 | AE32: 5 | AF32: 4 | AG32: 3 | AH32: 2 | AI32: 1 | AJ32: 0 | AK32: 5 | AL32: 4 | AM32: 3 | AN32: 2 | AO32: 1 | AP32: 0 | AQ32: 5 | AR32: 4 | AS32: 3 | AT32: 2 | AU32: 1 | AV32: 0 | AW32: 5 | AX32: 4 | AY32: 3 | AZ32: 2 | BA32: 1 | BB32: 0 | BC32: 5 | BD32: 4 | BE32: 3 | BF32: 2 | BG32: 1 | BH32: 0 | BI32: 5 | BJ32: 4 | BK32: 3 | BL32: 2 | BM32: 1 | BN32: 0 | BO32: 5 | BP32: 4 | BQ32: 3 | BR32: =BR30-BR31 -> 2 | BS32: 1 | BT32: 0 | BU32: 5 | BV32: 4 | BW32: 3 | BX32: 2 | BY32: 1 | BZ32: 0 | CA32: 5 | CB32: 4 | CC32: 3 | CD32: 2 | CE32: 1 | CF32: 0 | CG32: 5 | CH32: 4 | CI32: 3 | CJ32: 2 | CK32: 1 | CL32: 0 | CM32: 5 | CN32: 4 | CO32: 3 | CP32: 2 | CQ32: 1 | CR32: 0 | CS32: 5 | CT32: 4 | CU32: 3 | CV32: 2 | CW32: 1 | CX32: 0 | CY32: 5 | CZ32: 4 | DA32: 3 | DB32: 2 | DC32: 1 | DD32: 0 | DE32: 5 | DF32: 4 | DG32: 3 | DH32: 2 | DI32: 1 | DJ32: 0 | DK32: 5 | DL32: 4 | DM32: 3 | DN32: 2 | DO32: 1 | DP32: 0 | DQ32: 5 | DR32: 4 | DS32: 3 | DT32: 2 | DU32: 1 | DV32: 0 | DW32: 5 | DX32: 4 | DY32: 3 | DZ32: 2 | EA32: 1 | EB32: 0 | EC32: 5 | ED32: =ED30-ED31 -> 4 | EE32: 3 | EF32: 2 | EG32: 1 | EH32: 0 | EI32: 5 | EJ32: 4 | EK32: 3 | EL32: 2 | EM32: 1 | EN32: 0 | EO32: 5 | EP32: 4 | EQ32: 3 | ER32: 2 | ES32: 1 | ET32: 0 | EU32: 5 | EV32: 4 | EW32: 3 | EX32: 2 | EY32: 1 | EZ32: 0 | FA32: 5 | FB32: 4 | FC32: 3 | FD32: 2 | FE32: 1 | FF32: 0 | FG32: 5 | FH32: 4 | FI32: 3 | FJ32: 2 | FK32: 1 | FL32: 0 | FM32: 5 | FN32: 4 | FO32: 3 | FP32: 2 | FQ32: 1 | FR32: 0 | FS32: 5 | FT32: 4 | FU32: 3 | FV32: 2 | FW32: 1 | FX32: 0 | FY32: 5 | FZ32: 4 | GA32: 3 | GB32: 2 | GC32: 1 | GD32: 0 | GE32: 5 | GF32: 4 | GG32: 3 | GH32: 2 | GI32: 1 | GJ32: 0 | GK32: 5 | GL32: 4 | GM32: 3 | GN32: 2 | GO32: 1 | GP32: =GP30-GP31 -> 0 | GQ32: 5 | GR32: 4 | GS32: 3 | GT32: 2 | GU32: 1 | GV32: 0 | GW32: 5 | GX32: 4 | GY32: 3 | GZ32: 2 | HA32: 1 | HB32: 0 | HC32: 5 | HD32: 4 | HE32: 3 | HF32: 2 | HG32: 1 | HH32: 0 | HI32: 5 | HJ32: 4 | HK32: 3 | HL32: 2 | HM32: 1 | HN32: 0 | HO32: 5 | HP32: 4 | HQ32: 3 | HR32: 2 | HS32: 1 | HT32: 0 | HU32: 5 | HV32: 4 | HW32: 3 | HX32: 2 | HY32: 1 | HZ32: 0 | IA32: 5 | IB32: 4 | IC32: 3 | ID32: 2 | IE32: 1 | IF32: 0 | IG32: 5 | IH32: 4 | II32: 3 | IJ32: 2 | IK32: 1 | IL32: 0 | IM32: 5 | IN32: 4 | IO32: 3 | IP32: 2 | IQ32: 1 | IR32: 0 | IS32: 5 | IT32: 4 | IU32: 3 | IV32: 2
C34: Periodic Inflation | F34: =$F$19*F27 -> 0 | G34: 0.0246950766 | H34: 0.0246950766 | I34: 0.0246950766 | J34: 0.0246950766 | K34: 0.0246950766 | L34: 0.0246950766 | M34: 0.0246950766 | N34: 0.0246950766 | O34: 0.0246950766 | P34: 0.0246950766 | Q34: 0.0246950766 | R34: 0.0246950766 | S34: 0.0246950766 | T34: 0.0246950766 | U34: 0.0246950766 | V34: 0.0246950766 | W34: 0.0246950766 | X34: 0.0246950766 | Y34: 0.0246950766 | Z34: 0.0246950766 | AA34: 0.0246950766 | AB34: 0.0246950766 | AC34: 0.0246950766 | AD34: 0.0246950766 | AE34: 0.0246950766 | AF34: 0.0246950766 | AG34: 0.0246950766 | AH34: 0.0246950766 | AI34: 0.0246950766 | AJ34: 0.0246950766 | AK34: 0.0246950766 | AL34: 0.0246950766 | AM34: 0.0246950766 | AN34: 0.0246950766 | AO34: 0.0246950766 | AP34: 0.0246950766 | AQ34: 0.0246950766 | AR34: 0.0246950766 | AS34: 0.0246950766 | AT34: 0.0246950766 | AU34: 0.0246950766 | AV34: 0.0246950766 | AW34: 0.0246950766 | AX34: 0.0246950766 | AY34: 0.0246950766 | AZ34: 0.0246950766 | BA34: 0.0246950766 | BB34: 0.0246950766 | BC34: 0.0246950766 | BD34: 0.0246950766 | BE34: 0.0246950766 | BF34: 0.0246950766 | BG34: 0.0246950766 | BH34: 0.0246950766 | BI34: 0.0246950766 | BJ34: 0.0246950766 | BK34: 0.0246950766 | BL34: 0.0246950766 | BM34: 0.0246950766 | BN34: 0.0246950766 | BO34: 0.0246950766 | BP34: 0.0246950766 | BQ34: 0.0246950766 | BR34: =$F$19*BR27 -> 0.0246950766 | BS34: 0.0246950766 | BT34: 0.0246950766 | BU34: 0.0246950766 | BV34: 0.0246950766 | BW34: 0.0246950766 | BX34: 0.0246950766 | BY34: 0.0246950766 | BZ34: 0.0246950766 | CA34: 0.0246950766 | CB34: 0.0246950766 | CC34: 0.0246950766 | CD34: 0.0246950766 | CE34: 0.0246950766 | CF34: 0.0246950766 | CG34: 0.0246950766 | CH34: 0.0246950766 | CI34: 0 | CJ34: 0 | CK34: 0 | CL34: 0 | CM34: 0 | CN34: 0 | CO34: 0 | CP34: 0 | CQ34: 0 | CR34: 0 | CS34: 0 | CT34: 0 | CU34: 0 | CV34: 0 | CW34: 0 | CX34: 0 | CY34: 0 | CZ34: 0 | DA34: 0 | DB34: 0 | DC34: 0 | DD34: 0 | DE34: 0 | DF34: 0 | DG34: 0 | DH34: 0 | DI34: 0 | DJ34: 0 | DK34: 0 | DL34: 0 | DM34: 0 | DN34: 0 | DO34: 0 | DP34: 0 | DQ34: 0 | DR34: 0 | DS34: 0 | DT34: 0 | DU34: 0 | DV34: 0 | DW34: 0 | DX34: 0 | DY34: 0 | DZ34: 0 | EA34: 0 | EB34: 0 | EC34: 0 | ED34: =$F$19*ED27 -> 0 | EE34: 0 | EF34: 0 | EG34: 0 | EH34: 0 | EI34: 0 | EJ34: 0 | EK34: 0 | EL34: 0 | EM34: 0 | EN34: 0 | EO34: 0 | EP34: 0 | EQ34: 0 | ER34: 0 | ES34: 0 | ET34: 0 | EU34: 0 | EV34: 0 | EW34: 0 | EX34: 0 | EY34: 0 | EZ34: 0 | FA34: 0 | FB34: 0 | FC34: 0 | FD34: 0 | FE34: 0 | FF34: 0 | FG34: 0 | FH34: 0 | FI34: 0 | FJ34: 0 | FK34: 0 | FL34: 0 | FM34: 0 | FN34: 0 | FO34: 0 | FP34: 0 | FQ34: 0 | FR34: 0 | FS34: 0 | FT34: 0 | FU34: 0 | FV34: 0 | FW34: 0 | FX34: 0 | FY34: 0 | FZ34: 0 | GA34: 0 | GB34: 0 | GC34: 0 | GD34: 0 | GE34: 0 | GF34: 0 | GG34: 0 | GH34: 0 | GI34: 0 | GJ34: 0 | GK34: 0 | GL34: 0 | GM34: 0 | GN34: 0 | GO34: 0 | GP34: =$F$19*GP27 -> 0 | GQ34: 0 | GR34: 0 | GS34: 0 | GT34: 0 | GU34: 0 | GV34: 0 | GW34: 0 | GX34: 0 | GY34: 0 | GZ34: 0 | HA34: 0 | HB34: 0 | HC34: 0 | HD34: 0 | HE34: 0 | HF34: 0 | HG34: 0 | HH34: 0 | HI34: 0 | HJ34: 0 | HK34: 0 | HL34: 0 | HM34: 0 | HN34: 0 | HO34: 0 | HP34: 0 | HQ34: 0 | HR34: 0 | HS34: 0 | HT34: 0 | HU34: 0 | HV34: 0 | HW34: 0 | HX34: 0 | HY34: 0 | HZ34: 0 | IA34: 0 | IB34: 0 | IC34: 0 | ID34: 0 | IE34: 0 | IF34: 0 | IG34: 0 | IH34: 0 | II34: 0 | IJ34: 0 | IK34: 0 | IL34: 0 | IM34: 0 | IN34: 0 | IO34: 0 | IP34: 0 | IQ34: 0 | IR34: 0 | IS34: 0 | IT34: 0 | IU34: 0 | IV34: 0
